Workbook

Sheet Tips
B1: Faculty Compensation Change Request Form
B2: UNIVERSITY OF PITTSBURGH PHYSICIANS (UPP)
B3: UNIVERSITY OF PITTSBURGH SCHOOL OF MEDICINE (SOM)
B4: PLEASE SCAN YOUR REQUESTS TO:
B5: University of Pittsburgh Physicians (UPP)
B6: Email to: PhysEmploymentSvcs@upmc.edu
A9: Tips for completion :
A10: Please submit Draft Exhibit, Job Descriptions, and Comp tool along with the FCCF
A11: 1 | B11: Contact Information
B12: a. As the requester please provide your name, department, phone number, and date submitted for any necessary follow up questions
A14: 2 | B14: Faculty Member Impacted
B15: a. Requested Effective Date refers to the date the Comp change should start. Note that if the FCCF is for a Pay Category/Status change or Significant pay decrease effective date cannot be a retro (prior month) change due to the implications on benefits/FICA/Retirement.
B16: b. Please identify the name of the Faculty member the comp change is for along with their Medical Specialty
B17: c. Pay Category is a dropdown selection. Please select the current and proposed Pay Category. If there aren't any changes indicate "No Change"
B18: d. "Is this physician on a Visa" is a dropdown selection. Please select "Yes/No". Note that if the answer is "Yes" then the FCCF will be routed to the appropriate group for international review
B19: e. Tenure Status is a dropdown selection. Please select from the corresponding options
A21: 3 | B21: Status - Casual/Part Time/ Full Time
B22: a. Hours worked is a dropdown field. Please select the corresponding range for hours currently worked and proposed worked. If there aren't any changes in hours indicate "No Change". 15 or Less - Casual, 15 to 30 - Part time, 30 and above - Full time
A24: 4 | B24: Time Distribution/Productivity Structure
B25: a. List current/proposed wRVU's and "Clinical" effort. Current wRVU's should be based on "APPROVED" Exhibit A Target.
B26: - If no target productivity identified in Exhibit list either prior year annualized or estimated annual current year
B27: b. List current/proposed "Total" effort as it relates to time distribution
B28: c. Current UPP Compensation should tie to compensation listed in current Exhibit A.
B29: d. For new Administrative roles indicate if physician is replacing someone currently in that role and if it is replacing use the justification section to further explain the increase in Administrative Supplement.
B30: - Please use the justification section to list out multiple title allocations by department
B31: - Please be sure to include methodology on how Administrative Supplement was determined
A33: 5 | B33: Pitt compensation changes
B34: a. Identify how much of the Pitt compensation change will be on the reimbursable
A36: 6 | B36: Funding for compensation changes (PITT CHANGES ONLY)
B37: a. List the Pitt account number for where changes will be funded
A39: 7 | B39: Hospital/Entity paying for changes
B40: a. If changes are being paid by Hospital or different Entity i.e. CMI/EMI please specify which Hospital/Entity and how much of the change is being covered
B41: b. Changes being funded by a Hospital should be included in a Global agreement
A43: 8 | B43: Offer Term Analysis Tool
B44: a. Complete all items in yellow in the 'Physician and Department Information" and "Benchmark Standards" sections.
B45: b. Enter "1.0" for Full-Time or the Part-Time equivalent on the "FTE" line.
B46: c. If there is no exhibit A target, please enter an estimate based on actual productivity. This amount can be adjusted based on changes to effort, FTE, etc. made with this FCCF.
B47: d. Use the text box to explain any of the amounts in the tool or to provide any information that you feel is relevant.
B49: FCCF and justification should address the following where applicable:
B50: 1. If Pitt impact, is it on the reimbursable
B51: 2. If changes in Category are they within guidelines
B52: 3. If changes in Admin
B53: a. Need to have job description
B54: b. What is the new Admin effort versus old
B55: c. Who held position before and will there be a corresponding decrease for that physician? If not, why?
B56: 4. Is change Hospital Supported? If yes, need confirmation email
B57: 5. If Base increase is there a corresponding clinical effort/wRVU target increase

Sheet Page 1
B1: Faculty Compensation Change Request Form | V1: NO CHANGE | W1: YES | Y1: SELECT HERE | AB1: NO CHANGE
B2: UNIVERSITY OF PITTSBURGH PHYSICIANS (UPP) | V2: A | W2: NO | Y2: 15 or less - Casual | AB2: TENURE
B3: UNIVERSITY OF PITTSBURGH SCHOOL OF MEDICINE (SOM) | V3: B | W3: SELECT HERE | Y3: 15 to 30 - Part Time | AB3: TENURE STREAM
B4: PLEASE SCAN YOUR REQUESTS TO: | V4: C | Y4: Above 30 - Full Time | AB4: NON-TENURED
B5: University of Pittsburgh Physicians (UPP) | V5: O - Upp Only | Y5: NO CHANGE | AB5: SELECT HERE
B6: Email to: PhysEmploymentSvcs@upmc.edu | V6: Z
V7: T
V8: SELECT HERE
A10: 1 | B10: Contact Information:
B12: Requester/Contact Person: | J12: Date Submitted:
B13: Office/Department: | J13: Phone Number:
A15: 2 | B15: Faculty Member Impacted:
B17: Requested Effective Date: | J17: Employee ID:
B18: If requested date other than 1st of month, department should submit a Partial Month Pay Form
B19: Faculty Member Name: | J19: Medical Specialty:
B20: Current Faculty Rank: | J20: Proposed Faculty Rank:
B21: Current Pay Category: | D21: SELECT HERE | J21: Proposed Pay Category: | L21: SELECT HERE
B22: (Please note: If dually employed - pay category change must be received by 5th of the month otherwise cannot process until following month)
B23: Is this physician on a Visa? | D23: SELECT HERE | J23: Tenure Status: | L23: SELECT HERE
A24: 3 | B24: Change in status could affect benefit eligibility. Please select hours currently worked and proposed. Please note, these changes cannot be back dated if benefits are affected.
B25: Existing hours worked: | D25: SELECT HERE | J25: Proposed hours worked: | L25: SELECT HERE
A28: 4 | B28: Compensation/Time Distribution/Productivity Structure - For current wRVU's/ASA Units and compensation please refer to most current approved Exhibit A where applicable or provide projected annual wRVU's/ASA Units.
B30: Current | J30: Proposed
B31: wRVU's/ASA Units: | J31: wRVU's/ASA Units:
B33: Clinical effort: | J33: Clinical effort:
B34: Admin effort: | J34: Admin effort:
B35: Research effort: | J35: Research effort:
B36: Teaching effort: | J36: Teaching effort:
B37: Clinical Non Epic effort: | J37: Clinical Non Epic effort:
E40: Current Approved Compensation | I40: Proposed New Compensation | L40: Difference in New compared to Current
B42: VA Component | E42: 1e-05 | I42: 0 | L42: =I42-E42 -> -1e-05
B44: University Base | E44: 1e-05 | I44: 0 | L44: =I44-E44 -> -1e-05
B45: University Admin Supplement | E45: 1e-05 | I45: 0 | L45: =I45-E45 -> -1e-05
B46: University Supplement | E46: 1e-05 | I46: 0 | L46: -1e-05
B47: University Research Incentive | E47: 1e-05 | I47: 0 | L47: -1e-05
B48: University Academic Incentive | E48: 1e-05 | I48: 0 | L48: -1e-05
B49: University Incentive | E49: 1e-05 | I49: 0 | L49: -1e-05
B51: University Subtotal | E51: =SUM(E42:G49) -> 7e-05 | I51: =SUM(I42:J49) -> 0 | L51: =SUM(L42:N49) -> -7e-05
B52: UPP Base | E52: 1e-05 | I52: 0 | L52: =I52-E52 -> -1e-05 | P52: =IF(L53>=0,"*Please provide justification along with job description of new role. In addition, identify who held role previously and whether the Admin Supp is also being adjusted for the individual previously holding position","") -> 
B53: UPP Administrative Supplement | E53: 1e-05 | I53: 0 | L53: -1e-05
B54: UPP Supplemental | E54: 1e-05 | I54: 0 | L54: -1e-05
B55: UPP Incentive | E55: 1e-05 | I55: 0 | L55: -1e-05
B56: UPP Sign on Bonus | E56: 1e-05 | I56: 0 | L56: -1e-05
B57: UPP Retention Payment | E57: 1e-05 | I57: 0 | L57: -1e-05
B59: UPP Subtotal | E59: =SUM(E52:G57) -> 6e-05 | I59: =SUM(I52:J57) -> 0 | L59: =SUM(L52:N57) -> -6e-05
B60: Total Compensation | E60: =SUM(E51+E59) -> 0.00013 | I60: =SUM(I51+I59) -> 0 | L60: =SUM(L51+L59) -> -0.00013

Sheet Page 2
AB1: YES
B2: FCCF Form | AB2: NO
B3: Page 2 | AB3: SELECT HERE
B5: If you are adding a new administrative role for this physician/faculty member, is this replacing someone else who is currently holding this position and will that physician Admin Supp be reduced? If "No", please explain why. (PLEASE ATTACH JOB DESCRIPTION WITH FCCF)
B8: Is Administrative role a replacement: | F8: Who is the physician being replaced: | N8: Will there be a corresponding decrease:
D9: SELECT HERE | P9: SELECT HERE
B10: Cost Center to be charged (if multiple please indicate %'s as well as other CCs) | H10: 0 | J10: XXXXX | L10: 0 | N10: XXXXX
H11: 0 | J11: XXXXX | L11: 0 | N11: XXXXX
A13: 5 | B13: If Pitt compensation changes how much will be on reimbursable: | I13: 0
A15: 6 | B15: PITT ONLY USE - How are the changes in compensation being funded, (i.e. Pitt account no.)
A17: 7 | B17: Is any or all of the proposed compensation change being paid by a different entity (i.e. hospital) or department? | O17: SELECT HERE
C18: If "YES", how much and which entity? | F18: 0
B19: *Please provide confirmation and ensure these changes funded by Hospital are reflected in the Global agreement
B21: Please explain below the reason for all Compensation/Productivity changes to include ASA units, wRVU's, shifts and whether changes were budgeted. For Admin Sup changes, if new role without a corresponding decrease please explain why. Insufficient detail may cause delay in review/approval of FCCF.
B38: APPROVALS:
B42: Department Administrator | I42: Department Chair
B48: CFO Signature | I48: Steven D. Shapiro M.D.
I49: President, UPP
B53: Signature required for Pitt Changes Only | D53: Arthur S. Levine, M.D.
D54: Sr. Vice Chancellor for the Health Sciences
D55: Dean, School of Medicine

Sheet Offer Term Analysis
A1: UPMC Health Services Division
A2: University of Pittsburgh Physicians
A3: Physician Offer Compensation and Productivity Term Analysis
A5: Physician and Department Information (refer to Tips 8a)
A6: Physician Name | B6: ='Page 1'!D19 -> 0
A7: Business Unit
A8: Subspecialty | F8: Insert Demographic Data
A9: Pay Category
A10: Rank
A12: Contract Term (years)* | C12: *Generally 1 year; 3 years for out of town recruits | F12: =IF(B12="Other","Comments required on why term exceeds general guidelines "," ") -> 
A13: Is this a Replacement Position as defined by Budget?
A16: Benchmark Standards
A17: Source | B17: =IF(B7="Pediatrics","AAAP 2014-2015",(IF(B10="UPP Only","MGMA 2015 Provider Compensation",(IF(B10="Community Medicine","MGMA 2015 Provider Compensation","MGMA 2015 Academic Provider Compensation"))))) -> MGMA 2015 Academic Provider Compensation
A18: Benchmark Subspecialty (refer to Tips 8a) | F18: Select Subspecialty from drop down menu
B20: Percentile
B21: =IF($B$7="Pediatrics", "Comp=20% / wRVU=25%",25%) -> 0.25 | C21: =IF($B$7="Pediatrics", "50%",50%) -> 0.5 | D21: =IF($B$7="Pediatrics", "Comp=80% / wRVU=75%",75%) -> 0.75 | E21: =IF($B$7="Pediatrics", "Comp NA / wRVU=90%",90%) -> 0.9
A22: Total Compensation | B22: =IFERROR(VLOOKUP(CONCATENATE($B18,$B10),'MGMA Comp Tables'!$A$2:$M$910,6,FALSE),"") ->  | C22: =IFERROR(VLOOKUP(CONCATENATE($B18,$B10),'MGMA Comp Tables'!$A$2:$M$910,7,FALSE),"") ->  | D22: =IFERROR(VLOOKUP(CONCATENATE($B18,$B10),'MGMA Comp Tables'!$A$2:$M$910,8,FALSE),"") ->  | E22: =IFERROR(VLOOKUP(CONCATENATE($B18,$B10),'MGMA Comp Tables'!$A$2:$M$910,9,FALSE),"") ->  | G22: =IFERROR(CONCATENATE(IFERROR(VLOOKUP(CONCATENATE($B18,$B10),'MGMA Comp Tables'!$A$2:$M$910,11,FALSE),""),": ",(VLOOKUP(CONCATENATE($B18,$B10),'MGMA Comp Tables'!$A$2:$M$910,12,FALSE))),"") ->  | H22: Compensation Benchmark
A23: Standardized Work Standard (WRVU, ASA) | B23: =IFERROR(VLOOKUP(CONCATENATE($B18,$B10),'MGMA Productivity Tables'!$A$2:$M$909,6,FALSE),"") ->  | C23: =IFERROR(VLOOKUP(CONCATENATE($B18,$B10),'MGMA Productivity Tables'!$A$2:$M$909,7,FALSE),"") ->  | D23: =IFERROR(VLOOKUP(CONCATENATE($B18,$B10),'MGMA Productivity Tables'!$A$2:$M$909,8,FALSE),"") ->  | E23: =IFERROR(VLOOKUP(CONCATENATE($B18,$B10),'MGMA Productivity Tables'!$A$2:$M$909,9,FALSE),"") ->  | G23: =IFERROR(CONCATENATE(IFERROR(VLOOKUP(CONCATENATE($B18,$B10),'MGMA Productivity Tables'!$A$2:$M$909,11,FALSE),""),": ",(VLOOKUP(CONCATENATE($B18,$B10),'MGMA Productivity Tables'!$A$2:$M$909,12,FALSE))),"") ->  | H23: Work Standard Benchmark
A24: Compensation / Work Standard | B24: =IFERROR(VLOOKUP(CONCATENATE($B18,$B10),'MGMA Comp Prod Tables'!$A$2:$M$876,6,FALSE),"") ->  | C24: =IFERROR(VLOOKUP(CONCATENATE($B18,$B10),'MGMA Comp Prod Tables'!$A$2:$M$876,7,FALSE),"") ->  | D24: =IFERROR(VLOOKUP(CONCATENATE($B18,$B10),'MGMA Comp Prod Tables'!$A$2:$M$876,8,FALSE),"") ->  | E24: =IFERROR(VLOOKUP(CONCATENATE($B18,$B10),'MGMA Comp Prod Tables'!$A$2:$M$876,9,FALSE),"") ->  | G24: =IFERROR(CONCATENATE(IFERROR(VLOOKUP(CONCATENATE($B18,$B10),'MGMA Comp Prod Tables'!$A$2:$M$1013,11,FALSE),""),": ",(VLOOKUP(CONCATENATE($B18,$B10),'MGMA Comp Prod Tables'!$A$2:$M$1013,12,FALSE))),"") ->  | H24: Comp/Work Benchmark
A26: UPP Department Subspecialty Collections / wRVU | B26: =VLOOKUP(CONCATENATE(B7," -- ",B8),'SUBSPEC COLL PER WRVU'!$A$2:$F$399,6,FALSE) -> 
A30: Physician Offer Compensation and Productivity Terms
A31: FTE Full or Part time (1.0 for FT) (refer to Tips 8b)
A32: Percent Clinical Effort | B32: ='Page 1'!L33 -> 0
A33: Clinical FTE | B33: =B31*B32 -> 0
A35: UPP Base Comp | B35: ='Page 1'!I52 -> 0
A36: Pitt Salary | B36: ='Page 1'!I44+'Page 1'!I45 -> 0
A37: Incentive Comp | B37: ='Page 1'!I55 -> 0
A38: Clinical Supplement Compensation | B38: ='Page 1'!I54 -> 0 | D38: Insert Terms
A39: Administrative Supplement Compensation | B39: ='Page 1'!I53 -> 0
A40: Total Compensation | B40: =SUM(B35:B39) -> 0
A42: Work Standard (WRVU, ASA) (refer to Tips 8c) | B42: ='Page 1'!L31 -> 0
A44: Other Salary Funding (e.g. Pitt Compensation remaining at Pitt)
A45: Funding Source **
A47: **hospital institutional role, VA, grant funding at the University, etc.
A50: Administrative Supplement Compensation | B50: =B39 -> 0
A51: Administrative Title | B51: N/A | E51: =IF(B50>0,IF(B51="","Please Complete "," "),"") -> 
A52: Amount of Admin Supplement not funded by UPP | E52: =IF(B50>0,IF(B52="","Please Complete "," "),"") -> 
A53: Funding Source | E53: =IF(B50>0,IF(B53="Other","Please detail Other Funding Source in Comments section "," "),"") -> 
A56: Offer Alignment
A57: Total Compensation Quartile | B57: =IF(B7="Pediatrics",((IF($B40<$B$22,"less than 20th Percentile",IF($B40<$C$22,"20th to 50th Percentile",IF($B40<$D$22,"50th to 80th Percentile","greater than 80 Percentile"))))),(IF($B40<$B$22,"less than 25th Percentile",IF($B40<$C$22,"25th to 50th Percentile",IF($B40<$D$22,"50th to 75th Percentile",IF($B40<$E$22,"75th to 90th Percentile","greater than 90 Percentile")))))) -> less than 25th Percentile
A58: Work Standard Quartile | B58: =IF($B42/B33<$B$23,"less than 25th Percentile",IF($B42/B33<$C$23,"25th to 50th Percentile",IF($B42/B33<$D$23,"50th to 75th Percentile",IF($B42/B33<$E$23,"75th to 90th Percentile","greater than 90 Percentile")))) -> 
A59: Increase to Work Standard Target Required to cover costs | B59: =IF((B42*B26)>(B40-B44-B52),"Work Standard Sufficient",((B42*B26)-(B40-B44-B52))/-B26) -> 
A61: Analysis Outcomes: | B61: =IF(B57=B58,"Offer Terms Aligned","Offer Terms Not Aligned") -> 
B62: =IF((B40-B44-B52)/B42<=B26,"Per Work RVU, Collections exceed Clinical Comp","Per Work RVU, Collections are less than Clinical Comp") -> 
B65: Percentile
A66: Difference in Total Compensation of Offer from Percentile Benchmarks | B66: =IF($B$7="Pediatrics", "20%",25%) -> 0.25 | C66: =IF($B$7="Pediatrics", "50%",50%) -> 0.5 | D66: =IF($B$7="Pediatrics", "80%",75%) -> 0.75 | E66: =IF($B$7="Pediatrics", "Comp NA",90%) -> 0.9
A67: Amount Above (Below) Total Compensation Percentile | B67: =IFERROR($B$40-B22,"*") -> * | C67: =IFERROR($B$40-C22,"*") -> * | D67: =IFERROR($B$40-D22,"*") -> * | E67: =IFERROR($B$40-E22,"*") -> *
A68: Percentage Above (-Below) Total Compensation Percentile | B68: =IFERROR(B67/B22,"*") -> * | C68: =IFERROR(C67/C22,"*") -> * | D68: =IFERROR(D67/D22,"*") -> * | E68: =IFERROR(E67/E22,"*") -> *
A70: Difference in Standardized Work Std of Offer from Percentile Benchmarks | B70: =IF($B$7="Pediatrics", "25%",25%) -> 0.25 | C70: =IF($B$7="Pediatrics", "50%",50%) -> 0.5 | D70: =IF($B$7="Pediatrics", "75%",75%) -> 0.75 | E70: =IF($B$7="Pediatrics", "90%",90%) -> 0.9
A71: Amount Above (Below) Work Standard Percentile | B71: =IFERROR($B$42/$B$33-B23,"*") -> * | C71: =IFERROR($B$42/$B$33-C23,"*") -> * | D71: =IFERROR($B$42/$B$33-D23,"*") -> * | E71: =IFERROR($B$42/$B$33-E23,"*") -> *
A72: Percentage Above (-Below) Work Standard Percentile | B72: =IFERROR(B71/B23,"*") -> * | C72: =IFERROR(C71/C23,"*") -> * | D72: =IFERROR(D71/D23,"*") -> * | E72: =IFERROR(E71/E23,"*") -> *
A74: Increase (decrease) in Work Standard required to approach Benchmark | B74: =IFERROR(-B71*$B$33,"") ->  | C74: =IFERROR(-C71*$B$33,"") ->  | D74: =IFERROR(-D71*$B$33,"") ->  | E74: =IFERROR(-E71*$B$33,"") -> 

Sheet LISTS (hidden)
A1: LOC_RPT_GRP_6_NAME | B1: Subspecialty | F1: LOC_RPT_GRP_6_NAME
A2: Anesthesiology | B2: Acute Pain | F2: Anesthesiology
A3: Anesthesiology | B3: Anesthesiology | F3: Cardiothoracic Surgery
A4: Anesthesiology | B4: Chronic Pain (wRVUs) | F4: Community Medicine
A5: Cardiothoracic Surgery | B5: Cardiothoracic Surgery | F5: Critical Care Medicine
A6: Cardiothoracic Surgery | B6: Cardiothoracic/Transplant Surgery | F6: Dermatology
A7: Cardiothoracic Surgery | B7: Fellow | F7: Donohue Cardiology
A8: Cardiothoracic Surgery | B8: Transplant Surgery | F8: Emergency Medicine
A9: Community Medicine | B9: Acute Pain | F9: EPN Urgent Care
A10: Community Medicine | B10: Adult Critical Care Medicine | F10: Erie Physician Network
A11: Community Medicine | B11: Adult Psychiatry | F11: ERMI
A12: Community Medicine | B12: Anesthesiologist | F12: Family Medicine
A13: Community Medicine | B13: Anesthesiology | F13: FPN - Fayette Medical Associates
A14: Community Medicine | B14: Cardiology | F14: FPN - Fayette Specialty Associates
A15: Community Medicine | B15: CMI Foot & Ankle | F15: FPN - Hospital Care Associates
A16: Community Medicine | B16: CMI Ortho Surgery | F16: Heritage Valley
A17: Community Medicine | B17: Critical Care Medicine | F17: HVI Cardiac Surgery
A18: Community Medicine | B18: Dermatology | F18: HVI Cardiology
A19: Community Medicine | B19: Emergency Medicine | F19: Internal Medicine
A20: Community Medicine | B20: Endocrinology | F20: Neurology
A21: Community Medicine | B21: Family Medicine | F21: Neurosurgery
A22: Community Medicine | B22: Family Medicine - Includes Deliveries | F22: Ophthalmology
A23: Community Medicine | B23: Family Practice | F23: Orthopaedics
A24: Community Medicine | B24: Fellow | F24: Otolaryngology
A25: Community Medicine | B25: Gastroenterology | F25: Pathology
A26: Community Medicine | B26: General Cardiology | F26: Pediatrics
A27: Community Medicine | B27: General Surgery | F27: Plastic Surgery
A28: Community Medicine | B28: Geriatric Medicine | F28: PM&R
A29: Community Medicine | B29: Geriatric Psychiatry | F29: Psychiatry
A30: Community Medicine | B30: Geriatrics | F30: Radiology
A31: Community Medicine | B31: Hospitalist | F31: Radiotherapy
A32: Community Medicine | B32: Infectious Disease | F32: Renaissance Family Practice (RFP)
A33: Community Medicine | B33: Internal Medicine | F33: Surgery
A34: Community Medicine | B34: Neurological Surgery | F34: TRMS
A35: Community Medicine | B35: Neurology | F35: Urgent Care Centers
A36: Community Medicine | B36: Oncological Surgery | F36: Urology
A37: Community Medicine | B37: Orthopaedic Surgery | F37: Women's Health
A38: Community Medicine | B38: Otolaryngology
A39: Community Medicine | B39: Palliative Care
A40: Community Medicine | B40: Pediatric Critical Care Medicine
A41: Community Medicine | B41: Pediatrics
A42: Community Medicine | B42: Physical Medicine & Rehabilitation
A43: Community Medicine | B43: Psychiatry
A44: Community Medicine | B44: Pulmonary
A45: Community Medicine | B45: Pulmonology
A46: Community Medicine | B46: Radiology
A47: Community Medicine | B47: Rheumatology
A48: Community Medicine | B48: Shadyside Hospitalist
A49: Community Medicine | B49: Surgery - Obstetrics/Gynecology
A50: Community Medicine | B50: Urology
A51: Community Medicine | B51: Women's Health
A52: Critical Care Medicine | B52: Adult Critical Care Medicine
A53: Critical Care Medicine | B53: Hospitalist
A54: Critical Care Medicine | B54: Pediatric Critical Care Medicine
A55: Dermatology | B55: Cosmetic Dermatology
A56: Dermatology | B56: Dermatopathology
A57: Dermatology | B57: Medical Dermatology
A58: Dermatology | B58: Pediatric Dermatology
A59: Dermatology | B59: Surgical Dermatology
A60: Donohue Cardiology | B60: Cath Lab
A61: Donohue Cardiology | B61: General Cardiology
A62: Donohue Cardiology | B62: Interventional Cardiology
A63: Emergency Medicine | B63: Emergency Medicine
A64: EPN Urgent Care | B64: Emergency Medicine
A65: EPN Urgent Care | B65: Family Medicine
A66: Erie Physician Network | B66: Family Medicine
A67: Erie Physician Network | B67: Physical Medicine & Rehabilitation
A68: ERMI | B68: Emergency Medicine
A69: ERMI | B69: Family Medicine
A70: ERMI | B70: Hospitalist
A71: ERMI | B71: none
A72: Family Medicine | B72: Family Medicine - Includes Deliveries
A73: Family Medicine | B73: Family Practice
A74: FPN - Fayette Medical Associates | B74: Anesthesiologist
A75: FPN - Fayette Specialty Associates | B75: General Cardiology
A76: FPN - Fayette Specialty Associates | B76: Surgery - Obstetrics/Gynecology
A77: FPN - Hospital Care Associates | B77: Emergency Medicine
A78: Heritage Valley | B78: General
A79: HVI Cardiac Surgery | B79: Adult Cardiac Surgery
A80: HVI Cardiac Surgery | B80: Pediatric Surgery
A81: HVI Cardiac Surgery | B81: Transplant Surgery
A82: HVI Cardiology | B82: Cardiac MRI
A83: HVI Cardiology | B83: Cath Lab
A84: HVI Cardiology | B84: Echocardiography
A85: HVI Cardiology | B85: Electrophysiology
A86: HVI Cardiology | B86: Fellow
A87: HVI Cardiology | B87: General Cardiology
A88: HVI Cardiology | B88: Heart Failure
A89: HVI Cardiology | B89: Interventional Cardiology
A90: HVI Cardiology | B90: Nuclear Cardiology
A91: Internal Medicine | B91: AIM
A92: Internal Medicine | B92: Endocrinology
A93: Internal Medicine | B93: Gastroenterology
A94: Internal Medicine | B94: General Medicine
A95: Internal Medicine | B95: Geriatric Medicine
A96: Internal Medicine | B96: Hematology/Oncology
A97: Internal Medicine | B97: Hepatology
A98: Internal Medicine | B98: Hepatology - STI
A99: Internal Medicine | B99: Hospitalist
A100: Internal Medicine | B100: Infectious Disease
A101: Internal Medicine | B101: Margolis
A102: Internal Medicine | B102: Neuro-oncology
A103: Internal Medicine | B103: Palliative Care
A104: Internal Medicine | B104: Pulm Transplant Hospitalist
A105: Internal Medicine | B105: Pulmonary
A106: Internal Medicine | B106: Pulmonary MTA
A107: Internal Medicine | B107: Renal-Electrolyte
A108: Internal Medicine | B108: Rheumatology
A109: Internal Medicine | B109: Transplant Nephrologist - STI
A110: Neurology | B110: Epilepsy
A111: Neurology | B111: General
A112: Neurology | B112: General/Behavioral
A113: Neurology | B113: Headache
A114: Neurology | B114: Movement Disorders
A115: Neurology | B115: MS
A116: Neurology | B116: Muscular Dystrophy
A117: Neurology | B117: Neuromuscular
A118: Neurology | B118: Neurophysiology
A119: Neurology | B119: Psychiatry
A120: Neurology | B120: Stroke
A121: Neurosurgery | B121: Cranial
A122: Neurosurgery | B122: Endovascular
A123: Neurosurgery | B123: Neurophysiology
A124: Neurosurgery | B124: Pediatric
A125: Neurosurgery | B125: Spine
A126: Ophthalmology | B126: Comprehensive
A127: Ophthalmology | B127: Cornea
A128: Ophthalmology | B128: Glaucoma
A129: Ophthalmology | B129: Neuro-Ophthalmology
A130: Ophthalmology | B130: Oculoplastics
A131: Ophthalmology | B131: Optometry
A132: Ophthalmology | B132: Pediatrics
A133: Ophthalmology | B133: Retina
A134: Orthopaedics | B134: Foot and Ankle
A135: Orthopaedics | B135: General Ortho Surg
A136: Orthopaedics | B136: Hand
A137: Orthopaedics | B137: Hand - Non Surgical
A138: Orthopaedics | B138: Joint
A139: Orthopaedics | B139: Mercy
A140: Orthopaedics | B140: Mercy - Trauma
A141: Orthopaedics | B141: Oncology
A142: Orthopaedics | B142: Pediatrics
A143: Orthopaedics | B143: Primary Care
A144: Orthopaedics | B144: Spine
A145: Orthopaedics | B145: Sports Medicine
A146: Orthopaedics | B146: Trauma
A147: Otolaryngology | B147: Balance Disorders
A148: Otolaryngology | B148: Cranial Base Surgery
A149: Otolaryngology | B149: Facial Plastic Surgery
A150: Otolaryngology | B150: General Otolaryngology
A151: Otolaryngology | B151: Head & Neck Oncologic Surgery
A152: Otolaryngology | B152: Laryngology
A153: Otolaryngology | B153: Otology/Neurotology
A154: Otolaryngology | B154: Pediatric Otolaryngology
A155: Otolaryngology | B155: Rhinology
A156: Otolaryngology | B156: Sleep Medicine
A157: Otolaryngology | B157: Swallowing Disorders
A158: Otolaryngology | B158: Voice/Laryngology
A159: Pathology | B159: AP Community
A160: Pathology | B160: AP Magee
A161: Pathology | B161: AP Neuropathology
A162: Pathology | B162: AP Pediatric Pathology
A163: Pathology | B163: AP Surgical
A164: Pathology | B164: AP Transplant
A165: Pathology | B165: Experimental
A166: Pathology | B166: Hematopathology
A167: Pathology | B167: Immunopathology
A168: Pathology | B168: Molecular Anatomic
A169: Pathology | B169: Molecular Diagnostics
A170: Pediatrics | B170: Adolescent Medicine
A171: Pediatrics | B171: Asthma/Allergy
A172: Pediatrics | B172: Bone Marrow Transplant
A173: Pediatrics | B173: Cardiology
A174: Pediatrics | B174: Chief Resident
A175: Pediatrics | B175: Child Advocacy
A176: Pediatrics | B176: Child Development
A177: Pediatrics | B177: CHP Sedation
A178: Pediatrics | B178: Diagnostic Referral
A179: Pediatrics | B179: Emergency
A180: Pediatrics | B180: Endocrinology
A181: Pediatrics | B181: Gastroenterology
A182: Pediatrics | B182: Hematology/Oncology
A183: Pediatrics | B183: Infectious Disease
A184: Pediatrics | B184: Medical Genetics
A185: Pediatrics | B185: Neonatology
A186: Pediatrics | B186: Nephrology
A187: Pediatrics | B187: Neurology
A188: Pediatrics | B188: Primary Care
A189: Pediatrics | B189: Pulmonology
A190: Pediatrics | B190: Rheumatology
A191: Pediatrics | B191: Weight Management & Wellness
A192: Plastic Surgery | B192: Adult
A193: Plastic Surgery | B193: Aesthetics
A194: Plastic Surgery | B194: Children
A195: Plastic Surgery | B195: Magee
A196: Plastic Surgery | B196: Shadyside
A197: PM&R | B197: Brain Injury
A198: PM&R | B198: General Rehab
A199: PM&R | B199: Musculoskeletal
A200: PM&R | B200: Neuropsych
... 72 more rows

Sheet SUBSPEC COLL PER WRVU (hidden)
A1: GRP6 + Subspecialty | B1: LOC_RPT_GRP_6_NAME | C1: Subspecialty | D1: PAYMENTS | E1: RVU_WORK | F1: Coll / wRVU
A2: =CONCATENATE(B2," -- ",C2) -> Anesthesiology -- Acute Pain | B2: Anesthesiology | C2: Acute Pain | D2: -17475889.53 | E2: 457178 | F2: 38.22556976
A3: Anesthesiology -- Adult Critical Care Medicine | B3: Anesthesiology | C3: Adult Critical Care Medicine | D3: -112978.72 | E3: 5620 | F3: 20.10297509
A4: Anesthesiology -- Anesthesiology | B4: Anesthesiology | C4: Anesthesiology | D4: -95567644.8 | E4: 3815685 | F4: 25.04599955
A5: Anesthesiology -- Chronic Pain (wRVUs) | B5: Anesthesiology | C5: Chronic Pain (wRVUs) | D5: -6065573.17 | E5: 123510.75 | F5: 49.10967806
A6: Cardiothoracic Surgery -- Cardiothoracic/Transplant Surgery | B6: Cardiothoracic Surgery | C6: Cardiothoracic/Transplant Surgery | D6: -1082168.96 | E6: 21387.02 | F6: 50.59933361
A7: Cardiothoracic Surgery -- Cardiothoracic Surgery | B7: Cardiothoracic Surgery | C7: Cardiothoracic Surgery | D7: -8631127.54 | E7: 161729.72 | F7: 53.36760331
A8: Cardiothoracic Surgery -- Fellow | B8: Cardiothoracic Surgery | C8: Fellow | D8: -63092.95 | E8: 4456.18 | F8: 14.15852816
A9: Cardiothoracic Surgery -- Transplant Surgery | B9: Cardiothoracic Surgery | C9: Transplant Surgery | D9: -466069.51 | E9: 10921.78 | F9: 42.67340214
A10: Donohue Cardiology -- Cath Lab | B10: Donohue Cardiology | C10: Cath Lab | D10: -100017.84 | E10: 2233.26 | F10: 44.78557803
A11: Donohue Cardiology -- General Cardiology | B11: Donohue Cardiology | C11: General Cardiology | D11: -1186632.14 | E11: 13960.42 | F11: 84.99974499
A12: Donohue Cardiology -- Interventional Cardiology | B12: Donohue Cardiology | C12: Interventional Cardiology | D12: -2484908.32 | E12: 35149.86 | F12: 70.69468612
A13: Critical Care Medicine -- Adult Critical Care Medicine | B13: Critical Care Medicine | C13: Adult Critical Care Medicine | D13: -15239061 | E13: 314712.27 | F13: 48.42220165
A14: Critical Care Medicine -- Hospitalist | B14: Critical Care Medicine | C14: Hospitalist | D14: -9734324.9 | E14: 224453.32 | F14: 43.3690395
A15: Critical Care Medicine -- none | B15: Critical Care Medicine | C15: none | D15: -153087.27 | E15: 1673.22 | F15: 91.49261305
A16: Critical Care Medicine -- Pediatric Critical Care Medicine | B16: Critical Care Medicine | C16: Pediatric Critical Care Medicine | D16: -9513075.14 | E16: 182227.77 | F16: 52.20431079
A17: HVI Cardiology -- Cardiac MRI | B17: HVI Cardiology | C17: Cardiac MRI | D17: -562302.77 | E17: 10785.21 | F17: 52.13646929
A18: HVI Cardiology -- Cath Lab | B18: HVI Cardiology | C18: Cath Lab | D18: -17172979.47 | E18: 289298.62 | F18: 59.3607376
A19: HVI Cardiology -- Echocardiography | B19: HVI Cardiology | C19: Echocardiography | D19: -2198949.72 | E19: 42184.42 | F19: 52.12705828
A20: HVI Cardiology -- Electrophysiology | B20: HVI Cardiology | C20: Electrophysiology | D20: -8727925.09 | E20: 149378.68 | F20: 58.4281846
A21: HVI Cardiology -- Fellow | B21: HVI Cardiology | C21: Fellow | D21: -40141.52 | E21: 994.9 | F21: 40.34729119
A22: HVI Cardiology -- General Cardiology | B22: HVI Cardiology | C22: General Cardiology | D22: -22584747.02 | E22: 363643.98 | F22: 62.10675348
A23: HVI Cardiology -- Heart Failure | B23: HVI Cardiology | C23: Heart Failure | D23: -1809759.26 | E23: 36451.08 | F23: 49.64898873
A24: HVI Cardiology -- Interventional Cardiology | B24: HVI Cardiology | C24: Interventional Cardiology | D24: -20928.21 | E24: 658.91 | F24: 31.76186429
A25: HVI Cardiology -- none | B25: HVI Cardiology | C25: none | D25: -893480.59 | E25: 6227.47 | F25: 143.4740898
A26: HVI Cardiology -- Nuclear Cardiology | B26: HVI Cardiology | C26: Nuclear Cardiology | D26: -433726.4 | E26: 8526.44 | F26: 50.86840463
A27: Dermatology -- Cosmetic Dermatology | B27: Dermatology | C27: Cosmetic Dermatology | D27: -6443225.87 | E27: 13072.04 | F27: 492.9013276
A28: Dermatology -- Dermatopathology | B28: Dermatology | C28: Dermatopathology | D28: -4463570.29 | E28: 35663.55 | F28: 125.1577672
A29: Dermatology -- Medical Dermatology | B29: Dermatology | C29: Medical Dermatology | D29: -7865606.35 | E29: 65868.35 | F29: 119.4140486
A30: Dermatology -- none | B30: Dermatology | C30: none | D30: -265118.88 | E30: 2560.53 | F30: 103.5406264
A31: Dermatology -- Pediatric Dermatology | B31: Dermatology | C31: Pediatric Dermatology | D31: -303220.3 | E31: 4329.21 | F31: 70.04056167
A32: Dermatology -- Surgical Dermatology | B32: Dermatology | C32: Surgical Dermatology | D32: -1215195.06 | E32: 21539.67 | F32: 56.41660527
A33: Emergency Medicine -- Emergency Medicine | B33: Emergency Medicine | C33: Emergency Medicine | D33: -32529982.4 | E33: 814105.1 | F33: 39.95796415
A34: Emergency Medicine -- none | B34: Emergency Medicine | C34: none | D34: -166286.4 | E34: 1849.93 | F34: 89.88794171
A35: EPN Urgent Care -- Emergency Medicine | B35: EPN Urgent Care | C35: Emergency Medicine | D35: -2996722.57 | E35: 31453.15 | F35: 95.27575362
A36: EPN Urgent Care -- Family Medicine | B36: EPN Urgent Care | C36: Family Medicine | D36: -1002862.27 | E36: 14666.91 | F36: 68.37583854
A37: EPN Urgent Care -- none | B37: EPN Urgent Care | C37: none | D37: -251874.84 | E37: 2561.87 | F37: 98.31679203
A38: Erie Physician Network -- Family Medicine | B38: Erie Physician Network | C38: Family Medicine | D38: -4414038.04 | E38: 55841.47 | F38: 79.04587827
A39: Erie Physician Network -- none | B39: Erie Physician Network | C39: none | D39: -48858.7 | E39: 114.24 | F39: 427.6846989
A40: Erie Physician Network -- Physical Medicine & Rehabilitation | B40: Erie Physician Network | C40: Physical Medicine & Rehabilitation | D40: -342242.85 | E40: 7171.59 | F40: 47.72203235
A41: ERMI -- Emergency Medicine | B41: ERMI | C41: Emergency Medicine | D41: -72734379.44 | E41: 1390735.14 | F41: 52.29923179
A42: ERMI -- Family Medicine | B42: ERMI | C42: Family Medicine | D42: -65298.16 | E42: 1045.49 | F42: 62.45699146
A43: ERMI -- Hospitalist | B43: ERMI | C43: Hospitalist | D43: -50859.01 | E43: 988.05 | F43: 51.4741258
A44: ERMI -- none | B44: ERMI | C44: none | D44: -6941721.78 | E44: 119400.95 | F44: 58.1379108
A45: Family Medicine -- Family Medicine - Includes Deliveries | B45: Family Medicine | C45: Family Medicine - Includes Deliveries | D45: -603699.82 | E45: 8689.39 | F45: 69.47551209
A46: Family Medicine -- Family Practice | B46: Family Medicine | C46: Family Practice | D46: -1439629.79 | E46: 21352.02 | F46: 67.42358756
A47: FPN - Fayette Medical Associates -- Anesthesiologist | B47: FPN - Fayette Medical Associates | C47: Anesthesiologist | D47: -1739949.75 | E47: 395.42 | F47: 4400.257321
A48: FPN - Fayette Medical Associates -- none | B48: FPN - Fayette Medical Associates | C48: none | D48: -4012645.3 | E48: 53579.41 | F48: 74.89155442
A49: FPN - Fayette Specialty Associates -- General Cardiology | B49: FPN - Fayette Specialty Associates | C49: General Cardiology | D49: -356786 | E49: 6450.34 | F49: 55.3127432
A50: FPN - Fayette Specialty Associates -- none | B50: FPN - Fayette Specialty Associates | C50: none | D50: -5888267.06 | E50: 114727.07 | F50: 51.32413004
A51: FPN - Fayette Specialty Associates -- Surgery - Obstetrics/Gynecology | B51: FPN - Fayette Specialty Associates | C51: Surgery - Obstetrics/Gynecology | D51: -465950.51 | E51: 7382.77 | F51: 63.11323663
A52: Heritage Valley -- General | B52: Heritage Valley | C52: General | D52: -581541.4 | E52: 9094.09 | F52: 63.94717888
A53: FPN - Hospital Care Associates -- Emergency Medicine | B53: FPN - Hospital Care Associates | C53: Emergency Medicine | D53: -5173765.16 | E53: 120420.76 | F53: 42.96406334
A54: FPN - Hospital Care Associates -- none | B54: FPN - Hospital Care Associates | C54: none | D54: -2624839.71 | E54: 65602.34 | F54: 40.01137322
A55: HVI Cardiac Surgery -- Adult Cardiac Surgery | B55: HVI Cardiac Surgery | C55: Adult Cardiac Surgery | D55: -13044177.3 | E55: 284007.15 | F55: 45.92904545
A56: HVI Cardiac Surgery -- none | B56: HVI Cardiac Surgery | C56: none | D56: -403104.02 | E56: 9788.06 | F56: 41.18323958
A57: HVI Cardiac Surgery -- Pediatric Surgery | B57: HVI Cardiac Surgery | C57: Pediatric Surgery | D57: -1855685.89 | E57: 36296.92 | F57: 51.12516131
A58: HVI Cardiac Surgery -- Transplant Surgery | B58: HVI Cardiac Surgery | C58: Transplant Surgery | D58: -349953.41 | E58: 6378.38 | F58: 54.86556304
A59: Internal Medicine -- AIM | B59: Internal Medicine | C59: AIM | D59: -3520534.16 | E59: 46476.7 | F59: 75.74836768
A60: Internal Medicine -- Emergency Medicine | B60: Internal Medicine | C60: Emergency Medicine | D60: -1431457.02 | E60: 25405.75 | F60: 56.34382059
A61: Internal Medicine -- Endocrinology | B61: Internal Medicine | C61: Endocrinology | D61: -6008651.34 | E61: 101896.86 | F61: 58.9679735
A62: Internal Medicine -- Fellow | B62: Internal Medicine | C62: Fellow | D62: -7745.77 | E62: -4.1 | F62: -1889.212195
A63: Internal Medicine -- Gastroenterology | B63: Internal Medicine | C63: Gastroenterology | D63: -16597866.65 | E63: 261072.34 | F63: 63.57573786
A64: Internal Medicine -- General Medicine | B64: Internal Medicine | C64: General Medicine | D64: -7862177.37 | E64: 150626.36 | F64: 52.1965569
A65: Internal Medicine -- Geriatric Medicine | B65: Internal Medicine | C65: Geriatric Medicine | D65: -2666226.95 | E65: 42740.77 | F65: 62.38135041
A66: =CONCATENATE(B66," -- ",C66) -> Internal Medicine -- Hematology/Oncology | B66: Internal Medicine | C66: Hematology/Oncology | D66: -5044817.6 | E66: 90807.24 | F66: 55.55523546
A67: Internal Medicine -- Hepatology | B67: Internal Medicine | C67: Hepatology | D67: -1439843.56 | E67: 28222.97 | F67: 51.01672716
A68: Internal Medicine -- Hepatology - STI | B68: Internal Medicine | C68: Hepatology - STI | D68: -1222363.15 | E68: 21166.37 | F68: 57.75024957
A69: Internal Medicine -- Hospitalist | B69: Internal Medicine | C69: Hospitalist | D69: -10319021.23 | E69: 241204.04 | F69: 42.78129516
A70: Internal Medicine -- Infectious Disease | B70: Internal Medicine | C70: Infectious Disease | D70: -3696769.81 | E70: 84356.53 | F70: 43.82316117
A71: Internal Medicine -- Margolis | B71: Internal Medicine | C71: Margolis | D71: -6452163.13 | E71: 38154.99 | F71: 169.1040446
A72: Internal Medicine -- Neuro-oncology | B72: Internal Medicine | C72: Neuro-oncology | D72: -576125.51 | E72: 9110.89 | F72: 63.23482228
A73: Internal Medicine -- none | B73: Internal Medicine | C73: none | D73: -1376814.82 | E73: 21177.66 | F73: 65.01260385
A74: Internal Medicine -- Palliative Care | B74: Internal Medicine | C74: Palliative Care | D74: -2016930.24 | E74: 45041.32 | F74: 44.77955442
A75: Internal Medicine -- Psychosomatic Medicine | B75: Internal Medicine | C75: Psychosomatic Medicine | D75: -199699.97 | E75: 3507.14 | F75: 56.9409747
A76: Internal Medicine -- Pulm Transplant Hospitalist | B76: Internal Medicine | C76: Pulm Transplant Hospitalist | D76: -714966.41 | E76: 14511.34 | F76: 49.26949613
A77: Internal Medicine -- Pulmonary | B77: Internal Medicine | C77: Pulmonary | D77: -15195892.9 | E77: 308583.85 | F77: 49.24396692
A78: Internal Medicine -- Pulmonary MTA | B78: Internal Medicine | C78: Pulmonary MTA | D78: -6853314.76 | E78: 137347.9 | F78: 49.89748485
A79: Internal Medicine -- Renal-Electrolyte | B79: Internal Medicine | C79: Renal-Electrolyte | D79: -4882938.09 | E79: 98397.4 | F79: 49.62466579
A80: Internal Medicine -- Rheumatology | B80: Internal Medicine | C80: Rheumatology | D80: -5120862.72 | E80: 61439.61 | F80: 83.34790406
A81: Internal Medicine -- Transplant Nephrologist - STI | B81: Internal Medicine | C81: Transplant Nephrologist - STI | D81: -1569504.28 | E81: 30960.25 | F81: 50.69417334
A82: Neurology -- Balance Disorders | B82: Neurology | C82: Balance Disorders | D82: -73888.21 | E82: 1722.45 | F82: 42.89715812
A83: Neurology -- Epilepsy | B83: Neurology | C83: Epilepsy | D83: -3165905.44 | E83: 64864.09 | F83: 48.80829192
A84: Neurology -- General | B84: Neurology | C84: General | D84: -9195654.8 | E84: 136287.09 | F84: 67.47267698
A85: Neurology -- General/Behavioral | B85: Neurology | C85: General/Behavioral | D85: -154134.95 | E85: 2442.29 | F85: 63.11083041
A86: Neurology -- Headache | B86: Neurology | C86: Headache | D86: -2453988.65 | E86: 31071.77 | F86: 78.97807721
A87: Neurology -- Movement Disorders | B87: Neurology | C87: Movement Disorders | D87: -1407586.39 | E87: 13443.01 | F87: 104.7076801
A88: Neurology -- MS | B88: Neurology | C88: MS | D88: -2252548.98 | E88: 11753 | F88: 191.6573624
A89: Neurology -- Muscular Dystrophy | B89: Neurology | C89: Muscular Dystrophy | D89: -29579.38 | E89: 468.57 | F89: 63.12691807
A90: Neurology -- Neuromuscular | B90: Neurology | C90: Neuromuscular | D90: -853993.04 | E90: 14582.33 | F90: 58.56355192
A91: Neurology -- Neurophysiology | B91: Neurology | C91: Neurophysiology | D91: -133450.93 | E91: 3177.42 | F91: 41.99977655
A92: Neurology -- none | B92: Neurology | C92: none | D92: -126853.34 | E92: 1607.78 | F92: 78.89968777
A93: Neurology -- Psychiatry | B93: Neurology | C93: Psychiatry | D93: -89033.95 | E93: 1460.69 | F93: 60.95335081
A94: Neurology -- Stroke | B94: Neurology | C94: Stroke | D94: -4262632.37 | E94: 92957.11 | F94: 45.85590462
A95: Neurosurgery -- Cranial | B95: Neurosurgery | C95: Cranial | D95: -9220035.42 | E95: 144820.74 | F95: 63.66515887
A96: Neurosurgery -- Endovascular | B96: Neurosurgery | C96: Endovascular | D96: -3274102.26 | E96: 72020.61 | F96: 45.46062939
A97: Neurosurgery -- Neurophysiology | B97: Neurosurgery | C97: Neurophysiology | D97: -2691765.63 | E97: 40692.14 | F97: 66.14952249
A98: Neurosurgery -- none | B98: Neurosurgery | C98: none | D98: -844036.82 | E98: 9624.56 | F98: 87.69614611
A99: Neurosurgery -- Pediatric | B99: Neurosurgery | C99: Pediatric | D99: -2249571.12 | E99: 27054.22 | F99: 83.15047043
A100: Neurosurgery -- Spine | B100: Neurosurgery | C100: Spine | D100: -16588697.37 | E100: 247081.53 | F100: 67.13855694
A101: Ophthalmology -- Comprehensive | B101: Ophthalmology | C101: Comprehensive | D101: -3698185.78 | E101: 43061.62 | F101: 85.88125064
A102: Ophthalmology -- Cornea | B102: Ophthalmology | C102: Cornea | D102: -2942757.88 | E102: 34943.36 | F102: 84.21508063
A103: Ophthalmology -- Glaucoma | B103: Ophthalmology | C103: Glaucoma | D103: -2684926.51 | E103: 37055.24 | F103: 72.4574044
A104: Ophthalmology -- MS | B104: Ophthalmology | C104: MS | D104: -88976.88 | E104: 1158.33 | F104: 76.81479371
A105: Ophthalmology -- Neuro-Ophthalmology | B105: Ophthalmology | C105: Neuro-Ophthalmology | D105: -489898.6 | E105: 6528.19 | F105: 75.04355725
A106: Ophthalmology -- none | B106: Ophthalmology | C106: none | D106: -69341.83 | E106: 98.01 | F106: 707.4975003
A107: Ophthalmology -- Oculoplastics | B107: Ophthalmology | C107: Oculoplastics | D107: -1284874.57 | E107: 19593.22 | F107: 65.57750947
A108: Ophthalmology -- Optometry | B108: Ophthalmology | C108: Optometry | D108: -531403.55 | E108: 3089.74 | F108: 171.9897305
A109: Ophthalmology -- Pediatrics | B109: Ophthalmology | C109: Pediatrics | D109: -2327710.82 | E109: 31223.92 | F109: 74.54896182
A110: Ophthalmology -- Retina | B110: Ophthalmology | C110: Retina | D110: -10956626.81 | E110: 69526.24 | F110: 157.589808
A111: Orthopaedics -- Foot and Ankle | B111: Orthopaedics | C111: Foot and Ankle | D111: -1301194.96 | E111: 21631.53 | F111: 60.15270117
A112: Orthopaedics -- General Ortho Surg | B112: Orthopaedics | C112: General Ortho Surg | D112: -2733185.63 | E112: 34898.3 | F112: 78.31858944
A113: Orthopaedics -- Hand | B113: Orthopaedics | C113: Hand | D113: -5061105.43 | E113: 77609.16 | F113: 65.21273301
A114: Orthopaedics -- Hand - Non Surgical | B114: Orthopaedics | C114: Hand - Non Surgical | D114: -479640.45 | E114: 4920.99 | F114: 97.46828382
A115: Orthopaedics -- Joint | B115: Orthopaedics | C115: Joint | D115: -3667117.7 | E115: 47281.19 | F115: 77.55975897
A116: Orthopaedics -- Mercy | B116: Orthopaedics | C116: Mercy | D116: -1586754.01 | E116: 21836.88 | F116: 72.66395245
A117: Orthopaedics -- Mercy - Trauma | B117: Orthopaedics | C117: Mercy - Trauma | D117: -1080581.12 | E117: 17682.28 | F117: 61.1109608
A118: Orthopaedics -- none | B118: Orthopaedics | C118: none | D118: -312058.3 | E118: 3998.28 | F118: 78.0481357
A119: Orthopaedics -- Oncology | B119: Orthopaedics | C119: Oncology | D119: -2078552.47 | E119: 30851.79 | F119: 67.37218392
A120: Orthopaedics -- Pediatrics | B120: Orthopaedics | C120: Pediatrics | D120: -6711626.94 | E120: 85117.31 | F120: 78.8514926
A121: Orthopaedics -- Primary Care | B121: Orthopaedics | C121: Primary Care | D121: -2433520.63 | E121: 29824.47 | F121: 81.59476531
A122: Orthopaedics -- Spine | B122: Orthopaedics | C122: Spine | D122: -7587902.03 | E122: 98709.25 | F122: 76.87123578
A123: Orthopaedics -- Sports Medicine | B123: Orthopaedics | C123: Sports Medicine | D123: -8442523.64 | E123: 101098.23 | F123: 83.50812512
A124: Orthopaedics -- Trauma | B124: Orthopaedics | C124: Trauma | D124: -4027069.46 | E124: 70133.02 | F124: 57.42044846
A125: Otolaryngology -- Balance Disorders | B125: Otolaryngology | C125: Balance Disorders | D125: -961251.42 | E125: 13499.79 | F125: 71.20491652
A126: Otolaryngology -- Cranial Base Surgery | B126: Otolaryngology | C126: Cranial Base Surgery | D126: -3291395.51 | E126: 57255.27 | F126: 57.48633287
A127: Otolaryngology -- Facial Plastic Surgery | B127: Otolaryngology | C127: Facial Plastic Surgery | D127: -1034094.36 | E127: 10528.81 | F127: 98.21569199
A128: Otolaryngology -- General Otolaryngology | B128: Otolaryngology | C128: General Otolaryngology | D128: -4932883.21 | E128: 62387.56 | F128: 79.06837854
A129: Otolaryngology -- Head & Neck Oncologic Surgery | B129: Otolaryngology | C129: Head & Neck Oncologic Surgery | D129: -4053636.39 | E129: 68255.24 | F129: 59.38938007
A130: =CONCATENATE(B130," -- ",C130) -> Otolaryngology -- Laryngology | B130: Otolaryngology | C130: Laryngology | D130: -927820.8 | E130: 8705.83 | F130: 106.5746517
A131: Otolaryngology -- none | B131: Otolaryngology | C131: none | D131: -701934.12 | E131: 6350.16 | F131: 110.5380211
A132: Otolaryngology -- Otology/Neurotology | B132: Otolaryngology | C132: Otology/Neurotology | D132: -2366674.32 | E132: 26010.67 | F132: 90.98859507
A133: Otolaryngology -- Pediatric Otolaryngology | B133: Otolaryngology | C133: Pediatric Otolaryngology | D133: -9933179.35 | E133: 124897.97 | F133: 79.53035065
A134: Otolaryngology -- Rhinology | B134: Otolaryngology | C134: Rhinology | D134: -1627455.96 | E134: 17163.73 | F134: 94.81948038
A135: Otolaryngology -- Sleep Medicine | B135: Otolaryngology | C135: Sleep Medicine | D135: -1060505.59 | E135: 13351.48 | F135: 79.42981527
A136: Otolaryngology -- Swallowing Disorders | B136: Otolaryngology | C136: Swallowing Disorders | D136: -928388.21 | E136: 10553.3 | F136: 87.97136535
A137: Otolaryngology -- Voice/Laryngology | B137: Otolaryngology | C137: Voice/Laryngology | D137: -2374612.69 | E137: 22393.24 | F137: 106.0414969
A138: Pathology -- AP Community | B138: Pathology | C138: AP Community | D138: -10881780.64 | E138: 191951.41 | F138: 56.69028761
A139: Pathology -- AP Magee | B139: Pathology | C139: AP Magee | D139: -5356753.82 | E139: 96327.15 | F139: 55.61001047
A140: Pathology -- AP Neuropathology | B140: Pathology | C140: AP Neuropathology | D140: -982819.74 | E140: 16579.7 | F140: 59.27849961
A141: Pathology -- AP Pediatric Pathology | B141: Pathology | C141: AP Pediatric Pathology | D141: -1975445.24 | E141: 29135.04 | F141: 67.80307286
A142: Pathology -- AP Surgical | B142: Pathology | C142: AP Surgical | D142: -10116398.88 | E142: 182193.56 | F142: 55.52555689
A143: Pathology -- AP Transplant | B143: Pathology | C143: AP Transplant | D143: -978032.94 | E143: 18669.4 | F143: 52.38695084
A144: Pathology -- Dermatopathology | B144: Pathology | C144: Dermatopathology | D144: -11183.51 | E144: 261.25 | F144: 42.80769378
A145: Pathology -- Experimental | B145: Pathology | C145: Experimental | D145: -55561.57 | E145: 1077.6 | F145: 51.56047699
A146: Pathology -- Hematopathology | B146: Pathology | C146: Hematopathology | D146: -3254697.96 | E146: 59829.77 | F146: 54.3993059
A147: Pathology -- Immunopathology | B147: Pathology | C147: Immunopathology | D147: -39266.73 | E147: 817.33 | F147: 48.04268778
A148: Pathology -- Molecular Anatomic | B148: Pathology | C148: Molecular Anatomic | D148: -311815.73 | E148: 6369.64 | F148: 48.95343065
A149: Pathology -- Molecular Diagnostics | B149: Pathology | C149: Molecular Diagnostics | D149: -58021.37 | E149: 1558.04 | F149: 37.23997458
A150: Pathology -- none | B150: Pathology | C150: none | D150: -858259.52 | E150: 12632.66 | F150: 67.93973082
A151: Pediatrics -- Adolescent Medicine | B151: Pediatrics | C151: Adolescent Medicine | D151: -831533.57 | E151: 11788.17 | F151: 70.53966561
A152: Pediatrics -- Asthma/Allergy | B152: Pediatrics | C152: Asthma/Allergy | D152: -2488550.94 | E152: 27785.46 | F152: 89.56306428
A153: Pediatrics -- Bone Marrow Transplant | B153: Pediatrics | C153: Bone Marrow Transplant | D153: -681912.39 | E153: 16040.6 | F153: 42.51165106
A154: Pediatrics -- Cardiology | B154: Pediatrics | C154: Cardiology | D154: -8893914.05 | E154: 126932.41 | F154: 70.06810987
A155: Pediatrics -- Chief Resident | B155: Pediatrics | C155: Chief Resident | D155: -154532.43 | E155: 3657.79 | F155: 42.2474855
A156: Pediatrics -- Child Advocacy | B156: Pediatrics | C156: Child Advocacy | D156: -381028.33 | E156: 7078.49 | F156: 53.82904122
A157: Pediatrics -- Child Development | B157: Pediatrics | C157: Child Development | D157: -249709.42 | E157: 4355.21 | F157: 57.33579322
A158: Pediatrics -- CHP Sedation | B158: Pediatrics | C158: CHP Sedation | D158: -448663.05 | E158: 6632.28 | F158: 67.64838788
A159: Pediatrics -- Diagnostic Referral | B159: Pediatrics | C159: Diagnostic Referral | D159: -3232763.39 | E159: 68088.63 | F159: 47.47875512
A160: Pediatrics -- Emergency | B160: Pediatrics | C160: Emergency | D160: -14417501.87 | E160: 275685.45 | F160: 52.29692706
A161: Pediatrics -- Endocrinology | B161: Pediatrics | C161: Endocrinology | D161: -4032140.92 | E161: 57566.16 | F161: 70.04359714
A162: Pediatrics -- Gastroenterology | B162: Pediatrics | C162: Gastroenterology | D162: -7128150.44 | E162: 101097.82 | F162: 70.50745941
A163: Pediatrics -- Hematology/Oncology | B163: Pediatrics | C163: Hematology/Oncology | D163: -2108644.67 | E163: 52902.56 | F163: 39.85902894
A164: Pediatrics -- Infectious Disease | B164: Pediatrics | C164: Infectious Disease | D164: -719187.58 | E164: 15030.98 | F164: 47.84701862
A165: Pediatrics -- Medical Genetics | B165: Pediatrics | C165: Medical Genetics | D165: -821908.56 | E165: 13060.23 | F165: 62.93216582
A166: Pediatrics -- Neonatology | B166: Pediatrics | C166: Neonatology | D166: -24607695.31 | E166: 426146.95 | F166: 57.7446238
A167: Pediatrics -- Nephrology | B167: Pediatrics | C167: Nephrology | D167: -1245575.88 | E167: 19978.62 | F167: 62.34544128
A168: Pediatrics -- Neurology | B168: Pediatrics | C168: Neurology | D168: -7031043.21 | E168: 119989.08 | F168: 58.59735911
A169: Pediatrics -- none | B169: Pediatrics | C169: none | D169: -952002.18 | E169: 12518 | F169: 76.05066145
A170: Pediatrics -- Primary Care | B170: Pediatrics | C170: Primary Care | D170: -4613345.16 | E170: 75535.49 | F170: 61.07520002
A171: Pediatrics -- Pulmonology | B171: Pediatrics | C171: Pulmonology | D171: -3151539.52 | E171: 50845.48 | F171: 61.98268794
A172: Pediatrics -- Rheumatology | B172: Pediatrics | C172: Rheumatology | D172: -1480979.62 | E172: 20430.95 | F172: 72.48706595
A173: Pediatrics -- Weight Management & Wellness | B173: Pediatrics | C173: Weight Management & Wellness | D173: -485553.25 | E173: 6909.66 | F173: 70.27165591
A174: PM&R -- Brain Injury | B174: PM&R | C174: Brain Injury | D174: -1633269.89 | E174: 36317.55 | F174: 44.97191826
A175: PM&R -- General Rehab | B175: PM&R | C175: General Rehab | D175: -3662783.48 | E175: 76415.07 | F175: 47.93273735
A176: PM&R -- Musculoskeletal | B176: PM&R | C176: Musculoskeletal | D176: -337388.23 | E176: 5388.5 | F176: 62.61264359
A177: PM&R -- Neuropsych | B177: PM&R | C177: Neuropsych | D177: -168942.84 | E177: 2962.22 | F177: 57.0325094
A178: PM&R -- none | B178: PM&R | C178: none | D178: -485890.35 | E178: 7618.49 | F178: 63.77777617
A179: PM&R -- Pain Management | B179: PM&R | C179: Pain Management | D179: -1727532.04 | E179: 21080.86 | F179: 81.94789207
A180: PM&R -- Pediatric Rehab | B180: PM&R | C180: Pediatric Rehab | D180: -680928.3 | E180: 14972.28 | F180: 45.47926568
A181: PM&R -- Spasticity | B181: PM&R | C181: Spasticity | D181: -1248916.58 | E181: 8411.05 | F181: 148.4852165
A182: PM&R -- Spinal Cord | B182: PM&R | C182: Spinal Cord | D182: -1296898.4 | E182: 28910.51 | F182: 44.85906336
A183: PM&R -- Sports Medicine | B183: PM&R | C183: Sports Medicine | D183: -552956.68 | E183: 8518.32 | F183: 64.91381869
A184: PM&R -- Stroke Rehab | B184: PM&R | C184: Stroke Rehab | D184: -378430.9 | E184: 8019.89 | F184: 47.18654495
A185: Psychiatry -- DEC | B185: Psychiatry | C185: DEC | D185: -1267279.75 | E185: 26935.13 | F185: 47.0493274
A186: Psychiatry -- Addiction Psychiatry | B186: Psychiatry | C186: Addiction Psychiatry | D186: -899055.47 | E186: 32322.4 | F186: 27.81524485
A187: Psychiatry -- Adult Psychiatry | B187: Psychiatry | C187: Adult Psychiatry | D187: -2797867.7 | E187: 125011.8 | F187: 22.38082885
A188: Psychiatry -- Child and Adolescent Psychiatry | B188: Psychiatry | C188: Child and Adolescent Psychiatry | D188: -2555206.24 | E188: 89962.2 | F188: 28.40310975
A189: Psychiatry -- Comprehensive Care | B189: Psychiatry | C189: Comprehensive Care | D189: -1260673.06 | E189: 55790.32 | F189: 22.59662716
A190: Psychiatry -- Geriatric Psychiatry | B190: Psychiatry | C190: Geriatric Psychiatry | D190: -1263431.79 | E190: 40848.3 | F190: 30.92984996
A191: Psychiatry -- none | B191: Psychiatry | C191: none | D191: -210874.18 | E191: 14237.34 | F191: 14.81134678
A192: Psychiatry -- Psychosomatic Medicine | B192: Psychiatry | C192: Psychosomatic Medicine | D192: -1302428.85 | E192: 35984.89 | F192: 36.1937705
A193: Radiology -- Abdominal Imaging | B193: Radiology | C193: Abdominal Imaging | D193: -9346520.82 | E193: 171545.77 | F193: 54.48412293
A194: =CONCATENATE(B194," -- ",C194) -> Radiology -- Chest | B194: Radiology | C194: Chest | D194: -4566713.11 | E194: 89720.47 | F194: 50.89934449
A195: Radiology -- Community | B195: Radiology | C195: Community | D195: -26398448.02 | E195: 497590.47 | F195: 53.05255951
A196: Radiology -- Emergency (Abdominal Imaging) | B196: Radiology | C196: Emergency (Abdominal Imaging) | D196: -2644491.6 | E196: 74005.93 | F196: 35.73350946
A197: Radiology -- Emergency (Neuroradiology) | B197: Radiology | C197: Emergency (Neuroradiology) | D197: -2901425.16 | E197: 71582.6 | F197: 40.53254785
A198: Radiology -- Interventional | B198: Radiology | C198: Interventional | D198: -8022203.53 | E198: 125263.09 | F198: 64.042836
A199: Radiology -- Mercy | B199: Radiology | C199: Mercy | D199: -3085493.36 | E199: 60571.35 | F199: 50.93981495
A200: Radiology -- Musculoskeletal | B200: Radiology | C200: Musculoskeletal | D200: -5132722.24 | E200: 92431.55 | F200: 55.52998127
... 163 more rows

Sheet SUBSPEC WRVU LOOKUP (hidden)
A1: wRVUs
A2: GRP6 | B2: Subspec. | C2: CONCAT | D2: JUL14 | E2: AUG14 | F2: SEP14 | G2: OCT14 | H2: NOV14 | I2: DEC14 | J2: JAN15 | K2: FEB15 | L2: MAR15 | M2: APR15 | N2: MAY15 | O2: JUN15 | P2: JUL15 | Q2: AUG15 | R2: SEP15 | S2: OCT15 | T2: NOV15 | U2: DEC15 | V2: Total | W2: FY15 Total
A3: Anesthesiology | B3: Acute Pain | C3: =CONCATENATE(A3,"--",B3) -> Anesthesiology--Acute Pain | D3: 8521.59 | E3: 8535.55 | F3: 8459.75 | G3: 8619.79 | H3: 8277.7 | I3: 7984.94 | J3: 7097.28 | K3: 8460.91 | L3: 6768.17 | M3: 5477.27 | N3: 7904.84 | O3: 9260.27 | P3: 5837.81 | Q3: 7314.23 | R3: 9238.54 | S3: 7022.78 | T3: 7303.85 | U3: 6849.93 | V3: =SUM(D3:U3) -> 138935.2 | W3: =SUM(D3:O3) -> 95368.06
A4: Anesthesiology | B4: Anesthesiology | C4: =CONCATENATE(A4,"--",B4) -> Anesthesiology--Anesthesiology | D4: 5328.01 | E4: 5617.72 | F4: 4924.23 | G4: 7399.56 | H4: 5710.76 | I4: 5596.93 | J4: 5586.72 | K4: 5498.52 | L4: 6134 | M4: 5973.93 | N4: 5830.3 | O4: 7343.94 | P4: 5634.05 | Q4: 5216.33 | R4: 7233.65 | S4: 5396.37 | T4: 5912.59 | U4: 6296.67 | V4: =SUM(D4:U4) -> 106634.28 | W4: =SUM(D4:O4) -> 70944.62
A5: Anesthesiology | B5: Chronic Pain (wRVUs) | C5: Anesthesiology--Chronic Pain (wRVUs) | D5: 6057.33 | E5: 6512.7 | F5: 7291.08 | G5: 7625.55 | H5: 6300.26 | I5: 6536.27 | J5: 6215.76 | K5: 7032.37 | L5: 7303.93 | M5: 7404.87 | N5: 6361.24 | O5: 7805.53 | P5: 6437.47 | Q5: 6251.74 | R5: 8058.85 | S5: 7624.31 | T5: 6956.72 | U5: 7536.44 | V5: 125312.42 | W5: 82446.89
A6: Cardiothoracic Surgery | B6: Cardiothoracic/Transplant Surgery | C6: Cardiothoracic Surgery--Cardiothoracic/Transplant Surgery | D6: 818.4 | E6: 1506.87 | F6: 1025.56 | G6: 1244.85 | H6: 916.17 | I6: 1458.12 | J6: 1374.63 | K6: 1335.05 | L6: 1062.61 | M6: 787.62 | N6: 1535.81 | O6: 1390.43 | P6: 1224.95 | Q6: 1125.94 | R6: 1457.7 | S6: 1438.81 | T6: 832.43 | U6: 851.07 | V6: 21387.02 | W6: 14456.12
A7: Cardiothoracic Surgery | B7: Cardiothoracic Surgery | C7: Cardiothoracic Surgery--Cardiothoracic Surgery | D7: 8798.5 | E7: 6448.1 | F7: 8376.76 | G7: 10824.05 | H7: 7202.71 | I7: 9464.02 | J7: 8363.37 | K7: 8507.2 | L7: 10222.26 | M7: 9247.84 | N7: 8735.28 | O7: 10265.95 | P7: 9184.68 | Q7: 7692.3 | R7: 9144.32 | S7: 10936.82 | T7: 8464 | U7: 9851.56 | V7: 161729.72 | W7: 106456.04
A8: Cardiothoracic Surgery | B8: Cath Lab | C8: Cardiothoracic Surgery--Cath Lab | M8: 0 | V8: 0 | W8: 0
A9: Cardiothoracic Surgery | B9: Fellow | C9: Cardiothoracic Surgery--Fellow | D9: 1222.25 | E9: 1009.73 | F9: 491.43 | G9: 1066.45 | H9: 580.71 | I9: 154.82 | J9: 592.89 | K9: 857.8 | L9: 733.85 | M9: 470.98 | N9: 487.7 | O9: 721.77 | P9: 602.81 | Q9: 515.29 | R9: 910.52 | S9: 1086.5 | T9: 709.98 | U9: 955.75 | V9: 13171.23 | W9: 8390.38
A10: Cardiothoracic Surgery | B10: Transplant Surgery | C10: Cardiothoracic Surgery--Transplant Surgery | D10: 706.59 | E10: 506.34 | F10: 987.32 | G10: 883.53 | H10: 621.89 | I10: 448.16 | J10: 519.66 | K10: 1101.75 | L10: 574.93 | M10: 839.49 | N10: 537.75 | O10: 1023.94 | P10: 734.23 | Q10: 287.79 | R10: 278.45 | S10: 291.89 | T10: 253.55 | U10: 324.52 | V10: 10921.78 | W10: 8751.35
A11: Donohue Cardiology | B11: Cath Lab | C11: Donohue Cardiology--Cath Lab | P11: 38.67 | Q11: 267.89 | R11: 298.35 | S11: 401.18 | T11: 559.6 | U11: 667.57 | V11: 2233.26 | W11: 0
A12: Donohue Cardiology | B12: General Cardiology | C12: Donohue Cardiology--General Cardiology | D12: 753.4 | E12: 942.73 | F12: 774.19 | G12: 1470.57 | H12: 1183.72 | I12: 1055.69 | J12: 782.97 | K12: 605.76 | L12: 659.23 | M12: 390.98 | N12: 519.37 | O12: 637.04 | P12: 674.46 | Q12: 779.48 | R12: 747.13 | S12: 673.12 | T12: 575.58 | U12: 735 | V12: 13960.42 | W12: 9775.65
A13: Donohue Cardiology | B13: Interventional Cardiology | C13: Donohue Cardiology--Interventional Cardiology | D13: 2065.21 | E13: 1325.81 | F13: 2477.53 | G13: 2354.46 | H13: 1808.11 | I13: 1880.69 | J13: 2074.26 | K13: 1609.92 | L13: 2217.04 | M13: 2163.87 | N13: 2077.64 | O13: 2182.09 | P13: 2382.58 | Q13: 1381.58 | R13: 1728.58 | S13: 1724.25 | T13: 1392.74 | U13: 2303.5 | V13: 35149.86 | W13: 24236.63
A14: Critical Care Medicine | B14: Adult Critical Care Medicine | C14: Critical Care Medicine--Adult Critical Care Medicine | D14: 18232.7 | E14: 16473.04 | F14: 17317.04 | G14: 15337.72 | H14: 14136.23 | I14: 22779.41 | J14: 20887.21 | K14: 16834.01 | L14: 21002.04 | M14: 17002.98 | N14: 16084.47 | O14: 20809.52 | P14: 18826.33 | Q14: 15958.13 | R14: 16717.51 | S14: 13611.93 | T14: 14211.87 | U14: 18490.13 | V14: 314712.27 | W14: 216896.37
A15: Critical Care Medicine | B15: General Surgery: Trauma | C15: Critical Care Medicine--General Surgery: Trauma | D15: 1915.37 | E15: 1853.36 | F15: 1370.37 | G15: 1754.18 | H15: 1994.92 | I15: 1836.45 | J15: 1556.77 | K15: 1690.04 | L15: 531.41 | M15: 2439.44 | N15: 1494.76 | O15: 1945.53 | P15: 1773.95 | Q15: 1042.19 | R15: 1835.92 | S15: 1821 | T15: 2418.38 | U15: 1723.1 | V15: 30997.14 | W15: 20382.6
A16: Critical Care Medicine | B16: Hospitalist | C16: Critical Care Medicine--Hospitalist | D16: 10475.61 | E16: 10674.55 | F16: 11408.52 | G16: 11715.8 | H16: 10794.76 | I16: 14345.29 | J16: 14431.02 | K16: 11506.88 | L16: 13209.37 | M16: 12371.57 | N16: 13117.91 | O16: 13668.75 | P16: 12953.9 | Q16: 12019.55 | R16: 13437.55 | S16: 13006.98 | T16: 11783.13 | U16: 13532.18 | V16: 224453.32 | W16: 147720.03
A17: Critical Care Medicine | B17: none | C17: Critical Care Medicine--none | D17: 712.95 | E17: 366.59 | F17: 432.43 | G17: 170.91 | H17: -2.66 | I17: -4.5 | J17: 0 | K17: 0 | L17: 3.39 | M17: 0 | N17: 0 | P17: 0 | Q17: -1.39 | S17: -4.5 | T17: 0 | V17: 1673.22 | W17: 1679.11
A18: Critical Care Medicine | B18: Pediatric Critical Care Medicine | C18: Critical Care Medicine--Pediatric Critical Care Medicine | D18: 10216.39 | E18: 8927.46 | F18: 11010.68 | G18: 9821.19 | H18: 9392.74 | I18: 10489.05 | J18: 12126.71 | K18: 9772.45 | L18: 11888.68 | M18: 10914.78 | N18: 6408.19 | O18: 12009.11 | P18: 9690.87 | Q18: 9741.44 | R18: 10085.26 | S18: 10469.34 | T18: 9126.59 | U18: 10136.84 | V18: 182227.77 | W18: 122977.43
A19: HVI Cardiology | B19: Cardiac MRI | C19: HVI Cardiology--Cardiac MRI | D19: 722.2 | E19: 500.7 | F19: 945.28 | G19: 651.57 | H19: 627.34 | I19: 467.25 | J19: 481.4 | K19: 498.68 | L19: 518.67 | M19: 748.21 | N19: 559.49 | O19: 689.96 | P19: 703.66 | Q19: 693.49 | R19: 509.65 | S19: 315.69 | T19: 462.24 | U19: 689.73 | V19: 10785.21 | W19: 7410.75
A20: HVI Cardiology | B20: Cath Lab | C20: HVI Cardiology--Cath Lab | D20: 14965.48 | E20: 14618.41 | F20: 15866.74 | G20: 16352.25 | H20: 14722.61 | I20: 14845.16 | J20: 15540.08 | K20: 15569.72 | L20: 18075.62 | M20: 17242.06 | N20: 16232 | O20: 17939.02 | P20: 15743.78 | Q20: 16195.06 | R20: 16941.11 | S20: 17329.89 | T20: 14867.46 | U20: 16252.17 | V20: 289298.62 | W20: 191969.15
A21: HVI Cardiology | B21: Echocardiography | C21: HVI Cardiology--Echocardiography | D21: 3101.78 | E21: 2188.03 | F21: 1679.85 | G21: 2737.79 | H21: 2057.17 | I21: 1960.01 | J21: 2473.07 | K21: 2219.09 | L21: 2296.5 | M21: 2598.83 | N21: 2222.03 | O21: 2434.07 | P21: 2532.25 | Q21: 2087.72 | R21: 2313.62 | S21: 2514.99 | T21: 2035.82 | U21: 2731.8 | V21: 42184.42 | W21: 27968.22
A22: HVI Cardiology | B22: Electrophysiology | C22: HVI Cardiology--Electrophysiology | D22: 8241.31 | E22: 8997.49 | F22: 8391.78 | G22: 9353.39 | H22: 7794.84 | I22: 8184.26 | J22: 7498.26 | K22: 8269.73 | L22: 8412.93 | M22: 8928.5 | N22: 7112.28 | O22: 8752.98 | P22: 7889.94 | Q22: 8098.43 | R22: 8789.03 | S22: 7985.72 | T22: 8102.48 | U22: 8575.33 | V22: 149378.68 | W22: 99937.75
A23: HVI Cardiology | B23: Family Medicine | C23: HVI Cardiology--Family Medicine | J23: 0 | V23: 0 | W23: 0
A24: HVI Cardiology | B24: Fellow | C24: HVI Cardiology--Fellow | D24: 32.99 | E24: 55.59 | F24: 22.73 | G24: 75.65 | H24: 26.27 | I24: 16.69 | J24: 61.81 | K24: 55.48 | L24: 28.42 | M24: 60.52 | N24: 53.29 | O24: 113.32 | P24: 59.19 | Q24: 89.2 | R24: 152.9 | S24: 86.27 | T24: 49.11 | U24: 67.19 | V24: 1106.62 | W24: 602.76
A25: HVI Cardiology | B25: General Cardiology | C25: HVI Cardiology--General Cardiology | D25: 18769.31 | E25: 19296.49 | F25: 18767.42 | G25: 19277.45 | H25: 17739.23 | I25: 19778.35 | J25: 21321.47 | K25: 20390.28 | L25: 20472.25 | M25: 22674.41 | N25: 21026.97 | O25: 21120.69 | P25: 21174.59 | Q25: 20638.12 | R25: 20960.91 | S25: 21240.81 | T25: 19086.27 | U25: 19908.96 | V25: 363643.98 | W25: 240634.32
A26: HVI Cardiology | B26: Heart Failure | C26: HVI Cardiology--Heart Failure | D26: 1967.04 | E26: 1601.61 | F26: 2096.92 | G26: 2266.38 | H26: 2149.99 | I26: 2037.35 | J26: 1819.42 | K26: 1714.35 | L26: 2091.98 | M26: 1702.78 | N26: 2424.91 | O26: 2232.53 | P26: 1743.76 | Q26: 2357.46 | R26: 2292.29 | S26: 2173.95 | T26: 1690.04 | U26: 2088.32 | V26: 36451.08 | W26: 24105.26
A27: HVI Cardiology | B27: Internal Medicine | C27: HVI Cardiology--Internal Medicine | M27: 0 | V27: 0 | W27: 0
A28: HVI Cardiology | B28: Interventional Cardiology | C28: HVI Cardiology--Interventional Cardiology | Q28: 36.59 | R28: 109.97 | S28: 88.67 | T28: 144.59 | U28: 279.09 | V28: 658.91 | W28: 0
A29: HVI Cardiology | B29: Nuclear Cardiology | C29: HVI Cardiology--Nuclear Cardiology | D29: 317.76 | E29: 504.27 | F29: 458.42 | G29: 435.92 | H29: 305.07 | I29: 513.75 | J29: 356.13 | K29: 473.94 | L29: 735.14 | M29: 286.82 | N29: 242.86 | O29: 852.23 | P29: 282.06 | Q29: 614.49 | R29: 283.88 | S29: 796.15 | T29: 679.58 | U29: 387.97 | V29: 8526.44 | W29: 5482.31
A30: Dermatology | B30: Cosmetic Dermatology | C30: Dermatology--Cosmetic Dermatology | D30: 769.02 | E30: 533.59 | F30: 708.84 | G30: 732.98 | H30: 567.74 | I30: 852.91 | J30: 435.64 | K30: 718.83 | L30: 819.77 | M30: 656.11 | N30: 723.8 | O30: 528.81 | P30: 693.47 | Q30: 810.24 | R30: 920.07 | S30: 975.22 | T30: 733.61 | U30: 891.39 | V30: 13072.04 | W30: 8048.04
A31: Dermatology | B31: Dermatopathology | C31: Dermatology--Dermatopathology | D31: 2454.13 | E31: 1864.34 | F31: 1426.54 | G31: 4067.01 | H31: 2260.12 | I31: 2301.73 | J31: 1614 | K31: 1728.84 | L31: 1601.07 | M31: 1733 | N31: 1634.78 | O31: 1718.12 | P31: 2013.06 | Q31: 1687.8 | R31: 1852.83 | S31: 2126.82 | T31: 1707.53 | U31: 1871.83 | V31: 35663.55 | W31: 24403.68
A32: Dermatology | B32: Fellow | C32: Dermatology--Fellow | Q32: 10.54 | R32: 54.81 | S32: 14 | T32: 2.27 | V32: 81.62 | W32: 0
A33: Dermatology | B33: Medical Dermatology | C33: Dermatology--Medical Dermatology | D33: 3397.22 | E33: 2888.62 | F33: 3821.59 | G33: 4109.96 | H33: 3152.27 | I33: 3225.49 | J33: 2836.21 | K33: 2872.98 | L33: 3116.33 | M33: 3408.9 | N33: 3546.45 | O33: 3322.09 | P33: 3062.45 | Q33: 4059.31 | R33: 4464.29 | S33: 5740.25 | T33: 4403.57 | U33: 4440.37 | V33: 65868.35 | W33: 39698.11
A34: Dermatology | B34: Pediatric Dermatology | C34: Dermatology--Pediatric Dermatology | D34: 259.25 | E34: 212.8 | F34: 275.15 | G34: 281.18 | H34: 267.94 | I34: 181.27 | J34: 193.68 | K34: 265.4 | L34: 237.95 | M34: 279.76 | N34: 200.14 | O34: 229.27 | P34: 224.14 | Q34: 265.26 | R34: 260.06 | S34: 235.99 | T34: 243.67 | U34: 216.3 | V34: 4329.21 | W34: 2883.79
A35: Dermatology | B35: Surgical Dermatology | C35: Dermatology--Surgical Dermatology | D35: 1282.58 | E35: 1223.19 | F35: 1302.03 | G35: 1266.86 | H35: 1417.44 | I35: 1198.85 | J35: 1230.74 | K35: 1128.48 | L35: 1074.71 | M35: 1211.67 | N35: 1297.37 | O35: 1077.18 | P35: 1518.25 | Q35: 1035.56 | R35: 1287.8 | S35: 1411.79 | T35: 806.95 | U35: 768.22 | V35: 21539.67 | W35: 14711.1
A36: Emergency Medicine | B36: Emergency Medicine | C36: Emergency Medicine--Emergency Medicine | D36: 45922.75 | E36: 43042.78 | F36: 46546.2 | G36: 48435.64 | H36: 40679.4 | I36: 44349.82 | J36: 47625.64 | K36: 41711.71 | L36: 43065.51 | M36: 44581.08 | N36: 45274.48 | O36: 40096.83 | P36: 49521.88 | Q36: 50796.38 | R36: 41709.7 | S36: 49884.19 | T36: 45182.62 | U36: 45678.49 | V36: 814105.1 | W36: 531331.84
A37: EPN Urgent Care | B37: Emergency Medicine | C37: EPN Urgent Care--Emergency Medicine | D37: 1183.3 | E37: 1679.77 | F37: 1043.8 | G37: 1076.32 | H37: 1404.71 | I37: 2362.28 | J37: 2042.79 | K37: 1919.11 | L37: 2521.52 | M37: 1696.44 | N37: 1805.6 | O37: 1654.08 | P37: 1780.42 | Q37: 2250.91 | R37: 1807.2 | S37: 1920.48 | T37: 1642.57 | U37: 1661.85 | V37: 31453.15 | W37: 20389.72
A38: EPN Urgent Care | B38: Family Medicine | C38: EPN Urgent Care--Family Medicine | D38: 723.35 | E38: 815.58 | F38: 947.62 | G38: 770.18 | H38: 421.38 | I38: 757.61 | J38: 658.34 | K38: 866.16 | L38: 1050.08 | M38: 804.08 | N38: 627.14 | O38: 993.15 | P38: 826.12 | Q38: 904.9 | R38: 908.58 | S38: 707.37 | T38: 963.27 | U38: 922 | V38: 14666.91 | W38: 9434.67
A39: Erie Physician Network | B39: Family Medicine | C39: Erie Physician Network--Family Medicine | D39: 3173.47 | E39: 2903.09 | F39: 3253.22 | G39: 3492.22 | H39: 2593.38 | I39: 3187.88 | J39: 2979.02 | K39: 2795.05 | L39: 3233.38 | M39: 3395.54 | N39: 2927.55 | O39: 3046.32 | P39: 3044.2 | Q39: 2892.69 | R39: 3391.16 | S39: 3352.15 | T39: 2946.45 | U39: 3234.7 | V39: 55841.47 | W39: 36980.12
A40: Erie Physician Network | B40: Physical Medicine & Rehabilitation | C40: Erie Physician Network--Physical Medicine & Rehabilitation | D40: 374.57 | E40: 386.17 | F40: 518.5 | G40: 334.22 | H40: 205.83 | I40: 382.93 | J40: 454.76 | K40: 490.73 | L40: 437.42 | M40: 419.37 | N40: 335.27 | O40: 400.32 | P40: 309.41 | Q40: 429.97 | R40: 445.35 | S40: 464.92 | T40: 219.45 | U40: 562.4 | V40: 7171.59 | W40: 4740.09
A41: Erie Physician Network | B41: Podiatry | C41: Erie Physician Network--Podiatry | D41: 1187.97 | E41: 1219.42 | F41: 1310.79 | G41: 1273.92 | H41: 910.8 | I41: 1269.49 | J41: 967.87 | K41: 994.5 | L41: 1180.85 | M41: 1280.59 | N41: 1052.36 | O41: 1605.82 | P41: 1251.73 | Q41: 1341.27 | R41: 1451.27 | S41: 1148.96 | T41: 1497.65 | U41: 1403.03 | V41: 22348.29 | W41: 14254.38
A42: ERMI | B42: AIM | C42: ERMI--AIM | D42: 0.08 | E42: 39.89 | F42: 26.43 | G42: 7.35 | H42: 0 | I42: 182.96 | J42: 4 | V42: 260.71 | W42: 260.71
A43: ERMI | B43: Emergency Medicine | C43: ERMI--Emergency Medicine | D43: 91268.1 | E43: 83808.62 | F43: 84393.36 | G43: 83023.71 | H43: 72887.54 | I43: 86609.21 | J43: 77876.05 | K43: 67129.04 | L43: 59612.49 | M43: 82995.48 | N43: 70871.77 | O43: 78613.32 | P43: 80750.23 | Q43: 84728.28 | R43: 89676.26 | S43: 87535.09 | T43: 71878.94 | U43: 76467.46 | V43: 1430124.95 | W43: 939088.69
A44: ERMI | B44: Family Medicine | C44: ERMI--Family Medicine | D44: 397.16 | E44: 248.32 | F44: 137.82 | G44: 85.85 | H44: 63.46 | I44: 123.1 | J44: 3.86 | K44: 2.11 | L44: 21.96 | N44: 7.72 | O44: 12.75 | R44: 119.58 | S44: 66.53 | T44: -4.64 | U44: 139.44 | V44: 1425.02 | W44: 1104.11
A45: ERMI | B45: Hospitalist | C45: ERMI--Hospitalist | D45: 26.86 | E45: 0 | F45: 35.1 | G45: 125.16 | H45: 11.25 | I45: 0 | J45: 0 | K45: 0 | L45: 0 | M45: 0 | N45: 0 | O45: 0 | P45: 143.16 | Q45: 291.64 | R45: 298.77 | S45: 43.48 | T45: 81.83 | U45: -1.39 | V45: 1055.86 | W45: 198.37
A46: ERMI | B46: none | C46: ERMI--none | D46: 20159.39 | E46: 16830.01 | F46: 14195.52 | G46: 12201.63 | H46: 9798.67 | I46: 12367.28 | J46: 11172.32 | K46: 5158.41 | L46: 3470.19 | M46: 7543.52 | N46: 3473.86 | O46: 4368.44 | P46: 2320.97 | Q46: 974.42 | R46: -5.72 | S46: -5.01 | T46: -2.56 | U46: 210.34 | V46: 124231.68 | W46: 120739.24
A47: Family Medicine | B47: Family Medicine - Includes Deliveries | C47: Family Medicine--Family Medicine - Includes Deliveries | D47: 333.62 | E47: 388.22 | F47: 266.61 | G47: 411.41 | H47: 479.89 | I47: 516.13 | J47: 559.28 | K47: 456.6 | L47: 545.7 | M47: 441.05 | N47: 575.46 | O47: 565.94 | P47: 684.89 | Q47: 583.76 | R47: 575.73 | S47: 276.26 | T47: 441.58 | U47: 587.26 | V47: 8689.39 | W47: 5539.91
A48: Family Medicine | B48: Family Practice | C48: Family Medicine--Family Practice | D48: 1273.3 | E48: 1250.73 | F48: 1488.25 | G48: 1483.58 | H48: 1309.27 | I48: 1034.26 | J48: 873 | K48: 1176.92 | L48: 1230.46 | M48: 1282.67 | N48: 964.44 | O48: 1107.94 | P48: 1126.03 | Q48: 929.76 | R48: 1608.42 | S48: 1393.23 | T48: 1235.34 | U48: 1256.72 | V48: 22024.32 | W48: 14474.82
A49: Family Medicine | B49: General Medicine | C49: Family Medicine--General Medicine | R49: 0 | U49: 13.43 | V49: 13.43 | W49: 0
A50: Family Medicine | B50: none | C50: Family Medicine--none | R50: 0 | T50: 0 | U50: 0 | V50: 0 | W50: 0
A51: FPN - Fayette Medical Associates | B51: Anesthesiologist | C51: FPN - Fayette Medical Associates--Anesthesiologist | N51: 3.65 | O51: 87.54 | P51: 3.45 | Q51: 84 | R51: 76.25 | S51: 18.48 | T51: 25.07 | U51: 96.98 | V51: 395.42 | W51: 91.19
A52: FPN - Fayette Specialty Associates | B52: General Cardiology | C52: FPN - Fayette Specialty Associates--General Cardiology | D52: 1076.42 | E52: 1261.77 | F52: 1281.47 | G52: 1278.52 | H52: 1195.65 | I52: 362.82 | J52: -1.23 | K52: -3.48 | L52: 0 | M52: 0.77 | O52: 0 | P52: -2.37 | Q52: 0 | V52: 6450.34 | W52: 6452.71
A53: FPN - Fayette Specialty Associates | B53: none | C53: FPN - Fayette Specialty Associates--none | D53: 5689.6 | E53: 6134.27 | F53: 6861.98 | G53: 8047.14 | H53: 7680.57 | I53: 6152.59 | J53: 7072.29 | K53: 6382.02 | L53: 7206.1 | M53: 6840.82 | N53: 5208.33 | O53: 6103.82 | P53: 5143.33 | Q53: 6834.72 | R53: 6666.72 | S53: 5340.96 | T53: 6024.29 | U53: 5337.52 | V53: 114727.07 | W53: 79379.53
A54: FPN - Fayette Specialty Associates | B54: Surgery - Obstetrics/Gynecology | C54: FPN - Fayette Specialty Associates--Surgery - Obstetrics/Gynecology | D54: 1101.31 | E54: 1091.97 | F54: 1012.01 | G54: 1295.51 | H54: 1143.01 | I54: 1546.13 | J54: 196.19 | K54: 0.62 | L54: -0.97 | M54: -1.45 | N54: -1.56 | O54: 0 | P54: 0 | Q54: 0 | R54: 0 | V54: 7382.77 | W54: 7382.77
A55: Heritage Valley | B55: General | C55: Heritage Valley--General | Q55: 1536.02 | R55: 1063.54 | S55: 1125.67 | T55: 1184.3 | U55: 827.33 | V55: 5736.86 | W55: 0
A56: FPN - Hospital Care Associates | B56: Emergency Medicine | C56: FPN - Hospital Care Associates--Emergency Medicine | F56: 3926.11 | G56: 6797 | H56: 5923.67 | I56: 8083.35 | J56: 8796.31 | K56: 6429.18 | L56: 6750.02 | M56: 3495.39 | N56: 12514.98 | O56: 6754.03 | P56: 1604.17 | Q56: 11967.8 | R56: 15243.88 | S56: 8496.05 | T56: 7276.85 | U56: 6361.97 | V56: 120420.76 | W56: 69470.04
A57: FPN - Hospital Care Associates | B57: none | C57: FPN - Hospital Care Associates--none | D57: 4175.68 | E57: 2729.46 | F57: 3133.44 | G57: 4134.33 | H57: 3370.82 | I57: 3778.61 | J57: 3341.45 | K57: 4193.54 | L57: 4473.55 | M57: 3371.7 | N57: 3030.36 | O57: 3102.9 | P57: 3875.48 | Q57: 3569.92 | R57: 5440.65 | S57: 4788.77 | T57: 2221.07 | U57: 2870.61 | V57: 65602.34 | W57: 42835.84
A58: HVI Cardiac Surgery | B58: Adult Cardiac Surgery | C58: HVI Cardiac Surgery--Adult Cardiac Surgery | D58: 17744.13 | E58: 13072.05 | F58: 15472.84 | G58: 16308.06 | H58: 13998.04 | I58: 19135.21 | J58: 13059.25 | K58: 16790.47 | L58: 16643.91 | M58: 14979.1 | N58: 14661.6 | O58: 18981.36 | P58: 17465.85 | Q58: 14328.15 | R58: 15895.58 | S58: 15546.8 | T58: 16713.78 | U58: 13210.97 | V58: 284007.15 | W58: 190846.02
A59: HVI Cardiac Surgery | B59: Cardiothoracic Surgery | C59: HVI Cardiac Surgery--Cardiothoracic Surgery | S59: 3.61 | T59: 1.5 | V59: 5.11 | W59: 0
A60: HVI Cardiac Surgery | B60: Pediatric Surgery | C60: HVI Cardiac Surgery--Pediatric Surgery | D60: 2196.5 | E60: 3138.58 | F60: 1458.35 | G60: 2046.24 | H60: 2531.81 | I60: 2025.21 | J60: 2208.35 | K60: 617.38 | L60: 2072.22 | M60: 1813.07 | N60: 1469.85 | O60: 1455.78 | P60: 2519.34 | Q60: 1444.19 | R60: 1607.12 | S60: 3033.12 | T60: 2274.4 | U60: 2385.41 | V60: 36296.92 | W60: 23033.34
A61: HVI Cardiac Surgery | B61: Surgery - Vascular | C61: HVI Cardiac Surgery--Surgery - Vascular | D61: 0 | F61: 2.27 | L61: 0.51 | N61: 0 | O61: 0.76 | P61: 31.56 | Q61: 0 | R61: 77.29 | T61: 2.28 | U61: 13.47 | V61: 128.14 | W61: 3.54
A62: HVI Cardiac Surgery | B62: Transplant Surgery | C62: HVI Cardiac Surgery--Transplant Surgery | D62: 394.59 | E62: 250.35 | F62: 473.94 | G62: 114.59 | H62: 34.57 | I62: 102.83 | J62: 98.32 | K62: 43.85 | L62: 121.97 | M62: 246.57 | N62: 154.12 | O62: 194.61 | P62: 404.26 | Q62: 843.67 | R62: 997.94 | S62: 473.78 | T62: 444.29 | U62: 984.13 | V62: 6378.38 | W62: 2230.31
A63: Internal Medicine | B63: DEC | C63: Internal Medicine--DEC | J63: 1.37 | V63: 1.37 | W63: 1.37
A64: Internal Medicine | B64: Addiction Psychiatry | C64: Internal Medicine--Addiction Psychiatry | D64: 0 | E64: 0 | F64: 0 | G64: 0 | H64: 0 | I64: 0 | J64: 0 | K64: 0 | L64: 0 | M64: 0 | N64: 0 | O64: 0 | P64: 0 | Q64: 0 | R64: 0 | S64: 0 | T64: 0 | U64: 0 | V64: 0 | W64: 0
A65: Internal Medicine | B65: Adult Critical Care Medicine | C65: Internal Medicine--Adult Critical Care Medicine | E65: 175 | F65: 259.63 | H65: 67.2 | I65: 154.64 | J65: 0 | K65: 89.16 | L65: 49.08 | M65: 52.6 | N65: 132.15 | O65: 0 | P65: 0 | Q65: 180.88 | R65: 146.45 | S65: 75.58 | T65: 0 | U65: 34.17 | V65: 1416.54 | W65: 979.46
A66: Internal Medicine | B66: Adult Psychiatry | C66: Internal Medicine--Adult Psychiatry | D66: 0 | E66: 0 | F66: 0 | G66: 0 | H66: 0 | K66: 0 | L66: 0 | M66: 0 | N66: 0 | O66: 0 | P66: 2.07 | Q66: 6.77 | R66: 4.52 | S66: 5.66 | T66: 2.87 | U66: 4.71 | V66: 26.6 | W66: 0
A67: Internal Medicine | B67: AIM | C67: Internal Medicine--AIM | D67: 2359.62 | E67: 2636.98 | F67: 2763.53 | G67: 3090.89 | H67: 2211.41 | I67: 2579.91 | J67: 2515.52 | K67: 2507.38 | L67: 2906.1 | M67: 2521.73 | N67: 2893.98 | O67: 2749.94 | P67: 2323.9 | Q67: 2494.45 | R67: 2362.22 | S67: 2724.9 | T67: 2378.51 | U67: 2455.73 | V67: 46476.7 | W67: 31736.99
A68: Internal Medicine | B68: Cardiothoracic Surgery | C68: =CONCATENATE(A68,"--",B68) -> Internal Medicine--Cardiothoracic Surgery | D68: 12.68 | F68: -9.51 | G68: 0.97 | H68: -0.97 | M68: 0 | V68: =SUM(D68:U68) -> 3.17 | W68: =SUM(D68:O68) -> 3.17
A69: Internal Medicine | B69: Chief Resident | C69: Internal Medicine--Chief Resident | M69: 0.2 | V69: 0.2 | W69: 0.2
A70: Internal Medicine | B70: Child and Adolescent Psychiatry | C70: Internal Medicine--Child and Adolescent Psychiatry | D70: 123.06 | E70: 125.76 | F70: 71.13 | G70: 114.09 | H70: 80.61 | I70: 191.21 | J70: 264.23 | K70: 61.34 | L70: 97.87 | M70: 125.3 | N70: 128.75 | O70: 211.56 | P70: 85.48 | Q70: 131.62 | R70: 99.47 | S70: 78.46 | T70: 87.63 | U70: 103.14 | V70: 2180.71 | W70: 1594.91
A71: Internal Medicine | B71: Colon & Rectal Surgery | C71: Internal Medicine--Colon & Rectal Surgery | F71: 2.11 | P71: 2.43 | V71: 4.54 | W71: 2.11
A72: Internal Medicine | B72: Diagnostic Referral | C72: Internal Medicine--Diagnostic Referral | F72: 0.34 | G72: 1.31 | H72: 14.84 | I72: 15.08 | J72: 3.86 | K72: 14.63 | L72: 2.46 | M72: 0 | N72: 0.34 | O72: 0 | V72: 52.86 | W72: 52.86
A73: Internal Medicine | B73: Hospitalist | C73: Internal Medicine--Hospitalist | D73: 12345.53 | E73: 13280.02 | F73: 13272.74 | G73: 13777.71 | H73: 11640.81 | I73: 13939.54 | J73: 15064.45 | K73: 12898.37 | L73: 15652.82 | M73: 13732.56 | N73: 13649.52 | O73: 14703.21 | P73: 13590.9 | Q73: 12331.14 | R73: 12489.03 | S73: 12514.81 | T73: 12682.92 | U73: 13637.96 | V73: 241204.04 | W73: 163957.28
A74: Internal Medicine | B74: Emergency Medicine | C74: Internal Medicine--Emergency Medicine | D74: 1822 | E74: 1841.35 | F74: 1710.73 | G74: 1572.5 | H74: 1737.84 | I74: 2148.3 | J74: 2304.25 | K74: 2474.34 | L74: 2689.28 | M74: 2252.99 | N74: 2417.81 | O74: 2163.9 | P74: 257.13 | Q74: 2.91 | R74: 2.42 | S74: 0 | T74: 5.98 | U74: 2.02 | V74: 25405.75 | W74: 25135.29
A75: Internal Medicine | B75: Endocrinology | C75: Internal Medicine--Endocrinology | D75: 5974.32 | E75: 5967.89 | F75: 5608.33 | G75: 6746.78 | H75: 5418.85 | I75: 5807.36 | J75: 5430.84 | K75: 5048.79 | L75: 6009.39 | M75: 6148.96 | N75: 4879.71 | O75: 5316.93 | P75: 5925.6 | Q75: 5758 | R75: 5479.14 | S75: 6017.26 | T75: 5147.81 | U75: 5972.84 | V75: 102658.8 | W75: 68358.15
A76: Internal Medicine | B76: Family Medicine | C76: Internal Medicine--Family Medicine | D76: 0 | L76: 0 | M76: 0 | P76: 3.17 | Q76: 52.92 | R76: 66.47 | S76: 68.76 | T76: 77.37 | U76: 40.49 | V76: 309.18 | W76: 0
A77: Internal Medicine | B77: Fellow | C77: Internal Medicine--Fellow | D77: 475.2 | E77: 164.37 | F77: 474.72 | G77: 600.81 | H77: 404.16 | I77: 592.74 | J77: 535.57 | K77: 215.44 | L77: 183.46 | M77: 579.62 | N77: 155.3 | O77: 223.99 | P77: 32.89 | Q77: 36.94 | R77: 26.62 | S77: 42.46 | T77: 19.73 | U77: 42.77 | V77: 4806.79 | W77: 4605.38
A78: Internal Medicine | B78: Gastroenterology | C78: Internal Medicine--Gastroenterology | D78: 13999.45 | E78: 15458.87 | F78: 14045.53 | G78: 15077.76 | H78: 13587.83 | I78: 14921.92 | J78: 13550.79 | K78: 14270.26 | L78: 15737.15 | M78: 14373.68 | N78: 14582.67 | O78: 14878.7 | P78: 16332.16 | Q78: 14353.82 | R78: 13988.09 | S78: 15245.71 | T78: 13523.53 | U78: 15671.12 | V78: 263599.04 | W78: 174484.61
A79: Internal Medicine | B79: General Medicine | C79: Internal Medicine--General Medicine | D79: 8606.26 | E79: 8470.78 | F79: 8707.19 | G79: 9754.61 | H79: 8223.16 | I79: 9598.4 | J79: 7956.9 | K79: 7974.49 | L79: 9048.57 | M79: 8724.2 | N79: 9057.13 | O79: 9443.9 | P79: 10261.94 | Q79: 9762.3 | R79: 10087.88 | S79: 11312.53 | T79: 9810.96 | U79: 10084.16 | V79: 166885.36 | W79: 105565.59
A80: Internal Medicine | B80: Geriatric Medicine | C80: Internal Medicine--Geriatric Medicine | D80: 2175 | E80: 2063.39 | F80: 2335.73 | G80: 2491.32 | H80: 2095.76 | I80: 2519.85 | J80: 2386.87 | K80: 2384.56 | L80: 2563.63 | M80: 2530.54 | N80: 2428.34 | O80: 2419.13 | P80: 2359.42 | Q80: 2456.86 | R80: 2421.53 | S80: 2517.06 | T80: 2341.61 | U80: 2250.17 | V80: 42740.77 | W80: 28394.12
A81: Internal Medicine | B81: Geriatric Psychiatry | C81: Internal Medicine--Geriatric Psychiatry | D81: 0 | E81: 3.17 | G81: 0 | H81: 0 | I81: 0 | J81: 0.97 | K81: 0 | L81: 0 | M81: 0 | N81: 0 | P81: 0 | S81: 0 | V81: 4.14 | W81: 4.14
A82: Internal Medicine | B82: Headache | C82: Internal Medicine--Headache | I82: 0 | V82: 0 | W82: 0
A83: Internal Medicine | B83: Hematology/Oncology | C83: Internal Medicine--Hematology/Oncology | D83: 4302.26 | E83: 4549.95 | F83: 5258.62 | G83: 5587.07 | H83: 4176.08 | I83: 5642.18 | J83: 5485.38 | K83: 4965.47 | L83: 8137.26 | M83: 5533.06 | N83: 4532.76 | O83: 7301.33 | P83: 7750.69 | Q83: 4155.31 | R83: 4391.67 | S83: 4981.46 | T83: 5608.04 | U83: 4275.43 | V83: 96634.02 | W83: 65471.42
A84: Internal Medicine | B84: Hepatology | C84: Internal Medicine--Hepatology | D84: 1505.92 | E84: 2019.61 | F84: 1602.19 | G84: 1385.75 | H84: 1439.01 | I84: 1756.67 | J84: 1996.54 | K84: 1642.44 | L84: 1607.57 | M84: 1382.03 | N84: 1482.4 | O84: 1949.54 | P84: 1524.71 | Q84: 1235.44 | R84: 1128.48 | S84: 1353.38 | T84: 1121.1 | U84: 2090.19 | V84: 28222.97 | W84: 19769.67
A85: Internal Medicine | B85: Hepatology - STI | C85: Internal Medicine--Hepatology - STI | D85: 1279.79 | E85: 1019.56 | F85: 1064.41 | G85: 902.02 | H85: 1101.8 | I85: 1025.13 | J85: 939.87 | K85: 1382.5 | L85: 1667.9 | M85: 1037.63 | N85: 1489.15 | O85: 1193.69 | P85: 1377.32 | Q85: 1400.94 | R85: 1154.26 | S85: 1103.67 | T85: 903.63 | U85: 1123.1 | V85: 21166.37 | W85: 14103.45
A86: Internal Medicine | B86: Infectious Disease | C86: Internal Medicine--Infectious Disease | D86: 4549.88 | E86: 4919.11 | F86: 4577.08 | G86: 5137.91 | H86: 4373.91 | I86: 3930.59 | J86: 4838.26 | K86: 4065.82 | L86: 5145.41 | M86: 4570.82 | N86: 4456.49 | O86: 5145.15 | P86: 4413.28 | Q86: 5331.17 | R86: 4691.02 | S86: 4732.58 | T86: 4767.3 | U86: 4710.75 | V86: 84356.53 | W86: 55710.43
A87: Internal Medicine | B87: Margolis | C87: Internal Medicine--Margolis | D87: 1930.61 | E87: 2391.92 | F87: 2403.1 | G87: 2651.26 | H87: 2128.55 | I87: 2222.89 | J87: 1993.84 | K87: 2158.22 | L87: 2630.08 | M87: 2353.38 | N87: 1942.33 | O87: 2316.43 | P87: 2289.57 | Q87: 2042.8 | R87: 2182.67 | S87: 1615.98 | T87: 1335.68 | U87: 1565.68 | V87: 38154.99 | W87: 27122.61
A88: Internal Medicine | B88: Medical Genetics | C88: Internal Medicine--Medical Genetics | T88: 3.76 | V88: 3.76 | W88: 0
A89: Internal Medicine | B89: Neuro-oncology | C89: Internal Medicine--Neuro-oncology | D89: 591.31 | E89: 532.25 | F89: 499.33 | G89: 490.62 | H89: 505.65 | I89: 463.82 | J89: 420.85 | K89: 520.88 | L89: 564.07 | M89: 580.97 | N89: 483.48 | O89: 503.16 | P89: 468.2 | Q89: 604.03 | R89: 479.04 | S89: 449.9 | T89: 585.41 | U89: 367.92 | V89: 9110.89 | W89: 6156.39
A90: Internal Medicine | B90: none | C90: Internal Medicine--none | D90: 2558.11 | E90: 2696.68 | F90: 3233.56 | G90: 2128.32 | H90: 2190.02 | I90: 1933.81 | J90: 1910.35 | K90: 1365.42 | L90: 1333 | M90: 1058.53 | N90: 497.66 | O90: 269.61 | P90: -2.98 | Q90: -1.5 | R90: -0.5 | S90: 1.93 | T90: 0 | U90: 4.67 | V90: 21176.69 | W90: 21175.07
A91: Internal Medicine | B91: Palliative Care | C91: Internal Medicine--Palliative Care | D91: 3106.24 | E91: 2518.1 | F91: 2073.26 | G91: 1912.89 | H91: 2152.57 | I91: 2283.05 | J91: 2617.61 | K91: 2277.68 | L91: 2710.22 | M91: 2593.68 | N91: 2772.46 | O91: 3147.19 | P91: 3157.51 | Q91: 2929.93 | R91: 2151.21 | S91: 3093.22 | T91: 2648.5 | U91: 2758 | V91: 46903.32 | W91: 30164.95
A92: Internal Medicine | B92: Primary Care | C92: Internal Medicine--Primary Care | F92: 0.17 | G92: 0.17 | H92: 0 | I92: 0.34 | J92: 0.17 | K92: 0.17 | M92: 0 | O92: 0 | Q92: 0.17 | R92: 0.17 | S92: 0.17 | T92: 0.34 | U92: 0 | V92: 1.87 | W92: 1.02
A93: Internal Medicine | B93: Psychosomatic Medicine | C93: Internal Medicine--Psychosomatic Medicine | D93: 118.1 | E93: 168.61 | F93: 127.59 | G93: 135.82 | H93: 192.38 | I93: 185.76 | J93: 182.18 | K93: 125.09 | L93: 275.27 | M93: 224.03 | N93: 286.22 | O93: 173.4 | P93: 209.98 | Q93: 263.1 | R93: 212.23 | S93: 253.92 | T93: 140.42 | U93: 233.04 | V93: 3507.14 | W93: 2194.45
A94: Internal Medicine | B94: Pulm Transplant Hospitalist | C94: Internal Medicine--Pulm Transplant Hospitalist | D94: 794.35 | E94: 853.12 | F94: 1035.38 | G94: 951.01 | H94: 908.3 | I94: 901.26 | J94: 944.33 | K94: 784.39 | L94: 976.61 | M94: 1006.94 | N94: 811.03 | O94: 923.03 | P94: 643.15 | Q94: 528.24 | R94: 591.07 | S94: 601.27 | T94: 575.73 | U94: 682.13 | V94: 14511.34 | W94: 10889.75
A95: Internal Medicine | B95: Pulmonary | C95: Internal Medicine--Pulmonary | D95: 17747.36 | E95: 16404.17 | F95: 17392.23 | G95: 18255.01 | H95: 17568.58 | I95: 17355.21 | J95: 20189.55 | K95: 15270.71 | L95: 19062.36 | M95: 19881.66 | N95: 15834.39 | O95: 18452.24 | P95: 17246.2 | Q95: 19111.09 | R95: 15558.73 | S95: 16498.62 | T95: 15831.01 | U95: 16908.12 | V95: 314567.24 | W95: 213413.47
A96: Internal Medicine | B96: Pulmonary MTA | C96: Internal Medicine--Pulmonary MTA | D96: 8044.04 | E96: 6524.8 | F96: 5974.93 | G96: 8692.42 | H96: 6569.7 | I96: 8537.08 | J96: 8860.3 | K96: 8233.37 | L96: 7485.73 | M96: 8853.99 | N96: 8772.53 | O96: 8047.66 | P96: 8185.66 | Q96: 6674.33 | R96: 6121.85 | S96: 6229.93 | T96: 8173.38 | U96: 7366.2 | V96: 137347.9 | W96: 94596.55
A97: Internal Medicine | B97: Renal-Electrolyte | C97: Internal Medicine--Renal-Electrolyte | D97: 5069.15 | E97: 5542.47 | F97: 4811.39 | G97: 5807.79 | H97: 4731.66 | I97: 5385.45 | J97: 5104.53 | K97: 5187.48 | L97: 5669.11 | M97: 5291.81 | N97: 5802.83 | O97: 6043.58 | P97: 5827.24 | Q97: 6043.5 | R97: 5686.62 | S97: 5965.29 | T97: 4698.41 | U97: 5812.88 | V97: 98481.19 | W97: 64447.25
A98: Internal Medicine | B98: Rheumatology | C98: Internal Medicine--Rheumatology | D98: 4140.21 | E98: 3807.33 | F98: 3875.3 | G98: 4580.05 | H98: 3388.43 | I98: 3763.63 | J98: 3496.48 | K98: 3759.04 | L98: 3981.38 | M98: 4141.41 | N98: 4264.8 | O98: 3807.39 | P98: 3888.95 | Q98: 3375.4 | R98: 3591.87 | S98: 3809.05 | T98: 3159.86 | U98: 3414.64 | V98: 68245.22 | W98: 47005.45
A99: Internal Medicine | B99: Surgery - Gynecology | C99: Internal Medicine--Surgery - Gynecology | D99: 14.58 | E99: 31.42 | F99: 20.73 | G99: 15.87 | H99: 6.79 | I99: 18.44 | J99: 17.3 | K99: 20.61 | L99: 12.5 | M99: 19.27 | N99: 39.96 | O99: 8.3 | P99: 13.28 | Q99: 27.3 | R99: 11.67 | S99: 19.03 | T99: 24.53 | U99: 21.08 | V99: 342.66 | W99: 225.77
A100: Internal Medicine | B100: Surgery - Obstetrics/Gynecology | C100: Internal Medicine--Surgery - Obstetrics/Gynecology | D100: 9.35 | E100: 5.5 | F100: 5.1 | G100: 16.81 | H100: 1.94 | I100: 4.55 | J100: 2.01 | K100: 1.64 | L100: 8.99 | M100: 4.32 | N100: 10.2 | O100: 11.24 | P100: 5.78 | Q100: 3.15 | R100: 10.46 | T100: 14.26 | U100: 6.88 | V100: 122.18 | W100: 81.65
A101: Internal Medicine | B101: Transplant Adult Liver | C101: Internal Medicine--Transplant Adult Liver | L101: 3 | M101: 0.97 | S101: 3 | T101: -1.5 | V101: 5.47 | W101: 3.97
A102: Internal Medicine | B102: Transplant Adult Renal | C102: Internal Medicine--Transplant Adult Renal | J102: 69.37 | L102: 22.45 | M102: 0 | Q102: 0.97 | S102: 4.14 | V102: 96.93 | W102: 91.82
A103: Internal Medicine | B103: Transplant Nephrologist - STI | C103: Internal Medicine--Transplant Nephrologist - STI | D103: 1938.24 | E103: 1588.67 | F103: 1722.12 | G103: 1584.85 | H103: 1355.33 | I103: 1480.23 | J103: 1931.93 | K103: 1545.58 | L103: 1859.4 | M103: 1666.36 | N103: 2269.9 | O103: 1624.04 | P103: 1765.01 | Q103: 1611.92 | R103: 1611.04 | S103: 1977.83 | T103: 1116.42 | U103: 2311.38 | V103: 30960.25 | W103: 20566.65
A104: Internal Medicine | B104: Transplant Surgery | C104: Internal Medicine--Transplant Surgery | F104: 1.45 | K104: 0 | L104: -0.32 | V104: 1.13 | W104: 1.13
A105: Neurology | B105: Balance Disorders | C105: Neurology--Balance Disorders | D105: 139.45 | E105: 0 | F105: 140.51 | G105: 118.76 | H105: 104.18 | I105: 110 | J105: 144.47 | K105: 111.27 | L105: 130.65 | M105: 159.06 | N105: 9.35 | O105: 94.46 | P105: 97.32 | Q105: 0 | R105: 108.79 | S105: 0 | T105: 172.82 | U105: 81.36 | V105: 1722.45 | W105: 1262.16
A106: Neurology | B106: Epilepsy | C106: Neurology--Epilepsy | D106: 3321.04 | E106: 3177.59 | F106: 2771.67 | G106: 3219.92 | H106: 3771.55 | I106: 3684.07 | J106: 3668.43 | K106: 3412.77 | L106: 3974.33 | M106: 3840.19 | N106: 4236.91 | O106: 4309.11 | P106: 4090.61 | Q106: 3630.52 | R106: 3348.09 | S106: 3216.26 | T106: 3560.51 | U106: 3630.52 | V106: 64864.09 | W106: 43387.58
A107: Neurology | B107: General | C107: Neurology--General | D107: 7295.98 | E107: 7531.04 | F107: 7388.44 | G107: 8316.44 | H107: 6797.81 | I107: 8340.63 | J107: 6928.7 | K107: 7093.79 | L107: 8992.35 | M107: 7068.28 | N107: 7551.56 | O107: 8139.53 | P107: 7685.69 | Q107: 6656.42 | R107: 7277.14 | S107: 8152.52 | T107: 7444.64 | U107: 7626.13 | V107: 136287.09 | W107: 91444.55
A108: Neurology | B108: General/Behavioral | C108: Neurology--General/Behavioral | D108: 112.21 | E108: 223.96 | F108: 138.57 | G108: 288.91 | H108: 238.92 | I108: 221.44 | J108: 137.72 | K108: 127.44 | L108: 250.03 | M108: 264.17 | N108: 193.05 | O108: 93.28 | P108: 38.37 | Q108: 37.94 | R108: 22.9 | S108: 19.41 | T108: 18.44 | U108: 15.53 | V108: 2442.29 | W108: 2289.7
A109: Neurology | B109: Headache | C109: Neurology--Headache | D109: 1677.42 | E109: 1630.6 | F109: 1963.66 | G109: 1886.11 | H109: 1495.36 | I109: 1648.28 | J109: 1675.46 | K109: 1690.21 | L109: 1703.49 | M109: 1302.98 | N109: 1392.19 | O109: 1764.83 | P109: 1783.87 | Q109: 1920.1 | R109: 2034.81 | S109: 1887.5 | T109: 1836.61 | U109: 1778.29 | V109: 31071.77 | W109: 19830.59
A110: Neurology | B110: Movement Disorders | C110: Neurology--Movement Disorders | D110: 985.67 | E110: 921.1 | F110: 635.16 | G110: 944.11 | H110: 695.26 | I110: 621.12 | J110: 705.72 | K110: 529.59 | L110: 1133.02 | M110: 782.26 | N110: 765.73 | O110: 416.11 | P110: 936.79 | Q110: 680.24 | R110: 855.62 | S110: 619.53 | T110: 659.44 | U110: 556.54 | V110: 13443.01 | W110: 9134.85
A111: Neurology | B111: MS | C111: Neurology--MS | D111: 881.9 | E111: 727.8 | F111: 784.55 | G111: 748.1 | H111: 510.83 | I111: 738.97 | J111: 667.41 | K111: 762.46 | L111: 764.17 | M111: 685.8 | N111: 641.1 | O111: 540.64 | P111: 702.6 | Q111: 584.96 | R111: 380.74 | S111: 618.12 | T111: 496.12 | U111: 516.73 | V111: 11753 | W111: 8453.73
A112: Neurology | B112: Muscular Dystrophy | C112: Neurology--Muscular Dystrophy | D112: 27.36 | E112: 31.5 | F112: 19.5 | G112: 33.72 | H112: 31.86 | I112: 28.86 | J112: 14.43 | K112: 18.36 | L112: 19.29 | M112: 34.25 | N112: 15.93 | O112: 49.29 | P112: 12.54 | Q112: 34.6 | R112: 28.29 | S112: 14.43 | T112: 35.43 | U112: 18.93 | V112: 468.57 | W112: 324.35
A113: Neurology | B113: Neuromuscular | C113: Neurology--Neuromuscular | D113: 740.88 | E113: 524.46 | F113: 930.2 | G113: 824.21 | H113: 612.65 | I113: 904.1 | J113: 720.7 | K113: 890.08 | L113: 779.11 | M113: 743.44 | N113: 690.86 | O113: 663.89 | P113: 725.95 | Q113: 1047 | R113: 887.13 | S113: 1044.12 | T113: 875.15 | U113: 978.4 | V113: 14582.33 | W113: 9024.58
A114: Neurology | B114: Neuro-oncology | C114: Neurology--Neuro-oncology | D114: 0 | V114: 0 | W114: 0
A115: Neurology | B115: Neurophysiology | C115: Neurology--Neurophysiology | D115: 298.28 | E115: 0 | F115: 592.3 | G115: 123.06 | H115: 109.39 | I115: 196.35 | J115: 220.9 | K115: 311.77 | L115: 389.7 | M115: 0 | N115: 0 | P115: 0 | Q115: 248.3 | R115: 333.73 | S115: 353.64 | T115: 0 | U115: 0 | V115: 3177.42 | W115: 2241.75
A116: Neurology | B116: none | C116: Neurology--none | D116: 440.28 | E116: 315.04 | F116: 437.85 | G116: 394.58 | H116: 2.94 | I116: 0 | J116: 3.83 | K116: 5.55 | L116: 4.29 | M116: 3.38 | N116: 3.38 | P116: -1.92 | Q116: 0 | R116: -1.42 | V116: 1607.78 | W116: 1611.12
A117: Neurology | B117: Psychiatry | C117: Neurology--Psychiatry | E117: 76.88 | F117: 100.08 | G117: 78.68 | H117: 78.75 | I117: 93.66 | J117: 47.58 | K117: 54.58 | L117: 68.4 | M117: 103.81 | N117: 75.81 | O117: 93.31 | P117: 71.47 | Q117: 102.55 | R117: 88.52 | S117: 124.86 | T117: 94.69 | U117: 107.06 | V117: 1460.69 | W117: 871.54
A118: Neurology | B118: Stroke | C118: Neurology--Stroke | D118: 5210.62 | E118: 4627.54 | F118: 5452.79 | G118: 5318.92 | H118: 4127.31 | I118: 4290.57 | J118: 4402.77 | K118: 5551.35 | L118: 4854.81 | M118: 5971.23 | N118: 6201.66 | O118: 5919.8 | P118: 4454.91 | Q118: 5644.94 | R118: 5348.83 | S118: 5481.28 | T118: 5584.16 | U118: 4513.62 | V118: 92957.11 | W118: 61929.37
A119: Neurosurgery | B119: Cranial | C119: Neurosurgery--Cranial | D119: 7313.25 | E119: 8682.89 | F119: 8149 | G119: 7534.75 | H119: 7957.71 | I119: 8319.34 | J119: 7057.64 | K119: 8298.28 | L119: 7595.52 | M119: 9001.85 | N119: 5575.35 | O119: 10597.04 | P119: 7243.35 | Q119: 7836.57 | R119: 8915.46 | S119: 7939.7 | T119: 7613.42 | U119: 9189.62 | V119: 144820.74 | W119: 96082.62
A120: Neurosurgery | B120: Endovascular | C120: Neurosurgery--Endovascular | D120: 3556.96 | E120: 3126.89 | F120: 3825.71 | G120: 4320 | H120: 5199.81 | I120: 4452.1 | J120: 4562.84 | K120: 2422.07 | L120: 4495.84 | M120: 4332.69 | N120: 2332.63 | O120: 4666.96 | P120: 4257.31 | Q120: 4898.8 | R120: 3924.37 | S120: 5738.03 | T120: 1516.1 | U120: 4391.5 | V120: 72020.61 | W120: 47294.5
A121: Neurosurgery | B121: Fellow | C121: Neurosurgery--Fellow | D121: 0 | E121: -54.08 | V121: -54.08 | W121: -54.08
A122: Neurosurgery | B122: Neurophysiology | C122: Neurosurgery--Neurophysiology | D122: 2124.68 | E122: 2180.67 | F122: 2856.93 | G122: 3130.48 | H122: 2130.74 | I122: 2360.69 | J122: 2287.61 | K122: 2089.44 | L122: 2036.34 | M122: 2285.64 | N122: 1552.58 | O122: 3251.88 | P122: 2276.18 | Q122: 1711.06 | R122: 2651.37 | S122: 1455.71 | T122: 1837.74 | U122: 2472.4 | V122: 40692.14 | W122: 28287.68
A123: Neurosurgery | B123: none | C123: Neurosurgery--none | D123: 1209.9 | E123: 2001.14 | F123: 2334.4 | G123: 1939.09 | H123: 1071.17 | I123: 665.47 | J123: 214.26 | K123: 112.12 | L123: 20.4 | M123: 17.59 | N123: 5.17 | O123: 34.11 | P123: 0 | Q123: -0.93 | R123: 0 | T123: 0 | V123: 9623.89 | W123: 9624.82
A124: Neurosurgery | B124: Pediatric | C124: Neurosurgery--Pediatric | D124: 1990.82 | E124: 975.78 | F124: 1619.12 | G124: 1246.46 | H124: 1279.26 | I124: 1440.7 | J124: 1424.1 | K124: 1264.31 | L124: 1591.13 | M124: 1837.25 | N124: 1058.25 | O124: 1992.28 | P124: 1350.07 | Q124: 1451.16 | R124: 1959.62 | S124: 1610.93 | T124: 1891.69 | U124: 1071.29 | V124: 27054.22 | W124: 17719.46
A125: Neurosurgery | B125: Spine | C125: Neurosurgery--Spine | D125: 11369.04 | E125: 13362.54 | F125: 12818.7 | G125: 14040.08 | H125: 13809.39 | I125: 13748.08 | J125: 13074.95 | K125: 16294.17 | L125: 13996.82 | M125: 15859.61 | N125: 12573.94 | O125: 16486.99 | P125: 13427.92 | Q125: 14245.37 | R125: 13571.73 | S125: 13644.41 | T125: 13109.92 | U125: 11647.87 | V125: 247081.53 | W125: 167434.31
A126: Ophthalmology | B126: Comprehensive | C126: Ophthalmology--Comprehensive | D126: 2156.52 | E126: 2373.48 | F126: 2417.63 | G126: 2930.19 | H126: 2072.71 | I126: 2574.06 | J126: 2349.19 | K126: 2129.36 | L126: 1902.56 | M126: 2599.24 | N126: 2562.66 | O126: 2182.39 | P126: 2553.5 | Q126: 2642.49 | R126: 2527.41 | S126: 2392.03 | T126: 2085.88 | U126: 2610.32 | V126: 43061.62 | W126: 28249.99
A127: Ophthalmology | B127: Cornea | C127: Ophthalmology--Cornea | D127: 1778.81 | E127: 1938.42 | F127: 1934.2 | G127: 2280.51 | H127: 2000.06 | I127: 1694.54 | J127: 1624.35 | K127: 2029.93 | L127: 1960.17 | M127: 1843.24 | N127: 1936.22 | O127: 2263.31 | P127: 2396.46 | Q127: 2002.38 | R127: 2012.28 | S127: 2057.52 | T127: 1481.3 | U127: 1731.18 | V127: 34964.88 | W127: 23283.76
A128: Ophthalmology | B128: Fellow | C128: Ophthalmology--Fellow | D128: 0.65 | E128: 0 | M128: 0 | N128: 0 | V128: 0.65 | W128: 0.65
A129: Ophthalmology | B129: General Otolaryngology | C129: Ophthalmology--General Otolaryngology | G129: 1.1 | H129: -1.1 | V129: 0 | W129: 0
A130: Ophthalmology | B130: Glaucoma | C130: Ophthalmology--Glaucoma | D130: 1956.29 | E130: 2176.88 | F130: 2194.43 | G130: 2820.51 | H130: 1633.05 | I130: 1973.08 | J130: 1774.88 | K130: 2205.96 | L130: 2229.11 | M130: 2160.81 | N130: 1615.81 | O130: 1935.14 | P130: 2353.34 | Q130: 1779.62 | R130: 1911.42 | S130: 2295.07 | T130: 1768.03 | U130: 2324.89 | V130: 37108.32 | W130: 24675.95
A131: Ophthalmology | B131: Margolis | C131: Ophthalmology--Margolis | E131: 2.21 | F131: -2.21 | V131: 0 | W131: 0
A132: Ophthalmology | B132: MS | C132: =CONCATENATE(A132,"--",B132) -> Ophthalmology--MS | D132: 74.68 | E132: 91.68 | F132: 25.5 | G132: 46.35 | H132: 93.68 | I132: 76.14 | J132: 39.58 | K132: 91.98 | L132: 82.37 | M132: 70.1 | N132: 35.79 | O132: 50.07 | P132: 85.31 | Q132: 99.58 | R132: 32.47 | S132: 72.16 | T132: 18.37 | U132: 72.52 | V132: =SUM(D132:U132) -> 1158.33 | W132: =SUM(D132:O132) -> 777.92
A133: Ophthalmology | B133: Neuro-Ophthalmology | C133: Ophthalmology--Neuro-Ophthalmology | D133: 431.89 | E133: 264.01 | F133: 593.13 | G133: 323.15 | H133: 321.49 | I133: 266.26 | J133: 350.52 | K133: 304.51 | L133: 469.45 | M133: 358.07 | N133: 410.42 | O133: 366.04 | P133: 434.73 | Q133: 393.76 | R133: 391.76 | S133: 385.65 | T133: 209.76 | U133: 253.59 | V133: 6528.19 | W133: 4458.94
A134: Ophthalmology | B134: Neurophysiology | C134: Ophthalmology--Neurophysiology | U134: 0.79 | V134: 0.79 | W134: 0
A135: Ophthalmology | B135: none | C135: Ophthalmology--none | D135: 55.67 | E135: 48.43 | F135: -0.94 | G135: -1.88 | H135: 0 | I135: -0.97 | J135: 0 | K135: 0 | L135: 0 | M135: 0 | N135: 0 | O135: 0.44 | P135: 0 | Q135: -2.74 | R135: 0 | S135: 0 | T135: 0 | U135: 0 | V135: 98.01 | W135: 100.75
A136: Ophthalmology | B136: Oculoplastics | C136: Ophthalmology--Oculoplastics | D136: 1166.41 | E136: 1168.85 | F136: 1350.07 | G136: 1262.18 | H136: 1059.93 | I136: 994.3 | J136: 1001.28 | K136: 846.24 | L136: 1027.8 | M136: 1402.11 | N136: 1045.95 | O136: 1070.82 | P136: 1185.75 | Q136: 897.52 | R136: 1070.48 | S136: 1270.53 | T136: 765.4 | U136: 1041.38 | V136: 19627 | W136: 13395.94
A137: Ophthalmology | B137: Optometry | C137: Ophthalmology--Optometry | D137: 992.91 | E137: 814.2 | F137: 1007.38 | G137: 985.5 | H137: 737.63 | I137: 834.1 | J137: 829.24 | K137: 768.8 | L137: 1004.43 | M137: 1026.1 | N137: 793.84 | O137: 589.14 | P137: 818.05 | Q137: 669.97 | R137: 661.77 | S137: 659.12 | T137: 507.65 | U137: 757.75 | V137: 14457.58 | W137: 10383.27
A138: Ophthalmology | B138: Pediatrics | C138: Ophthalmology--Pediatrics | D138: 1727.14 | E138: 1808.18 | F138: 1445.16 | G138: 1703.25 | H138: 1361.56 | I138: 1440.44 | J138: 1432.59 | K138: 1862.99 | L138: 1852.82 | M138: 1875.94 | N138: 1614.12 | O138: 1673.93 | P138: 1681.93 | Q138: 1966.94 | R138: 1875.13 | S138: 2070.86 | T138: 2053.66 | U138: 1777.28 | V138: 31223.92 | W138: 19798.12
A139: Ophthalmology | B139: Retina | C139: Ophthalmology--Retina | D139: 4383 | E139: 3736.93 | F139: 3961.73 | G139: 4054.75 | H139: 3555.74 | I139: 4176.21 | J139: 3403.32 | K139: 3861.3 | L139: 3974.91 | M139: 4064.99 | N139: 4397.6 | O139: 4465.85 | P139: 4067.67 | Q139: 3873.06 | R139: 3845.8 | S139: 3917.56 | T139: 3371.92 | U139: 3995.82 | V139: 71108.16 | W139: 48036.33
A140: Orthopaedics | B140: CMI Ortho Surgery | C140: Orthopaedics--CMI Ortho Surgery | I140: 0 | J140: 0 | V140: 0 | W140: 0
A141: Orthopaedics | D141: 2062.53 | E141: 2429.08 | F141: 3364.87 | G141: 4374.98 | H141: 3247.9 | I141: 3548.88 | J141: 2852.27 | K141: 2820.1 | L141: 3314.31 | M141: 3349.57 | N141: 2699.75 | O141: 2402.02 | P141: 2084.09 | Q141: 2323.82 | R141: 3160.69 | S141: 3764.98 | T141: 2810.46 | U141: 3126.66 | V141: 53736.96 | W141: 36466.26
A142: Orthopaedics | B142: Foot and Ankle | C142: Orthopaedics--Foot and Ankle | D142: 2534.36 | E142: 3344.54 | F142: 2320.37 | G142: 3340.89 | H142: 3131.16 | I142: 2819.5 | J142: 2396.73 | K142: 2251.44 | L142: 2843.87 | M142: 2834.45 | N142: 2630.33 | O142: 3047.2 | P142: 3368.34 | Q142: 3002.07 | R142: 3256.78 | S142: 2994.29 | T142: 3274.32 | U142: 3034.17 | V142: 52424.81 | W142: 33494.84
A143: Orthopaedics | B143: General Ortho Surg | C143: Orthopaedics--General Ortho Surg | D143: 2082.76 | E143: 1937.67 | F143: 2014.7 | G143: 2105 | H143: 2295.97 | I143: 2007.11 | J143: 1772.79 | K143: 1666.75 | L143: 2210.88 | M143: 1979.52 | N143: 1956.9 | O143: 1915.04 | P143: 1835.57 | Q143: 1776.45 | R143: 1589.28 | S143: 1946.81 | T143: 1842.05 | U143: 1963.05 | V143: 34898.3 | W143: 23945.09
A144: Orthopaedics | B144: Hand | C144: Orthopaedics--Hand | D144: 4772.27 | E144: 4371.22 | F144: 5035.1 | G144: 4557.13 | H144: 4825.91 | I144: 3943.02 | J144: 3643.77 | K144: 4327.15 | L144: 4349.54 | M144: 4333.7 | N144: 3813.02 | O144: 4181.08 | P144: 3608.32 | Q144: 4585.21 | R144: 4830.89 | S144: 4312.11 | T144: 4153.29 | U144: 3966.43 | V144: 77609.16 | W144: 52152.91
A145: Orthopaedics | B145: Hand - Non Surgical | C145: Orthopaedics--Hand - Non Surgical | D145: 369.8 | E145: 335.36 | F145: 305.74 | G145: 248.29 | H145: 237.98 | I145: 220.89 | J145: 237.85 | K145: 219.19 | L145: 228.1 | M145: 301.98 | N145: 212.08 | O145: 267.56 | P145: 343.75 | Q145: 281.57 | R145: 327.95 | S145: 258.06 | T145: 251.89 | U145: 272.95 | V145: 4920.99 | W145: 3184.82
A146: Orthopaedics | B146: Joint | C146: Orthopaedics--Joint | D146: 2855.73 | E146: 2217.32 | F146: 2597.66 | G146: 3455.79 | H146: 2742.87 | I146: 2491.14 | J146: 2818.17 | K146: 2445.61 | L146: 2802.73 | M146: 2579.09 | N146: 2699.57 | O146: 2577.16 | P146: 2455.71 | Q146: 2269.03 | R146: 2556.24 | S146: 2777.54 | T146: 2400.35 | U146: 2539.48 | V146: 47281.19 | W146: 32282.84
A147: Orthopaedics | B147: Mercy | C147: Orthopaedics--Mercy | D147: 1243.28 | E147: 1174.05 | F147: 1149.06 | G147: 1769.8 | H147: 1268.35 | I147: 1386.9 | J147: 1373.41 | K147: 1120.5 | L147: 1037.96 | M147: 1528.79 | N147: 1021.06 | O147: 806.52 | P147: 1333.93 | Q147: 1085.17 | R147: 1237.55 | S147: 1330.44 | T147: 913.68 | U147: 1056.43 | V147: 21836.88 | W147: 14879.68
A148: Orthopaedics | B148: Mercy - Trauma | C148: Orthopaedics--Mercy - Trauma | D148: 1434.7 | E148: 1117.7 | F148: 791.52 | G148: 841.47 | H148: 597.31 | I148: 684.17 | J148: 671.79 | K148: 686.62 | L148: 1098.45 | M148: 851.83 | N148: 766.92 | O148: 1525.16 | P148: 1422.26 | Q148: 1186.05 | R148: 1222.37 | S148: 913.56 | T148: 906.77 | U148: 963.63 | V148: 17682.28 | W148: 11067.64
A149: Orthopaedics | B149: none | C149: Orthopaedics--none | D149: 171.24 | E149: 522.93 | F149: 516.13 | G149: 433.46 | H149: 287.13 | I149: 236.24 | J149: 386.41 | K149: 312.03 | L149: 308.48 | M149: 256.26 | N149: 363.51 | O149: 204.46 | P149: 0 | Q149: 0 | S149: 0 | T149: 0 | U149: 0 | V149: 3998.28 | W149: 3998.28
A150: Orthopaedics | B150: Oncology | C150: Orthopaedics--Oncology | D150: 2003.22 | E150: 1616.09 | F150: 1965.46 | G150: 1747.31 | H150: 1586.76 | I150: 1697.3 | J150: 1494.32 | K150: 1617.21 | L150: 1257.52 | M150: 2281.74 | N150: 1436.57 | O150: 1734.2 | P150: 1723.95 | Q150: 1761.23 | R150: 2002.32 | S150: 1632.61 | T150: 1688.83 | U150: 1605.15 | V150: 30851.79 | W150: 20437.7
A151: Orthopaedics | B151: Pediatrics | C151: Orthopaedics--Pediatrics | D151: 5369.78 | E151: 4464.4 | F151: 4844.71 | G151: 4857.24 | H151: 4222.14 | I151: 4339.37 | J151: 4715.05 | K151: 3864.83 | L151: 4600.11 | M151: 4641.85 | N151: 4966.24 | O151: 5476.36 | P151: 5277.18 | Q151: 4559.24 | R151: 4873.06 | S151: 4823.24 | T151: 4331.04 | U151: 4891.47 | V151: 85117.31 | W151: 56362.08
A152: Orthopaedics | B152: Primary Care | C152: Orthopaedics--Primary Care | D152: 1632.29 | E152: 1648.05 | F152: 1760.13 | G152: 1737.68 | H152: 1590.63 | I152: 1513.33 | J152: 1621.91 | K152: 1442.04 | L152: 1471.17 | M152: 1496.83 | N152: 1710.36 | O152: 1488.8 | P152: 1606.57 | Q152: 1450.5 | R152: 1874.73 | S152: 2024.58 | T152: 1773 | U152: 1981.87 | V152: 29824.47 | W152: 19113.22
A153: Orthopaedics | Q153: 11.16 | R153: -11.16 | T153: 1.86 | U153: 176.7 | V153: 178.56 | W153: 0
A154: Orthopaedics | M154: 0 | V154: 0 | W154: 0
A155: Orthopaedics | B155: Spine | C155: Orthopaedics--Spine | D155: 7698.97 | E155: 5564.71 | F155: 6751.89 | G155: 6490.25 | H155: 6393.37 | I155: 5496.01 | J155: 6585.27 | K155: 5161.63 | L155: 5321.44 | M155: 6669.52 | N155: 5645.96 | O155: 6147.65 | P155: 5765.19 | Q155: 3977.8 | R155: 4263.24 | S155: 4151.77 | T155: 3411.74 | U155: 3212.84 | V155: 98709.25 | W155: 73926.67
A156: Orthopaedics | B156: Sports Medicine | C156: Orthopaedics--Sports Medicine | D156: 5331.09 | E156: 5721.9 | F156: 4744.55 | G156: 7549.51 | H156: 5112.27 | I156: 6217.37 | J156: 5099.51 | K156: 5892.19 | L156: 5267.94 | M156: 5727.33 | N156: 5181.02 | O156: 5828.91 | P156: 5129.16 | Q156: 4868.87 | R156: 5762.4 | S156: 6081.28 | T156: 5439.08 | U156: 6143.85 | V156: 101098.23 | W156: 67673.59
A157: Orthopaedics | B157: Trauma | C157: Orthopaedics--Trauma | D157: 3882.59 | E157: 4315.81 | F157: 3615.64 | G157: 3443.01 | H157: 3704.72 | I157: 3892.6 | J157: 3885.14 | K157: 4087.88 | L157: 3844.07 | M157: 3686.72 | N157: 4275.91 | O157: 4408.61 | P157: 3719.55 | Q157: 4728.07 | R157: 4006.13 | S157: 3573.72 | T157: 3678.29 | U157: 3384.56 | V157: 70133.02 | W157: 47042.7
A158: Otolaryngology | D158: 3.6 | E158: 12 | F158: 6.6 | G158: 0.6 | H158: 0 | I158: 0 | J158: 0 | K158: 4.2 | L158: 3.6 | M158: 1.2 | N158: 2.4 | O158: 17.8 | P158: 4.6 | Q158: 4.2 | R158: 0 | S158: 0.6 | T158: 2.8 | V158: 64.2 | W158: 52
A159: Otolaryngology | B159: Balance Disorders | C159: Otolaryngology--Balance Disorders | D159: 693.61 | E159: 841.93 | F159: 827.3 | G159: 766.57 | H159: 751.19 | I159: 740.75 | J159: 674.91 | K159: 623.89 | L159: 681.49 | M159: 721.92 | N159: 682.43 | O159: 789.82 | P159: 842.47 | Q159: 797.76 | R159: 789.72 | S159: 766.85 | T159: 747.98 | U159: 759.2 | V159: 13499.79 | W159: 8795.81
A160: Otolaryngology | B160: Cranial Base Surgery | C160: Otolaryngology--Cranial Base Surgery | D160: 2907.64 | E160: 3239.96 | F160: 2986.88 | G160: 2665.13 | H160: 3195.37 | I160: 3680.1 | J160: 2313.38 | K160: 3220.43 | L160: 3739.35 | M160: 3153.57 | N160: 3399.35 | O160: 2412.82 | P160: 3245.52 | Q160: 3375.3 | R160: 4621.43 | S160: 1797.81 | T160: 3706.61 | U160: 3982.6 | V160: 57643.25 | W160: 36913.98
A161: Otolaryngology | D161: 5.4 | E161: 2.4 | F161: 2.4 | G161: 3 | H161: 4.55 | I161: 1.2 | J161: 1.2 | K161: 3.8 | L161: 2.4 | M161: 1.2 | N161: 3 | O161: 6.6 | P161: 1.2 | Q161: 3 | R161: 3 | S161: 1.2 | T161: 6.1 | U161: 3.6 | V161: 55.25 | W161: 37.15
A162: Otolaryngology | B162: Facial Plastic Surgery | C162: Otolaryngology--Facial Plastic Surgery | D162: 666.62 | E162: 431.56 | F162: 511.29 | G162: 458.62 | H162: 578.7 | I162: 754.09 | J162: 541.45 | K162: 609.64 | L162: 597.2 | M162: 752.98 | N162: 436.99 | O162: 625.34 | P162: 733.03 | Q162: 562.1 | R162: 397.13 | S162: 502.4 | T162: 643.31 | U162: 726.36 | V162: 10528.81 | W162: 6964.48
A163: Otolaryngology | B163: Fellow | C163: Otolaryngology--Fellow | D163: 33.98 | E163: 11.99 | F163: 50.49 | G163: 36.14 | H163: 26.79 | I163: 109.2 | J163: 22.18 | K163: 86.22 | L163: 112.23 | M163: 18.34 | N163: 58.8 | O163: 13.45 | P163: 8.51 | R163: 0 | V163: 588.32 | W163: 579.81
A164: Otolaryngology | B164: General Otolaryngology | C164: Otolaryngology--General Otolaryngology | D164: 2845.58 | E164: 3556.49 | F164: 3669.29 | G164: 3578.98 | H164: 3470.02 | I164: 4566.33 | J164: 3345.54 | K164: 3871.31 | L164: 4191.76 | M164: 3980.92 | N164: 3772.1 | O164: 4479.95 | P164: 2523.31 | Q164: 3102.81 | R164: 2878.52 | S164: 3142.73 | T164: 2771.64 | U164: 2640.28 | V164: 62387.56 | W164: 45328.27
A165: Otolaryngology | B165: Head & Neck Oncologic Surgery | C165: Otolaryngology--Head & Neck Oncologic Surgery | D165: 3999.02 | E165: 4121.48 | F165: 3793.1 | G165: 3601.57 | H165: 4315.14 | I165: 4934.98 | J165: 3384.7 | K165: 3714.1 | L165: 4321.79 | M165: 3110.56 | N165: 3841.31 | O165: 3198.02 | P165: 4362.52 | Q165: 3959.67 | R165: 4166.46 | S165: 3778.03 | T165: 3588.91 | U165: 4024.08 | V165: 70215.44 | W165: 46335.77
A166: Otolaryngology | B166: Laryngology | C166: Otolaryngology--Laryngology | D166: 693.12 | E166: 574.3 | F166: 358.88 | G166: 491.25 | H166: 408.71 | I166: 493.04 | J166: 327.7 | K166: 331.94 | L166: 533.62 | M166: 498.85 | N166: 437.7 | O166: 372.39 | P166: 483.97 | Q166: 491.01 | R166: 477.96 | S166: 654.39 | T166: 481.71 | U166: 595.29 | V166: 8705.83 | W166: 5521.5
A167: Otolaryngology | B167: none | C167: Otolaryngology--none | D167: 1233.85 | E167: 1036.94 | F167: 982.03 | G167: 1123.99 | H167: 676.04 | I167: 613.54 | J167: 129.26 | K167: 109.08 | L167: 136.18 | M167: 73.14 | N167: 117.86 | O167: 118.25 | P167: 0 | Q167: 0 | R167: 0 | V167: 6350.16 | W167: 6350.16
A168: Otolaryngology | B168: Otology/Neurotology | C168: Otolaryngology--Otology/Neurotology | D168: 1726.9 | E168: 1568.48 | F168: 1246.76 | G168: 1695.77 | H168: 1318.15 | I168: 1671.25 | J168: 1515.57 | K168: 1473.66 | L168: 1308.22 | M168: 1490.9 | N168: 1453.87 | O168: 1792.8 | P168: 1394.5 | Q168: 1270.17 | R168: 1321.21 | S168: 1071.28 | T168: 1500.7 | U168: 1190.48 | V168: 26010.67 | W168: 18262.33
A169: Otolaryngology | B169: Pediatric Otolaryngology | C169: Otolaryngology--Pediatric Otolaryngology | D169: 7217.68 | E169: 7344.35 | F169: 6180.91 | G169: 7651.62 | H169: 7569.6 | I169: 7956.01 | J169: 8035.94 | K169: 8269.34 | L169: 7903.62 | M169: 8415.35 | N169: 7265.36 | O169: 8512.55 | P169: 8075.35 | Q169: 7375.28 | R169: 6984.03 | S169: 7473 | T169: 7598.31 | U169: 7856.99 | V169: 137685.29 | W169: 92322.33
A170: Otolaryngology | B170: Rhinology | C170: Otolaryngology--Rhinology | D170: 935.32 | E170: 1255.17 | F170: 1097.1 | G170: 1010.9 | H170: 945.04 | I170: 1055.33 | J170: 758.54 | K170: 818.96 | L170: 1004.01 | M170: 936.25 | N170: 996.73 | O170: 1159.03 | P170: 940.59 | Q170: 1039.93 | R170: 819.02 | S170: 1040.93 | T170: 946.65 | U170: 1060.16 | V170: 17819.66 | W170: 11972.38
A171: Otolaryngology | B171: Sleep Medicine | C171: Otolaryngology--Sleep Medicine | D171: 774.13 | E171: 841.03 | F171: 562.67 | G171: 820.51 | H171: 686.21 | I171: 716.41 | J171: 646.5 | K171: 535.89 | L171: 1020.63 | M171: 722.21 | N171: 637.65 | O171: 783.53 | P171: 878.83 | Q171: 862.24 | R171: 659.01 | S171: 755.2 | T171: 665.24 | U171: 783.59 | V171: 13351.48 | W171: 8747.37
A172: Otolaryngology | B172: Swallowing Disorders | C172: Otolaryngology--Swallowing Disorders | D172: 601.08 | E172: 417.77 | F172: 483.95 | G172: 604.56 | H172: 507.4 | I172: 396.53 | J172: 462.21 | K172: 419.98 | L172: 741.9 | M172: 716.7 | N172: 552.1 | O172: 700.16 | P172: 809.69 | Q172: 395.44 | R172: 772.35 | S172: 657.76 | T172: 544.09 | U172: 769.63 | V172: 10553.3 | W172: 6604.34
A173: Otolaryngology | B173: Voice/Laryngology | C173: Otolaryngology--Voice/Laryngology | D173: 1265.44 | E173: 1469.74 | F173: 1112.81 | G173: 1493.96 | H173: 1199.09 | I173: 1203.74 | J173: 1087.09 | K173: 889.49 | L173: 1036.68 | M173: 1097.69 | N173: 1272.39 | O173: 1435.51 | P173: 1267.56 | Q173: 1322.17 | R173: 1255.58 | S173: 1149.47 | T173: 1427.79 | U173: 1407.04 | V173: 22393.24 | W173: 14563.63
A174: Pathology | B174: AP Community | C174: Pathology--AP Community | D174: 11588.08 | E174: 10670.28 | F174: 10963.97 | G174: 12095.89 | H174: 9904.58 | I174: 11212.82 | J174: 10024.41 | K174: 9284.24 | L174: 10875.49 | M174: 10643.82 | N174: 10357.38 | O174: 11013.72 | P174: 10982.96 | Q174: 10437.73 | R174: 10645.32 | S174: 11007.52 | T174: 10166.57 | U174: 10076.63 | V174: 191951.41 | W174: 128634.68
A175: Pathology | B175: AP Magee | C175: Pathology--AP Magee | D175: 5435.91 | E175: 5916.44 | F175: 6310.85 | G175: 6538.58 | H175: 5511.8 | I175: 6537.93 | J175: 4703.05 | K175: 4866.28 | L175: 5432.3 | M175: 4977.33 | N175: 4303.51 | O175: 4915.38 | P175: 5054.5 | Q175: 4706.84 | R175: 5189.68 | S175: 5361.93 | T175: 5144.95 | U175: 5419.89 | V175: 96327.15 | W175: 65449.36
A176: Pathology | B176: AP Neuropathology | C176: Pathology--AP Neuropathology | D176: 1097.6 | E176: 1220.95 | F176: 921.71 | G176: 607.76 | H176: 847.98 | I176: 986.29 | J176: 1039.13 | K176: 868.13 | L176: 900.23 | M176: 791.82 | N176: 876.54 | O176: 1097.81 | P176: 930.92 | Q176: 755.48 | R176: 842.24 | S176: 875.29 | T176: 870.56 | U176: 1049.26 | V176: 16579.7 | W176: 11255.95
A177: Pathology | B177: AP Pediatric Pathology | C177: Pathology--AP Pediatric Pathology | D177: 1755.69 | E177: 1296.19 | F177: 1207.82 | G177: 1542.32 | H177: 1203.03 | I177: 1357.61 | J177: 1437.27 | K177: 1487.05 | L177: 1403.31 | M177: 1893.08 | N177: 1590.71 | O177: 1891.02 | P177: 1923.47 | Q177: 1887.08 | R177: 2026.87 | S177: 1816.21 | T177: 1673.63 | U177: 1742.68 | V177: 29135.04 | W177: 18065.1
A178: Pathology | B178: AP Surgical | C178: Pathology--AP Surgical | D178: 10337.31 | E178: 9466.43 | F178: 9811.92 | G178: 10912.4 | H178: 9166.74 | I178: 11202.93 | J178: 9774.29 | K178: 9393.9 | L178: 10363.56 | M178: 10236.06 | N178: 9460.64 | O178: 10713.96 | P178: 10816.85 | Q178: 9686.99 | R178: 10504.79 | S178: 10489.89 | T178: 10003.53 | U178: 9851.37 | V178: 182193.56 | W178: 120840.14
A179: Pathology | B179: AP Transplant | C179: Pathology--AP Transplant | D179: 812.48 | E179: 1184.02 | F179: 988.13 | G179: 1166.59 | H179: 984.61 | I179: 1123.92 | J179: 1020.95 | K179: 836.24 | L179: 1166.81 | M179: 1057.42 | N179: 983.49 | O179: 1099.74 | P179: 1085.25 | Q179: 1022.5 | R179: 1009.28 | S179: 1119.57 | T179: 952.11 | U179: 1056.29 | V179: 18669.4 | W179: 12424.4
A180: Pathology | B180: Dermatopathology | C180: Pathology--Dermatopathology | D180: 2.97 | E180: 1.5 | F180: 1.63 | G180: 6.7 | H180: 3.67 | I180: 4.39 | J180: 4.38 | L180: 4.53 | M180: 5.56 | O180: 1.63 | P180: 6.54 | Q180: 5.14 | R180: 2.53 | S180: 1.12 | T180: 99.15 | U180: 109.81 | V180: 261.25 | W180: 36.96
A181: Pathology | B181: Experimental | C181: Pathology--Experimental | D181: 107.08 | E181: 66.85 | F181: 35.39 | G181: 86.88 | H181: 148.36 | I181: 66.48 | J181: 30 | K181: 53.65 | L181: 129.82 | M181: 53.92 | N181: 91.29 | P181: 11.47 | Q181: 1.11 | R181: 120.83 | S181: 0.74 | T181: 72.99 | U181: 0.74 | V181: 1077.6 | W181: 869.72
A182: Pathology | B182: Hematopathology | C182: Pathology--Hematopathology | D182: 3653.61 | E182: 3205.03 | F182: 3681.44 | G182: 3275.03 | H182: 2711.54 | I182: 3401.85 | J182: 3336.63 | K182: 2978.87 | L182: 3400.66 | M182: 3623.99 | N182: 3340.29 | O182: 3896.05 | P182: 3552.71 | Q182: 3388.18 | R182: 3088.64 | S182: 3149.56 | T182: 3102.42 | U182: 3043.27 | V182: 59829.77 | W182: 40504.99
A183: Pathology | B183: Immunopathology | C183: Pathology--Immunopathology | D183: 0 | E183: 0 | F183: -0.37 | I183: 0 | R183: 76.22 | S183: 421.43 | T183: 132.83 | U183: 187.22 | V183: 817.33 | W183: -0.37
A184: Pathology | B184: Molecular Anatomic | C184: Pathology--Molecular Anatomic | D184: 245.98 | E184: 327.17 | F184: 522.86 | G184: 400.71 | H184: 216.17 | I184: 541.43 | J184: 193.91 | K184: 251.44 | L184: 455.56 | M184: 176.35 | N184: 344.37 | O184: 375.39 | P184: 422.81 | Q184: 574.53 | R184: 355.17 | S184: 314.48 | T184: 347.3 | U184: 304.01 | V184: 6369.64 | W184: 4051.34
A185: Pathology | B185: Molecular Diagnostics | C185: Pathology--Molecular Diagnostics | D185: 81.44 | E185: 52.61 | F185: 97.27 | G185: 61.33 | H185: 92.88 | I185: 116.34 | J185: 50.48 | K185: 106.35 | L185: 99.21 | M185: 69.9 | N185: 54.92 | O185: 97.52 | P185: 115.21 | Q185: 84.27 | R185: 69.88 | S185: 95.14 | T185: 69.72 | U185: 143.57 | V185: 1558.04 | W185: 980.25
A186: Pathology | B186: none | C186: Pathology--none | D186: 2151.73 | E186: 1333.11 | F186: 1785.23 | G186: 1302.75 | H186: 1323.46 | I186: 987.99 | J186: 611.6 | K186: 755.14 | L186: 605.23 | M186: 845.62 | N186: 439.4 | O186: 498.95 | P186: -0.2 | Q186: 0 | R186: -5.48 | S186: 0 | T186: -1.87 | V186: 12632.66 | W186: 12640.21
A187: Pediatrics | B187: Adolescent Medicine | C187: Pediatrics--Adolescent Medicine | D187: 577.45 | E187: 564.43 | F187: 604.36 | G187: 673.04 | H187: 605.29 | I187: 508.63 | J187: 511.33 | K187: 582.2 | L187: 714.15 | M187: 740.48 | N187: 643.22 | O187: 716.82 | P187: 493.47 | Q187: 646.37 | R187: 811.72 | S187: 850.66 | T187: 715.93 | U187: 828.62 | V187: 11788.17 | W187: 7441.4
A188: Pediatrics | B188: Anesthesiology | C188: Pediatrics--Anesthesiology | K188: 0 | L188: 0 | T188: 0 | U188: 0 | V188: 0 | W188: 0
A189: Pediatrics | B189: Asthma/Allergy | C189: Pediatrics--Asthma/Allergy | D189: 1641.82 | E189: 1513.41 | F189: 1244.3 | G189: 1471.1 | H189: 1275.93 | I189: 1500.33 | J189: 1379.81 | K189: 1619.95 | L189: 1365.44 | M189: 1867.3 | N189: 1650.6 | O189: 1594.67 | P189: 1773.15 | Q189: 1567.76 | R189: 1644.87 | S189: 1750.67 | T189: 1510.38 | U189: 1413.97 | V189: 27785.46 | W189: 18124.66
A190: Pediatrics | B190: Bone Marrow Transplant | C190: Pediatrics--Bone Marrow Transplant | D190: 890.93 | E190: 890.26 | F190: 726.89 | G190: 743 | H190: 889.13 | I190: 1065.36 | J190: 722.37 | K190: 870.01 | L190: 972.6 | M190: 509.77 | N190: 566.82 | O190: 956.57 | P190: 1093.8 | Q190: 1022.58 | R190: 1041.39 | S190: 980.36 | T190: 898.06 | U190: 1200.7 | V190: 16040.6 | W190: 9803.71
A191: Pediatrics | B191: Cardiology | C191: Pediatrics--Cardiology | D191: 7145.54 | E191: 6877.66 | F191: 7307.48 | G191: 7886.96 | H191: 6753.68 | I191: 7181.89 | J191: 6256.42 | K191: 6456.96 | L191: 7679.19 | M191: 7441.74 | N191: 6395.06 | O191: 7522.92 | P191: 7423.6 | Q191: 7139.87 | R191: 7300.57 | S191: 6965.42 | T191: 6703.55 | U191: 6493.9 | V191: 126932.41 | W191: 84905.5
A192: Pediatrics | B192: Chief Resident | C192: Pediatrics--Chief Resident | D192: 286.08 | E192: 223.8 | F192: 89.72 | G192: 166.97 | H192: 180.03 | I192: 158.69 | J192: 238.71 | K192: 165.39 | L192: 204.77 | M192: 350.22 | N192: 137.4 | O192: 212.9 | P192: 238.44 | Q192: 180.01 | R192: 139.44 | S192: 256.94 | T192: 263.65 | U192: 164.63 | V192: 3657.79 | W192: 2414.68
A193: Pediatrics | B193: Child Advocacy | C193: Pediatrics--Child Advocacy | D193: 410.81 | E193: 327.56 | F193: 506.23 | G193: 435.05 | H193: 423.33 | I193: 503.1 | J193: 305.54 | K193: 530.11 | L193: 421.29 | M193: 323.19 | N193: 349.85 | O193: 509.1 | P193: 323.22 | Q193: 255.24 | R193: 566.63 | S193: 291.17 | T193: 219.18 | U193: 377.89 | V193: 7078.49 | W193: 5045.16
A194: Pediatrics | B194: Child and Adolescent Psychiatry | C194: Pediatrics--Child and Adolescent Psychiatry | D194: 0 | E194: 0 | F194: 0 | L194: 0 | V194: 0 | W194: 0
A195: Pediatrics | B195: Child Development | C195: Pediatrics--Child Development | D195: 444.02 | E195: 285.83 | F195: 249.42 | G195: 319.05 | H195: 223.06 | I195: 261.46 | J195: 236.7 | K195: 355.07 | L195: 234.86 | M195: 207.11 | N195: 337.41 | O195: 95.8 | P195: 94.13 | Q195: 169.68 | R195: 153.98 | S195: 289.87 | T195: 245.62 | U195: 152.14 | V195: 4355.21 | W195: 3249.79
A196: Pediatrics | B196: CHP Sedation | C196: =CONCATENATE(A196,"--",B196) -> Pediatrics--CHP Sedation | D196: 942.76 | E196: 1006.45 | F196: 1313.7 | G196: 1160.74 | H196: 1115.67 | I196: 909.93 | J196: 183.91 | K196: 0 | L196: 0 | M196: -0.88 | N196: 0 | O196: 0 | Q196: 0 | S196: 0 | T196: 0 | V196: =SUM(D196:U196) -> 6632.28 | W196: =SUM(D196:O196) -> 6632.28
A197: Pediatrics | B197: Colon & Rectal Surgery | C197: Pediatrics--Colon & Rectal Surgery | E197: 9.67 | F197: -9.67 | V197: 0 | W197: 0
A198: Pediatrics | B198: Diagnostic Referral | C198: Pediatrics--Diagnostic Referral | D198: 3033.93 | E198: 3355.74 | F198: 3976.8 | G198: 3923.93 | H198: 2904.98 | I198: 3945.46 | J198: 3990.43 | K198: 4272.11 | L198: 4748.85 | M198: 4159.92 | N198: 3637.3 | O198: 3250.08 | P198: 3286.21 | Q198: 3588.07 | R198: 3702.97 | S198: 4035.86 | T198: 3882.18 | U198: 4393.81 | V198: 68088.63 | W198: 45199.53
A199: Pediatrics | B199: Emergency | C199: Pediatrics--Emergency | D199: 12001.1 | E199: 11950.83 | F199: 16779.76 | G199: 14605.66 | H199: 13162.24 | I199: 16406.13 | J199: 15085.12 | K199: 14574.81 | L199: 16549.62 | M199: 14806.02 | N199: 15626.73 | O199: 15137.64 | P199: 13996.28 | Q199: 15290.17 | R199: 16744.83 | S199: 17702.27 | T199: 17739.92 | U199: 17526.32 | V199: 275685.45 | W199: 176685.66
A200: Pediatrics | B200: Endocrinology | C200: Pediatrics--Endocrinology | D200: 2911.88 | E200: 2662.7 | F200: 3198.11 | G200: 3459.53 | H200: 2980.16 | I200: 3376.58 | J200: 2590.14 | K200: 3025.3 | L200: 3356.82 | M200: 3462.14 | N200: 3320.18 | O200: 3365.39 | P200: 2901.32 | Q200: 2791.39 | R200: 3569.31 | S200: 3606.3 | T200: 3286.18 | U200: 3702.73 | V200: 57566.16 | W200: 37708.93
... 198 more rows

Sheet CFTE TREND (hidden)
C1: Only one ERMI subspec? | E1: Values
A2: BU | B2: Business Unit | C2: Subspecialty | D2: CONCAT | E2: JUL14 | F2: AUG14 | G2: SEP14 | H2: OCT14 | I2: NOV14 | J2: DEC14 | K2: JAN15 | L2: FEB15 | M2: MAR15 | N2: APR15 | O2: MAY15 | P2: JUN15 | Q2: JUL15 | R2: AUG15 | S2: SEP15 | T2: OCT15 | U2: NOV15 | V2: DEC15 | W2: FY15 TOTAL
A3: UPP05 | B3: Anesthesiology | C3: Acute Pain | D3: =CONCATENATE(B3,"--",C3) -> Anesthesiology--Acute Pain | E3: 1.31 | F3: 1.31 | G3: 1.31 | H3: 1.31 | I3: 1.31 | J3: 1.31 | K3: 1.31 | L3: 1.31 | M3: 1.31 | N3: 1.31 | O3: 1.31 | P3: 1.31 | Q3: 21.91 | R3: 21.91 | S3: 21.91 | T3: 21.91 | U3: 21.91 | V3: 21.31 | W3: =SUM(E3:P3) -> 15.72
A4: UPP05 | B4: Anesthesiology | C4: Anesthesiology | D4: Anesthesiology--Anesthesiology | E4: 152.99 | F4: 152.99 | G4: 152.99 | H4: 152.99 | I4: 152.99 | J4: 152.99 | K4: 152.99 | L4: 152.99 | M4: 152.99 | N4: 152.99 | O4: 152.99 | P4: 152.99 | Q4: 128.2 | R4: 128.2 | S4: 128.2 | T4: 128.2 | U4: 128.2 | V4: 130.49 | W4: 1835.88
A5: UPP05 | B5: Anesthesiology | C5: Chronic Pain (wRVUs) | D5: Anesthesiology--Chronic Pain (wRVUs) | E5: 5.42 | F5: 5.42 | G5: 5.42 | H5: 5.42 | I5: 5.42 | J5: 5.42 | K5: 5.42 | L5: 5.42 | M5: 5.42 | N5: 5.42 | O5: 5.42 | P5: 5.42 | Q5: 4.95 | R5: 4.95 | S5: 4.95 | T5: 4.95 | U5: 4.95 | V5: 5.85 | W5: 65.04
A6: UPP28 | B6: Cardiothoracic Surgery | C6: Cardiothoracic/Transplant Surgery | D6: Cardiothoracic Surgery--Cardiothoracic/Transplant Surgery | E6: 1.6 | F6: 1.6 | G6: 1.6 | H6: 1.6 | I6: 1.6 | J6: 1.6 | K6: 1.6 | L6: 1.6 | M6: 1.6 | N6: 1.6 | O6: 1.6 | P6: 1.6 | Q6: 1.6 | R6: 1.6 | S6: 1.4 | T6: 1.4 | U6: 1.4 | V6: 1.4 | W6: 19.2
A7: UPP28 | B7: Cardiothoracic Surgery | C7: Cardiothoracic Surgery | D7: Cardiothoracic Surgery--Cardiothoracic Surgery | E7: 10.74 | F7: 9.91 | G7: 9.03 | H7: 8.93 | I7: 8.93 | J7: 8.93 | K7: 9.67 | L7: 10.47 | M7: 10.47 | N7: 10.47 | O7: 10.47 | P7: 10.47 | Q7: 11.67 | R7: 11.48 | S7: 11.48 | T7: 11.37 | U7: 11.37 | V7: 11.37 | W7: 118.49
A8: UPP28 | B8: Cardiothoracic Surgery | C8: Fellow | D8: Cardiothoracic Surgery--Fellow | E8: 5 | F8: 5 | G8: 4 | H8: 4 | I8: 4 | J8: 4 | K8: 5 | L8: 4 | M8: 4 | N8: 4 | O8: 4 | P8: 4 | Q8: 4 | R8: 4 | S8: 4 | T8: 4 | U8: 3 | V8: 3 | W8: 51
A9: UPP28 | B9: Cardiothoracic Surgery | C9: Resident | D9: Cardiothoracic Surgery--Resident | Q9: 0 | R9: 0 | S9: 0 | T9: 0 | U9: 0 | V9: 1 | W9: 0
A10: UPP28 | B10: Cardiothoracic Surgery | C10: Transplant Surgery | D10: Cardiothoracic Surgery--Transplant Surgery | E10: 0.8 | F10: 0.8 | G10: 0.8 | H10: 0.8 | I10: 0.8 | J10: 0.8 | K10: 0.8 | L10: 0.8 | M10: 0.8 | N10: 0.8 | O10: 0.8 | P10: 0.8 | Q10: 0.8 | R10: 0.8 | S10: 0.8 | T10: 0.8 | U10: 0.8 | V10: 0.8 | W10: 9.6
A11: DAC00 | B11: Donohue Cardiology | C11: General Cardiology | D11: Donohue Cardiology--General Cardiology | E11: 4.51 | F11: 3.7 | G11: 4.18 | H11: 4.51 | I11: 4.28 | J11: 4.45 | K11: 3.02 | L11: 3.37 | M11: 3.38 | N11: 3.51 | O11: 3.51 | P11: 3.51 | Q11: 4.51 | R11: 4.46 | S11: 4.37 | T11: 4.13 | U11: 4.13 | V11: 4.03 | W11: 45.93
A12: COMPL | B12: Community Medicine | C12: General Internal Medicine | D12: Community Medicine--General Internal Medicine | E12: 3.31 | F12: 3.23 | G12: 3.31 | H12: 3.31 | I12: 3.31 | J12: 3.31 | K12: 3.4 | L12: 3.31 | M12: 3.31 | N12: 3.31 | O12: 3.31 | P12: 3.31 | Q12: 3.31 | R12: 3.31 | S12: 3.31 | T12: 3.31 | U12: 3.31 | V12: 3.31 | W12: 39.73
A13: ZCMS1 | B13: Community Medicine | C13: Administration | D13: Community Medicine--Administration | E13: 1 | F13: 1 | G13: 1 | H13: 1 | I13: 1 | J13: 1 | K13: 1 | L13: 1 | M13: 1 | N13: 1 | O13: 1 | P13: 0 | W13: 11
A14: ZCMS1 | B14: Community Medicine | C14: Adult Critical Care Medicine | D14: Community Medicine--Adult Critical Care Medicine | E14: 0.5 | F14: 0 | G14: 0 | H14: 0.03 | I14: 0.03 | J14: 0.03 | K14: 0.03 | L14: 0.03 | M14: 0.03 | N14: 0.06 | O14: 0.23 | P14: 0.06 | W14: 1.03
A15: ZCMS1 | B15: Community Medicine | C15: Anesthesiology | D15: Community Medicine--Anesthesiology | E15: 4.75 | F15: 5.65 | G15: 6 | H15: 5.65 | I15: 6 | J15: 6 | K15: 5.03 | L15: 4 | M15: 2 | N15: 2 | O15: 2 | P15: 0 | Q15: 2 | R15: 2 | S15: 2 | T15: 2 | U15: 2 | V15: 2 | W15: 49.08
A16: ZCMS1 | B16: Community Medicine | C16: Audiology | D16: Community Medicine--Audiology | E16: 0 | F16: 0 | G16: 0 | H16: 0 | I16: 0 | J16: 0 | K16: 0 | L16: 0 | M16: 0 | N16: 0 | O16: 0 | P16: 0.03 | Q16: 0.03 | R16: 0.03 | S16: 0.03 | T16: 0.03 | U16: 0.38 | V16: 0.26 | W16: 0.03
A17: ZCMS1 | B17: Community Medicine | C17: Cardiology | D17: Community Medicine--Cardiology | E17: 6.33 | F17: 7.48 | G17: 6.85 | H17: 6.58 | I17: 7.85 | J17: 6.88 | K17: 6.06 | L17: 6.98 | M17: 7.68 | N17: 7.01 | O17: 6.91 | P17: 5.94 | Q17: 8.95 | R17: 8.15 | S17: 8.19 | T17: 8.94 | U17: 8.11 | V17: 8.11 | W17: 82.55
A18: ZCMS1 | B18: Community Medicine | C18: Cardiology: Non-Invasive | D18: Community Medicine--Cardiology: Non-Invasive | E18: 2 | F18: 2 | G18: 2 | H18: 2 | I18: 2 | J18: 2 | K18: 2 | L18: 2 | M18: 2 | N18: 2 | O18: 2 | P18: 2 | W18: 24
A19: ZCMS1 | B19: Community Medicine | C19: Colon & Rectal Surgery | D19: Community Medicine--Colon & Rectal Surgery | E19: 0.97 | F19: 0.93 | G19: 0.97 | H19: 0.97 | I19: 0.97 | J19: 0.97 | K19: 1 | L19: 0.97 | M19: 0.97 | N19: 0.97 | O19: 0.97 | P19: 0.97 | W19: 11.63
A20: ZCMS1 | B20: Community Medicine | C20: Critical Care Medicine | D20: Community Medicine--Critical Care Medicine | Q20: 0.03 | R20: 0.15 | S20: 0.1 | T20: 0.1 | U20: 0.23 | V20: 0.2 | W20: 0
A21: ZCMS1 | B21: Community Medicine | C21: Emergency Medicine | D21: Community Medicine--Emergency Medicine | E21: 0.75 | F21: 0.75 | G21: 0.75 | H21: 0.75 | I21: 0.75 | J21: 0.75 | K21: 0.75 | L21: 0.75 | M21: 0.75 | N21: 0.75 | O21: 0.75 | P21: 0.75 | Q21: 0.75 | R21: 0.75 | S21: 0.75 | T21: 0.75 | U21: 0.75 | V21: 0.75 | W21: 9
A22: ZCMS1 | B22: Community Medicine | C22: Endocrinology | D22: Community Medicine--Endocrinology | Q22: 0 | R22: 0 | S22: 0 | T22: 0 | U22: 0 | V22: 0.71 | W22: 0
A23: ZCMS1 | B23: Community Medicine | C23: Family Medicine | D23: Community Medicine--Family Medicine | E23: 110.02 | F23: 108.61 | G23: 112.05 | H23: 128.33 | I23: 130.41 | J23: 129.94 | K23: 146.11 | L23: 135.35 | M23: 134.57 | N23: 142.94 | O23: 144.26 | P23: 119.53 | Q23: 132.03 | R23: 128.13 | S23: 129.36 | T23: 125.73 | U23: 129.99 | V23: 130.34 | W23: 1542.12
A24: ZCMS1 | B24: Community Medicine | C24: Family Medicine - Includes Deliveries | D24: Community Medicine--Family Medicine - Includes Deliveries | E24: 0.25 | F24: 0 | G24: 0 | H24: 0 | I24: 0 | J24: 0.03 | K24: 0 | L24: 0 | M24: 0 | N24: 0 | O24: 0.03 | P24: 0 | W24: 0.31
A25: ZCMS1 | B25: Community Medicine | C25: Family Practice | D25: Community Medicine--Family Practice | E25: 0.71 | F25: 0.06 | G25: 0.06 | H25: 0.18 | I25: 0.15 | J25: 0.15 | K25: 0.18 | L25: 0.15 | M25: 0.15 | N25: 0.15 | O25: 0.32 | P25: 0.12 | W25: 2.38
A26: ZCMS1 | B26: Community Medicine | C26: Family Practice (with OB) | D26: Community Medicine--Family Practice (with OB) | E26: 0 | F26: 0 | G26: 1 | H26: 1 | I26: 1 | J26: 1 | K26: 1 | L26: 1 | M26: 1 | N26: 1 | O26: 1 | P26: 1 | W26: 10
A27: ZCMS1 | B27: Community Medicine | C27: Fellow | D27: Community Medicine--Fellow | E27: 0.09 | F27: 0.18 | G27: 0.18 | H27: 0.21 | I27: 0.12 | J27: 0.18 | K27: 0.18 | L27: 0.15 | M27: 0.15 | N27: 0.18 | O27: 0.18 | P27: 0.15 | W27: 1.95
A28: ZCMS1 | B28: Community Medicine | C28: Gastroenterology | D28: Community Medicine--Gastroenterology | E28: 5.8 | F28: 5.8 | G28: 5.8 | H28: 5.8 | I28: 5.8 | J28: 5.8 | K28: 5.8 | L28: 5.8 | M28: 5.8 | N28: 5.8 | O28: 5.8 | P28: 5.8 | Q28: 5.8 | R28: 5.8 | S28: 5.8 | T28: 5.8 | U28: 5.8 | V28: 5.8 | W28: 69.6
A29: ZCMS1 | B29: Community Medicine | C29: General Internal Medicine | D29: Community Medicine--General Internal Medicine | E29: 117.28 | F29: 112.52 | G29: 119.02 | H29: 118.99 | I29: 118.64 | J29: 119.1 | K29: 132.04 | L29: 123.96 | M29: 123.96 | N29: 124.64 | O29: 124.68 | P29: 123.44 | W29: 1458.27
A30: ZCMS1 | B30: Community Medicine | C30: General Surgery | D30: Community Medicine--General Surgery | Q30: 4.89 | R30: 4.89 | S30: 5.41 | T30: 5.41 | U30: 5.11 | V30: 5.11 | W30: 0
A31: ZCMS1 | B31: Community Medicine | C31: General Urology | D31: Community Medicine--General Urology | E31: 0.99 | F31: 0.98 | G31: 0.99 | H31: 0.99 | I31: 0.99 | J31: 0.99 | K31: 1 | L31: 0.99 | M31: 0.99 | N31: 0.99 | O31: 0.99 | P31: 0.99 | W31: 11.88
A32: ZCMS1 | B32: Community Medicine | C32: Geriatrics | D32: Community Medicine--Geriatrics | E32: 2.63 | F32: 2.29 | G32: 2.63 | H32: 2.63 | I32: 2.63 | J32: 2.63 | K32: 3.3 | L32: 2.63 | M32: 2.63 | N32: 2.88 | O32: 2.11 | P32: 2.11 | Q32: 2.17 | R32: 2.16 | S32: 2.17 | T32: 2.18 | U32: 2.18 | V32: 2.18 | W32: 31.1
A33: ZCMS1 | B33: Community Medicine | C33: Hospitalist | D33: Community Medicine--Hospitalist | E33: 0.25 | F33: 0 | G33: 0 | H33: 0 | I33: 0 | J33: 0 | K33: 0 | L33: 0 | M33: 0 | N33: 0 | O33: 0 | P33: 0 | Q33: 1 | R33: 1.1 | S33: 1 | T33: 1.1 | U33: 1.03 | V33: 1.03 | W33: 0.25
A34: ZCMS1 | B34: Community Medicine | C34: Infectious Disease | D34: Community Medicine--Infectious Disease | E34: 1 | F34: 1 | G34: 1 | H34: 1 | I34: 1 | J34: 1.03 | K34: 1 | L34: 0 | M34: 0 | N34: 0 | O34: 0 | P34: 0 | Q34: 4.6 | R34: 4.68 | S34: 4.73 | T34: 4.71 | U34: 4.7 | V34: 4.67 | W34: 7.03
A35: ZCMS1 | B35: Community Medicine | C35: Infectious Diseases | D35: Community Medicine--Infectious Diseases | E35: 4.6 | F35: 4.25 | G35: 4.6 | H35: 4.6 | I35: 4.6 | J35: 4.6 | K35: 5 | L35: 4.57 | M35: 4.6 | N35: 4.6 | O35: 4.6 | P35: 4.6 | W35: 55.22
A36: ZCMS1 | B36: Community Medicine | C36: Internal Medicine | D36: Community Medicine--Internal Medicine | Q36: 126.01 | R36: 124.01 | S36: 126.56 | T36: 125.17 | U36: 125.5 | V36: 124.32 | W36: 0
A37: ZCMS1 | B37: Community Medicine | C37: Internal Medicine: Hospitalist | D37: Community Medicine--Internal Medicine: Hospitalist | E37: 1 | F37: 1 | G37: 1 | H37: 1 | I37: 1 | J37: 1 | K37: 1 | L37: 1 | M37: 1 | N37: 1 | O37: 1 | P37: 1 | W37: 12
A38: ZCMS1 | B38: Community Medicine | C38: Medicine | D38: Community Medicine--Medicine | E38: 2.75 | F38: 2.75 | G38: 2.75 | H38: 2.75 | I38: 2.75 | J38: 2.75 | K38: 2.75 | L38: 2.75 | M38: 2.75 | N38: 2.75 | O38: 2.75 | P38: 0 | W38: 30.25
A39: ZCMS1 | B39: Community Medicine | C39: Neurological Surgery | D39: Community Medicine--Neurological Surgery | E39: 4.35 | F39: 4.04 | G39: 4.35 | H39: 4.35 | I39: 4.35 | J39: 4.35 | K39: 5 | L39: 4.35 | M39: 4.35 | N39: 4.6 | O39: 4.6 | P39: 4.6 | Q39: 1.98 | R39: 1.97 | S39: 1.98 | T39: 1.98 | U39: 1.98 | V39: 1.98 | W39: 53.29
A40: ZCMS1 | B40: Community Medicine | C40: Neurology | D40: Community Medicine--Neurology | E40: 0.92 | F40: 0.85 | G40: 0.92 | H40: 0.92 | I40: 0.92 | J40: 0.92 | K40: 1 | L40: 0.92 | M40: 0.92 | N40: 0.92 | O40: 0.92 | P40: 0.92 | Q40: 0.92 | R40: 0.92 | S40: 0.92 | T40: 0.92 | U40: 0.92 | V40: 0.93 | W40: 11.05
A41: ZCMS1 | B41: Community Medicine | C41: Orthopaedic Surgery | D41: Community Medicine--Orthopaedic Surgery | E41: 27.03 | F41: 30.49 | G41: 33 | H41: 33 | I41: 33.03 | J41: 33.03 | K41: 35.8 | L41: 34.03 | M41: 34.03 | N41: 34.09 | O41: 34.09 | P41: 32.12 | Q41: 46.09 | R41: 42.7 | S41: 42.88 | T41: 45.87 | U41: 41.07 | V41: 41.01 | W41: 393.74
A42: ZCMS1 | B42: Community Medicine | C42: Orthopaedics: Nonsurgical | D42: Community Medicine--Orthopaedics: Nonsurgical | E42: 0.5 | F42: 0.5 | G42: 0.5 | H42: 0.5 | I42: 0.5 | J42: 0.5 | K42: 0.5 | L42: 0.5 | M42: 0.5 | N42: 0.5 | O42: 0.5 | P42: 0 | W42: 5.5
A43: ZCMS1 | B43: Community Medicine | C43: Otolaryngology | D43: Community Medicine--Otolaryngology | E43: 9.08 | F43: 4.77 | G43: 4.88 | H43: 5 | I43: 4.88 | J43: 4.88 | K43: 9.2 | L43: 4.88 | M43: 4.88 | N43: 9.08 | O43: 9.08 | P43: 9.08 | Q43: 9.08 | R43: 9.08 | S43: 9.08 | T43: 9.28 | U43: 9.28 | V43: 9.28 | W43: 79.69
A44: ZCMS1 | B44: Community Medicine | C44: Palliative Care | D44: Community Medicine--Palliative Care | Q44: 2.75 | R44: 2.55 | S44: 3.75 | T44: 3 | U44: 3 | V44: 3 | W44: 0
A45: ZCMS1 | B45: Community Medicine | C45: Pediatric Critical Care Medicine | D45: Community Medicine--Pediatric Critical Care Medicine | E45: 0.03 | F45: 0.03 | G45: 0 | H45: 0 | I45: 0 | J45: 0.03 | K45: 0 | L45: 0 | M45: 0 | N45: 0 | O45: 0.03 | P45: 0.03 | W45: 0.15
A46: ZCMS1 | B46: Community Medicine | C46: Pediatrics | D46: Community Medicine--Pediatrics | E46: 0.93 | F46: 0.87 | G46: 0.93 | H46: 0.93 | I46: 0.93 | J46: 0.93 | K46: 1 | L46: 0.93 | M46: 0.93 | N46: 0.93 | O46: 0.93 | P46: 0.93 | Q46: 0.96 | R46: 0.96 | S46: 0.97 | T46: 0.97 | U46: 0.97 | V46: 0.97 | W46: 11.17
A47: ZCMS1 | B47: Community Medicine | C47: Physical Medicine & Rehabilitation | D47: Community Medicine--Physical Medicine & Rehabilitation | Q47: 6 | R47: 5.78 | S47: 5.8 | T47: 5.8 | U47: 5.8 | V47: 5.8 | W47: 0
A48: ZCMS1 | B48: Community Medicine | C48: Physical Medicine & Rehabilitation: General | D48: Community Medicine--Physical Medicine & Rehabilitation: General | E48: 0 | F48: 0 | G48: 0 | H48: 0 | I48: 0 | J48: 0 | K48: 0 | L48: 0 | M48: 0 | N48: 0 | O48: 0 | P48: 0.03 | W48: 0.03
A49: ZCMS1 | B49: Community Medicine | C49: Primary Care - CMI | D49: Community Medicine--Primary Care - CMI | E49: 10.6 | F49: 8.07 | G49: 5.16 | H49: 8.62 | I49: 4.44 | J49: 4.44 | K49: 6.96 | L49: 2.56 | M49: 3.53 | N49: 3.53 | O49: 3.5 | P49: 1.03 | W49: 62.44
A50: ZCMS1 | B50: Community Medicine | C50: Psychiatry | D50: Community Medicine--Psychiatry | Q50: 4.68 | R50: 4.73 | S50: 4.83 | T50: 4.86 | U50: 4.71 | V50: 4.71 | W50: 0
A51: ZCMS1 | B51: Community Medicine | C51: Psychiatry: General | D51: Community Medicine--Psychiatry: General | E51: 8.11 | F51: 7.23 | G51: 8.08 | H51: 7.41 | I51: 7.51 | J51: 8.08 | K51: 3.85 | L51: 8.08 | M51: 7.71 | N51: 3.5 | O51: 3.5 | P51: 3.44 | W51: 76.5
A52: ZCMS1 | B52: Community Medicine | C52: Psychiatry: Geriatric | D52: Community Medicine--Psychiatry: Geriatric | E52: 0.71 | F52: 0.63 | G52: 0.71 | H52: 0.71 | I52: 0.71 | J52: 0.71 | K52: 0.8 | L52: 0.71 | M52: 0.71 | N52: 0.71 | O52: 0.71 | P52: 0.71 | W52: 8.53
A53: ZCMS1 | B53: Community Medicine | C53: Psychosomatic Medicine | D53: Community Medicine--Psychosomatic Medicine | E53: 0 | F53: 0 | G53: 0 | H53: 0.03 | I53: 0.03 | J53: 0.03 | K53: 0.03 | L53: 0.03 | M53: 0.03 | N53: 0.03 | O53: 0 | P53: 0 | W53: 0.21
A54: ZCMS1 | B54: Community Medicine | C54: Pulmonary | D54: Community Medicine--Pulmonary | E54: 9.9 | F54: 9.8 | G54: 9.9 | H54: 10.21 | I54: 9.99 | J54: 10.06 | K54: 9.33 | L54: 10.96 | M54: 11.46 | N54: 8.96 | O54: 9.26 | P54: 9.38 | Q54: 0.09 | R54: 0.65 | S54: 0.28 | T54: 0.26 | U54: 0.22 | V54: 0.22 | W54: 119.21
A55: ZCMS1 | B55: Community Medicine | C55: Pulmonology | D55: Community Medicine--Pulmonology | E55: 7.83 | F55: 6.72 | G55: 6.83 | H55: 6.83 | I55: 6.83 | J55: 6.83 | K55: 7 | L55: 6.83 | M55: 6.92 | N55: 6.92 | O55: 6.92 | P55: 6.86 | Q55: 15.76 | R55: 15.96 | S55: 16.84 | T55: 16.05 | U55: 15.99 | V55: 16.14 | W55: 83.32
A56: ZCMS1 | B56: Community Medicine | C56: Radiology | D56: Community Medicine--Radiology | E56: 1.25 | F56: 1.25 | G56: 1.25 | H56: 1.25 | I56: 1.25 | J56: 1.25 | K56: 0.53 | L56: 1.25 | M56: 1.25 | N56: 0.53 | O56: 0.53 | P56: 0.53 | Q56: 0.53 | R56: 0.53 | S56: 0.53 | T56: 0.53 | U56: 0.53 | V56: 0.53 | W56: 12.12
A57: ZCMS1 | B57: Community Medicine | C57: Resident | D57: Community Medicine--Resident | E57: 2.88 | F57: 2.94 | G57: 3.33 | H57: 3.27 | I57: 3.09 | J57: 3.12 | K57: 3.03 | L57: 2.91 | M57: 3.06 | N57: 3.3 | O57: 3 | P57: 3 | W57: 36.93
A58: ZCMS1 | B58: Community Medicine | C58: Rheumatology | D58: Community Medicine--Rheumatology | Q58: 1.03 | R58: 1 | S58: 1 | T58: 1.03 | U58: 1.06 | V58: 0.88 | W58: 0
A59: ZCMS1 | B59: Community Medicine | C59: Surgery: General | D59: Community Medicine--Surgery: General | E59: 3.92 | F59: 3.86 | G59: 3.92 | H59: 3.92 | I59: 3.92 | J59: 3.92 | K59: 4 | L59: 3.92 | M59: 3.92 | N59: 3.92 | O59: 3.92 | P59: 3.95 | W59: 47.09
A60: ZCMS1 | B60: Community Medicine | C60: Urology | D60: Community Medicine--Urology | Q60: 0.99 | R60: 0.99 | S60: 0.99 | T60: 0.99 | U60: 0.99 | V60: 0.99 | W60: 0
A61: ZCMS1 | B61: Community Medicine | C61: Women's Health | D61: Community Medicine--Women's Health | E61: 2.93 | F61: 1.86 | G61: 1.93 | H61: 1.96 | I61: 2.93 | J61: 1.93 | K61: 3 | L61: 1.93 | M61: 1.93 | N61: 2.96 | O61: 2.96 | P61: 2.99 | Q61: 3.05 | R61: 2.92 | S61: 0.19 | T61: 0 | U61: 0 | V61: 0 | W61: 29.31
A62: ZCPSH | B62: Community Medicine | C62: Dermatology | D62: Community Medicine--Dermatology | Q62: 1 | R62: 1 | S62: 1 | T62: 1 | U62: 1 | V62: 1 | W62: 0
A63: ZCPSH | B63: Community Medicine | C63: Endocrinology | D63: Community Medicine--Endocrinology | E63: 1 | F63: 1 | G63: 1 | H63: 1 | I63: 1 | J63: 1 | K63: 1 | L63: 1 | M63: 1 | N63: 1 | O63: 1 | P63: 1 | Q63: 1.55 | R63: 1 | S63: 2 | T63: 1 | U63: 1 | V63: 1 | W63: 12
A64: ZCPSH | B64: Community Medicine | C64: Family Medicine | D64: Community Medicine--Family Medicine | E64: 17.68 | F64: 17.23 | G64: 17.68 | H64: 18.41 | I64: 19.38 | J64: 19.37 | K64: 20.4 | L64: 19.37 | M64: 19.37 | N64: 20.51 | O64: 20.91 | P64: 20.91 | Q64: 19.81 | R64: 19.61 | S64: 20.63 | T64: 20.77 | U64: 20.9 | V64: 20.41 | W64: 231.22
A65: ZCPSH | B65: Community Medicine | C65: General Internal Medicine | D65: Community Medicine--General Internal Medicine | E65: 5.09 | F65: 5.06 | G65: 5.18 | H65: 5.18 | I65: 5.18 | J65: 5.18 | K65: 5.03 | L65: 5.18 | M65: 5.09 | N65: 4.96 | O65: 4.96 | P65: 4.96 | W65: 61.05
A66: ZCPSH | B66: Community Medicine | C66: General Surgery | D66: Community Medicine--General Surgery | Q66: 3.82 | R66: 3.77 | S66: 3.78 | T66: 3.81 | U66: 3.83 | V66: 3.84 | W66: 0
A67: ZCPSH | B67: Community Medicine | C67: General Urology | D67: =CONCATENATE(B67,"--",C67) -> Community Medicine--General Urology | E67: 2.97 | F67: 2.94 | G67: 2.97 | H67: 2.97 | I67: 2.97 | J67: 2.97 | K67: 3 | L67: 2.97 | M67: 2.97 | N67: 2.97 | O67: 2.97 | P67: 2.97 | W67: =SUM(E67:P67) -> 35.64
A68: ZCPSH | B68: Community Medicine | C68: Internal Medicine | D68: Community Medicine--Internal Medicine | Q68: 4.96 | R68: 4.96 | S68: 5.83 | T68: 5.83 | U68: 5.86 | V68: 5.75 | W68: 0
A69: ZCPSH | B69: Community Medicine | C69: Medical Dermatology | D69: Community Medicine--Medical Dermatology | E69: 0.8 | F69: 0.8 | G69: 0.8 | H69: 0.8 | I69: 0.8 | J69: 0.8 | K69: 1 | L69: 0.8 | M69: 0.8 | N69: 1 | O69: 1 | P69: 1 | W69: 10.4
A70: ZCPSH | B70: Community Medicine | C70: Neurology | D70: Community Medicine--Neurology | E70: 1.98 | F70: 1.96 | G70: 1.98 | H70: 1.98 | I70: 1.98 | J70: 1.98 | K70: 2 | L70: 1.98 | M70: 1.98 | N70: 1.98 | O70: 1.98 | P70: 1.98 | Q70: 1.98 | R70: 1.96 | S70: 1.97 | T70: 1.97 | U70: 1.98 | V70: 1.98 | W70: 23.76
A71: ZCPSH | B71: Community Medicine | C71: Oncological Surgery | D71: Community Medicine--Oncological Surgery | Q71: 0.93 | R71: 0.92 | S71: 0.92 | T71: 0.92 | U71: 0.92 | V71: 0.92 | W71: 0
A72: ZCPSH | B72: Community Medicine | C72: Orthopaedic Surgery | D72: Community Medicine--Orthopaedic Surgery | Q72: 5.94 | R72: 5.94 | S72: 6.95 | T72: 6.95 | U72: 6.95 | V72: 6.4 | W72: 0
A73: ZCPSH | B73: Community Medicine | C73: Orthopaedic Surgery: General | D73: Community Medicine--Orthopaedic Surgery: General | E73: 3.94 | F73: 3.89 | G73: 3.94 | H73: 3.94 | I73: 3.94 | J73: 3.94 | K73: 4 | L73: 3.94 | M73: 3.94 | N73: 3.94 | O73: 3.94 | P73: 3.94 | W73: 47.29
A74: ZCPSH | B74: Community Medicine | C74: Otolaryngology | D74: Community Medicine--Otolaryngology | E74: 1.94 | F74: 0.88 | G74: 0.94 | H74: 0.97 | I74: 1.94 | J74: 0.94 | K74: 2 | L74: 0.94 | M74: 0.94 | N74: 1.94 | O74: 0.97 | P74: 0.94 | Q74: 0.94 | R74: 0.93 | S74: 0.94 | T74: 0.94 | U74: 0.94 | V74: 0.95 | W74: 15.34
A75: ZCPSH | B75: Community Medicine | C75: Pediatrics | D75: Community Medicine--Pediatrics | E75: 1 | F75: 1 | G75: 1 | H75: 1 | I75: 1 | J75: 1 | K75: 1 | L75: 1 | M75: 1 | N75: 1 | O75: 1 | P75: 1 | Q75: 1 | R75: 1 | S75: 1 | T75: 1 | U75: 1 | V75: 1 | W75: 12
A76: ZCPSH | B76: Community Medicine | C76: Physical Medicine & Rehabilitation | D76: Community Medicine--Physical Medicine & Rehabilitation | Q76: 1.92 | R76: 1.9 | S76: 1.92 | T76: 1.92 | U76: 1.92 | V76: 1.67 | W76: 0
A77: ZCPSH | B77: Community Medicine | C77: Physical Medicine & Rehabilitation: General | D77: Community Medicine--Physical Medicine & Rehabilitation: General | E77: 0.92 | F77: 0.84 | G77: 0.92 | H77: 0.92 | I77: 0.92 | J77: 0.92 | K77: 1 | L77: 0.92 | M77: 0.92 | N77: 0.92 | O77: 0.92 | P77: 0.92 | W77: 11.04
A78: ZCPSH | B78: Community Medicine | C78: Pulmonology | D78: Community Medicine--Pulmonology | E78: 1.79 | F78: 1.63 | G78: 1.79 | H78: 1.79 | I78: 1.79 | J78: 1.79 | K78: 2 | L78: 1.79 | M78: 1.79 | N78: 1.79 | O78: 1.79 | P78: 1.79 | Q78: 1.79 | R78: 1.79 | S78: 1.82 | T78: 1.82 | U78: 1.82 | V78: 1.82 | W78: 21.53
A79: ZCPSH | B79: Community Medicine | C79: Surgery: General | D79: Community Medicine--Surgery: General | E79: 2.77 | F79: 2.65 | G79: 2.77 | H79: 2.77 | I79: 2.77 | J79: 2.77 | K79: 4 | L79: 2.77 | M79: 2.77 | N79: 3.82 | O79: 3.82 | P79: 3.82 | W79: 37.5
A80: ZCPSH | B80: Community Medicine | C80: Surgery: Oncology | D80: Community Medicine--Surgery: Oncology | E80: 0.93 | F80: 0.86 | G80: 0.93 | H80: 0.93 | I80: 0.93 | J80: 0.93 | K80: 1 | L80: 0.93 | M80: 0.93 | N80: 0.93 | O80: 0.93 | P80: 0.93 | W80: 11.16
A81: ZCPSH | B81: Community Medicine | C81: Urology | D81: Community Medicine--Urology | Q81: 2.97 | R81: 2.97 | S81: 2.97 | T81: 2.97 | U81: 2.97 | V81: 2.97 | W81: 0
A82: ZGPMA | B82: Community Medicine | C82: General Internal Medicine | D82: Community Medicine--General Internal Medicine | E82: 7.84 | F82: 7.69 | G82: 6.85 | H82: 7.84 | I82: 7.84 | J82: 7.84 | K82: 7.9 | L82: 7.84 | M82: 7.84 | N82: 7.74 | O82: 7.74 | P82: 7.74 | W82: 92.7
A83: ZGPMA | B83: Community Medicine | C83: Internal Medicine | D83: Community Medicine--Internal Medicine | Q83: 7.74 | R83: 7.73 | S83: 7.74 | T83: 7.72 | U83: 7.72 | V83: 7.74 | W83: 0
A84: ZGPMA | B84: Community Medicine | C84: Primary Care - CMI | D84: Community Medicine--Primary Care - CMI | E84: 1 | F84: 1 | G84: 1 | H84: 0 | I84: 0 | J84: 0 | K84: 0.38 | L84: 0 | M84: 0 | N84: 0 | O84: 0 | P84: 0 | W84: 3.38
A85: ZMEDI | B85: Community Medicine | C85: General Internal Medicine | D85: Community Medicine--General Internal Medicine | E85: 6.7 | F85: 6.7 | G85: 6.7 | H85: 6.7 | I85: 6.7 | J85: 6.7 | K85: 6.6 | L85: 6.7 | M85: 6.7 | N85: 6.6 | O85: 6.6 | P85: 6.6 | W85: 80
A86: ZMEDI | B86: Community Medicine | C86: Internal Medicine | D86: Community Medicine--Internal Medicine | Q86: 6.6 | R86: 6.6 | S86: 6.6 | T86: 6.6 | U86: 5.63 | V86: 5.63 | W86: 0
A87: ZNE20 | B87: Community Medicine | C87: Neurological Surgery | D87: Community Medicine--Neurological Surgery | Q87: 2.62 | R87: 2.58 | S87: 2.6 | T87: 2.6 | U87: 2.6 | V87: 2.6 | W87: 0
A88: UPP06 | B88: Critical Care Medicine | C88: Adult Critical Care Medicine | D88: Critical Care Medicine--Adult Critical Care Medicine | E88: 26.56 | F88: 26.07 | G88: 28.62 | H88: 26.4 | I88: 24.43 | J88: 25.56 | K88: 24.54 | L88: 24.75 | M88: 24.87 | N88: 25.81 | O88: 24.79 | P88: 25.62 | Q88: 24.68 | R88: 23.62 | S88: 23.43 | T88: 22.74 | U88: 22.8 | V88: 23.24 | W88: 308.02
A89: UPP06 | B89: Critical Care Medicine | C89: Hospitalist | D89: Critical Care Medicine--Hospitalist | E89: 26.49 | F89: 25.39 | G89: 26.19 | H89: 25.65 | I89: 25.89 | J89: 25.98 | K89: 26.12 | L89: 26.12 | M89: 26.12 | N89: 26.16 | O89: 26.16 | P89: 26.16 | Q89: 24.96 | R89: 25.34 | S89: 24.92 | T89: 26.61 | U89: 26.77 | V89: 27.32 | W89: 312.43
A90: UPP06 | B90: Critical Care Medicine | C90: Pediatric Critical Care Medicine | D90: Critical Care Medicine--Pediatric Critical Care Medicine | E90: 9.44 | F90: 10.08 | G90: 12.03 | H90: 13.86 | I90: 14.76 | J90: 15.21 | K90: 14.58 | L90: 14.4 | M90: 13.75 | N90: 13.38 | O90: 13.38 | P90: 14.28 | Q90: 14.74 | R90: 14.31 | S90: 12.91 | T90: 12.65 | U90: 12.7 | V90: 12.48 | W90: 159.15
A91: UPP07 | B91: Dermatology | C91: Cosmetic Dermatology | D91: Dermatology--Cosmetic Dermatology | E91: 1.6 | F91: 1.6 | G91: 1.6 | H91: 1.65 | I91: 1.65 | J91: 1.65 | K91: 1.65 | L91: 1.65 | M91: 1.65 | N91: 1.65 | O91: 1.65 | P91: 1.65 | Q91: 1.65 | R91: 1.65 | S91: 1.65 | T91: 2.65 | U91: 2.65 | V91: 2.65 | W91: 19.65
A92: UPP07 | B92: Dermatology | C92: Dermatopathology | D92: Dermatology--Dermatopathology | E92: 1.4 | F92: 1.6 | G92: 1.6 | H92: 1.3 | I92: 1.3 | J92: 1.3 | K92: 1.3 | L92: 1.3 | M92: 1.3 | N92: 1.3 | O92: 1.3 | P92: 1.3 | Q92: 1.3 | R92: 1.3 | S92: 1.3 | T92: 1.3 | U92: 1.1 | V92: 1.1 | W92: 16.3
A93: UPP07 | B93: Dermatology | C93: Fellow | D93: Dermatology--Fellow | E93: 0 | F93: 0 | G93: 1 | H93: 1 | I93: 1 | J93: 1 | K93: 1 | L93: 1 | M93: 0.29 | N93: 0 | O93: 0 | P93: 0 | Q93: 0 | R93: 0.03 | S93: 0.03 | T93: 0.03 | U93: 0 | V93: 0 | W93: 6.29
A94: UPP07 | B94: Dermatology | C94: Medical Dermatology | D94: Dermatology--Medical Dermatology | E94: 5.75 | F94: 5.78 | G94: 5.78 | H94: 4.49 | I94: 4.36 | J94: 4.59 | K94: 4.43 | L94: 4.42 | M94: 4.36 | N94: 4.36 | O94: 4.36 | P94: 4.31 | Q94: 5.31 | R94: 4.88 | S94: 4.88 | T94: 7.88 | U94: 6.58 | V94: 6.88 | W94: 56.99
A95: UPP07 | B95: Dermatology | C95: PA | D95: Dermatology--PA | E95: 10.54 | F95: 9.64 | G95: 9.64 | H95: 9.64 | I95: 10.54 | J95: 10.54 | K95: 11.44 | L95: 11.44 | M95: 11.44 | N95: 11.44 | O95: 11.44 | P95: 9.41 | Q95: 10.64 | R95: 9.64 | S95: 9.64 | T95: 9.64 | U95: 9.64 | V95: 8.64 | W95: 127.15
A96: UPP07 | B96: Dermatology | C96: Pediatric Dermatology | D96: Dermatology--Pediatric Dermatology | E96: 1 | F96: 1 | G96: 1 | H96: 1 | I96: 1 | J96: 1 | K96: 1 | L96: 1 | M96: 1 | N96: 1 | O96: 1 | P96: 1 | Q96: 1 | R96: 1 | S96: 0.3 | T96: 0.1 | U96: 0.2 | V96: 0.2 | W96: 12
A97: UPP07 | B97: Dermatology | C97: Resident | D97: Dermatology--Resident | Q97: 0 | R97: 0.09 | S97: 0.06 | T97: 0.09 | U97: 0.43 | V97: 0.03 | W97: 0
A98: UPP07 | B98: Dermatology | C98: Surgical Dermatology | D98: Dermatology--Surgical Dermatology | E98: 1.6 | F98: 1.6 | G98: 1.6 | H98: 1.6 | I98: 1.6 | J98: 1.6 | K98: 1.6 | L98: 1.6 | M98: 1.6 | N98: 1.6 | O98: 1.6 | P98: 1.6 | Q98: 1.6 | R98: 1.5 | S98: 1.4 | T98: 1.4 | U98: 0.87 | V98: 0.87 | W98: 19.2
A99: UPP08 | B99: Emergency Medicine | C99: Emergency Medicine | D99: Emergency Medicine--Emergency Medicine | E99: 34.06 | F99: 33.6 | G99: 33.31 | H99: 30.77 | I99: 31.27 | J99: 31.4 | K99: 30.69 | L99: 30.53 | M99: 30.53 | N99: 30.38 | O99: 30.83 | P99: 30.53 | Q99: 32.26 | R99: 31.89 | S99: 30.96 | T99: 31.55 | U99: 30.64 | V99: 30.09 | W99: 377.9
A100: EPNUC | B100: EPN Urgent Care | C100: Emergency Medicine | D100: EPN Urgent Care--Emergency Medicine | E100: 3.23 | F100: 3.23 | G100: 3.23 | H100: 3.23 | I100: 4.23 | J100: 5.23 | K100: 5.23 | L100: 5.23 | M100: 5.23 | N100: 3.44 | O100: 2.94 | P100: 2.01 | Q100: 3.9 | R100: 3.94 | S100: 3.94 | T100: 3.94 | U100: 3.94 | V100: 3.89 | W100: 46.46
A101: EPNUC | B101: EPN Urgent Care | C101: Family Medicine | D101: EPN Urgent Care--Family Medicine | Q101: 1.25 | R101: 1.38 | S101: 1.34 | T101: 1.28 | U101: 1.51 | V101: 1.51 | W101: 0
A102: EPN00 | B102: Erie Physician Network | C102: Family Medicine | D102: Erie Physician Network--Family Medicine | E102: 8.34 | F102: 8.34 | G102: 8.34 | H102: 8.43 | I102: 8.34 | J102: 8.34 | K102: 8.34 | L102: 8.34 | M102: 8.34 | N102: 7.47 | O102: 7.47 | P102: 7.47 | Q102: 6.16 | R102: 5.99 | S102: 6.23 | T102: 6.23 | U102: 6.23 | V102: 6.23 | W102: 97.56
A103: EPN00 | B103: Erie Physician Network | C103: General Internal Medicine | D103: Erie Physician Network--General Internal Medicine | E103: 3 | F103: 3 | G103: 3 | H103: 3 | I103: 3 | J103: 2 | K103: 2 | L103: 1 | M103: 1 | N103: 0.03 | O103: 0 | P103: 0 | W103: 21.03
A104: EPN00 | B104: Erie Physician Network | C104: Physical Medicine & Rehabilitation | D104: Erie Physician Network--Physical Medicine & Rehabilitation | Q104: 1 | R104: 1 | S104: 1 | T104: 1 | U104: 1 | V104: 1 | W104: 0
A105: EPN00 | B105: Erie Physician Network | C105: Physical Medicine & Rehabilitation: Clinical Psychology | D105: Erie Physician Network--Physical Medicine & Rehabilitation: Clinical Psychology | E105: 1 | F105: 1 | G105: 1 | H105: 1 | I105: 1 | J105: 1 | K105: 1 | L105: 1 | M105: 1 | N105: 1 | O105: 1 | P105: 1 | W105: 12
A106: EPN00 | B106: Erie Physician Network | C106: Podiatry: General | D106: Erie Physician Network--Podiatry: General | E106: 2 | F106: 2 | G106: 2 | H106: 2 | I106: 2 | J106: 2 | K106: 2 | L106: 2 | M106: 2 | N106: 1.8 | O106: 1.8 | P106: 1.8 | Q106: 1.8 | R106: 1.8 | S106: 1.8 | T106: 1.8 | U106: 1.8 | V106: 1.8 | W106: 23.4
A107: EPN00 | B107: Erie Physician Network | C107: Urgent Care | D107: Erie Physician Network--Urgent Care | E107: 0 | F107: 0 | G107: 0.03 | H107: 0 | I107: 0 | J107: 0 | K107: 0 | L107: 0 | M107: 0 | N107: 1 | O107: 1 | P107: 1 | W107: 3.03
A108: EMI00 | B108: ERMI | C108: Emergency Medicine | D108: ERMI--Emergency Medicine | E108: 172.87 | F108: 169.22 | G108: 173.53 | H108: 163.23 | I108: 160.71 | J108: 165.65 | K108: 148.83 | L108: 140.33 | M108: 139.77 | N108: 151.8 | O108: 137.37 | P108: 138.07 | Q108: 149.27 | R108: 141.04 | S108: 138.43 | T108: 139.62 | U108: 148.25 | V108: 132.13 | W108: 1861.38
A109: UPP09 | B109: Family Medicine | C109: Family Medicine - Includes Deliveries | D109: Family Medicine--Family Medicine - Includes Deliveries | E109: 1 | F109: 1 | G109: 1 | H109: 1.53 | I109: 1.53 | J109: 1.51 | K109: 1.53 | L109: 1.53 | M109: 1.53 | N109: 1.52 | O109: 1.51 | P109: 1.53 | Q109: 1.52 | R109: 1.53 | S109: 1.53 | T109: 1.72 | U109: 1.78 | V109: 1.78 | W109: 16.72
A110: UPP09 | B110: Family Medicine | C110: Family Practice | D110: Family Medicine--Family Practice | E110: 5.43 | F110: 5.38 | G110: 5.78 | H110: 5.76 | I110: 5.76 | J110: 5.76 | K110: 5.08 | L110: 5.08 | M110: 5.08 | N110: 5.05 | O110: 4.3 | P110: 3.85 | Q110: 3.88 | R110: 4.33 | S110: 5.08 | T110: 4.96 | U110: 4.58 | V110: 4.54 | W110: 62.31
A111: UPP35 | B111: HVI Cardiac Surgery | C111: Adult Cardiac Surgery | D111: HVI Cardiac Surgery--Adult Cardiac Surgery | E111: 12.4 | F111: 12.4 | G111: 13.4 | H111: 13.4 | I111: 13.3 | J111: 13.3 | K111: 12.15 | L111: 12.15 | M111: 12.15 | N111: 12.15 | O111: 12.15 | P111: 11.2 | Q111: 11.98 | R111: 12.15 | S111: 10.01 | T111: 11.15 | U111: 11.15 | V111: 11.15 | W111: 150.15
A112: UPP35 | B112: HVI Cardiac Surgery | C112: Pediatric Surgery | D112: HVI Cardiac Surgery--Pediatric Surgery | E112: 1.9 | F112: 0.9 | G112: 1.5 | H112: 1.35 | I112: 1.33 | J112: 1.33 | K112: 1.3 | L112: 1.3 | M112: 2.2 | N112: 2.2 | O112: 1.7 | P112: 2.17 | Q112: 2.4 | R112: 2 | S112: 2.4 | T112: 2.4 | U112: 1.5 | V112: 1.5 | W112: 19.18
A113: UPP35 | B113: HVI Cardiac Surgery | C113: Transplant Surgery | D113: HVI Cardiac Surgery--Transplant Surgery | E113: 1.1 | F113: 1.1 | G113: 1.1 | H113: 1.1 | I113: 1.1 | J113: 1.1 | K113: 1.1 | L113: 1.1 | M113: 1.1 | N113: 1.1 | O113: 0.5 | P113: 0.5 | Q113: 1.3 | R113: 1.3 | S113: 1.3 | T113: 1.3 | U113: 1.3 | V113: 1.3 | W113: 12
A114: UPP35 | B114: HVI Cardiac Surgery | C114: Vascular Surgery | D114: HVI Cardiac Surgery--Vascular Surgery | Q114: 0.03 | R114: 0 | S114: 0.05 | T114: 0 | U114: 0 | V114: 0.03 | W114: 0
A115: UPP25 | B115: HVI Cardiology | C115: Cardiac MRI | D115: HVI Cardiology--Cardiac MRI | E115: 1.54 | F115: 1.54 | G115: 1.54 | H115: 1.54 | I115: 1.54 | J115: 1.54 | K115: 1.54 | L115: 1.54 | M115: 1.54 | N115: 1.54 | O115: 1.54 | P115: 1.54 | Q115: 1.54 | R115: 1.54 | S115: 1.54 | T115: 1.54 | U115: 1.54 | V115: 1.54 | W115: 18.48
A116: UPP25 | B116: HVI Cardiology | C116: Cath Lab | D116: HVI Cardiology--Cath Lab | E116: 21.2 | F116: 20.66 | G116: 19.48 | H116: 19.57 | I116: 19.57 | J116: 19.57 | K116: 20.48 | L116: 20.48 | M116: 20.53 | N116: 20.57 | O116: 20.57 | P116: 20.48 | Q116: 20.12 | R116: 20.31 | S116: 20.44 | T116: 20.7 | U116: 20.51 | V116: 20.51 | W116: 243.16
A117: UPP25 | B117: HVI Cardiology | C117: Echocardiography | D117: HVI Cardiology--Echocardiography | E117: 4.21 | F117: 4.21 | G117: 4.21 | H117: 4.21 | I117: 4.21 | J117: 4.21 | K117: 4.21 | L117: 4.21 | M117: 4.21 | N117: 4.21 | O117: 4.21 | P117: 4.21 | Q117: 4.21 | R117: 4.21 | S117: 4.21 | T117: 4.21 | U117: 4.21 | V117: 4.21 | W117: 50.52
A118: UPP25 | B118: HVI Cardiology | C118: Electrophysiology | D118: HVI Cardiology--Electrophysiology | E118: 10.01 | F118: 10.01 | G118: 10.01 | H118: 10.01 | I118: 10.01 | J118: 10.01 | K118: 10.01 | L118: 10.01 | M118: 10.01 | N118: 10.01 | O118: 10.01 | P118: 10.01 | Q118: 10.01 | R118: 10.01 | S118: 10.01 | T118: 10.01 | U118: 10.01 | V118: 10.01 | W118: 120.12
A119: UPP25 | B119: HVI Cardiology | C119: Fellow | D119: HVI Cardiology--Fellow | E119: 0.03 | F119: 0.33 | G119: 0.03 | H119: 0.33 | I119: 0.06 | J119: 0.06 | K119: 0.06 | L119: 1.03 | M119: 0.3 | N119: 0.03 | O119: 0.03 | P119: 0.03 | Q119: 0.23 | R119: 0.23 | S119: 0.26 | T119: 0.2 | U119: 0.2 | V119: 0.29 | W119: 2.32
A120: UPP25 | B120: HVI Cardiology | C120: General Cardiology | D120: HVI Cardiology--General Cardiology | E120: 35.08 | F120: 35.12 | G120: 34.72 | H120: 34.12 | I120: 34.32 | J120: 36.19 | K120: 37.22 | L120: 36.79 | M120: 37.72 | N120: 38.39 | O120: 38.38 | P120: 39.41 | Q120: 35.13 | R120: 35.44 | S120: 35.37 | T120: 34.44 | U120: 34.44 | V120: 36.52 | W120: 437.46
A121: UPP25 | B121: HVI Cardiology | C121: Heart Failure | D121: HVI Cardiology--Heart Failure | E121: 3.76 | F121: 3.52 | G121: 3.69 | H121: 3.76 | I121: 3.76 | J121: 3.76 | K121: 3.76 | L121: 3.76 | M121: 3.76 | N121: 3.76 | O121: 3.76 | P121: 3.76 | Q121: 4.1 | R121: 4.1 | S121: 4.1 | T121: 4.1 | U121: 4.1 | V121: 4.1 | W121: 44.81
A122: UPP25 | B122: HVI Cardiology | C122: Nuclear Cardiology | D122: HVI Cardiology--Nuclear Cardiology | E122: 1.19 | F122: 1.19 | G122: 1.19 | H122: 1.19 | I122: 1.19 | J122: 1.19 | K122: 1.19 | L122: 1.19 | M122: 1.19 | N122: 1.19 | O122: 1.19 | P122: 1.19 | Q122: 1.94 | R122: 1.94 | S122: 1.94 | T122: 1.94 | U122: 1.94 | V122: 1.94 | W122: 14.28
A123: UPP10 | B123: Internal Medicine | C123: AIM | D123: Internal Medicine--AIM | E123: 5.8 | F123: 5.71 | G123: 5.77 | H123: 5.77 | I123: 5.8 | J123: 5.58 | K123: 5.76 | L123: 5.8 | M123: 5.8 | N123: 5.8 | O123: 5.59 | P123: 5.58 | Q123: 5.8 | R123: 5.67 | S123: 5.65 | T123: 5.7 | U123: 5.65 | V123: 5.45 | W123: 68.76
A124: UPP10 | B124: Internal Medicine | C124: Critical Care Medicine | D124: Internal Medicine--Critical Care Medicine | E124: 0 | F124: 0.03 | G124: 0.03 | H124: 0 | I124: 0.03 | J124: 0.03 | K124: 0 | L124: 0.03 | M124: 0.03 | N124: 0.03 | O124: 0.03 | P124: 0 | Q124: 0 | R124: 0.15 | S124: 0.1 | T124: 0.1 | U124: 0 | V124: 0.1 | W124: 0.24
A125: UPP10 | B125: Internal Medicine | C125: Endocrinology | D125: Internal Medicine--Endocrinology | E125: 17.02 | F125: 17.67 | G125: 17.7 | H125: 17.6 | I125: 17.6 | J125: 17.63 | K125: 17.6 | L125: 16.66 | M125: 17.57 | N125: 17.63 | O125: 12.77 | P125: 12.73 | Q125: 12.91 | R125: 13.82 | S125: 13.95 | T125: 13.76 | U125: 14.18 | V125: 13.6 | W125: 200.18
A126: UPP10 | B126: Internal Medicine | C126: Gastroenterology | D126: Internal Medicine--Gastroenterology | E126: 27.65 | F126: 27.65 | G126: 27.65 | H126: 26.65 | I126: 27.45 | J126: 27.45 | K126: 27.35 | L126: 26.77 | M126: 26.45 | N126: 26.45 | O126: 24.6 | P126: 23.35 | Q126: 25.55 | R126: 22.95 | S126: 21.95 | T126: 19.89 | U126: 20.51 | V126: 20.12 | W126: 319.47
A127: UPP10 | B127: Internal Medicine | C127: General Medicine | D127: Internal Medicine--General Medicine | E127: 22.01 | F127: 22.63 | G127: 23.48 | H127: 22.24 | I127: 22.71 | J127: 22.29 | K127: 21.16 | L127: 21.61 | M127: 20.68 | N127: 21.02 | O127: 20.74 | P127: 20.95 | Q127: 23.19 | R127: 23.26 | S127: 22.49 | T127: 23.6 | U127: 23.07 | V127: 24.3 | W127: 261.52
A128: UPP10 | B128: Internal Medicine | C128: Geriatric Medicine | D128: Internal Medicine--Geriatric Medicine | E128: 8.34 | F128: 8.34 | G128: 8.37 | H128: 7.65 | I128: 7.65 | J128: 7.65 | K128: 7.65 | L128: 7.65 | M128: 7.65 | N128: 7.7 | O128: 8.04 | P128: 8.07 | Q128: 7.78 | R128: 7.81 | S128: 7.83 | T128: 7.84 | U128: 7.92 | V128: 7.53 | W128: 94.76
A129: UPP10 | B129: Internal Medicine | C129: Hem/Onc Behavioral | D129: Internal Medicine--Hem/Onc Behavioral | E129: 1.1 | F129: 1.1 | G129: 1.1 | H129: 1.1 | I129: 1.1 | J129: 1.1 | K129: 1.1 | L129: 0.87 | M129: 0.6 | N129: 0.6 | O129: 0.6 | P129: 0.6 | Q129: 0.1 | R129: 0.1 | S129: 0.1 | T129: 0.1 | U129: 0.1 | V129: 0.1 | W129: 10.97
A130: UPP10 | B130: Internal Medicine | C130: Hematology/Oncology | D130: Internal Medicine--Hematology/Oncology | E130: 14.32 | F130: 14.32 | G130: 14.29 | H130: 14.18 | I130: 14.18 | J130: 14.18 | K130: 14.18 | L130: 14.28 | M130: 14.23 | N130: 14.43 | O130: 13.2 | P130: 13.48 | Q130: 14.67 | R130: 15.67 | S130: 15.17 | T130: 13.09 | U130: 12.9 | V130: 12.8 | W130: 169.27
A131: UPP10 | B131: Internal Medicine | C131: Hepatology | D131: =CONCATENATE(B131,"--",C131) -> Internal Medicine--Hepatology | E131: 2.08 | F131: 2.08 | G131: 2.08 | H131: 2.08 | I131: 2.08 | J131: 2.08 | K131: 2.08 | L131: 2.08 | M131: 2.08 | N131: 2.08 | O131: 2.08 | P131: 2.08 | Q131: 2.08 | R131: 1.58 | S131: 1.58 | T131: 1.65 | U131: 2.1 | V131: 2.1 | W131: =SUM(E131:P131) -> 24.96
A132: UPP10 | B132: Internal Medicine | C132: Hepatology - STI | D132: Internal Medicine--Hepatology - STI | E132: 2.15 | F132: 3.05 | G132: 3.05 | H132: 3.05 | I132: 3.05 | J132: 3.05 | K132: 3.05 | L132: 3.05 | M132: 3.05 | N132: 3.05 | O132: 2.7 | P132: 2.7 | Q132: 2.75 | R132: 2.75 | S132: 2.7 | T132: 2.7 | U132: 2.7 | V132: 2.7 | W132: 35
A133: UPP10 | B133: Internal Medicine | C133: Hospitalist | D133: Internal Medicine--Hospitalist | E133: 48.88 | F133: 49.56 | G133: 49.64 | H133: 50.64 | I133: 51.08 | J133: 51.64 | K133: 51.64 | L133: 51.67 | M133: 51.61 | N133: 51.67 | O133: 51.67 | P133: 51.64 | Q133: 43.32 | R133: 41.75 | S133: 41.9 | T133: 40.78 | U133: 41.78 | V133: 41.78 | W133: 611.34
A134: UPP10 | B134: Internal Medicine | C134: Infectious Disease | D134: Internal Medicine--Infectious Disease | E134: 9.92 | F134: 9.92 | G134: 9.92 | H134: 9.8 | I134: 9.77 | J134: 9.76 | K134: 9.77 | L134: 9.77 | M134: 9.8 | N134: 9.8 | O134: 8.89 | P134: 8.89 | Q134: 9.67 | R134: 10.5 | S134: 9.86 | T134: 10.03 | U134: 11.02 | V134: 9.6 | W134: 116.01
A135: UPP10 | B135: Internal Medicine | C135: Infectious Disease - CMI | D135: Internal Medicine--Infectious Disease - CMI | E135: 0 | F135: 0.03 | G135: 0 | H135: 0 | I135: 0 | J135: 0 | K135: 0 | L135: 0.03 | M135: 0 | N135: 0 | O135: 0 | P135: 0 | W135: 0.06
A136: UPP10 | B136: Internal Medicine | C136: Margolis | D136: Internal Medicine--Margolis | E136: 3.9 | F136: 3.9 | G136: 3.9 | H136: 3.9 | I136: 3.9 | J136: 3.9 | K136: 3.9 | L136: 3.9 | M136: 3.9 | N136: 3.9 | O136: 3.9 | P136: 3.9 | Q136: 3.9 | R136: 3.9 | S136: 3.9 | T136: 2.9 | U136: 2.9 | V136: 2.9 | W136: 46.8
A137: UPP10 | B137: Internal Medicine | C137: Medicine/Misc | D137: Internal Medicine--Medicine/Misc | E137: 0.05 | F137: 0.05 | G137: 0.05 | H137: 0.05 | I137: 0.05 | J137: 0.05 | K137: 0.05 | L137: 0.05 | M137: 0.05 | N137: 0.05 | O137: 0.05 | P137: 0 | Q137: 0 | R137: 0 | S137: 0 | T137: 0 | U137: 0 | V137: 0 | W137: 0.55
A138: UPP10 | B138: Internal Medicine | C138: Neuro Onc | D138: Internal Medicine--Neuro Onc | E138: 1.3 | F138: 1.3 | G138: 1.05 | H138: 1.3 | I138: 1.3 | J138: 0.06 | K138: 0.06 | L138: 0.13 | M138: 0.06 | N138: 1.5 | O138: 1.03 | P138: 1.03 | Q138: 1.8 | R138: 1.8 | S138: 1.8 | T138: 1.8 | U138: 1.8 | V138: 1.8 | W138: 10.12
A139: UPP10 | B139: Internal Medicine | C139: Palliative Care | D139: Internal Medicine--Palliative Care | E139: 12.4 | F139: 12.4 | G139: 12.4 | H139: 12.4 | I139: 12.4 | J139: 12.4 | K139: 12.4 | L139: 12.4 | M139: 12.4 | N139: 12.4 | O139: 12.4 | P139: 12.4 | Q139: 10.94 | R139: 10.94 | S139: 10.14 | T139: 10.86 | U139: 10.86 | V139: 11.16 | W139: 148.8
A140: UPP10 | B140: Internal Medicine | C140: Pathology | D140: Internal Medicine--Pathology | E140: 0.03 | F140: 0 | G140: 0.03 | H140: 0.03 | I140: 0.03 | J140: 0.03 | K140: 0.03 | L140: 0.03 | M140: 0 | N140: 0.03 | O140: 0 | P140: 0.03 | W140: 0.27
A141: UPP10 | B141: Internal Medicine | C141: Pediatrics | D141: Internal Medicine--Pediatrics | E141: 0.1 | F141: 0.03 | G141: 0 | H141: 0.03 | I141: 0.03 | J141: 0.09 | K141: 0.13 | L141: 0.16 | M141: 0.06 | N141: 0 | O141: 0.03 | P141: 0.03 | Q141: 0.1 | R141: 0 | S141: 0 | T141: 0.3 | U141: 0.15 | V141: 0.18 | W141: 0.69
A142: UPP10 | B142: Internal Medicine | C142: Psychiatry | D142: Internal Medicine--Psychiatry | E142: 0.06 | F142: 0.06 | G142: 0.06 | H142: 0.06 | I142: 0.28 | J142: 0.28 | K142: 0.31 | L142: 0.28 | M142: 0.28 | N142: 0.38 | O142: 0.4 | P142: 0.28 | Q142: 0.35 | R142: 0.3 | S142: 0.3 | T142: 0.3 | U142: 0.3 | V142: 0.3 | W142: 2.73
A143: UPP10 | B143: Internal Medicine | C143: Pulm Transplant Hospitalist | D143: Internal Medicine--Pulm Transplant Hospitalist | E143: 2 | F143: 2 | G143: 2 | H143: 2 | I143: 2 | J143: 2 | K143: 2 | L143: 2 | M143: 2 | N143: 2 | O143: 2 | P143: 2 | Q143: 2 | R143: 2 | S143: 2 | T143: 2 | U143: 2.03 | V143: 2.03 | W143: 24
A144: UPP10 | B144: Internal Medicine | C144: Pulmonary | D144: Internal Medicine--Pulmonary | E144: 30.25 | F144: 30.28 | G144: 30.31 | H144: 29.95 | I144: 30.19 | J144: 30.08 | K144: 29.91 | L144: 30.2 | M144: 29.68 | N144: 31.29 | O144: 29.24 | P144: 29.02 | Q144: 27.37 | R144: 28.56 | S144: 26.35 | T144: 26 | U144: 26.27 | V144: 26.21 | W144: 360.4
A145: UPP10 | B145: Internal Medicine | C145: Pulmonary MTA | D145: Internal Medicine--Pulmonary MTA | E145: 9.58 | F145: 9.97 | G145: 10.58 | H145: 10.58 | I145: 10.58 | J145: 10.58 | K145: 10.58 | L145: 10.58 | M145: 10.58 | N145: 10.58 | O145: 10.58 | P145: 10.58 | Q145: 10.58 | R145: 10.58 | S145: 10.58 | T145: 10.58 | U145: 10.58 | V145: 10.58 | W145: 125.35
A146: UPP10 | B146: Internal Medicine | C146: Renal-Electrolyte | D146: Internal Medicine--Renal-Electrolyte | E146: 10.66 | F146: 10.82 | G146: 10.75 | H146: 10.72 | I146: 10.78 | J146: 10.78 | K146: 10.72 | L146: 10.78 | M146: 10.6 | N146: 11.63 | O146: 11.12 | P146: 11.13 | Q146: 10.71 | R146: 10.02 | S146: 9.31 | T146: 8.93 | U146: 9.38 | V146: 9.35 | W146: 130.49
A147: UPP10 | B147: Internal Medicine | C147: Rheumatology | D147: Internal Medicine--Rheumatology | E147: 9.27 | F147: 9.27 | G147: 9.16 | H147: 9.14 | I147: 9.14 | J147: 9.14 | K147: 9.11 | L147: 9.14 | M147: 9.14 | N147: 8.31 | O147: 8.28 | P147: 7.9 | Q147: 7.17 | R147: 7.32 | S147: 7.19 | T147: 6.93 | U147: 7.2 | V147: 7.07 | W147: 107
A148: UPP10 | B148: Internal Medicine | C148: Surgery | D148: Internal Medicine--Surgery | E148: 0 | F148: 0 | G148: 0 | H148: 0 | I148: 0 | J148: 0 | K148: 0.03 | L148: 0 | M148: 0.03 | N148: 0 | O148: 0 | P148: 0 | W148: 0.06
A149: UPP10 | B149: Internal Medicine | C149: Thoracic Surgery | D149: Internal Medicine--Thoracic Surgery | E149: 0.03 | F149: 0 | G149: 0 | H149: 0 | I149: 0 | J149: 0 | K149: 0 | L149: 0 | M149: 0 | N149: 0 | O149: 0 | P149: 0 | W149: 0.03
A150: UPP10 | B150: Internal Medicine | C150: Transplant Nephrologist - STI | D150: Internal Medicine--Transplant Nephrologist - STI | E150: 3.22 | F150: 3.22 | G150: 3.22 | H150: 3.65 | I150: 3.97 | J150: 4.05 | K150: 3.9 | L150: 3.6 | M150: 4.28 | N150: 4.17 | O150: 4.12 | P150: 4.06 | Q150: 4.22 | R150: 4.42 | S150: 4.32 | T150: 5.07 | U150: 5.28 | V150: 4.3 | W150: 45.46
A151: UPP10 | B151: Internal Medicine | C151: Women's Health | D151: Internal Medicine--Women's Health | E151: 0.06 | F151: 0.03 | G151: 0.03 | H151: 0.06 | I151: 0 | J151: 0.03 | K151: 0.03 | L151: 0.03 | M151: 0.03 | N151: 0.03 | O151: 0.03 | P151: 0 | Q151: 0 | R151: 0.1 | S151: 0.03 | T151: 0.03 | U151: 0.03 | V151: 0.03 | W151: 0.36
A152: UPP12 | B152: Neurology | C152: Epilepsy | D152: Neurology--Epilepsy | E152: 6.2 | F152: 6 | G152: 7.2 | H152: 7.03 | I152: 7.03 | J152: 7.03 | K152: 7.03 | L152: 7.2 | M152: 7.25 | N152: 7 | O152: 7 | P152: 7 | Q152: 6 | R152: 5.71 | S152: 5 | T152: 6 | U152: 5.57 | V152: 5.57 | W152: 82.97
A153: UPP12 | B153: Neurology | C153: General | D153: Neurology--General | E153: 16.3 | F153: 16.91 | G153: 17.39 | H153: 18.03 | I153: 16.93 | J153: 16.33 | K153: 16.36 | L153: 16.36 | M153: 16.78 | N153: 16.49 | O153: 16.29 | P153: 15.89 | Q153: 15.99 | R153: 18.11 | S153: 17.67 | T153: 17.2 | U153: 17.79 | V153: 17.79 | W153: 200.06
A154: UPP12 | B154: Neurology | C154: General/Behavioral | D154: Neurology--General/Behavioral | E154: 1.11 | F154: 1.11 | G154: 1.11 | H154: 1.11 | I154: 1.11 | J154: 1.11 | K154: 1.11 | L154: 1.11 | M154: 1.11 | N154: 1.11 | O154: 1.11 | P154: 1.11 | Q154: 0.59 | R154: 0.11 | S154: 0.11 | T154: 0.11 | U154: 0.11 | V154: 0.11 | W154: 13.32
A155: UPP12 | B155: Neurology | C155: Headache | D155: Neurology--Headache | E155: 4.2 | F155: 4.2 | G155: 4.2 | H155: 4.2 | I155: 4.2 | J155: 4.2 | K155: 4.2 | L155: 4.2 | M155: 4.2 | N155: 4.2 | O155: 4.2 | P155: 4.2 | Q155: 4.2 | R155: 4.2 | S155: 4.2 | T155: 4.2 | U155: 4.2 | V155: 4.2 | W155: 50.4
A156: UPP12 | B156: Neurology | C156: Movement Disorders | D156: Neurology--Movement Disorders | E156: 3.28 | F156: 3.28 | G156: 3.28 | H156: 2.56 | I156: 2.56 | J156: 2.56 | K156: 2.56 | L156: 2.56 | M156: 2.56 | N156: 2.56 | O156: 2.56 | P156: 2.47 | Q156: 2.56 | R156: 2.56 | S156: 2.56 | T156: 2.56 | U156: 2.56 | V156: 2.56 | W156: 32.79
A157: UPP12 | B157: Neurology | C157: MS | D157: Neurology--MS | E157: 2.15 | F157: 2.15 | G157: 2.15 | H157: 2.15 | I157: 2.15 | J157: 2.15 | K157: 2.15 | L157: 2.15 | M157: 2.15 | N157: 2.15 | O157: 2.15 | P157: 2.15 | Q157: 2.15 | R157: 2.15 | S157: 1.45 | T157: 2.15 | U157: 1.45 | V157: 1.45 | W157: 25.8
A158: UPP12 | B158: Neurology | C158: Muscular Dystrophy | D158: Neurology--Muscular Dystrophy | E158: 0.11 | F158: 0.11 | G158: 0.11 | H158: 0.11 | I158: 0.11 | J158: 0.11 | K158: 0.11 | L158: 0.11 | M158: 0.11 | N158: 0.11 | O158: 0.11 | P158: 0.11 | Q158: 0.11 | R158: 0.11 | S158: 0.11 | T158: 0.11 | U158: 0.11 | V158: 0.11 | W158: 1.32
A159: UPP12 | B159: Neurology | C159: Neuromuscular | D159: Neurology--Neuromuscular | E159: 2.04 | F159: 2.04 | G159: 2.04 | H159: 2.04 | I159: 2.04 | J159: 2.04 | K159: 2.04 | L159: 2.04 | M159: 2.04 | N159: 2.04 | O159: 2.04 | P159: 2.04 | Q159: 2.04 | R159: 2.04 | S159: 2.04 | T159: 2.04 | U159: 2.04 | V159: 2.04 | W159: 24.48
A160: UPP12 | B160: Neurology | C160: Neuropsychiatry | D160: Neurology--Neuropsychiatry | E160: 1 | F160: 1 | G160: 1 | H160: 1 | I160: 1 | J160: 1 | K160: 1 | L160: 1 | M160: 1 | N160: 1 | O160: 1 | P160: 1 | Q160: 1 | R160: 1 | S160: 1 | T160: 1 | U160: 1 | V160: 1 | W160: 12
A161: UPP12 | B161: Neurology | C161: Stroke | D161: Neurology--Stroke | E161: 6.96 | F161: 6.96 | G161: 6.96 | H161: 6.96 | I161: 6.96 | J161: 6.96 | K161: 6.96 | L161: 6.96 | M161: 6.96 | N161: 6.96 | O161: 6.96 | P161: 6.96 | Q161: 5.1 | R161: 5.1 | S161: 5.1 | T161: 5.13 | U161: 5.13 | V161: 5.13 | W161: 83.52
A162: UPP12 | B162: Neurology | C162: Vascular | D162: Neurology--Vascular | E162: 0 | F162: 0 | G162: 0 | H162: 0 | I162: 0 | J162: 0 | K162: 0 | L162: 0 | M162: 0 | N162: 0.03 | O162: 0.03 | P162: 0 | Q162: 0 | R162: 0.03 | S162: 0 | T162: 0 | U162: 0 | V162: 0 | W162: 0.06
A163: UPP11 | B163: Neurosurgery | C163: Cranial | D163: Neurosurgery--Cranial | Q163: 5.93 | R163: 5.93 | S163: 5.93 | T163: 5.93 | U163: 5.93 | V163: 5.59 | W163: 0
A164: UPP11 | B164: Neurosurgery | C164: Cranial Nerve Disorder, General | D164: Neurosurgery--Cranial Nerve Disorder, General | E164: 0.85 | F164: 0.85 | G164: 0.85 | H164: 0.85 | I164: 0.85 | J164: 0.85 | K164: 0.85 | L164: 0.85 | M164: 0.85 | N164: 0.85 | O164: 0.85 | P164: 0.85 | W164: 10.2
A165: UPP11 | B165: Neurosurgery | C165: Endovascular | D165: Neurosurgery--Endovascular | E165: 1.57 | F165: 1.57 | G165: 1.57 | H165: 1.57 | I165: 1.57 | J165: 1.57 | K165: 1.57 | L165: 1.57 | M165: 1.57 | N165: 1.57 | O165: 1.57 | P165: 1.52 | Q165: 1.52 | R165: 1.52 | S165: 1.3 | T165: 1.52 | U165: 1.52 | V165: 1.32 | W165: 18.79
A166: UPP11 | B166: Neurosurgery | C166: Functional (epilepsy, movement disorders) | D166: Neurosurgery--Functional (epilepsy, movement disorders) | E166: 0.75 | F166: 0.75 | G166: 0.75 | H166: 0.75 | I166: 0.75 | J166: 0.75 | K166: 0.75 | L166: 0.75 | M166: 0.75 | N166: 0.75 | O166: 0.75 | P166: 0.75 | W166: 9
A167: UPP11 | B167: Neurosurgery | C167: Gamma Knife, Spine | D167: Neurosurgery--Gamma Knife, Spine | E167: 0.44 | F167: 0.44 | G167: 0.44 | H167: 0.44 | I167: 0.44 | J167: 0.44 | K167: 0.44 | L167: 0.44 | M167: 0.44 | N167: 0.44 | O167: 0.44 | P167: 0.44 | W167: 5.28
A168: UPP11 | B168: Neurosurgery | C168: Gamma Knife, No Spine | D168: Neurosurgery--Gamma Knife, No Spine | E168: 1 | F168: 1 | G168: 1 | H168: 1 | I168: 1 | J168: 1 | K168: 1 | L168: 1 | M168: 1 | N168: 1 | O168: 1 | P168: 0.9 | W168: 11.9
A169: UPP11 | B169: Neurosurgery | C169: General - Level 1 Trauma | D169: Neurosurgery--General - Level 1 Trauma | E169: 0.95 | F169: 0.95 | G169: 0.95 | H169: 0.95 | I169: 0.95 | J169: 0.95 | K169: 0.95 | L169: 0.95 | M169: 0.95 | N169: 0.95 | O169: 0.95 | P169: 0.95 | W169: 11.4
A170: UPP11 | B170: Neurosurgery | C170: General - No Level 1 Trauma | D170: Neurosurgery--General - No Level 1 Trauma | E170: 1.94 | F170: 1.94 | G170: 1.94 | H170: 1.94 | I170: 1.94 | J170: 1.94 | K170: 1.94 | L170: 1.94 | M170: 0.95 | N170: 0.95 | O170: 0.95 | P170: 0.9 | W170: 19.27
A171: UPP11 | B171: Neurosurgery | C171: General - Trauma Surgery | D171: Neurosurgery--General - Trauma Surgery | E171: 3.95 | F171: 3.95 | G171: 3.95 | H171: 3.95 | I171: 1.95 | J171: 1.95 | K171: 1.95 | L171: 1.95 | M171: 1.95 | N171: 1.95 | O171: 1.95 | P171: 1.9 | W171: 31.35
A172: UPP11 | B172: Neurosurgery | C172: Neuro- Oncology and Neurovascular | D172: Neurosurgery--Neuro- Oncology and Neurovascular | E172: 0.3 | F172: 0.3 | G172: 0.3 | H172: 0.3 | I172: 0.3 | J172: 0.3 | K172: 0.3 | L172: 0.3 | M172: 0.3 | N172: 0.3 | O172: 0.3 | P172: 0.4 | W172: 3.7
A173: UPP11 | B173: Neurosurgery | C173: Neurologist (intraoperative monitoring) | D173: Neurosurgery--Neurologist (intraoperative monitoring) | E173: 1.63 | F173: 1.8 | G173: 1.63 | H173: 1.77 | I173: 1.77 | J173: 1.77 | K173: 1.77 | L173: 1.63 | M173: 1.59 | N173: 1.8 | O173: 1.8 | P173: 1.8 | W173: 20.76
A174: UPP11 | B174: Neurosurgery | C174: Neuro-oncology | D174: Neurosurgery--Neuro-oncology | E174: 3.43 | F174: 3.43 | G174: 3.43 | H174: 3.43 | I174: 3.43 | J174: 3.43 | K174: 3.43 | L174: 3.43 | M174: 3.43 | N174: 3.43 | O174: 3.43 | P174: 3.43 | W174: 41.16
A175: UPP11 | B175: Neurosurgery | C175: Neuro-Oncology, Skull Base | D175: Neurosurgery--Neuro-Oncology, Skull Base | E175: 1.5 | F175: 1.5 | G175: 1.5 | H175: 1.5 | I175: 1.5 | J175: 1.5 | K175: 1.5 | L175: 1.5 | M175: 1.5 | N175: 1.5 | O175: 1.5 | P175: 1.5 | W175: 18
A176: UPP11 | B176: Neurosurgery | C176: Neurophysiology | D176: Neurosurgery--Neurophysiology | E176: 0 | F176: 0 | G176: 0 | H176: 0 | I176: 0 | J176: 0 | K176: 0 | L176: 0 | M176: 0 | N176: 0 | O176: 0 | P176: 0 | Q176: 1.8 | R176: 1.67 | S176: 1.67 | T176: 1.59 | U176: 1.8 | V176: 1.8 | W176: 0
A177: UPP11 | B177: Neurosurgery | C177: Neuropsychologist | D177: Neurosurgery--Neuropsychologist | E177: 0.8 | F177: 0.8 | G177: 0.8 | H177: 0.8 | I177: 0.8 | J177: 0.8 | K177: 0.8 | L177: 0.8 | M177: 0.8 | N177: 0.8 | O177: 0.8 | P177: 0.8 | W177: 9.6
A178: UPP11 | B178: Neurosurgery | C178: Neuropsychology | D178: Neurosurgery--Neuropsychology | Q178: 0.8 | R178: 0.8 | S178: 0 | T178: 0 | U178: 0 | V178: 0 | W178: 0
A179: UPP11 | B179: Neurosurgery | C179: OZ-Fellow | D179: Neurosurgery--OZ-Fellow | E179: 0.95 | F179: 0.95 | G179: 0.95 | H179: 0.95 | I179: 0.95 | J179: 0.95 | K179: 0.95 | L179: 0.95 | M179: 0.95 | N179: 0.95 | O179: 0.95 | P179: 0.95 | W179: 11.4
A180: UPP11 | B180: Neurosurgery | C180: PA | D180: Neurosurgery--PA | E180: 0 | F180: 0 | G180: 0 | H180: 0 | I180: 0 | J180: 0 | K180: 0 | L180: 0 | M180: 0 | N180: 0 | O180: 0 | P180: 0 | Q180: 0 | R180: 0 | S180: 0 | T180: 0 | U180: 0 | V180: 0 | W180: 0
A181: UPP11 | B181: Neurosurgery | C181: Pain Management | D181: Neurosurgery--Pain Management | E181: 0.43 | F181: 0.43 | G181: 0.43 | H181: 0.43 | I181: 0.43 | J181: 0.43 | K181: 0.43 | L181: 0.43 | M181: 0.43 | N181: 0.43 | O181: 0.43 | P181: 0.43 | W181: 5.16
A182: UPP11 | B182: Neurosurgery | C182: Pediatric | D182: Neurosurgery--Pediatric | E182: 2.98 | F182: 2.98 | G182: 2.98 | H182: 2.98 | I182: 2.98 | J182: 2.98 | K182: 2.98 | L182: 2.98 | M182: 2.98 | N182: 2.98 | O182: 2.98 | P182: 2.8 | Q182: 3.8 | R182: 3.8 | S182: 3.8 | T182: 3.8 | U182: 3.8 | V182: 3.35 | W182: 35.58
A183: UPP11 | B183: Neurosurgery | C183: Spine | D183: Neurosurgery--Spine | Q183: 10.62 | R183: 10.62 | S183: 10.62 | T183: 10.62 | U183: 10.62 | V183: 11.32 | W183: 0
A184: UPP11 | B184: Neurosurgery | C184: Spine Surgery | D184: Neurosurgery--Spine Surgery | E184: 4.34 | F184: 4.34 | G184: 4.34 | H184: 4.34 | I184: 4.34 | J184: 4.34 | K184: 3.34 | L184: 3.34 | M184: 3.34 | N184: 3.34 | O184: 3.34 | P184: 3.24 | W184: 45.98
A185: UPP11 | B185: Neurosurgery | C185: Trauma | D185: Neurosurgery--Trauma | E185: 1 | F185: 1 | G185: 1 | H185: 1 | I185: 1 | J185: 1 | K185: 1 | L185: 1 | M185: 1 | N185: 1 | O185: 1 | P185: 0.86 | W185: 11.86
A186: UPP14 | B186: Ophthalmology | C186: Comprehensive | D186: Ophthalmology--Comprehensive | E186: 3 | F186: 3 | G186: 3 | H186: 3 | I186: 3 | J186: 3 | K186: 3 | L186: 3 | M186: 2.74 | N186: 3 | O186: 3 | P186: 3 | Q186: 2.9 | R186: 2.9 | S186: 2.9 | T186: 2.9 | U186: 2.9 | V186: 2.9 | W186: 35.74
A187: UPP14 | B187: Ophthalmology | C187: Cornea | D187: Ophthalmology--Cornea | E187: 2.28 | F187: 3.08 | G187: 3.08 | H187: 3.08 | I187: 3.08 | J187: 3.08 | K187: 3.08 | L187: 3.08 | M187: 3.08 | N187: 3.3 | O187: 3.08 | P187: 3.08 | Q187: 2.88 | R187: 2.88 | S187: 2.88 | T187: 2.08 | U187: 2.08 | V187: 1.73 | W187: 36.38
A188: UPP14 | B188: Ophthalmology | C188: Fellow-Cornea | D188: Ophthalmology--Fellow-Cornea | E188: 0.05 | F188: 0.05 | G188: 0.05 | H188: 0.05 | I188: 0.05 | J188: 0.05 | K188: 0.05 | L188: 0.05 | M188: 0.05 | N188: 0.05 | O188: 0.05 | P188: 0.05 | W188: 0.6
A189: UPP14 | B189: Ophthalmology | C189: Fellow-Glaucoma | D189: Ophthalmology--Fellow-Glaucoma | E189: 0.1 | F189: 0.1 | G189: 0.1 | H189: 0.1 | I189: 0.1 | J189: 0.1 | K189: 0.1 | L189: 0.1 | M189: 0.1 | N189: 0.1 | O189: 0.1 | P189: 0.1 | W189: 1.2
A190: UPP14 | B190: Ophthalmology | C190: Fellow-Neuro-Ophthalmology | D190: Ophthalmology--Fellow-Neuro-Ophthalmology | E190: 0.05 | F190: 0.05 | G190: 0.05 | H190: 0.05 | I190: 0.05 | J190: 0.05 | K190: 0.05 | L190: 0.05 | M190: 0.05 | N190: 0.05 | O190: 0.05 | P190: 0.05 | W190: 0.6
A191: UPP14 | B191: Ophthalmology | C191: Fellow-Oculoplastics | D191: Ophthalmology--Fellow-Oculoplastics | E191: 0.05 | F191: 0.05 | G191: 0.05 | H191: 0.05 | I191: 0.05 | J191: 0.05 | K191: 0.05 | L191: 0.05 | M191: 0.05 | N191: 0.05 | O191: 0.05 | P191: 0.05 | W191: 0.6
A192: UPP14 | B192: Ophthalmology | C192: Fellow-Retina | D192: Ophthalmology--Fellow-Retina | E192: 0.09 | F192: 0.1 | G192: 0.1 | H192: 0.1 | I192: 0.1 | J192: 0.1 | K192: 0.1 | L192: 0.1 | M192: 0.1 | N192: 0.1 | O192: 0.1 | P192: 0.1 | W192: 1.19
A193: UPP14 | B193: Ophthalmology | C193: Glaucoma | D193: Ophthalmology--Glaucoma | E193: 1.35 | F193: 1.74 | G193: 1.95 | H193: 1.95 | I193: 1.95 | J193: 1.95 | K193: 1.95 | L193: 1.95 | M193: 1.95 | N193: 2.15 | O193: 1.95 | P193: 1.95 | Q193: 1.83 | R193: 1.88 | S193: 1.88 | T193: 1.88 | U193: 1.88 | V193: 1.88 | W193: 22.79
A194: UPP14 | B194: Ophthalmology | C194: Hospitalist | D194: Ophthalmology--Hospitalist | E194: 0.49 | F194: 0.9 | G194: 0.9 | H194: 0.9 | I194: 0.9 | J194: 0.9 | K194: 0.9 | L194: 0.9 | M194: 0.9 | N194: 0.9 | O194: 0.9 | P194: 0.9 | W194: 10.39
A195: UPP14 | B195: Ophthalmology | C195: Intern'l Fellow-GME Office-Pediatrics | D195: =CONCATENATE(B195,"--",C195) -> Ophthalmology--Intern'l Fellow-GME Office-Pediatrics | E195: 0 | F195: 0 | G195: 0 | H195: 0 | I195: 0 | J195: 0 | K195: 0 | L195: 0 | M195: 0 | N195: 0 | O195: 0 | P195: 0 | W195: =SUM(E195:P195) -> 0
A196: UPP14 | B196: Ophthalmology | C196: Neuro-Ophthalmology | D196: Ophthalmology--Neuro-Ophthalmology | E196: 1 | F196: 1 | G196: 1 | H196: 0.92 | I196: 0.65 | J196: 1 | K196: 1 | L196: 1 | M196: 1 | N196: 1 | O196: 1 | P196: 1 | Q196: 1 | R196: 1 | S196: 1 | T196: 1 | U196: 1 | V196: 1 | W196: 11.57
A197: UPP14 | B197: Ophthalmology | C197: Oculoplastics | D197: Ophthalmology--Oculoplastics | E197: 1.52 | F197: 1.52 | G197: 1.52 | H197: 1.52 | I197: 1.52 | J197: 1.52 | K197: 1.52 | L197: 1.52 | M197: 1.52 | N197: 1.6 | O197: 1.52 | P197: 1.52 | Q197: 1.57 | R197: 1.57 | S197: 1.57 | T197: 1.57 | U197: 1.57 | V197: 1.57 | W197: 18.32
A198: UPP14 | B198: Ophthalmology | C198: Optometry | D198: Ophthalmology--Optometry | E198: 2.6 | F198: 2.6 | G198: 2.6 | H198: 2.6 | I198: 2.6 | J198: 2.6 | K198: 2.6 | L198: 2.6 | M198: 2.6 | N198: 2.6 | O198: 2.6 | P198: 2.6 | Q198: 2.1 | R198: 2.1 | S198: 2.1 | T198: 1.7 | U198: 1.7 | V198: 1.7 | W198: 31.2
A199: UPP14 | B199: Ophthalmology | C199: Pediatrics | D199: Ophthalmology--Pediatrics | E199: 2.8 | F199: 2.8 | G199: 2.8 | H199: 2.8 | I199: 2.8 | J199: 2.8 | K199: 2.8 | L199: 2.8 | M199: 2.8 | N199: 2.8 | O199: 2.8 | P199: 2.8 | Q199: 2.85 | R199: 3.75 | S199: 3.75 | T199: 3.75 | U199: 3.75 | V199: 3.75 | W199: 33.6
A200: UPP14 | B200: Ophthalmology | C200: Retina | D200: Ophthalmology--Retina | E200: 3.61 | F200: 3.17 | G200: 3.74 | H200: 3.74 | I200: 3.74 | J200: 3.74 | K200: 3.74 | L200: 3.74 | M200: 3.74 | N200: 4 | O200: 3.74 | P200: 3.74 | Q200: 3.61 | R200: 3.61 | S200: 3.61 | T200: 3.16 | U200: 3.61 | V200: 3.61 | W200: 44.44
... 178 more rows

Sheet FY16 COMP SUMMARY (hidden)
A1: CLINICAL COMP
A2: FY16 Q1 & Q2
A4: Business Unit | B4: Subspecialty | C4: CONCATENATION | D4: CLINICAL COMP
A5: Anesthesiology | B5: Acute Pain | C5: =CONCATENATE(A5,"--",B5) -> Anesthesiology--Acute Pain | D5: 3608457.708
A6: Anesthesiology | B6: Anesthesiology | C6: Anesthesiology--Anesthesiology | D6: 21200121.44
A7: Anesthesiology | B7: Chronic Pain (wRVUs) | C7: Anesthesiology--Chronic Pain (wRVUs) | D7: 869110.008
A8: Cardiothoracic Surgery | B8: Cardiothoracic/Transplant Surgery | C8: Cardiothoracic Surgery--Cardiothoracic/Transplant Surgery | D8: 398333.408
A9: Cardiothoracic Surgery | B9: Cardiothoracic Surgery | C9: Cardiothoracic Surgery--Cardiothoracic Surgery | D9: 3900275.385
A10: Cardiothoracic Surgery | B10: Fellow | C10: Cardiothoracic Surgery--Fellow | D10: 188612.5
A11: Cardiothoracic Surgery | B11: Transplant Surgery | C11: Cardiothoracic Surgery--Transplant Surgery | D11: 159999.92
A12: Donohue Cardiology | B12: Interventional Cardiology | C12: Donohue Cardiology--Interventional Cardiology | D12: 495625.5276
A13: Community Medicine | B13: Anesthesiology | C13: Community Medicine--Anesthesiology | D13: 453567.52
A14: Community Medicine | B14: Cardiology | C14: Community Medicine--Cardiology | D14: 1841100.456
A15: Community Medicine | B15: Dermatology | C15: Community Medicine--Dermatology | D15: 147500.02
A16: Community Medicine | B16: Emergency Medicine | C16: Community Medicine--Emergency Medicine | D16: 77620.02
A17: Community Medicine | B17: Endocrinology | C17: Community Medicine--Endocrinology | D17: 215739.29
A18: Community Medicine | B18: Family Medicine | C18: Community Medicine--Family Medicine | D18: 14767343.34
A19: Community Medicine | B19: Gastroenterology | C19: Community Medicine--Gastroenterology | D19: 1400000.16
A20: Community Medicine | B20: General Surgery | C20: Community Medicine--General Surgery | D20: 1557874.599
A21: Community Medicine | B21: Geriatrics | C21: Community Medicine--Geriatrics | D21: 252895.4898
A22: Community Medicine | B22: Hospitalist | C22: Community Medicine--Hospitalist | D22: 100000.02
A23: Community Medicine | B23: Infectious Disease | C23: Community Medicine--Infectious Disease | D23: 962583.9893
A24: Community Medicine | B24: Internal Medicine | C24: Community Medicine--Internal Medicine | D24: 18858612.96
A25: Community Medicine | B25: Neurological Surgery | C25: Community Medicine--Neurological Surgery | D25: 2791717.674
A26: Community Medicine | B26: Neurology | C26: Community Medicine--Neurology | D26: 371282.9502
A27: Community Medicine | B27: Neurological Surgery | C27: Community Medicine--Neurological Surgery | D27: 967909.693
A28: Community Medicine | B28: Oncological Surgery | C28: Community Medicine--Oncological Surgery | D28: 149665.1281
A29: Community Medicine | B29: Orthopaedic Surgery | C29: Community Medicine--Orthopaedic Surgery | D29: 18084895.41
A30: Community Medicine | B30: Otolaryngology | C30: Community Medicine--Otolaryngology | D30: 2798637.482
A31: Community Medicine | B31: Palliative Care | C31: Community Medicine--Palliative Care | D31: 262255.4
A32: Community Medicine | B32: Pediatrics | C32: Community Medicine--Pediatrics | D32: 349810.2564
A33: Community Medicine | B33: Physical Medicine & Rehabilitation | C33: Community Medicine--Physical Medicine & Rehabilitation | D33: 1013192.706
A34: Community Medicine | B34: Psychiatry | C34: Community Medicine--Psychiatry | D34: 661128.4224
A35: Community Medicine | B35: Pulmonary | C35: Community Medicine--Pulmonary | D35: 0
A36: Community Medicine | B36: Pulmonology | C36: Community Medicine--Pulmonology | D36: 4407766.709
A37: Community Medicine | B37: Radiology | C37: Community Medicine--Radiology | D37: 47250.06
A38: Community Medicine | B38: Rheumatology | C38: Community Medicine--Rheumatology | D38: 137500
A39: Community Medicine | B39: Urology | C39: Community Medicine--Urology | D39: 954170.2207
A40: Community Medicine | B40: Women's Health | C40: Community Medicine--Women's Health | D40: 96636.3346
A41: Critical Care Medicine | B41: Adult Critical Care Medicine | C41: Critical Care Medicine--Adult Critical Care Medicine | D41: 3492001.259
A42: Critical Care Medicine | B42: Critical Care Medicine | C42: Critical Care Medicine--Critical Care Medicine | D42: 91638
A43: Critical Care Medicine | B43: Emergency Medicine | C43: Critical Care Medicine--Emergency Medicine | D43: 227312.6409
A44: Critical Care Medicine | B44: Fellow | C44: Critical Care Medicine--Fellow | D44: 10889.01
A45: Critical Care Medicine | B45: Hospitalist | C45: Critical Care Medicine--Hospitalist | D45: 2561373.139
A46: Critical Care Medicine | B46: Pediatric Critical Care Medicine | C46: Critical Care Medicine--Pediatric Critical Care Medicine | D46: 1481095.718
A47: Dermatology | B47: Cosmetic Dermatology | C47: Dermatology--Cosmetic Dermatology | D47: 611501.795
A48: Dermatology | B48: Dermatopathology | C48: Dermatology--Dermatopathology | D48: 136818.3012
A49: Dermatology | B49: Medical Dermatology | C49: Dermatology--Medical Dermatology | D49: 1207602.537
A50: Dermatology | B50: Surgical Dermatology | C50: Dermatology--Surgical Dermatology | D50: 209868.7762
A51: Emergency Medicine | B51: Emergency Medicine | C51: Emergency Medicine--Emergency Medicine | D51: 3902600.123
A52: EPN Urgent Care | B52: Emergency Medicine | C52: EPN Urgent Care--Emergency Medicine | D52: 423707.165
A53: EPN Urgent Care | B53: Family Medicine | C53: EPN Urgent Care--Family Medicine | D53: 149985.02
A54: Erie Physician Network | B54: Family Medicine | C54: Erie Physician Network--Family Medicine | D54: 1171454.304
A55: Erie Physician Network | B55: Physical Medicine & Rehabilitation | C55: Erie Physician Network--Physical Medicine & Rehabilitation | D55: 73776.96
A56: Erie Physician Network | D56: 298973.8
A57: ERMI | B57: Emergency Medicine | C57: ERMI--Emergency Medicine | D57: 23766951.66
A58: ERMI | B58: Family Medicine | C58: ERMI--Family Medicine | D58: 34025
A59: ERMI | D59: 19800
A60: ERMI | B60: Urgent Care | C60: ERMI--Urgent Care | D60: 380209.68
A61: Family Medicine | B61: Family Medicine - Includes Deliveries | C61: Family Medicine--Family Medicine - Includes Deliveries | D61: 13947.212
A62: Family Medicine | B62: Family Practice | C62: Family Medicine--Family Practice | D62: 575381.2481
A63: HVI Cardiac Surgery | B63: Adult Cardiac Surgery | C63: HVI Cardiac Surgery--Adult Cardiac Surgery | D63: 3914987.539
A64: HVI Cardiac Surgery | B64: Pediatric Surgery | C64: HVI Cardiac Surgery--Pediatric Surgery | D64: 846155.8894
A65: HVI Cardiac Surgery | B65: Transplant Surgery | C65: HVI Cardiac Surgery--Transplant Surgery | D65: 307500.016
A66: HVI Cardiology | B66: Cardiac MRI | C66: HVI Cardiology--Cardiac MRI | D66: 144739.14
A67: HVI Cardiology | B67: Cardiology | C67: HVI Cardiology--Cardiology | D67: 1159500.082
A68: HVI Cardiology | B68: Cath Lab | C68: HVI Cardiology--Cath Lab | D68: 4376208.457
A69: HVI Cardiology | B69: Echocardiography | C69: =CONCATENATE(A69,"--",B69) -> HVI Cardiology--Echocardiography | D69: 574805.9601
A70: HVI Cardiology | B70: Electrophysiology | C70: HVI Cardiology--Electrophysiology | D70: 1528999.357
A71: HVI Cardiology | B71: General Cardiology | C71: HVI Cardiology--General Cardiology | D71: 6137826.64
A72: HVI Cardiology | B72: Heart Failure | C72: HVI Cardiology--Heart Failure | D72: 593494.2466
A73: HVI Cardiology | B73: Interventional Cardiology | C73: HVI Cardiology--Interventional Cardiology | D73: 233543.54
A74: HVI Cardiology | B74: Nuclear Cardiology | C74: HVI Cardiology--Nuclear Cardiology | D74: 235618.367
A75: Internal Medicine | B75: Adult Critical Care Medicine | C75: Internal Medicine--Adult Critical Care Medicine | D75: 85780.816
A76: Internal Medicine | B76: AIM | C76: Internal Medicine--AIM | D76: 554060.3783
A77: Internal Medicine | B77: Emergency Medicine | C77: Internal Medicine--Emergency Medicine | D77: 118151.8021
A78: Internal Medicine | B78: Endocrinology | C78: Internal Medicine--Endocrinology | D78: 1623793.882
A79: Internal Medicine | B79: Gastroenterology | C79: Internal Medicine--Gastroenterology | D79: 3465452.111
A80: Internal Medicine | B80: General Medicine | C80: Internal Medicine--General Medicine | D80: 1778104.28
A81: Internal Medicine | B81: Geriatric Medicine | C81: Internal Medicine--Geriatric Medicine | D81: 722528.5416
A82: Internal Medicine | D82: 4670.002
A83: Internal Medicine | B83: Hematology/Oncology | C83: Internal Medicine--Hematology/Oncology | D83: 1769255.79
A84: Internal Medicine | B84: Hepatology | C84: Internal Medicine--Hepatology | D84: 353938.6674
A85: Internal Medicine | B85: Hepatology - STI | C85: Internal Medicine--Hepatology - STI | D85: 435366.72
A86: Internal Medicine | B86: Infectious Disease | C86: Internal Medicine--Infectious Disease | D86: 777482.3935
A87: Internal Medicine | B87: Margolis | C87: Internal Medicine--Margolis | D87: 431383.502
A88: Internal Medicine | B88: Palliative Care | C88: Internal Medicine--Palliative Care | D88: 764736.711
A89: Internal Medicine | B89: Pulm Transplant Hospitalist | C89: Internal Medicine--Pulm Transplant Hospitalist | D89: 167000.04
A90: Internal Medicine | B90: Pulmonary | C90: Internal Medicine--Pulmonary | D90: 2988501.789
A91: Internal Medicine | B91: Pulmonary MTA | C91: Internal Medicine--Pulmonary MTA | D91: 1722700.651
A92: Internal Medicine | B92: Renal-Electrolyte | C92: Internal Medicine--Renal-Electrolyte | D92: 1127044.647
A93: Internal Medicine | B93: Rheumatology | C93: Internal Medicine--Rheumatology | D93: 773398.3205
A94: Internal Medicine | B94: Hospitalist | C94: Internal Medicine--Hospitalist | D94: 4530978.934
A95: Internal Medicine | B95: Transplant Nephrologist - STI | C95: Internal Medicine--Transplant Nephrologist - STI | D95: 385202.3247
A96: Neurology | B96: Adult Critical Care Medicine | C96: Neurology--Adult Critical Care Medicine | D96: 130196.86
A97: Neurology | B97: Epilepsy | C97: Neurology--Epilepsy | D97: 588899.888
A98: Neurology | B98: General | C98: Neurology--General | D98: 2438431.328
A99: Neurology | B99: General/Behavioral | C99: Neurology--General/Behavioral | D99: 14703.6461
A100: Neurology | B100: Headache | C100: Neurology--Headache | D100: 421841.808
A101: Neurology | B101: Movement Disorders | C101: Neurology--Movement Disorders | D101: 215097.0267
A102: Neurology | B102: MS | C102: Neurology--MS | D102: 211139.202
A103: Neurology | B103: Muscular Dystrophy | C103: Neurology--Muscular Dystrophy | D103: 3877.7772
A104: Neurology | D104: 227517.39
A105: Neurology | B105: Neuromuscular | C105: Neurology--Neuromuscular | D105: 178334.6864
A106: Neurology | D106: 31350
A107: Neurology | B107: Stroke | C107: Neurology--Stroke | D107: 857071.675
A108: Neurology | D108: 21750
A109: Neurosurgery | D109: 25399.98
A110: Neurosurgery | B110: Cranial | C110: Neurosurgery--Cranial | D110: 2166526.029
A111: Neurosurgery | B111: Endovascular | C111: Neurosurgery--Endovascular | D111: 537713.9458
A112: Neurosurgery | B112: Neurophysiology | C112: Neurosurgery--Neurophysiology | D112: 374085.703
A113: Neurosurgery | D113: 13733.344
A114: Neurosurgery | B114: Pediatric | C114: Neurosurgery--Pediatric | D114: 891519.1724
A115: Neurosurgery | B115: Spine | C115: Neurosurgery--Spine | D115: 3850270.817
A116: Ophthalmology | B116: Comprehensive | C116: Ophthalmology--Comprehensive | D116: 366415.402
A117: Ophthalmology | B117: Cornea | C117: Ophthalmology--Cornea | D117: 303981.8772
A118: Ophthalmology | B118: Glaucoma | C118: Ophthalmology--Glaucoma | D118: 242969.855
A119: Ophthalmology | B119: Neuro-Ophthalmology | C119: Ophthalmology--Neuro-Ophthalmology | D119: 66000.048
A120: Ophthalmology | B120: Oculoplastics | C120: Ophthalmology--Oculoplastics | D120: 179686.754
A121: Ophthalmology | B121: Optometry | C121: Ophthalmology--Optometry | D121: 96242.628
A122: Ophthalmology | B122: Pediatrics | C122: Ophthalmology--Pediatrics | D122: 405454.593
A123: Ophthalmology | B123: Retina | C123: Ophthalmology--Retina | D123: 479032.296
A124: Orthopaedics | B124: CMI Ortho Surgery | C124: Orthopaedics--CMI Ortho Surgery | D124: 20559.44
A125: Orthopaedics | D125: 410352.1756
A126: Orthopaedics | B126: Foot and Ankle | C126: Orthopaedics--Foot and Ankle | D126: 688711.0877
A127: Orthopaedics | B127: General Ortho Surg | C127: Orthopaedics--General Ortho Surg | D127: 752000
A128: Orthopaedics | B128: Hand | C128: Orthopaedics--Hand | D128: 932994.318
A129: Orthopaedics | B129: Hand - Non Surgical | C129: Orthopaedics--Hand - Non Surgical | D129: 100000.02
A130: Orthopaedics | B130: Joint | C130: Orthopaedics--Joint | D130: 872296.0242
A131: Orthopaedics | B131: Mercy | C131: Orthopaedics--Mercy | D131: 516839.482
A132: Orthopaedics | B132: Mercy - Trauma | C132: Orthopaedics--Mercy - Trauma | D132: 494056.593
A133: Orthopaedics | B133: Oncology | C133: =CONCATENATE(A133,"--",B133) -> Orthopaedics--Oncology | D133: 471373.3367
A134: Orthopaedics | B134: Orthopaedic Surgery | C134: Orthopaedics--Orthopaedic Surgery | D134: 269889.4162
A135: Orthopaedics | B135: Pediatrics | C135: Orthopaedics--Pediatrics | D135: 1000310.231
A136: Orthopaedics | B136: Primary Care | C136: Orthopaedics--Primary Care | D136: 454046.8253
A137: Orthopaedics | B137: Spine | C137: Orthopaedics--Spine | D137: 772666.154
A138: Orthopaedics | B138: Sports Medicine | C138: Orthopaedics--Sports Medicine | D138: 1480366.718
A139: Orthopaedics | B139: Trauma | C139: Orthopaedics--Trauma | D139: 1418205.944
A140: Otolaryngology | B140: Cranial Base Surgery | C140: Otolaryngology--Cranial Base Surgery | D140: 467857.5841
A141: Otolaryngology | B141: Facial Plastic Surgery | C141: Otolaryngology--Facial Plastic Surgery | D141: 143075.0388
A142: Otolaryngology | B142: General | C142: Otolaryngology--General | D142: 122782.428
A143: Otolaryngology | B143: General Otolaryngology | C143: Otolaryngology--General Otolaryngology | D143: 653783.1545
A144: Otolaryngology | B144: Head & Neck Oncologic Surgery | C144: Otolaryngology--Head & Neck Oncologic Surgery | D144: 692390.2412
A145: Otolaryngology | B145: Laryngology | C145: Otolaryngology--Laryngology | D145: 99875.085
A146: Otolaryngology | B146: Otology/Neurotology | C146: Otolaryngology--Otology/Neurotology | D146: 246500.082
A147: Otolaryngology | B147: Pediatric Otolaryngology | C147: Otolaryngology--Pediatric Otolaryngology | D147: 1305223.848
A148: Otolaryngology | B148: Rhinology | C148: Otolaryngology--Rhinology | D148: 186046.7336
A149: Otolaryngology | B149: Sleep Medicine | C149: Otolaryngology--Sleep Medicine | D149: 125000.04
A150: Otolaryngology | B150: Swallowing Disorders | C150: Otolaryngology--Swallowing Disorders | D150: 100274.5212
A151: Otolaryngology | B151: Voice/Laryngology | C151: Otolaryngology--Voice/Laryngology | D151: 307757.5881
A152: Pathology | B152: AP Community | C152: Pathology--AP Community | D152: 2147917.51
A153: Pathology | B153: AP Magee | C153: Pathology--AP Magee | D153: 1260532.087
A154: Pathology | B154: AP Neuropathology | C154: Pathology--AP Neuropathology | D154: 174382.9033
A155: Pathology | B155: AP Pediatric Pathology | C155: Pathology--AP Pediatric Pathology | D155: 336231.486
A156: Pathology | B156: AP Surgical | C156: Pathology--AP Surgical | D156: 1920660.155
A157: Pathology | B157: AP Transplant | C157: Pathology--AP Transplant | D157: 386602.547
A158: Pathology | B158: Experimental | C158: Pathology--Experimental | D158: 4359.693676
A159: Pathology | B159: Hematopathology | C159: Pathology--Hematopathology | D159: 514102.5287
A160: Pathology | B160: Immunopathology | C160: Pathology--Immunopathology | D160: 16951.55564
A161: Pathology | B161: Molecular Anatomic | C161: Pathology--Molecular Anatomic | D161: 203529.536
A162: Pathology | B162: Molecular Diagnostics | C162: Pathology--Molecular Diagnostics | D162: 16279.19672
A163: Pediatrics | B163: Adolescent Medicine | C163: Pediatrics--Adolescent Medicine | D163: 78332.01667
A164: Pediatrics | B164: Asthma/Allergy | C164: Pediatrics--Asthma/Allergy | D164: 247603.736
A165: Pediatrics | B165: Bone Marrow Transplant | C165: Pediatrics--Bone Marrow Transplant | D165: 190227.04
A166: Pediatrics | B166: Cardiology | C166: Pediatrics--Cardiology | D166: 1490752.741
A167: Pediatrics | B167: Chief Resident | C167: Pediatrics--Chief Resident | D167: 55936.671
A168: Pediatrics | B168: Child Advocacy | C168: Pediatrics--Child Advocacy | D168: 147546.8726
A169: Pediatrics | B169: Child Development | C169: Pediatrics--Child Development | D169: 44653.5105
A170: Pediatrics | B170: Diagnostic Referral | C170: Pediatrics--Diagnostic Referral | D170: 1149745.342
A171: Pediatrics | B171: Emergency | C171: Pediatrics--Emergency | D171: 1880282.336
A172: Pediatrics | B172: Endocrinology | C172: Pediatrics--Endocrinology | D172: 536807.9617
A173: Pediatrics | B173: Gastroenterology | C173: Pediatrics--Gastroenterology | D173: 1233588.435
A174: Pediatrics | B174: Hematology/Oncology | C174: Pediatrics--Hematology/Oncology | D174: 529926.4252
A175: Pediatrics | B175: Infectious Disease | C175: Pediatrics--Infectious Disease | D175: 93328.877
A176: Pediatrics | B176: Medical Genetics | C176: Pediatrics--Medical Genetics | D176: 196924.4977
A177: Pediatrics | B177: Neonatology | C177: Pediatrics--Neonatology | D177: 2406472.977
A178: Pediatrics | B178: Nephrology | C178: Pediatrics--Nephrology | D178: 251975.268
A179: Pediatrics | B179: Neurology | C179: Pediatrics--Neurology | D179: 1220716.406
A180: Pediatrics | B180: Pediatrics | C180: Pediatrics--Pediatrics | D180: 11503.455
A181: Pediatrics | B181: Primary Care | C181: Pediatrics--Primary Care | D181: 628882.376
A182: Pediatrics | B182: Pulmonology | C182: Pediatrics--Pulmonology | D182: 469767.222
A183: Pediatrics | B183: Rheumatology | C183: Pediatrics--Rheumatology | D183: 196925.01
A184: Pediatrics | B184: Weight Management & Wellness | C184: Pediatrics--Weight Management & Wellness | D184: 47211.3453
A185: PM&R | B185: Brain Injury | C185: PM&R--Brain Injury | D185: 197164.6964
A186: PM&R | B186: General Rehab | C186: PM&R--General Rehab | D186: 750951.39
A187: PM&R | B187: Musculoskeletal | C187: PM&R--Musculoskeletal | D187: 31232.5
A188: PM&R | B188: Neuropsych | C188: PM&R--Neuropsych | D188: 166192.4724
A189: PM&R | B189: Pain Management | C189: PM&R--Pain Management | D189: 385989.536
A190: PM&R | B190: Pediatric Rehab | C190: PM&R--Pediatric Rehab | D190: 300256.539
A191: PM&R | B191: Spasticity | C191: PM&R--Spasticity | D191: 58379.75
A192: PM&R | B192: Spinal Cord | C192: PM&R--Spinal Cord | D192: 217389.6362
A193: PM&R | B193: Sports Medicine | C193: PM&R--Sports Medicine | D193: 159726.95
A194: PM&R | B194: Stroke Rehab | C194: PM&R--Stroke Rehab | D194: 56864.5308
A195: Psychiatry | B195: DEC | C195: Psychiatry--DEC | D195: 451766.5169
A196: Psychiatry | B196: Addiction Psychiatry | C196: Psychiatry--Addiction Psychiatry | D196: 654235.6893
A197: Psychiatry | B197: Adult Psychiatry | C197: =CONCATENATE(A197,"--",B197) -> Psychiatry--Adult Psychiatry | D197: 2263930.86
A198: Psychiatry | B198: Child and Adolescent Psychiatry | C198: Psychiatry--Child and Adolescent Psychiatry | D198: 1894094.133
A199: Psychiatry | B199: Comprehensive Care | C199: Psychiatry--Comprehensive Care | D199: 912898.0495
A200: Psychiatry | B200: Geriatric Psychiatry | C200: Psychiatry--Geriatric Psychiatry | D200: 562596.4857
A201: Psychiatry | B201: Hematology/Oncology | C201: Psychiatry--Hematology/Oncology | D201: 32282.4757
... 68 more rows

Sheet MGMA Lists (hidden)
B1: Allergy/Immunology | D1: Instructor
B2: Anesthesiology | D2: Assistant Professor
B3: Anesthesiology: Pain Management | D3: Associate Professor
B4: Audiologist | D4: Professor
B5: Cardiology: Electrophysiology | D5: Community Medicine
B6: Cardiology: Invasive | D6: UPP Only
B7: Cardiology: Invasive-Interventional
B8: Cardiology: Noninvasive
B9: Certified Registered Nurse Anesthetist
B10: Critical Care: Intensivist
B11: Dermatology
B12: Dermatology: Mohs Surgery
B13: Emergency Medicine
B14: Endocrinology/Metabolism
B15: Family Medicine (with OB)
B16: Family Medicine (without OB)
B17: Family Medicine: Sports Medicine
B18: Gastroenterology
B19: Gastroenterology: Hepatology
B20: Genetics
B21: Geriatrics
B22: Hematology/Oncology
B23: Hematology/Oncology: Oncology (Only)
B24: Hospitalist: Internal Medicine
B25: Infectious Disease
B26: Internal Medicine: General
B27: Nephrology
B28: Neurology
B29: Neurology: Epilepsy/EEG
B30: Neurology: Neuromuscular
B31: Neurology: Stroke Medicine
B32: OB/GYN: Gynecological Oncology
B33: OB/GYN: Gynecology (Only)
B34: OB/GYN: Maternal and Fetal Medicine
B35: OB/GYN: Reproductive Endocrinology
B36: OB/GYN: Urogynecology
B37: Obstetrics/Gynecology: General
B38: Ophthalmology
B39: Ophthalmology: Corneal and Refractive Surgery
B40: Ophthalmology: Glaucoma
B41: Ophthalmology: Neurology
B42: Ophthalmology: Oculoplastic and Recon Surgery
B43: Ophthalmology: Retina
B44: Optometrist
B45: Orthopedic (Nonsurgical)
B46: Orthopedic Surgery: Foot and Ankle
B47: Orthopedic Surgery: General
B48: Orthopedic Surgery: Hand
B49: Orthopedic Surgery: Hip and Joint
B50: Orthopedic Surgery: Oncology
B51: Orthopedic Surgery: Shoulder/Elbow
B52: Orthopedic Surgery: Spine
B53: Orthopedic Surgery: Sports Medicine
B54: Orthopedic Surgery: Trauma
B55: Otorhinolaryngology
B56: Pathology: Anatomic
B57: Pathology: Anatomic and Clinical
B58: Pathology: Anatomic-Autopsy
B59: Pathology: Anatomic-Cytopathology
B60: Pathology: Anatomic-Neuropathology
B61: Pathology: Clinical
B62: Pathology: Clinical-Hematopathology
B63: Pathology: Clinical-Transfusion Medicine
B64: Pathology: Surgical
B65: Pediatrics: Anesthesiology
B66: Pediatrics: Neurological Surgery
B67: Pediatrics: Ophthalmology
B68: Pediatrics: Orthopedic Surgery
B69: Pediatrics: Otorhinolaryngology
B70: Pediatrics: Surgery
B71: Pediatrics: Urology
B72: Physiatry (Physical Medicine and Rehabilitation)
B73: Physician Assistant (Nonsurgical, Nonprimary Care)
B74: Podiatry: General
B75: Psychiatry: Child and Adolescent
B76: Psychiatry: General
B77: Psychologist
B78: Pulmonary Medicine: Critical Care
B79: Pulmonary Medicine: General
B80: Pulmonary Medicine: General and Critical Care
B81: Radiation Oncology
B82: Radiology: Diagnostic
B83: Radiology: Interventional
B84: Radiology: Neurological
B85: Radiology: Nuclear Medicine
B86: Research
B87: Rheumatology
B88: Sleep Medicine
B89: Surgery: Breast
B90: Surgery: Cardiovascular
B91: Surgery: Colon and Rectal
B92: Surgery: General
B93: Surgery: Neurological
B94: Surgery: Oncology
B95: Surgery: Oral
B96: Surgery: Plastic and Reconstruction
B97: Surgery: Thoracic (Primary)
B98: Surgery: Transplant
B99: Surgery: Transplant-Liver
B100: Surgery: Trauma
B101: Surgery: Trauma-Burn
B102: Surgery: Vascular (Primary)
B103: Urology
B104: AAAP: Adolescent Medicine
B105: AAAP: Allergy/Immunology
B106: AAAP: Bone Marrow Transplant
B107: AAAP: Cardiology - Diagnostic
B108: AAAP: Cardiology - Interventional
B109: AAAP: Child Development
B110: AAAP: Dermatology
B111: AAAP: Emergency Medicine
B112: AAAP: Endocrinology/Metabolism
B113: AAAP: Epilepsy
B114: AAAP: Gastroenterology/Nutrition
B115: AAAP: General Pediatrics
B116: AAAP: General Peds-in ED
B117: AAAP: Genetics
B118: AAAP: Hematology/Oncology
B119: AAAP: Hospitalist
B120: AAAP: Infectious Deiseassed
B121: AAAP: Med/Peds
B122: AAAP: Neonatology
B123: AAAP: Nephrology
B124: AAAP: Neurology
B125: AAAP: Other
B126: AAAP: Pediatric Forensics
B127: AAAP: Psychology
B128: AAAP: Pulmonary
B129: AAAP: Rehabilitation
B130: AAAP: Rheumatology
B131: AAAP: Sleep Medicine
B132: AAAP: Sports Medicine

Sheet MGMA Comp Tables (hidden)
A1: 1 | B1: 2 | D1: 3 | E1: 4 | F1: 5 | G1: 6 | H1: 7 | I1: 8 | J1: 9 | K1: 10 | L1: 11 | M1: 12
A2: =CONCATENATE(B2,C2) -> Allergy/ImmunologyUPP Only | B2: Allergy/Immunology | C2: UPP Only | D2: 24 | E2: 10 | F2: 191743 | G2: 242025 | H2: 494043 | I2: 534843 | J2: MGMA 2015 Provider Compensation | K2: Eastern | L2: UPP Only | M2: Total Comp
A3: =CONCATENATE(B3,C3) -> AnesthesiologyUPP Only | B3: Anesthesiology | C3: UPP Only | D3: 442 | E3: 28 | F3: 325000 | G3: 406866 | H3: 483248 | I3: 553977 | J3: MGMA 2015 Provider Compensation | K3: Eastern | L3: UPP Only | M3: Total Comp
A4: Anesthesiology: Pain ManagementUPP Only | B4: Anesthesiology: Pain Management | C4: UPP Only | D4: 41 | E4: 14 | F4: 323068 | G4: 382539 | H4: 480274 | I4: 761386 | J4: MGMA 2015 Provider Compensation | K4: Eastern | L4: UPP Only | M4: Total Comp
A5: AudiologistUPP Only | B5: Audiologist | C5: UPP Only | D5: 22 | E5: 11 | F5: 59999 | G5: 82284 | H5: 100946 | I5: 119241 | J5: MGMA 2015 Provider Compensation | K5: Eastern | L5: UPP Only | M5: Total Comp
A6: Cardiology: ElectrophysiologyUPP Only | B6: Cardiology: Electrophysiology | C6: UPP Only | D6: 56 | E6: 23 | F6: 400312 | G6: 522185 | H6: 616458 | I6: 707614 | J6: MGMA 2015 Provider Compensation | K6: Eastern | L6: UPP Only | M6: Total Comp
A7: Cardiology: InvasiveUPP Only | B7: Cardiology: Invasive | C7: UPP Only | D7: 67 | E7: 29 | F7: 356496 | G7: 447513 | H7: 560803 | I7: 733206 | J7: MGMA 2015 Provider Compensation | K7: Eastern | L7: UPP Only | M7: Total Comp
A8: Cardiology: Invasive-InterventionalUPP Only | B8: Cardiology: Invasive-Interventional | C8: UPP Only | D8: 137 | E8: 43 | F8: 411458 | G8: 484512 | H8: 593646 | I8: 676710 | J8: MGMA 2015 Provider Compensation | K8: Eastern | L8: UPP Only | M8: Total Comp
A9: Cardiology: NoninvasiveUPP Only | B9: Cardiology: Noninvasive | C9: UPP Only | D9: 285 | E9: 51 | F9: 339643 | G9: 406684 | H9: 528723 | I9: 624142 | J9: MGMA 2015 Provider Compensation | K9: Eastern | L9: UPP Only | M9: Total Comp
A10: Certified Registered Nurse AnesthetistUPP Only | B10: Certified Registered Nurse Anesthetist | C10: UPP Only | D10: 423 | E10: 16 | F10: 127258 | G10: 147183 | H10: 166464 | I10: 184332 | J10: MGMA 2015 Provider Compensation | K10: Eastern | L10: UPP Only | M10: Total Comp
A11: Critical Care: IntensivistUPP Only | B11: Critical Care: Intensivist | C11: UPP Only | D11: 44 | E11: 9 | F11: 294688 | G11: 322961 | H11: 353420 | I11: 371292 | J11: MGMA 2015 Provider Compensation | K11: Eastern | L11: UPP Only | M11: Total Comp
A12: DermatologyUPP Only | B12: Dermatology | C12: UPP Only | D12: 69 | E12: 30 | F12: 328514 | G12: 448490 | H12: 736708 | I12: 904036 | J12: MGMA 2015 Provider Compensation | K12: Eastern | L12: UPP Only | M12: Total Comp
A13: Dietician/NutritionistUPP Only | B13: Dietician/Nutritionist | C13: UPP Only | D13: 23 | E13: 9 | F13: 52405 | G13: 57812 | H13: 67639 | I13: 93047 | J13: MGMA 2015 Provider Compensation | K13: Eastern | L13: UPP Only | M13: Total Comp
A14: Emergency MedicineUPP Only | B14: Emergency Medicine | C14: UPP Only | D14: 292 | E14: 19 | F14: 220000 | G14: 275810 | H14: 337126 | I14: 357529 | J14: MGMA 2015 Provider Compensation | K14: Eastern | L14: UPP Only | M14: Total Comp
A15: Endocrinology/MetabolismUPP Only | B15: Endocrinology/Metabolism | C15: UPP Only | D15: 110 | E15: 44 | F15: 185305 | G15: 222157 | H15: 274283 | I15: 366254 | J15: MGMA 2015 Provider Compensation | K15: Eastern | L15: UPP Only | M15: Total Comp
A16: Family Medicine (with OB)UPP Only | B16: Family Medicine (with OB) | C16: UPP Only | D16: 42 | E16: 19 | F16: 171994 | G16: 199075 | H16: 239250 | I16: 278472 | J16: MGMA 2015 Provider Compensation | K16: Eastern | L16: UPP Only | M16: Total Comp
A17: Family Medicine (without OB)UPP Only | B17: Family Medicine (without OB) | C17: UPP Only | D17: 1,194 | E17: 276 | F17: 174432 | G17: 212058 | H17: 280549 | I17: 368171 | J17: MGMA 2015 Provider Compensation | K17: Eastern | L17: UPP Only | M17: Total Comp
A18: Family Medicine: Ambulatory Only (No Inpatient Work)UPP Only | B18: Family Medicine: Ambulatory Only (No Inpatient Work) | C18: UPP Only | D18: 178 | E18: 49 | F18: 188466 | G18: 217385 | H18: 250589 | I18: 304960 | J18: MGMA 2015 Provider Compensation | K18: Eastern | L18: UPP Only | M18: Total Comp
A19: Family Medicine: Sports MedicineUPP Only | B19: Family Medicine: Sports Medicine | C19: UPP Only | D19: 15 | E19: 12 | F19: 228624 | G19: 272634 | H19: 298023 | I19: 419450 | J19: MGMA 2015 Provider Compensation | K19: Eastern | L19: UPP Only | M19: Total Comp
A20: GastroenterologyUPP Only | B20: Gastroenterology | C20: UPP Only | D20: 147 | E20: 41 | F20: 397352 | G20: 471161 | H20: 634148 | I20: 871511 | J20: MGMA 2015 Provider Compensation | K20: Eastern | L20: UPP Only | M20: Total Comp
A21: GeriatricsUPP Only | B21: Geriatrics | C21: UPP Only | D21: 39 | E21: 11 | F21: 169119 | G21: 204103 | H21: 225193 | I21: 251609 | J21: MGMA 2015 Provider Compensation | K21: Eastern | L21: UPP Only | M21: Total Comp
A22: Hematology/OncologyUPP Only | B22: Hematology/Oncology | C22: UPP Only | D22: 124 | E22: 31 | F22: 313214 | G22: 399152 | H22: 504795 | I22: 635316 | J22: MGMA 2015 Provider Compensation | K22: Eastern | L22: UPP Only | M22: Total Comp
A23: Hematology/Oncology: Oncology (Only)UPP Only | B23: Hematology/Oncology: Oncology (Only) | C23: UPP Only | D23: 25 | E23: 7 | F23: 436741 | G23: 603680 | H23: 723428 | I23: 862685 | J23: MGMA 2015 Provider Compensation | K23: Eastern | L23: UPP Only | M23: Total Comp
A24: Hospice/Palliative CareUPP Only | B24: Hospice/Palliative Care | C24: UPP Only | D24: 14 | E24: 11 | F24: 183028 | G24: 204837 | H24: 218938 | I24: 393779 | J24: MGMA 2015 Provider Compensation | K24: Eastern | L24: UPP Only | M24: Total Comp
A25: Hospitalist: Family MedicineUPP Only | B25: Hospitalist: Family Medicine | C25: UPP Only | D25: 31 | E25: 7 | F25: 224994 | G25: 229000 | H25: 298108 | I25: 396547 | J25: MGMA 2015 Provider Compensation | K25: Eastern | L25: UPP Only | M25: Total Comp
A26: Hospitalist: Internal MedicineUPP Only | B26: Hospitalist: Internal Medicine | C26: UPP Only | D26: 526 | E26: 58 | F26: 213579 | G26: 240002 | H26: 277429 | I26: 331752 | J26: MGMA 2015 Provider Compensation | K26: Eastern | L26: UPP Only | M26: Total Comp
A27: Infectious DiseaseUPP Only | B27: Infectious Disease | C27: UPP Only | D27: 91 | E27: 29 | F27: 162151 | G27: 244482 | H27: 303776 | I27: 388944 | J27: MGMA 2015 Provider Compensation | K27: Eastern | L27: UPP Only | M27: Total Comp
A28: Internal Medicine: Ambulatory Only (No Inpatient Work)UPP Only | B28: Internal Medicine: Ambulatory Only (No Inpatient Work) | C28: UPP Only | D28: 98 | E28: 26 | F28: 198656 | G28: 252795 | H28: 336068 | I28: 398469 | J28: MGMA 2015 Provider Compensation | K28: Eastern | L28: UPP Only | M28: Total Comp
A29: Internal Medicine: GeneralUPP Only | B29: Internal Medicine: General | C29: UPP Only | D29: 1,061 | E29: 156 | F29: 192580 | G29: 234115 | H29: 302498 | I29: 421100 | J29: MGMA 2015 Provider Compensation | K29: Eastern | L29: UPP Only | M29: Total Comp
A30: NephrologyUPP Only | B30: Nephrology | C30: UPP Only | D30: 95 | E30: 20 | F30: 217378 | G30: 313092 | H30: 359646 | I30: 407911 | J30: MGMA 2015 Provider Compensation | K30: Eastern | L30: UPP Only | M30: Total Comp
A31: NeurologyUPP Only | B31: Neurology | C31: UPP Only | D31: 194 | E31: 57 | F31: 210972 | G31: 256752 | H31: 305087 | I31: 414553 | J31: MGMA 2015 Provider Compensation | K31: Eastern | L31: UPP Only | M31: Total Comp
A32: NP: Acute CareUPP Only | B32: NP: Acute Care | C32: UPP Only | D32: 17 | E32: 8 | F32: 98701 | G32: 105687 | H32: 110899 | I32: 122333 | J32: MGMA 2015 Provider Compensation | K32: Eastern | L32: UPP Only | M32: Total Comp
A33: NP: AdultUPP Only | B33: NP: Adult | C33: UPP Only | D33: 12 | E33: 8 | F33: 77267 | G33: 90735 | H33: 100284 | I33: 105214 | J33: MGMA 2015 Provider Compensation | K33: Eastern | L33: UPP Only | M33: Total Comp
A34: NP: CardiologyUPP Only | B34: NP: Cardiology | C34: UPP Only | D34: 54 | E34: 16 | F34: 92159 | G34: 102133 | H34: 112948 | I34: 128474 | J34: MGMA 2015 Provider Compensation | K34: Eastern | L34: UPP Only | M34: Total Comp
A35: NP: Emergency MedicineUPP Only | B35: NP: Emergency Medicine | C35: UPP Only | D35: 15 | E35: 6 | F35: 92522 | G35: 109193 | H35: 124800 | I35: 133039 | J35: MGMA 2015 Provider Compensation | K35: Eastern | L35: UPP Only | M35: Total Comp
A36: NP: EndocrinologyUPP Only | B36: NP: Endocrinology | C36: UPP Only | D36: 15 | E36: 12 | F36: 86904 | G36: 91530 | H36: 109990 | I36: 139135 | J36: MGMA 2015 Provider Compensation | K36: Eastern | L36: UPP Only | M36: Total Comp
A37: NP: Family Medicine (without OB)UPP Only | B37: NP: Family Medicine (without OB) | C37: UPP Only | D37: 139 | E37: 65 | F37: 82000 | G37: 95000 | H37: 112764 | I37: 131457 | J37: MGMA 2015 Provider Compensation | K37: Eastern | L37: UPP Only | M37: Total Comp
A38: NP: Gerontology/Elder HealthUPP Only | B38: NP: Gerontology/Elder Health | C38: UPP Only | D38: 17 | E38: 7 | F38: 96400 | G38: 102130 | H38: 112141 | I38: 124638 | J38: MGMA 2015 Provider Compensation | K38: Eastern | L38: UPP Only | M38: Total Comp
A39: NP: Hematology/OncologyUPP Only | B39: NP: Hematology/Oncology | C39: UPP Only | D39: 21 | E39: 6 | F39: 89647 | G39: 97519 | H39: 105111 | I39: 112010 | J39: MGMA 2015 Provider Compensation | K39: Eastern | L39: UPP Only | M39: Total Comp
A40: NP: HospitalistUPP Only | B40: NP: Hospitalist | C40: UPP Only | D40: 38 | E40: 13 | F40: 87537 | G40: 102960 | H40: 111013 | I40: 121146 | J40: MGMA 2015 Provider Compensation | K40: Eastern | L40: UPP Only | M40: Total Comp
A41: NP: Internal MedicineUPP Only | B41: NP: Internal Medicine | C41: UPP Only | D41: 70 | E41: 25 | F41: 86130 | G41: 100116 | H41: 117673 | I41: 136346 | J41: MGMA 2015 Provider Compensation | K41: Eastern | L41: UPP Only | M41: Total Comp
A42: NP: Neonatal/PerinatalUPP Only | B42: NP: Neonatal/Perinatal | C42: UPP Only | D42: 11 | E42: 4 | F42: 95332 | G42: 110689 | H42: 130707 | I42: 266626 | J42: MGMA 2015 Provider Compensation | K42: Eastern | L42: UPP Only | M42: Total Comp
A43: NP: NeurologyUPP Only | B43: NP: Neurology | C43: UPP Only | D43: 10 | E43: 7 | F43: 82300 | G43: 100939 | H43: 112339 | I43: 115429 | J43: MGMA 2015 Provider Compensation | K43: Eastern | L43: UPP Only | M43: Total Comp
A44: NP: OB/GYN/Womens HealthUPP Only | B44: NP: OB/GYN/Womens Health | C44: UPP Only | D44: 45 | E44: 19 | F44: 86798 | G44: 97107 | H44: 109624 | I44: 119888 | J44: MGMA 2015 Provider Compensation | K44: Eastern | L44: UPP Only | M44: Total Comp
A45: NP: Pediatric/Child HealthUPP Only | B45: NP: Pediatric/Child Health | C45: UPP Only | D45: 65 | E45: 22 | F45: 81600 | G45: 97010 | H45: 110401 | I45: 132518 | J45: MGMA 2015 Provider Compensation | K45: Eastern | L45: UPP Only | M45: Total Comp
A46: Nurse Midwife: Inpatient (Only)UPP Only | B46: Nurse Midwife: Inpatient (Only) | C46: UPP Only | D46: 11 | E46: 3 | F46: 87338 | G46: 95000 | H46: 95652 | I46: 107364 | J46: MGMA 2015 Provider Compensation | K46: Eastern | L46: UPP Only | M46: Total Comp
A47: Nurse Midwife: Outpatient/Inpatient DeliveriesUPP Only | B47: Nurse Midwife: Outpatient/Inpatient Deliveries | C47: UPP Only | D47: 33 | E47: 14 | F47: 84023 | G47: 94346 | H47: 106743 | I47: 130329 | J47: MGMA 2015 Provider Compensation | K47: Eastern | L47: UPP Only | M47: Total Comp
A48: Nurse Practitioner (Nonsurgical, Nonprimary Care)UPP Only | B48: Nurse Practitioner (Nonsurgical, Nonprimary Care) | C48: UPP Only | D48: 65 | E48: 25 | F48: 87052 | G48: 95173 | H48: 107651 | I48: 122309 | J48: MGMA 2015 Provider Compensation | K48: Eastern | L48: UPP Only | M48: Total Comp
A49: Nurse Practitioner (Primary Care)UPP Only | B49: Nurse Practitioner (Primary Care) | C49: UPP Only | D49: 56 | E49: 36 | F49: 80824 | G49: 93746 | H49: 104915 | I49: 122311 | J49: MGMA 2015 Provider Compensation | K49: Eastern | L49: UPP Only | M49: Total Comp
A50: Nurse Practitioner (Surgical)UPP Only | B50: Nurse Practitioner (Surgical) | C50: UPP Only | D50: 37 | E50: 17 | F50: 82621 | G50: 98477 | H50: 107167 | I50: 121921 | J50: MGMA 2015 Provider Compensation | K50: Eastern | L50: UPP Only | M50: Total Comp
A51: OB/GYN: Gynecological OncologyUPP Only | B51: OB/GYN: Gynecological Oncology | C51: UPP Only | D51: 10 | E51: 7 | F51: 405795 | G51: 519218 | H51: 605019 | I51: 614008 | J51: MGMA 2015 Provider Compensation | K51: Eastern | L51: UPP Only | M51: Total Comp
A52: OB/GYN: Gynecology (Only)UPP Only | B52: OB/GYN: Gynecology (Only) | C52: UPP Only | D52: 74 | E52: 37 | F52: 180441 | G52: 266059 | H52: 335820 | I52: 523808 | J52: MGMA 2015 Provider Compensation | K52: Eastern | L52: UPP Only | M52: Total Comp
A53: OB/GYN: Maternal and Fetal MedicineUPP Only | B53: OB/GYN: Maternal and Fetal Medicine | C53: UPP Only | D53: 31 | E53: 12 | F53: 419250 | G53: 453000 | H53: 508562 | I53: 630863 | J53: MGMA 2015 Provider Compensation | K53: Eastern | L53: UPP Only | M53: Total Comp
A54: OB/GYN: Reproductive EndocrinologyUPP Only | B54: OB/GYN: Reproductive Endocrinology | C54: UPP Only | D54: 11 | E54: 7 | F54: 262610 | G54: 335000 | H54: 476801 | I54: 839520 | J54: MGMA 2015 Provider Compensation | K54: Eastern | L54: UPP Only | M54: Total Comp
A55: Obstetrics/Gynecology: GeneralUPP Only | B55: Obstetrics/Gynecology: General | C55: UPP Only | D55: 460 | E55: 109 | F55: 235161 | G55: 283392 | H55: 358665 | I55: 486446 | J55: MGMA 2015 Provider Compensation | K55: Eastern | L55: UPP Only | M55: Total Comp
A56: Occupational MedicineUPP Only | B56: Occupational Medicine | C56: UPP Only | D56: 12 | E56: 7 | F56: 180644 | G56: 197600 | H56: 234427 | I56: 273458 | J56: MGMA 2015 Provider Compensation | K56: Eastern | L56: UPP Only | M56: Total Comp
A57: Occupational TherapistUPP Only | B57: Occupational Therapist | C57: UPP Only | D57: 48 | E57: 6 | F57: 66258 | G57: 73557 | H57: 82527 | I57: 91682 | J57: MGMA 2015 Provider Compensation | K57: Eastern | L57: UPP Only | M57: Total Comp
A58: OphthalmologyUPP Only | B58: Ophthalmology | C58: UPP Only | D58: 69 | E58: 21 | F58: 278651 | G58: 362093 | H58: 511609 | I58: 895315 | J58: MGMA 2015 Provider Compensation | K58: Eastern | L58: UPP Only | M58: Total Comp
A59: OptometristUPP Only | B59: Optometrist | C59: UPP Only | D59: 27 | E59: 7 | F59: 125156 | G59: 138973 | H59: 147071 | I59: 164470 | J59: MGMA 2015 Provider Compensation | K59: Eastern | L59: UPP Only | M59: Total Comp
A60: Orthopedic (Nonsurgical)UPP Only | B60: Orthopedic (Nonsurgical) | C60: UPP Only | D60: 17 | E60: 10 | F60: 383550 | G60: 508765 | H60: 686386 | I60: 765797 | J60: MGMA 2015 Provider Compensation | K60: Eastern | L60: UPP Only | M60: Total Comp
A61: Orthopedic Surgery: Foot and AnkleUPP Only | B61: Orthopedic Surgery: Foot and Ankle | C61: UPP Only | D61: 14 | E61: 12 | F61: 440522 | G61: 499004 | H61: 643713 | I61: 705895 | J61: MGMA 2015 Provider Compensation | K61: Eastern | L61: UPP Only | M61: Total Comp
A62: Orthopedic Surgery: GeneralUPP Only | B62: Orthopedic Surgery: General | C62: UPP Only | D62: 142 | E62: 50 | F62: 310473 | G62: 490888 | H62: 661314 | I62: 911093 | J62: MGMA 2015 Provider Compensation | K62: Eastern | L62: UPP Only | M62: Total Comp
A63: Orthopedic Surgery: HandUPP Only | B63: Orthopedic Surgery: Hand | C63: UPP Only | D63: 37 | E63: 24 | F63: 393427 | G63: 497372 | H63: 671813 | I63: 1026937 | J63: MGMA 2015 Provider Compensation | K63: Eastern | L63: UPP Only | M63: Total Comp
A64: Orthopedic Surgery: Hip and JointUPP Only | B64: Orthopedic Surgery: Hip and Joint | C64: UPP Only | D64: 32 | E64: 21 | F64: 447057 | G64: 579509 | H64: 808843 | I64: 952497 | J64: MGMA 2015 Provider Compensation | K64: Eastern | L64: UPP Only | M64: Total Comp
A65: Orthopedic Surgery: SpineUPP Only | B65: Orthopedic Surgery: Spine | C65: UPP Only | D65: 31 | E65: 20 | F65: 429350 | G65: 656392 | H65: 804888 | I65: 1180392 | J65: MGMA 2015 Provider Compensation | K65: Eastern | L65: UPP Only | M65: Total Comp
A66: Orthopedic Surgery: Sports MedicineUPP Only | B66: Orthopedic Surgery: Sports Medicine | C66: UPP Only | D66: 55 | E66: 26 | F66: 469215 | G66: 613552 | H66: 781368 | I66: 1001069 | J66: MGMA 2015 Provider Compensation | K66: Eastern | L66: UPP Only | M66: Total Comp
A67: =CONCATENATE(B67,C67) -> Orthopedic Surgery: TraumaUPP Only | B67: Orthopedic Surgery: Trauma | C67: UPP Only | D67: 26 | E67: 14 | F67: 577195 | G67: 688718 | H67: 773759 | I67: 792598 | J67: MGMA 2015 Provider Compensation | K67: Eastern | L67: UPP Only | M67: Total Comp
A68: OtorhinolaryngologyUPP Only | B68: Otorhinolaryngology | C68: UPP Only | D68: 104 | E68: 35 | F68: 288863 | G68: 389699 | H68: 493203 | I68: 736397 | J68: MGMA 2015 Provider Compensation | K68: Eastern | L68: UPP Only | M68: Total Comp
A69: PA: CardiologyUPP Only | B69: PA: Cardiology | C69: UPP Only | D69: 33 | E69: 12 | F69: 93471 | G69: 103651 | H69: 118035 | I69: 126436 | J69: MGMA 2015 Provider Compensation | K69: Eastern | L69: UPP Only | M69: Total Comp
A70: PA: Cardiothoracic SurgeryUPP Only | B70: PA: Cardiothoracic Surgery | C70: UPP Only | D70: 29 | E70: 9 | F70: 91664 | G70: 111646 | H70: 135836 | I70: 164558 | J70: MGMA 2015 Provider Compensation | K70: Eastern | L70: UPP Only | M70: Total Comp
A71: PA: EmergencyUPP Only | B71: PA: Emergency | C71: UPP Only | D71: 46 | E71: 6 | F71: 100456 | G71: 108678 | H71: 112970 | I71: 117322 | J71: MGMA 2015 Provider Compensation | K71: Eastern | L71: UPP Only | M71: Total Comp
A72: PA: Family Medicine (without OB)UPP Only | B72: PA: Family Medicine (without OB) | C72: UPP Only | D72: 107 | E72: 39 | F72: 83336 | G72: 93752 | H72: 106610 | I72: 127693 | J72: MGMA 2015 Provider Compensation | K72: Eastern | L72: UPP Only | M72: Total Comp
A73: PA: HospitalistUPP Only | B73: PA: Hospitalist | C73: UPP Only | D73: 27 | E73: 13 | F73: 83753 | G73: 99249 | H73: 111151 | I73: 120047 | J73: MGMA 2015 Provider Compensation | K73: Eastern | L73: UPP Only | M73: Total Comp
A74: PA: Internal MedicineUPP Only | B74: PA: Internal Medicine | C74: UPP Only | D74: 32 | E74: 14 | F74: 83134 | G74: 95034 | H74: 114430 | I74: 136831 | J74: MGMA 2015 Provider Compensation | K74: Eastern | L74: UPP Only | M74: Total Comp
A75: PA: OB/GYN/Womens HealthUPP Only | B75: PA: OB/GYN/Womens Health | C75: UPP Only | D75: 13 | E75: 7 | F75: 77002 | G75: 86922 | H75: 99143 | I75: 108865 | J75: MGMA 2015 Provider Compensation | K75: Eastern | L75: UPP Only | M75: Total Comp
A76: PA: Orthopedic (Nonsurgical, Nonprimary Care)UPP Only | B76: PA: Orthopedic (Nonsurgical, Nonprimary Care) | C76: UPP Only | D76: 26 | E76: 10 | F76: 106698 | G76: 116681 | H76: 131617 | I76: 148458 | J76: MGMA 2015 Provider Compensation | K76: Eastern | L76: UPP Only | M76: Total Comp
A77: PA: Orthopedic (Surgical)UPP Only | B77: PA: Orthopedic (Surgical) | C77: UPP Only | D77: 138 | E77: 30 | F77: 94654 | G77: 106678 | H77: 134583 | I77: 166497 | J77: MGMA 2015 Provider Compensation | K77: Eastern | L77: UPP Only | M77: Total Comp
A78: PA: PediatricUPP Only | B78: PA: Pediatric | C78: UPP Only | D78: 10 | E78: 7 | F78: 80034 | G78: 94581 | H78: 112854 | I78: 126622 | J78: MGMA 2015 Provider Compensation | K78: Eastern | L78: UPP Only | M78: Total Comp
A79: PA: Pulmonary MedicineUPP Only | B79: PA: Pulmonary Medicine | C79: UPP Only | D79: 17 | E79: 8 | F79: 84492 | G79: 95193 | H79: 102823 | I79: 166229 | J79: MGMA 2015 Provider Compensation | K79: Eastern | L79: UPP Only | M79: Total Comp
A80: PA: Surgery: GeneralUPP Only | B80: PA: Surgery: General | C80: UPP Only | D80: 17 | E80: 11 | F80: 82093 | G80: 87374 | H80: 101906 | I80: 168863 | J80: MGMA 2015 Provider Compensation | K80: Eastern | L80: UPP Only | M80: Total Comp
A81: PA: Urgent Care (Nonsurgical, Nonprimary Care)UPP Only | B81: PA: Urgent Care (Nonsurgical, Nonprimary Care) | C81: UPP Only | D81: 18 | E81: 3 | F81: 92839 | G81: 102002 | H81: 106809 | I81: 116279 | J81: MGMA 2015 Provider Compensation | K81: Eastern | L81: UPP Only | M81: Total Comp
A82: PA: Urgent Care (Primary Care)UPP Only | B82: PA: Urgent Care (Primary Care) | C82: UPP Only | D82: 19 | E82: 7 | F82: 79145 | G82: 90959 | H82: 105855 | I82: 119214 | J82: MGMA 2015 Provider Compensation | K82: Eastern | L82: UPP Only | M82: Total Comp
A83: Pain Management: NonanesthesiaUPP Only | B83: Pain Management: Nonanesthesia | C83: UPP Only | D83: 18 | E83: 12 | F83: 258967 | G83: 360831 | H83: 557802 | I83: 684296 | J83: MGMA 2015 Provider Compensation | K83: Eastern | L83: UPP Only | M83: Total Comp
A84: Pathology: Anatomic and ClinicalUPP Only | B84: Pathology: Anatomic and Clinical | C84: UPP Only | D84: 65 | E84: 12 | F84: 310927 | G84: 351174 | H84: 370325 | I84: 519349 | J84: MGMA 2015 Provider Compensation | K84: Eastern | L84: UPP Only | M84: Total Comp
A85: AAAP: Adolescent MedicineUPP Only | B85: AAAP: Adolescent Medicine | C85: UPP Only | F85: 145700 | G85: 152800 | H85: 171700 | I85: * | J85: AAAP 2014-2015 | K85: Northeastern | L85: Associate Professor | M85: Total Comp
A86: AAAP: Allergy/ImmunologyUPP Only | B86: AAAP: Allergy/Immunology | C86: UPP Only | F86: 155900 | G86: 183100 | H86: 284600 | I86: * | J86: AAAP 2014-2015 | K86: Northeastern | L86: Associate Professor | M86: Total Comp
A87: AAAP: Bone Marrow TransplantUPP Only | B87: AAAP: Bone Marrow Transplant | C87: UPP Only | F87: 198400 | G87: 210200 | H87: 248700 | I87: * | J87: AAAP 2014-2015 | K87: National | L87: Associate Professor | M87: Total Comp
A88: AAAP: Cardiology - Critical CareUPP Only | B88: AAAP: Cardiology - Critical Care | C88: UPP Only | F88: * | G88: * | H88: * | I88: * | J88: AAAP 2014-2015 | K88: Northeastern | L88: Associate Professor | M88: Total Comp
A89: AAAP: Cardiology - DiagnosticUPP Only | B89: AAAP: Cardiology - Diagnostic | C89: UPP Only | F89: 229100 | G89: 284200 | H89: 325000 | I89: * | J89: AAAP 2014-2015 | K89: Northeastern | L89: Associate Professor | M89: Total Comp
A90: AAAP: Cardiology - InterventionalUPP Only | B90: AAAP: Cardiology - Interventional | C90: UPP Only | F90: 230900 | G90: 297900 | H90: 386800 | I90: * | J90: AAAP 2014-2015 | K90: Northeastern | L90: Associate Professor | M90: Total Comp
A91: AAAP: Child DevelopmentUPP Only | B91: AAAP: Child Development | C91: UPP Only | F91: 158500 | G91: 189000 | H91: 251500 | I91: * | J91: AAAP 2014-2015 | K91: Northeastern | L91: Associate Professor | M91: Total Comp
A92: AAAP: Critical Care/Intensive CareUPP Only | B92: AAAP: Critical Care/Intensive Care | C92: UPP Only | F92: * | G92: * | H92: * | I92: * | J92: AAAP 2014-2015 | K92: Northeastern | L92: Associate Professor | M92: Total Comp
A93: PhDUPP Only | B93: PhD | C93: UPP Only | D93: 16 | E93: 3 | F93: 101611 | G93: 117589 | H93: 134905 | I93: 162247 | J93: MGMA 2015 Provider Compensation | K93: Eastern | L93: UPP Only | M93: Total Comp
A94: Physiatry (Physical Medicine and Rehabilitation)UPP Only | B94: Physiatry (Physical Medicine and Rehabilitation) | C94: UPP Only | D94: 54 | E94: 29 | F94: 172750 | G94: 257037 | H94: 353665 | I94: 503635 | J94: MGMA 2015 Provider Compensation | K94: Eastern | L94: UPP Only | M94: Total Comp
A95: Physical TherapistUPP Only | B95: Physical Therapist | C95: UPP Only | D95: 171 | E95: 15 | F95: 69376 | G95: 80493 | H95: 89859 | I95: 100253 | J95: MGMA 2015 Provider Compensation | K95: Eastern | L95: UPP Only | M95: Total Comp
A96: Physician Assistant (Nonsurgical, Nonprimary Care)UPP Only | B96: Physician Assistant (Nonsurgical, Nonprimary Care) | C96: UPP Only | D96: 61 | E96: 33 | F96: 88230 | G96: 97495 | H96: 112500 | I96: 138806 | J96: MGMA 2015 Provider Compensation | K96: Eastern | L96: UPP Only | M96: Total Comp
A97: Physician Assistant (Primary Care)UPP Only | B97: Physician Assistant (Primary Care) | C97: UPP Only | D97: 41 | E97: 21 | F97: 84966 | G97: 101322 | H97: 114987 | I97: 130898 | J97: MGMA 2015 Provider Compensation | K97: Eastern | L97: UPP Only | M97: Total Comp
A98: Physician Assistant (Surgical)UPP Only | B98: Physician Assistant (Surgical) | C98: UPP Only | D98: 52 | E98: 22 | F98: 106866 | G98: 140679 | H98: 161919 | I98: 182639 | J98: MGMA 2015 Provider Compensation | K98: Eastern | L98: UPP Only | M98: Total Comp
A99: Podiatry: GeneralUPP Only | B99: Podiatry: General | C99: UPP Only | D99: 41 | E99: 15 | F99: 143504 | G99: 186109 | H99: 231477 | I99: 343489 | J99: MGMA 2015 Provider Compensation | K99: Eastern | L99: UPP Only | M99: Total Comp
A100: Podiatry: Surgery-Foot and AnkleUPP Only | B100: Podiatry: Surgery-Foot and Ankle | C100: UPP Only | D100: 34 | E100: 13 | F100: 148095 | G100: 235021 | H100: 268031 | I100: 385860 | J100: MGMA 2015 Provider Compensation | K100: Eastern | L100: UPP Only | M100: Total Comp
A101: Psychiatry: Child and AdolescentUPP Only | B101: Psychiatry: Child and Adolescent | C101: UPP Only | D101: 20 | E101: 9 | F101: 190716 | G101: 209578 | H101: 273813 | I101: 326677 | J101: MGMA 2015 Provider Compensation | K101: Eastern | L101: UPP Only | M101: Total Comp
A102: Psychiatry: GeneralUPP Only | B102: Psychiatry: General | C102: UPP Only | D102: 121 | E102: 35 | F102: 196567 | G102: 228000 | H102: 254854 | I102: 303839 | J102: MGMA 2015 Provider Compensation | K102: Eastern | L102: UPP Only | M102: Total Comp
A103: PsychologistUPP Only | B103: Psychologist | C103: UPP Only | D103: 46 | E103: 10 | F103: 71324 | G103: 87512 | H103: 94737 | I103: 109627 | J103: MGMA 2015 Provider Compensation | K103: Eastern | L103: UPP Only | M103: Total Comp
A104: Pulmonary Medicine: Critical CareUPP Only | B104: Pulmonary Medicine: Critical Care | C104: UPP Only | D104: 45 | E104: 7 | F104: 296396 | G104: 332745 | H104: 408992 | I104: 537708 | J104: MGMA 2015 Provider Compensation | K104: Eastern | L104: UPP Only | M104: Total Comp
A105: Pulmonary Medicine: GeneralUPP Only | B105: Pulmonary Medicine: General | C105: UPP Only | D105: 42 | E105: 25 | F105: 250599 | G105: 300870 | H105: 415020 | I105: 551601 | J105: MGMA 2015 Provider Compensation | K105: Eastern | L105: UPP Only | M105: Total Comp
A106: Pulmonary Medicine: General and Critical CareUPP Only | B106: Pulmonary Medicine: General and Critical Care | C106: UPP Only | D106: 55 | E106: 17 | F106: 331120 | G106: 378809 | H106: 513397 | I106: 642918 | J106: MGMA 2015 Provider Compensation | K106: Eastern | L106: UPP Only | M106: Total Comp
A107: Radiation OncologyUPP Only | B107: Radiation Oncology | C107: UPP Only | D107: 37 | E107: 9 | F107: 315000 | G107: 507743 | H107: 683500 | I107: 683500 | J107: MGMA 2015 Provider Compensation | K107: Eastern | L107: UPP Only | M107: Total Comp
A108: Radiology: DiagnosticUPP Only | B108: Radiology: Diagnostic | C108: UPP Only | D108: 193 | E108: 18 | F108: 350000 | G108: 443115 | H108: 509538 | I108: 715285 | J108: MGMA 2015 Provider Compensation | K108: Eastern | L108: UPP Only | M108: Total Comp
A109: Radiology: InterventionalUPP Only | B109: Radiology: Interventional | C109: UPP Only | D109: 29 | E109: 9 | F109: 395339 | G109: 467877 | H109: 587025 | I109: 776021 | J109: MGMA 2015 Provider Compensation | K109: Eastern | L109: UPP Only | M109: Total Comp
A110: RheumatologyUPP Only | B110: Rheumatology | C110: UPP Only | D110: 72 | E110: 36 | F110: 211729 | G110: 248059 | H110: 323967 | I110: 434204 | J110: MGMA 2015 Provider Compensation | K110: Eastern | L110: UPP Only | M110: Total Comp
A111: Sleep MedicineUPP Only | B111: Sleep Medicine | C111: UPP Only | D111: 21 | E111: 10 | F111: 237357 | G111: 324002 | H111: 383413 | I111: 477434 | J111: MGMA 2015 Provider Compensation | K111: Eastern | L111: UPP Only | M111: Total Comp
A112: Surgery: BariatricUPP Only | B112: Surgery: Bariatric | C112: UPP Only | D112: 22 | E112: 13 | F112: 391196 | G112: 452071 | H112: 525577 | I112: 708590 | J112: MGMA 2015 Provider Compensation | K112: Eastern | L112: UPP Only | M112: Total Comp
A113: Surgery: BreastUPP Only | B113: Surgery: Breast | C113: UPP Only | D113: 27 | E113: 16 | F113: 288166 | G113: 362716 | H113: 477575 | I113: 593739 | J113: MGMA 2015 Provider Compensation | K113: Eastern | L113: UPP Only | M113: Total Comp
A114: Surgery: CardiovascularUPP Only | B114: Surgery: Cardiovascular | C114: UPP Only | D114: 39 | E114: 16 | F114: 455764 | G114: 590277 | H114: 779875 | I114: 850000 | J114: MGMA 2015 Provider Compensation | K114: Eastern | L114: UPP Only | M114: Total Comp
A115: Surgery: Colon and RectalUPP Only | B115: Surgery: Colon and Rectal | C115: UPP Only | D115: 22 | E115: 9 | F115: 324811 | G115: 400677 | H115: 491669 | I115: 687166 | J115: MGMA 2015 Provider Compensation | K115: Eastern | L115: UPP Only | M115: Total Comp
A116: Surgery: GeneralUPP Only | B116: Surgery: General | C116: UPP Only | D116: 231 | E116: 71 | F116: 304600 | G116: 352902 | H116: 431980 | I116: 608210 | J116: MGMA 2015 Provider Compensation | K116: Eastern | L116: UPP Only | M116: Total Comp
A117: Surgery: NeurologicalUPP Only | B117: Surgery: Neurological | C117: UPP Only | D117: 51 | E117: 17 | F117: 540000 | G117: 683822 | H117: 757200 | I117: 1030432 | J117: MGMA 2015 Provider Compensation | K117: Eastern | L117: UPP Only | M117: Total Comp
A118: Surgery: OncologyUPP Only | B118: Surgery: Oncology | C118: UPP Only | D118: 12 | E118: 7 | F118: 331452 | G118: 373677 | H118: 446476 | I118: 508882 | J118: MGMA 2015 Provider Compensation | K118: Eastern | L118: UPP Only | M118: Total Comp
A119: Surgery: Plastic and ReconstructionUPP Only | B119: Surgery: Plastic and Reconstruction | C119: UPP Only | D119: 45 | E119: 24 | F119: 350956 | G119: 405925 | H119: 484305 | I119: 927152 | J119: MGMA 2015 Provider Compensation | K119: Eastern | L119: UPP Only | M119: Total Comp
A120: Surgery: Thoracic (Primary)UPP Only | B120: Surgery: Thoracic (Primary) | C120: UPP Only | D120: 21 | E120: 10 | F120: 349893 | G120: 441520 | H120: 501165 | I120: 770437 | J120: MGMA 2015 Provider Compensation | K120: Eastern | L120: UPP Only | M120: Total Comp
A121: Surgery: TraumaUPP Only | B121: Surgery: Trauma | C121: UPP Only | D121: 57 | E121: 12 | F121: 390380 | G121: 419750 | H121: 455677 | I121: 525069 | J121: MGMA 2015 Provider Compensation | K121: Eastern | L121: UPP Only | M121: Total Comp
A122: Surgery: Vascular (Primary)UPP Only | B122: Surgery: Vascular (Primary) | C122: UPP Only | D122: 66 | E122: 24 | F122: 389576 | G122: 449850 | H122: 503691 | I122: 524554 | J122: MGMA 2015 Provider Compensation | K122: Eastern | L122: UPP Only | M122: Total Comp
A123: Urgent CareUPP Only | B123: Urgent Care | C123: UPP Only | D123: 72 | E123: 22 | F123: 196601 | G123: 222563 | H123: 275360 | I123: 440319 | J123: MGMA 2015 Provider Compensation | K123: Eastern | L123: UPP Only | M123: Total Comp
A124: UrologyUPP Only | B124: Urology | C124: UPP Only | D124: 141 | E124: 39 | F124: 300000 | G124: 388061 | H124: 450347 | I124: 612439 | J124: MGMA 2015 Provider Compensation | K124: Eastern | L124: UPP Only | M124: Total Comp
A125: Anesthesia AssistantUPP Only | B125: Anesthesia Assistant | C125: UPP Only | D125: 46 | E125: 8 | F125: 127849 | G125: 137500 | H125: 150602 | I125: 159292 | J125: MGMA 2015 Provider Compensation | K125: National | L125: UPP Only | M125: Total Comp
A126: ChiropractorUPP Only | B126: Chiropractor | C126: UPP Only | D126: 31 | E126: 17 | F126: 95014 | G126: 110934 | H126: 148603 | I126: 194168 | J126: MGMA 2015 Provider Compensation | K126: National | L126: UPP Only | M126: Total Comp
A127: DentistryUPP Only | B127: Dentistry | C127: UPP Only | D127: 67 | E127: 12 | F127: 159819 | G127: 208192 | H127: 258651 | I127: 326941 | J127: MGMA 2015 Provider Compensation | K127: National | L127: UPP Only | M127: Total Comp
A128: Dermatology: DermatopathologyUPP Only | B128: Dermatology: Dermatopathology | C128: UPP Only | D128: 14 | E128: 10 | F128: 413614 | G128: 459922 | H128: 648118 | I128: 862212 | J128: MGMA 2015 Provider Compensation | K128: National | L128: UPP Only | M128: Total Comp
A129: Dermatology: Mohs SurgeryUPP Only | B129: Dermatology: Mohs Surgery | C129: UPP Only | D129: 46 | E129: 35 | F129: 557513 | G129: 796042 | H129: 1095983 | I129: 1524913 | J129: MGMA 2015 Provider Compensation | K129: National | L129: UPP Only | M129: Total Comp
A130: Family Medicine: Urgent CareUPP Only | B130: Family Medicine: Urgent Care | C130: UPP Only | D130: 145 | E130: 21 | F130: 189427 | G130: 243676 | H130: 293691 | I130: 378171 | J130: MGMA 2015 Provider Compensation | K130: National | L130: UPP Only | M130: Total Comp
A131: =CONCATENATE(B131,C131) -> Gastroenterology: HepatologyUPP Only | B131: Gastroenterology: Hepatology | C131: UPP Only | D131: 10 | E131: 9 | F131: 338673 | G131: 409219 | H131: 460889 | I131: 519313 | J131: MGMA 2015 Provider Compensation | K131: National | L131: UPP Only | M131: Total Comp
A132: GeneticsUPP Only | B132: Genetics | C132: UPP Only | D132: 10 | E132: 6 | F132: 123874 | G132: 152263 | H132: 215405 | I132: 268159 | J132: MGMA 2015 Provider Compensation | K132: National | L132: UPP Only | M132: Total Comp
A133: Hospitalist: OB/GYNUPP Only | B133: Hospitalist: OB/GYN | C133: UPP Only | D133: 31 | E133: 8 | F133: 250148 | G133: 265433 | H133: 282459 | I133: 350564 | J133: MGMA 2015 Provider Compensation | K133: National | L133: UPP Only | M133: Total Comp
A134: Hyperbaric Medicine/Wound CareUPP Only | B134: Hyperbaric Medicine/Wound Care | C134: UPP Only | D134: 32 | E134: 20 | F134: 199742 | G134: 287508 | H134: 373143 | I134: 450666 | J134: MGMA 2015 Provider Compensation | K134: National | L134: UPP Only | M134: Total Comp
A135: Neurology: Epilepsy/EEGUPP Only | B135: Neurology: Epilepsy/EEG | C135: UPP Only | D135: 22 | E135: 7 | F135: 253865 | G135: 283427 | H135: 374138 | I135: 386301 | J135: MGMA 2015 Provider Compensation | K135: National | L135: UPP Only | M135: Total Comp
A136: NP: Family Medicine (with OB)UPP Only | B136: NP: Family Medicine (with OB) | C136: UPP Only | D136: 47 | E136: 25 | F136: 80474 | G136: 93155 | H136: 104500 | I136: 121933 | J136: MGMA 2015 Provider Compensation | K136: National | L136: UPP Only | M136: Total Comp
A137: NP: GastroenterologyUPP Only | B137: NP: Gastroenterology | C137: UPP Only | D137: 54 | E137: 33 | F137: 82373 | G137: 94432 | H137: 115600 | I137: 138444 | J137: MGMA 2015 Provider Compensation | K137: National | L137: UPP Only | M137: Total Comp
A138: NP: NeurosurgeryUPP Only | B138: NP: Neurosurgery | C138: UPP Only | D138: 41 | E138: 23 | F138: 91051 | G138: 103782 | H138: 117652 | I138: 151813 | J138: MGMA 2015 Provider Compensation | K138: National | L138: UPP Only | M138: Total Comp
A139: NP: PsychiatryUPP Only | B139: NP: Psychiatry | C139: UPP Only | D139: 47 | E139: 27 | F139: 97126 | G139: 110846 | H139: 128965 | I139: 146588 | J139: MGMA 2015 Provider Compensation | K139: National | L139: UPP Only | M139: Total Comp
A140: NP: Pulmonary MedicineUPP Only | B140: NP: Pulmonary Medicine | C140: UPP Only | D140: 40 | E140: 25 | F140: 85397 | G140: 91267 | H140: 107187 | I140: 131431 | J140: MGMA 2015 Provider Compensation | K140: National | L140: UPP Only | M140: Total Comp
A141: NP: Urgent CareUPP Only | B141: NP: Urgent Care | C141: UPP Only | D141: 66 | E141: 27 | F141: 94387 | G141: 116275 | H141: 134050 | I141: 186294 | J141: MGMA 2015 Provider Compensation | K141: National | L141: UPP Only | M141: Total Comp
A142: Nurse Midwife: Outpatient (Only)UPP Only | B142: Nurse Midwife: Outpatient (Only) | C142: UPP Only | D142: 17 | E142: 7 | F142: 91378 | G142: 99291 | H142: 107239 | I142: 114562 | J142: MGMA 2015 Provider Compensation | K142: National | L142: UPP Only | M142: Total Comp
A143: OB/GYN: UrogynecologyUPP Only | B143: OB/GYN: Urogynecology | C143: UPP Only | D143: 30 | E143: 25 | F143: 276918 | G143: 337288 | H143: 410848 | I143: 597434 | J143: MGMA 2015 Provider Compensation | K143: National | L143: UPP Only | M143: Total Comp
A144: Ophthalmology: RetinaUPP Only | B144: Ophthalmology: Retina | C144: UPP Only | D144: 21 | E144: 10 | F144: 473951 | G144: 603539 | H144: 916539 | I144: 1228962 | J144: MGMA 2015 Provider Compensation | K144: National | L144: UPP Only | M144: Total Comp
A145: Orthopedic Surgery: Shoulder/ElbowUPP Only | B145: Orthopedic Surgery: Shoulder/Elbow | C145: UPP Only | D145: 18 | E145: 13 | F145: 406140 | G145: 625683 | H145: 848924 | I145: 1131165 | J145: MGMA 2015 Provider Compensation | K145: National | L145: UPP Only | M145: Total Comp
A146: PA: DermatologyUPP Only | B146: PA: Dermatology | C146: UPP Only | D146: 51 | E146: 36 | F146: 102986 | G146: 122300 | H146: 180610 | I146: 267523 | J146: MGMA 2015 Provider Compensation | K146: National | L146: UPP Only | M146: Total Comp
A147: PA: Family Medicine (with OB)UPP Only | B147: PA: Family Medicine (with OB) | C147: UPP Only | D147: 16 | E147: 14 | F147: 92083 | G147: 105084 | H147: 113590 | I147: 151581 | J147: MGMA 2015 Provider Compensation | K147: National | L147: UPP Only | M147: Total Comp
A148: PA: GastroenterologyUPP Only | B148: PA: Gastroenterology | C148: UPP Only | D148: 49 | E148: 20 | F148: 84196 | G148: 96885 | H148: 118616 | I148: 123648 | J148: MGMA 2015 Provider Compensation | K148: National | L148: UPP Only | M148: Total Comp
A149: PA: NeurologyUPP Only | B149: PA: Neurology | C149: UPP Only | D149: 42 | E149: 24 | F149: 86960 | G149: 98020 | H149: 108608 | I149: 131235 | J149: MGMA 2015 Provider Compensation | K149: National | L149: UPP Only | M149: Total Comp
A150: PA: NeurosurgeryUPP Only | B150: PA: Neurosurgery | C150: UPP Only | D150: 58 | E150: 23 | F150: 91832 | G150: 106305 | H150: 138566 | I150: 163151 | J150: MGMA 2015 Provider Compensation | K150: National | L150: UPP Only | M150: Total Comp
A151: Pathology: AnatomicUPP Only | B151: Pathology: Anatomic | C151: UPP Only | D151: 49 | E151: 11 | F151: 241020 | G151: 348173 | H151: 440000 | I151: 639374 | J151: MGMA 2015 Provider Compensation | K151: National | L151: UPP Only | M151: Total Comp
A152: Pathology: ClinicalUPP Only | B152: Pathology: Clinical | C152: UPP Only | D152: 40 | E152: 15 | F152: 256803 | G152: 339426 | H152: 651827 | I152: 679538 | J152: MGMA 2015 Provider Compensation | K152: National | L152: UPP Only | M152: Total Comp
A153: Pathology: SurgicalUPP Only | B153: Pathology: Surgical | C153: UPP Only | D153: 26 | E153: 4 | F153: 246000 | G153: 246040 | H153: 284392 | I153: 355075 | J153: MGMA 2015 Provider Compensation | K153: National | L153: UPP Only | M153: Total Comp
A154: Pediatrics: AnesthesiologyUPP Only | B154: Pediatrics: Anesthesiology | C154: UPP Only | D154: 108 | E154: 7 | F154: 425445 | G154: 514579 | H154: 567132 | I154: 592679 | J154: Non Academic | K154: National | L154: UPP Only | M154: Total Comp
A155: AAAP: DermatologyUPP Only | B155: AAAP: Dermatology | C155: UPP Only | F155: * | G155: * | H155: * | I155: * | J155: AAAP 2014-2015 | K155: Northeastern | L155: Associate Professor | M155: Total Comp
A156: AAAP: Emergency MedicineUPP Only | B156: AAAP: Emergency Medicine | C156: UPP Only | F156: 201300 | G156: 248900 | H156: 321300 | I156: * | J156: AAAP 2014-2015 | K156: Northeastern | L156: Associate Professor | M156: Total Comp
A157: AAAP: Endocrinology/MetabolismUPP Only | B157: AAAP: Endocrinology/Metabolism | C157: UPP Only | F157: 160000 | G157: 180400 | H157: 197000 | I157: * | J157: AAAP 2014-2015 | K157: Northeastern | L157: Associate Professor | M157: Total Comp
A158: AAAP: EpilepsyUPP Only | B158: AAAP: Epilepsy | C158: UPP Only | F158: * | G158: * | H158: * | I158: * | J158: AAAP 2014-2015 | K158: Northeastern | L158: Associate Professor | M158: Total Comp
A159: AAAP: Gastroenterology/NutritionUPP Only | B159: AAAP: Gastroenterology/Nutrition | C159: UPP Only | F159: 205000 | G159: 263200 | H159: 311300 | I159: * | J159: AAAP 2014-2015 | K159: Northeastern | L159: Associate Professor | M159: Total Comp
A160: AAAP: General PediatricsUPP Only | B160: AAAP: General Pediatrics | C160: UPP Only | F160: 153500 | G160: 168500 | H160: 204200 | I160: * | J160: AAAP 2014-2015 | K160: Northeastern | L160: Associate Professor | M160: Total Comp
A161: AAAP: General Peds-in EDUPP Only | B161: AAAP: General Peds-in ED | C161: UPP Only | F161: 210200 | G161: 233400 | H161: 298600 | I161: * | J161: AAAP 2014-2015 | K161: National | L161: Associate Professor | M161: Total Comp
A162: AAAP: GeneticsUPP Only | B162: AAAP: Genetics | C162: UPP Only | F162: 153700 | G162: 164000 | H162: 178000 | I162: * | J162: AAAP 2014-2015 | K162: Northeastern | L162: Associate Professor | M162: Total Comp
A163: AAAP: Hematology/OncologyUPP Only | B163: AAAP: Hematology/Oncology | C163: UPP Only | F163: 177000 | G163: 203000 | H163: 239000 | I163: * | J163: AAAP 2014-2015 | K163: Northeastern | L163: Associate Professor | M163: Total Comp
A164: Pediatrics: Neurological SurgeryUPP Only | B164: Pediatrics: Neurological Surgery | C164: UPP Only | D164: 23 | E164: 12 | F164: 648019 | G164: 793306 | H164: 929770 | I164: 997954 | J164: Non Academic | K164: National | L164: UPP Only | M164: Total Comp
A165: Pediatrics: OphthalmologyUPP Only | B165: Pediatrics: Ophthalmology | C165: UPP Only | D165: 20 | E165: 14 | F165: 279437 | G165: 326675 | H165: 392596 | I165: 477645 | J165: Non Academic | K165: National | L165: UPP Only | M165: Total Comp
A166: Pediatrics: Orthopedic SurgeryUPP Only | B166: Pediatrics: Orthopedic Surgery | C166: UPP Only | D166: 56 | E166: 19 | F166: 438122 | G166: 529102 | H166: 657814 | I166: 814082 | J166: Non Academic | K166: National | L166: UPP Only | M166: Total Comp
A167: Pediatrics: OtorhinolaryngologyUPP Only | B167: Pediatrics: Otorhinolaryngology | C167: UPP Only | D167: 14 | E167: 6 | F167: 278670 | G167: 346886 | H167: 393921 | I167: 464283 | J167: Non Academic | K167: National | L167: UPP Only | M167: Total Comp
A168: AAAP: HospitalistUPP Only | B168: AAAP: Hospitalist | C168: UPP Only | F168: 161700 | G168: 175100 | H168: 216200 | I168: * | J168: AAAP 2014-2015 | K168: Northeastern | L168: Associate Professor | M168: Total Comp
A169: AAAP: Infectious DiseasesUPP Only | B169: AAAP: Infectious Diseases | C169: UPP Only | F169: 144200 | G169: 151000 | H169: 173400 | I169: * | J169: AAAP 2014-2015 | K169: Northeastern | L169: Associate Professor | M169: Total Comp
A170: AAAP: Med/PedsUPP Only | B170: AAAP: Med/Peds | C170: UPP Only | F170: * | G170: * | H170: * | I170: * | J170: AAAP 2014-2015 | K170: Northeastern | L170: Associate Professor | M170: Total Comp
A171: AAAP: NeonatologyUPP Only | B171: AAAP: Neonatology | C171: UPP Only | F171: 199600 | G171: 238500 | H171: 280700 | I171: * | J171: AAAP 2014-2015 | K171: Northeastern | L171: Associate Professor | M171: Total Comp
A172: AAAP: NephrologyUPP Only | B172: AAAP: Nephrology | C172: UPP Only | F172: 188000 | G172: 201100 | H172: 238600 | I172: * | J172: AAAP 2014-2015 | K172: Northeastern | L172: Associate Professor | M172: Total Comp
A173: AAAP: NeurologyUPP Only | B173: AAAP: Neurology | C173: UPP Only | F173: 188200 | G173: 211500 | H173: 231600 | I173: * | J173: AAAP 2014-2015 | K173: Northeastern | L173: Associate Professor | M173: Total Comp
A174: AAAP: OtherUPP Only | B174: AAAP: Other | C174: UPP Only | F174: * | G174: * | H174: * | I174: * | J174: AAAP 2014-2015 | K174: Northeastern | L174: Associate Professor | M174: Total Comp
A175: AAAP: Pediatric ForensicsUPP Only | B175: AAAP: Pediatric Forensics | C175: UPP Only | F175: * | G175: * | H175: * | I175: * | J175: AAAP 2014-2015 | K175: Northeastern | L175: Associate Professor | M175: Total Comp
A176: AAAP: PsychologyUPP Only | B176: AAAP: Psychology | C176: UPP Only | F176: * | G176: * | H176: * | I176: * | J176: AAAP 2014-2015 | K176: Northeastern | L176: Associate Professor | M176: Total Comp
A177: AAAP: PulmonaryUPP Only | B177: AAAP: Pulmonary | C177: UPP Only | F177: 198900 | G177: 216500 | H177: 266000 | I177: * | J177: AAAP 2014-2015 | K177: Northeastern | L177: Associate Professor | M177: Total Comp
A178: AAAP: RehabilitationUPP Only | B178: AAAP: Rehabilitation | C178: UPP Only | F178: * | G178: * | H178: * | I178: * | J178: AAAP 2014-2015 | K178: Northeastern | L178: Associate Professor | M178: Total Comp
A179: AAAP: RheumatologyUPP Only | B179: AAAP: Rheumatology | C179: UPP Only | F179: 145000 | G179: 177200 | H179: 230000 | I179: * | J179: AAAP 2014-2015 | K179: Northeastern | L179: Associate Professor | M179: Total Comp
A180: Pediatrics: SurgeryUPP Only | B180: Pediatrics: Surgery | C180: UPP Only | D180: 75 | E180: 29 | F180: 515092 | G180: 601199 | H180: 771688 | I180: 908116 | J180: Non Academic | K180: National | L180: UPP Only | M180: Total Comp
A181: AAAP: Sleep MedicineUPP Only | B181: AAAP: Sleep Medicine | C181: UPP Only | F181: * | G181: * | H181: * | I181: * | J181: AAAP 2014-2015 | K181: Northeastern | L181: Associate Professor | M181: Total Comp
A182: AAAP: Sports MedicineUPP Only | B182: AAAP: Sports Medicine | C182: UPP Only | F182: * | G182: * | H182: * | I182: * | J182: AAAP 2014-2015 | K182: Northeastern | L182: Associate Professor | M182: Total Comp
A183: Pediatrics: UrologyUPP Only | B183: Pediatrics: Urology | C183: UPP Only | D183: 16 | E183: 11 | F183: 357642 | G183: 425971 | H183: 507810 | I183: 831720 | J183: Non Academic | K183: National | L183: UPP Only | M183: Total Comp
A184: Psychiatry: GeriatricUPP Only | B184: Psychiatry: Geriatric | C184: UPP Only | D184: 10 | E184: 6 | F184: 180110 | G184: 234999 | H184: 272607 | I184: 390575 | J184: MGMA 2015 Provider Compensation | K184: National | L184: UPP Only | M184: Total Comp
A185: Radiology: NeurologicalUPP Only | B185: Radiology: Neurological | C185: UPP Only | D185: 41 | E185: 8 | F185: 385178 | G185: 528361 | H185: 586174 | I185: 668134 | J185: MGMA 2015 Provider Compensation | K185: National | L185: UPP Only | M185: Total Comp
A186: Radiology: Nuclear MedicineUPP Only | B186: Radiology: Nuclear Medicine | C186: UPP Only | D186: 13 | E186: 8 | F186: 304199 | G186: 405644 | H186: 507227 | I186: 626819 | J186: MGMA 2015 Provider Compensation | K186: National | L186: UPP Only | M186: Total Comp
A187: Surgeon AssistantUPP Only | B187: Surgeon Assistant | C187: UPP Only | D187: 15 | E187: 7 | F187: 92864 | G187: 97357 | H187: 133400 | I187: 156911 | J187: MGMA 2015 Provider Compensation | K187: National | L187: UPP Only | M187: Total Comp
A188: Surgery: OralUPP Only | B188: Surgery: Oral | C188: UPP Only | D188: 23 | E188: 11 | F188: 334378 | G188: 447655 | H188: 586540 | I188: 730264 | J188: MGMA 2015 Provider Compensation | K188: National | L188: UPP Only | M188: Total Comp
A189: Surgery: Plastic and Reconstruction-HandUPP Only | B189: Surgery: Plastic and Reconstruction-Hand | C189: UPP Only | D189: 14 | E189: 8 | F189: 349247 | G189: 416005 | H189: 594584 | I189: 734452 | J189: MGMA 2015 Provider Compensation | K189: National | L189: UPP Only | M189: Total Comp
A190: Surgery: TransplantUPP Only | B190: Surgery: Transplant | C190: UPP Only | D190: 46 | E190: 15 | F190: 408636 | G190: 455378 | H190: 596870 | I190: 757490 | J190: MGMA 2015 Provider Compensation | K190: National | L190: UPP Only | M190: Total Comp
A191: Surgery: Transplant-KidneyUPP Only | B191: Surgery: Transplant-Kidney | C191: UPP Only | D191: 17 | E191: 7 | F191: 275152 | G191: 304573 | H191: 350518 | I191: 452551 | J191: MGMA 2015 Provider Compensation | K191: National | L191: UPP Only | M191: Total Comp
A192: Allergy/ImmunologyInstructor | B192: Allergy/Immunology | C192: Instructor | D192: 47 | E192: 15 | F192: 145000 | G192: 199338 | H192: 227502 | I192: 276231 | J192: MGMA 2015 Academic Provider Compensation | K192: National | L192: Assistant Professor | M192: Total Comp
A193: Allergy/ImmunologyAssistant Professor | B193: Allergy/Immunology | C193: Assistant Professor | D193: 17 | E193: 11 | F193: 140444 | G193: 162009 | H193: 204853 | I193: 237427 | J193: MGMA 2015 Academic Provider Compensation | K193: National | L193: Assistant Professor | M193: Total Comp
A194: Allergy/ImmunologyAssociate Professor | B194: Allergy/Immunology | C194: Associate Professor | D194: 47 | E194: 15 | F194: 145000 | G194: 199338 | H194: 227502 | I194: 276231 | J194: MGMA 2015 Academic Provider Compensation | K194: National | L194: All Ranks | M194: Total Comp
A195: Allergy/ImmunologyProfessor | B195: Allergy/Immunology | C195: Professor | D195: 15 | E195: 7 | F195: 153558 | G195: 200733 | H195: 237864 | I195: 336554 | J195: MGMA 2015 Academic Provider Compensation | K195: National | L195: Professor | M195: Total Comp
A196: AnesthesiologyInstructor | B196: Anesthesiology | C196: Instructor | D196: 72 | E196: 7 | F196: 251639 | G196: 297216 | H196: 340564 | I196: 390276 | J196: MGMA 2015 Academic Provider Compensation | K196: Eastern | L196: Instructor | M196: Total Comp
A197: AnesthesiologyAssistant Professor | B197: Anesthesiology | C197: Assistant Professor | D197: 381 | E197: 11 | F197: 288335 | G197: 329855 | H197: 367108 | I197: 405309 | J197: MGMA 2015 Academic Provider Compensation | K197: Eastern | L197: Assistant Professor | M197: Total Comp
A198: AnesthesiologyAssociate Professor | B198: Anesthesiology | C198: Associate Professor | D198: 114 | E198: 11 | F198: 309336 | G198: 360205 | H198: 422808 | I198: 459740 | J198: MGMA 2015 Academic Provider Compensation | K198: Eastern | L198: Associate Professor | M198: Total Comp
A199: AnesthesiologyProfessor | B199: Anesthesiology | C199: Professor | D199: 67 | E199: 10 | F199: 313909 | G199: 383482 | H199: 434755 | I199: 500295 | J199: MGMA 2015 Academic Provider Compensation | K199: Eastern | L199: Professor | M199: Total Comp
A200: Anesthesiology: Pain ManagementInstructor | B200: Anesthesiology: Pain Management | C200: Instructor | D200: 16 | E200: 4 | F200: 315486 | G200: 330208 | H200: 402975 | I200: 539879 | J200: MGMA 2015 Academic Provider Compensation | K200: Eastern | L200: All Ranks | M200: Total Comp
... 710 more rows

Sheet MGMA Productivity Tables (hidden)
A1: Unique ID | B1: Specialty | D1: Provider Count | E1: Group Count | F1: 25th %tile | G1: Median | H1: 75th %tile | I1: 90th %tile | J1: Table | K1: Geography | L1: Rank | M1: Metric
A2: =CONCATENATE(B2,C2) -> Allergy/ImmunologyUPP Only | B2: Allergy/Immunology | C2: UPP Only | D2: 16 | E2: 6 | F2: 2771 | G2: 3528 | H2: 3780 | I2: 4642 | J2: Non Academic | K2: Eastern | L2: UPP Only | M2: Work RVU
A3: =CONCATENATE(B3,C3) -> Anesthesiology: Pain ManagementUPP Only | B3: Anesthesiology: Pain Management | C3: UPP Only | D3: 15 | E3: 7 | F3: 6694 | G3: 8397 | H3: 9177 | I3: 10608 | J3: Non Academic | K3: Eastern | L3: UPP Only | M3: Work RVU
A4: Cardiology: ElectrophysiologyUPP Only | B4: Cardiology: Electrophysiology | C4: UPP Only | D4: 45 | E4: 18 | F4: 6502 | G4: 9130 | H4: 12583 | I4: 13568 | J4: Non Academic | K4: Eastern | L4: UPP Only | M4: Work RVU
A5: Cardiology: InvasiveUPP Only | B5: Cardiology: Invasive | C5: UPP Only | D5: 48 | E5: 19 | F5: 6045 | G5: 7343 | H5: 10548 | I5: 15154 | J5: Non Academic | K5: Eastern | L5: UPP Only | M5: Work RVU
A6: Cardiology: Invasive-InterventionalUPP Only | B6: Cardiology: Invasive-Interventional | C6: UPP Only | D6: 117 | E6: 36 | F6: 6084 | G6: 8078 | H6: 10460 | I6: 12887 | J6: Non Academic | K6: Eastern | L6: UPP Only | M6: Work RVU
A7: Cardiology: NoninvasiveUPP Only | B7: Cardiology: Noninvasive | C7: UPP Only | D7: 214 | E7: 37 | F7: 5720 | G7: 6890 | H7: 8185 | I7: 12492 | J7: Non Academic | K7: Eastern | L7: UPP Only | M7: Work RVU
A8: Critical Care: IntensivistUPP Only | B8: Critical Care: Intensivist | C8: UPP Only | D8: 39 | E8: 7 | F8: 3579 | G8: 4286 | H8: 5063 | I8: 5528 | J8: Non Academic | K8: Eastern | L8: UPP Only | M8: Work RVU
A9: DermatologyUPP Only | B9: Dermatology | C9: UPP Only | D9: 41 | E9: 18 | F9: 6760 | G9: 7823 | H9: 9234 | I9: 10974 | J9: Non Academic | K9: Eastern | L9: UPP Only | M9: Work RVU
A10: Emergency MedicineUPP Only | B10: Emergency Medicine | C10: UPP Only | D10: 144 | E10: 11 | F10: 4179 | G10: 5832 | H10: 8292 | I10: 10829 | J10: Non Academic | K10: Eastern | L10: UPP Only | M10: Work RVU
A11: Endocrinology/MetabolismUPP Only | B11: Endocrinology/Metabolism | C11: UPP Only | D11: 73 | E11: 29 | F11: 3679 | G11: 4496 | H11: 5992 | I11: 8196 | J11: Non Academic | K11: Eastern | L11: UPP Only | M11: Work RVU
A12: Family Medicine (with OB)UPP Only | B12: Family Medicine (with OB) | C12: UPP Only | D12: 31 | E12: 13 | F12: 3413 | G12: 4255 | H12: 5187 | I12: 6741 | J12: Non Academic | K12: Eastern | L12: UPP Only | M12: Work RVU
A13: Family Medicine (without OB)UPP Only | B13: Family Medicine (without OB) | C13: UPP Only | D13: 884 | E13: 207 | F13: 4191 | G13: 5221 | H13: 6255 | I13: 7440 | J13: Non Academic | K13: Eastern | L13: UPP Only | M13: Work RVU
A14: Family Medicine: Ambulatory Only (No Inpatient Work)UPP Only | B14: Family Medicine: Ambulatory Only (No Inpatient Work) | C14: UPP Only | D14: 175 | E14: 49 | F14: 4464 | G14: 5397 | H14: 6400 | I14: 7396 | J14: Non Academic | K14: Eastern | L14: UPP Only | M14: Work RVU
A15: GastroenterologyUPP Only | B15: Gastroenterology | C15: UPP Only | D15: 89 | E15: 24 | F15: 7643 | G15: 9127 | H15: 10943 | I15: 12333 | J15: Non Academic | K15: Eastern | L15: UPP Only | M15: Work RVU
A16: GeriatricsUPP Only | B16: Geriatrics | C16: UPP Only | D16: 19 | E16: 8 | F16: 2705 | G16: 3472 | H16: 3803 | I16: 4719 | J16: Non Academic | K16: Eastern | L16: UPP Only | M16: Work RVU
A17: Hematology/OncologyUPP Only | B17: Hematology/Oncology | C17: UPP Only | D17: 67 | E17: 18 | F17: 3375 | G17: 4626 | H17: 5956 | I17: 7099 | J17: Non Academic | K17: Eastern | L17: UPP Only | M17: Work RVU
A18: Hematology/Oncology: Oncology (Only)UPP Only | B18: Hematology/Oncology: Oncology (Only) | C18: UPP Only | D18: 12 | E18: 3 | F18: 6346 | G18: 7352 | H18: 8515 | I18: 8870 | J18: Non Academic | K18: Eastern | L18: UPP Only | M18: Work RVU
A19: Hospitalist: Family MedicineUPP Only | B19: Hospitalist: Family Medicine | C19: UPP Only | D19: 10 | E19: 4 | F19: 3046 | G19: 4392 | H19: 4551 | I19: 5128 | J19: Non Academic | K19: Eastern | L19: UPP Only | M19: Work RVU
A20: Hospitalist: Internal MedicineUPP Only | B20: Hospitalist: Internal Medicine | C20: UPP Only | D20: 365 | E20: 41 | F20: 3180 | G20: 4062 | H20: 4788 | I20: 5706 | J20: Non Academic | K20: Eastern | L20: UPP Only | M20: Work RVU
A21: Infectious DiseaseUPP Only | B21: Infectious Disease | C21: UPP Only | D21: 67 | E21: 19 | F21: 3201 | G21: 4481 | H21: 6846 | I21: 9424 | J21: Non Academic | K21: Eastern | L21: UPP Only | M21: Work RVU
A22: Internal Medicine: GeneralUPP Only | B22: Internal Medicine: General | C22: UPP Only | D22: 764 | E22: 111 | F22: 3814 | G22: 4612 | H22: 5840 | I22: 7276 | J22: Non Academic | K22: Eastern | L22: UPP Only | M22: Work RVU
A23: Internal Medicine: Ambulatory Only (No Inpatient Work)UPP Only | B23: Internal Medicine: Ambulatory Only (No Inpatient Work) | C23: UPP Only | D23: 94 | E23: 25 | F23: 4525 | G23: 5752 | H23: 6480 | I23: 7435 | J23: Non Academic | K23: Eastern | L23: UPP Only | M23: Work RVU
A24: NephrologyUPP Only | B24: Nephrology | C24: UPP Only | D24: 39 | E24: 12 | F24: 4625 | G24: 6777 | H24: 7945 | I24: 8726 | J24: Non Academic | K24: Eastern | L24: UPP Only | M24: Work RVU
A25: NeurologyUPP Only | B25: Neurology | C25: UPP Only | D25: 138 | E25: 40 | F25: 3850 | G25: 4618 | H25: 5891 | I25: 7069 | J25: Non Academic | K25: Eastern | L25: UPP Only | M25: Work RVU
A26: Obstetrics/Gynecology: GeneralUPP Only | B26: Obstetrics/Gynecology: General | C26: UPP Only | D26: 319 | E26: 80 | F26: 5133 | G26: 6390 | H26: 7649 | I26: 8985 | J26: Non Academic | K26: Eastern | L26: UPP Only | M26: Work RVU
A27: OB/GYN: Gynecology (Only)UPP Only | B27: OB/GYN: Gynecology (Only) | C27: UPP Only | D27: 40 | E27: 22 | F27: 4098 | G27: 5222 | H27: 8932 | I27: 9801 | J27: Non Academic | K27: Eastern | L27: UPP Only | M27: Work RVU
A28: OB/GYN: Maternal and Fetal MedicineUPP Only | B28: OB/GYN: Maternal and Fetal Medicine | C28: UPP Only | D28: 23 | E28: 8 | F28: 5276 | G28: 6424 | H28: 9072 | I28: 10114 | J28: Non Academic | K28: Eastern | L28: UPP Only | M28: Work RVU
A29: OphthalmologyUPP Only | B29: Ophthalmology | C29: UPP Only | D29: 36 | E29: 13 | F29: 6358 | G29: 8382 | H29: 9636 | I29: 12209 | J29: Non Academic | K29: Eastern | L29: UPP Only | M29: Work RVU
A30: Orthopedic (Nonsurgical)UPP Only | B30: Orthopedic (Nonsurgical) | C30: UPP Only | D30: 13 | E30: 6 | F30: 6499 | G30: 8830 | H30: 10407 | I30: 11382 | J30: Non Academic | K30: Eastern | L30: UPP Only | M30: Work RVU
A31: Orthopedic Surgery: GeneralUPP Only | B31: Orthopedic Surgery: General | C31: UPP Only | D31: 79 | E31: 31 | F31: 5824 | G31: 7838 | H31: 10445 | I31: 13569 | J31: Non Academic | K31: Eastern | L31: UPP Only | M31: Work RVU
A32: Orthopedic Surgery: HandUPP Only | B32: Orthopedic Surgery: Hand | C32: UPP Only | D32: 23 | E32: 16 | F32: 7609 | G32: 9664 | H32: 11159 | I32: 17732 | J32: Non Academic | K32: Eastern | L32: UPP Only | M32: Work RVU
A33: Orthopedic Surgery: Hip and JointUPP Only | B33: Orthopedic Surgery: Hip and Joint | C33: UPP Only | D33: 13 | E33: 9 | F33: 7102 | G33: 10260 | H33: 12002 | I33: 15214 | J33: Non Academic | K33: Eastern | L33: UPP Only | M33: Work RVU
A34: Orthopedic Surgery: SpineUPP Only | B34: Orthopedic Surgery: Spine | C34: UPP Only | D34: 18 | E34: 11 | F34: 8710 | G34: 12339 | H34: 18361 | I34: 18954 | J34: Non Academic | K34: Eastern | L34: UPP Only | M34: Work RVU
A35: Orthopedic Surgery: TraumaUPP Only | B35: Orthopedic Surgery: Trauma | C35: UPP Only | D35: 20 | E35: 9 | F35: 7060 | G35: 9709 | H35: 12472 | I35: 14785 | J35: Non Academic | K35: Eastern | L35: UPP Only | M35: Work RVU
A36: Orthopedic Surgery: Sports MedicineUPP Only | B36: Orthopedic Surgery: Sports Medicine | C36: UPP Only | D36: 28 | E36: 15 | F36: 8143 | G36: 9803 | H36: 11912 | I36: 15912 | J36: Non Academic | K36: Eastern | L36: UPP Only | M36: Work RVU
A37: OtorhinolaryngologyUPP Only | B37: Otorhinolaryngology | C37: UPP Only | D37: 72 | E37: 21 | F37: 6088 | G37: 7232 | H37: 8308 | I37: 9830 | J37: Non Academic | K37: Eastern | L37: UPP Only | M37: Work RVU
A38: Pain Management: NonanesthesiaUPP Only | B38: Pain Management: Nonanesthesia | C38: UPP Only | D38: 12 | E38: 7 | F38: 5573 | G38: 6801 | H38: 7566 | I38: 9268 | J38: Non Academic | K38: Eastern | L38: UPP Only | M38: Work RVU
A39: Pathology: Anatomic and ClinicalUPP Only | B39: Pathology: Anatomic and Clinical | C39: UPP Only | D39: 37 | E39: 6 | F39: 5895 | G39: 7811 | H39: 9236 | I39: 12216 | J39: Non Academic | K39: Eastern | L39: UPP Only | M39: Work RVU
A40: AAAP: Adolescent MedicineUPP Only | B40: AAAP: Adolescent Medicine | C40: UPP Only | F40: 2326 | G40: 2901 | H40: 3876 | I40: 5431 | J40: AAAP Compensation 2014-2015 | K40: National | L40: All Ranks | M40: Work RVU
A41: AAAP: Allergy/ImmunologyUPP Only | B41: AAAP: Allergy/Immunology | C41: UPP Only | F41: 2886 | G41: 3654 | H41: 4860 | I41: 6736 | J41: AAAP Compensation 2014-2015 | K41: National | L41: All Ranks | M41: Work RVU
A42: AAAP: Bone Marrow TransplantUPP Only | B42: AAAP: Bone Marrow Transplant | C42: UPP Only | F42: 3221 | G42: 4168 | H42: 5094 | I42: 7606 | J42: AAAP Compensation 2014-2015 | K42: National | L42: All Ranks | M42: Work RVU
A43: AAAP: Cardiology - Critical CareUPP Only | B43: AAAP: Cardiology - Critical Care | C43: UPP Only | F43: 5817 | G43: 7750 | H43: 11096 | I43: 16327 | J43: AAAP Compensation 2014-2015 | K43: National | L43: All Ranks | M43: Work RVU
A44: AAAP: Cardiology - DiagnosticUPP Only | B44: AAAP: Cardiology - Diagnostic | C44: UPP Only | F44: 3396 | G44: 4595 | H44: 5849 | I44: 7271 | J44: AAAP Compensation 2014-2015 | K44: National | L44: All Ranks | M44: Work RVU
A45: AAAP: Cardiology - InterventionalUPP Only | B45: AAAP: Cardiology - Interventional | C45: UPP Only | F45: 4514 | G45: 5979 | H45: 7973 | I45: 9708 | J45: AAAP Compensation 2014-2015 | K45: National | L45: All Ranks | M45: Work RVU
A46: AAAP: Child DevelopmentUPP Only | B46: AAAP: Child Development | C46: UPP Only | F46: 2009 | G46: 2826 | H46: 3701 | I46: 4870 | J46: AAAP Compensation 2014-2015 | K46: National | L46: All Ranks | M46: Work RVU
A47: Physiatry (Physical Medicine and Rehabilitation)UPP Only | B47: Physiatry (Physical Medicine and Rehabilitation) | C47: UPP Only | D47: 20 | E47: 15 | F47: 4597 | G47: 5529 | H47: 7355 | I47: 9472 | J47: Non Academic | K47: Eastern | L47: UPP Only | M47: Work RVU
A48: Podiatry: GeneralUPP Only | B48: Podiatry: General | C48: UPP Only | D48: 18 | E48: 8 | F48: 3896 | G48: 4524 | H48: 5541 | I48: 5979 | J48: Non Academic | K48: Eastern | L48: UPP Only | M48: Work RVU
A49: Podiatry: Surgery-Foot and AnkleUPP Only | B49: Podiatry: Surgery-Foot and Ankle | C49: UPP Only | D49: 24 | E49: 9 | F49: 4974 | G49: 5578 | H49: 6740 | I49: 7259 | J49: Non Academic | K49: Eastern | L49: UPP Only | M49: Work RVU
A50: Psychiatry: GeneralUPP Only | B50: Psychiatry: General | C50: UPP Only | D50: 90 | E50: 27 | F50: 3151 | G50: 3847 | H50: 5085 | I50: 6242 | J50: Non Academic | K50: Eastern | L50: UPP Only | M50: Work RVU
A51: Psychiatry: Child and AdolescentUPP Only | B51: Psychiatry: Child and Adolescent | C51: UPP Only | D51: 10 | E51: 7 | F51: 2848 | G51: 4051 | H51: 4785 | I51: 4867 | J51: Non Academic | K51: Eastern | L51: UPP Only | M51: Work RVU
A52: Pulmonary Medicine: GeneralUPP Only | B52: Pulmonary Medicine: General | C52: UPP Only | D52: 24 | E52: 14 | F52: 3205 | G52: 5007 | H52: 7607 | I52: 10293 | J52: Non Academic | K52: Eastern | L52: UPP Only | M52: Work RVU
A53: Pulmonary Medicine: Critical CareUPP Only | B53: Pulmonary Medicine: Critical Care | C53: UPP Only | D53: 38 | E53: 4 | F53: 3269 | G53: 5920 | H53: 7686 | I53: 9131 | J53: Non Academic | K53: Eastern | L53: UPP Only | M53: Work RVU
A54: Pulmonary Medicine: General and Critical CareUPP Only | B54: Pulmonary Medicine: General and Critical Care | C54: UPP Only | D54: 34 | E54: 11 | F54: 5138 | G54: 6025 | H54: 8041 | I54: 10384 | J54: Non Academic | K54: Eastern | L54: UPP Only | M54: Work RVU
A55: Radiation OncologyUPP Only | B55: Radiation Oncology | C55: UPP Only | D55: 24 | E55: 3 | F55: 8465 | G55: 9967 | H55: 11485 | I55: 12329 | J55: Non Academic | K55: Eastern | L55: UPP Only | M55: Work RVU
A56: Radiology: InterventionalUPP Only | B56: Radiology: Interventional | C56: UPP Only | D56: 21 | E56: 7 | F56: 7930 | G56: 9214 | H56: 11901 | I56: 12645 | J56: Non Academic | K56: Eastern | L56: UPP Only | M56: Work RVU
A57: Radiology: DiagnosticUPP Only | B57: Radiology: Diagnostic | C57: UPP Only | D57: 155 | E57: 10 | F57: 8228 | G57: 9688 | H57: 11689 | I57: 13791 | J57: Non Academic | K57: Eastern | L57: UPP Only | M57: Work RVU
A58: RheumatologyUPP Only | B58: Rheumatology | C58: UPP Only | D58: 50 | E58: 24 | F58: 3928 | G58: 5025 | H58: 5714 | I58: 6536 | J58: Non Academic | K58: Eastern | L58: UPP Only | M58: Work RVU
A59: Surgery: GeneralUPP Only | B59: Surgery: General | C59: UPP Only | D59: 139 | E59: 42 | F59: 5494 | G59: 7407 | H59: 9314 | I59: 12406 | J59: Non Academic | K59: Eastern | L59: UPP Only | M59: Work RVU
A60: Surgery: BariatricUPP Only | B60: Surgery: Bariatric | C60: UPP Only | D60: 10 | E60: 6 | F60: 4713 | G60: 6048 | H60: 8304 | I60: 11220 | J60: Non Academic | K60: Eastern | L60: UPP Only | M60: Work RVU
A61: Surgery: BreastUPP Only | B61: Surgery: Breast | C61: UPP Only | D61: 18 | E61: 10 | F61: 5109 | G61: 6449 | H61: 8414 | I61: 11294 | J61: Non Academic | K61: Eastern | L61: UPP Only | M61: Work RVU
A62: Surgery: CardiovascularUPP Only | B62: Surgery: Cardiovascular | C62: UPP Only | D62: 25 | E62: 11 | F62: 7113 | G62: 8425 | H62: 11411 | I62: 13166 | J62: Non Academic | K62: Eastern | L62: UPP Only | M62: Work RVU
A63: Surgery: Colon and RectalUPP Only | B63: Surgery: Colon and Rectal | C63: UPP Only | D63: 12 | E63: 5 | F63: 7715 | G63: 8119 | H63: 9208 | I63: 10136 | J63: Non Academic | K63: Eastern | L63: UPP Only | M63: Work RVU
A64: Surgery: NeurologicalUPP Only | B64: Surgery: Neurological | C64: UPP Only | D64: 40 | E64: 14 | F64: 6815 | G64: 8766 | H64: 11328 | I64: 17983 | J64: Non Academic | K64: Eastern | L64: UPP Only | M64: Work RVU
A65: Surgery: Plastic and ReconstructionUPP Only | B65: Surgery: Plastic and Reconstruction | C65: UPP Only | D65: 23 | E65: 13 | F65: 4566 | G65: 6865 | H65: 11306 | I65: 12775 | J65: Non Academic | K65: Eastern | L65: UPP Only | M65: Work RVU
A66: Surgery: Thoracic (Primary)UPP Only | B66: Surgery: Thoracic (Primary) | C66: UPP Only | D66: 12 | E66: 6 | F66: 5059 | G66: 6209 | H66: 12514 | I66: 19065 | J66: Non Academic | K66: Eastern | L66: UPP Only | M66: Work RVU
A67: =CONCATENATE(B67,C67) -> Surgery: TraumaUPP Only | B67: Surgery: Trauma | C67: UPP Only | D67: 36 | E67: 7 | F67: 4129 | G67: 7348 | H67: 8210 | I67: 11644 | J67: Non Academic | K67: Eastern | L67: UPP Only | M67: Work RVU
A68: Surgery: Vascular (Primary)UPP Only | B68: Surgery: Vascular (Primary) | C68: UPP Only | D68: 48 | E68: 16 | F68: 7151 | G68: 9797 | H68: 10841 | I68: 12226 | J68: Non Academic | K68: Eastern | L68: UPP Only | M68: Work RVU
A69: Urgent CareUPP Only | B69: Urgent Care | C69: UPP Only | D69: 49 | E69: 14 | F69: 4047 | G69: 5023 | H69: 5938 | I69: 6843 | J69: Non Academic | K69: Eastern | L69: UPP Only | M69: Work RVU
A70: UrologyUPP Only | B70: Urology | C70: UPP Only | D70: 90 | E70: 28 | F70: 6350 | G70: 7883 | H70: 9593 | I70: 11220 | J70: Non Academic | K70: Eastern | L70: UPP Only | M70: Work RVU
A71: AudiologistUPP Only | B71: Audiologist | C71: UPP Only | D71: 15 | E71: 6 | F71: 605 | G71: 1089 | H71: 1608 | I71: 1924 | J71: Non Academic | K71: Eastern | L71: UPP Only | M71: Work RVU
A72: Nurse Midwife: Outpatient/Inpatient DeliveriesUPP Only | B72: Nurse Midwife: Outpatient/Inpatient Deliveries | C72: UPP Only | D72: 23 | E72: 8 | F72: 3685 | G72: 4186 | H72: 4682 | I72: 5382 | J72: Non Academic | K72: Eastern | L72: UPP Only | M72: Work RVU
A73: NP: Acute CareUPP Only | B73: NP: Acute Care | C73: UPP Only | D73: 10 | E73: 3 | F73: 2271 | G73: 3571 | H73: 4116 | I73: 4821 | J73: Non Academic | K73: Eastern | L73: UPP Only | M73: Work RVU
A74: NP: CardiologyUPP Only | B74: NP: Cardiology | C74: UPP Only | D74: 22 | E74: 8 | F74: 772 | G74: 1566 | H74: 2521 | I74: 2909 | J74: Non Academic | K74: Eastern | L74: UPP Only | M74: Work RVU
A75: NP: Family Medicine (without OB)UPP Only | B75: NP: Family Medicine (without OB) | C75: UPP Only | D75: 63 | E75: 37 | F75: 2422 | G75: 3376 | H75: 4102 | I75: 5049 | J75: Non Academic | K75: Eastern | L75: UPP Only | M75: Work RVU
A76: NP: HospitalistUPP Only | B76: NP: Hospitalist | C76: UPP Only | D76: 15 | E76: 6 | F76: 500 | G76: 1121 | H76: 1922 | I76: 2654 | J76: Non Academic | K76: Eastern | L76: UPP Only | M76: Work RVU
A77: NP: Internal MedicineUPP Only | B77: NP: Internal Medicine | C77: UPP Only | D77: 41 | E77: 14 | F77: 1911 | G77: 2893 | H77: 3614 | I77: 4391 | J77: Non Academic | K77: Eastern | L77: UPP Only | M77: Work RVU
A78: NP: Pediatric/Child HealthUPP Only | B78: NP: Pediatric/Child Health | C78: UPP Only | D78: 24 | E78: 13 | F78: 1260 | G78: 3077 | H78: 4389 | I78: 5872 | J78: Non Academic | K78: Eastern | L78: UPP Only | M78: Work RVU
A79: NP: OB/GYN/Womens HealthUPP Only | B79: NP: OB/GYN/Womens Health | C79: UPP Only | D79: 14 | E79: 9 | F79: 2475 | G79: 3963 | H79: 4973 | I79: 5507 | J79: Non Academic | K79: Eastern | L79: UPP Only | M79: Work RVU
A80: Nurse Practitioner (Surgical)UPP Only | B80: Nurse Practitioner (Surgical) | C80: UPP Only | D80: 15 | E80: 7 | F80: 684 | G80: 1457 | H80: 2515 | I80: 3382 | J80: Non Academic | K80: Eastern | L80: UPP Only | M80: Work RVU
A81: Nurse Practitioner (Primary Care)UPP Only | B81: Nurse Practitioner (Primary Care) | C81: UPP Only | D81: 14 | E81: 6 | F81: 2570 | G81: 3145 | H81: 3969 | I81: 4357 | J81: Non Academic | K81: Eastern | L81: UPP Only | M81: Work RVU
A82: Nurse Practitioner (Nonsurgical, Nonprimary Care)UPP Only | B82: Nurse Practitioner (Nonsurgical, Nonprimary Care) | C82: UPP Only | D82: 29 | E82: 14 | F82: 466 | G82: 1651 | H82: 2562 | I82: 4664 | J82: Non Academic | K82: Eastern | L82: UPP Only | M82: Work RVU
A83: OptometristUPP Only | B83: Optometrist | C83: UPP Only | D83: 20 | E83: 4 | F83: 5103 | G83: 5827 | H83: 6141 | I83: 6487 | J83: Non Academic | K83: Eastern | L83: UPP Only | M83: Work RVU
A84: PhDUPP Only | B84: PhD | C84: UPP Only | D84: 16 | E84: 3 | F84: 2595 | G84: 2905 | H84: 3881 | I84: 5885 | J84: Non Academic | K84: Eastern | L84: UPP Only | M84: Work RVU
A85: Physician Assistant (Surgical)UPP Only | B85: Physician Assistant (Surgical) | C85: UPP Only | D85: 27 | E85: 10 | F85: 2716 | G85: 4219 | H85: 4895 | I85: 6077 | J85: Non Academic | K85: Eastern | L85: UPP Only | M85: Work RVU
A86: PA: Orthopedic (Surgical)UPP Only | B86: PA: Orthopedic (Surgical) | C86: UPP Only | D86: 56 | E86: 14 | F86: 1991 | G86: 2725 | H86: 3778 | I86: 5525 | J86: Non Academic | K86: Eastern | L86: UPP Only | M86: Work RVU
A87: PA: Cardiothoracic SurgeryUPP Only | B87: PA: Cardiothoracic Surgery | C87: UPP Only | D87: 14 | E87: 5 | F87: 894 | G87: 1433 | H87: 2509 | I87: 5309 | J87: Non Academic | K87: Eastern | L87: UPP Only | M87: Work RVU
A88: Physician Assistant (Primary Care)UPP Only | B88: Physician Assistant (Primary Care) | C88: UPP Only | D88: 13 | E88: 6 | F88: 2538 | G88: 3535 | H88: 4408 | I88: 5381 | J88: Non Academic | K88: Eastern | L88: UPP Only | M88: Work RVU
A89: PA: Family Medicine (without OB)UPP Only | B89: PA: Family Medicine (without OB) | C89: UPP Only | D89: 80 | E89: 22 | F89: 3049 | G89: 3838 | H89: 4600 | I89: 5214 | J89: Non Academic | K89: Eastern | L89: UPP Only | M89: Work RVU
A90: PA: HospitalistUPP Only | B90: PA: Hospitalist | C90: UPP Only | D90: 16 | E90: 5 | F90: 973 | G90: 1587 | H90: 2064 | I90: 2525 | J90: Non Academic | K90: Eastern | L90: UPP Only | M90: Work RVU
A91: PA: Internal MedicineUPP Only | B91: PA: Internal Medicine | C91: UPP Only | D91: 21 | E91: 7 | F91: 2545 | G91: 3395 | H91: 4780 | I91: 5960 | J91: Non Academic | K91: Eastern | L91: UPP Only | M91: Work RVU
A92: Physician Assistant (Nonsurgical, Nonprimary Care)UPP Only | B92: Physician Assistant (Nonsurgical, Nonprimary Care) | C92: UPP Only | D92: 19 | E92: 13 | F92: 1101 | G92: 1853 | H92: 3372 | I92: 3829 | J92: Non Academic | K92: Eastern | L92: UPP Only | M92: Work RVU
A93: PA: CardiologyUPP Only | B93: PA: Cardiology | C93: UPP Only | D93: 27 | E93: 10 | F93: 768 | G93: 1531 | H93: 2027 | I93: 2457 | J93: Non Academic | K93: Eastern | L93: UPP Only | M93: Work RVU
A94: Dermatology: DermatopathologyUPP Only | B94: Dermatology: Dermatopathology | C94: UPP Only | D94: 11 | E94: 7 | F94: 7368 | G94: 8836 | H94: 10367 | I94: 12316 | J94: Non Academic | K94: National | L94: UPP Only | M94: Work RVU
A95: Dermatology: Mohs SurgeryUPP Only | B95: Dermatology: Mohs Surgery | C95: UPP Only | D95: 28 | E95: 22 | F95: 11655 | G95: 14172 | H95: 18245 | I95: 21992 | J95: Non Academic | K95: National | L95: UPP Only | M95: Work RVU
A96: Family Medicine: Sports MedicineUPP Only | B96: Family Medicine: Sports Medicine | C96: UPP Only | D96: 79 | E96: 42 | F96: 3813 | G96: 5512 | H96: 6594 | I96: 8915 | J96: Non Academic | K96: National | L96: UPP Only | M96: Work RVU
A97: Family Medicine: Urgent CareUPP Only | B97: Family Medicine: Urgent Care | C97: UPP Only | D97: 116 | E97: 13 | F97: 4230 | G97: 6406 | H97: 8298 | I97: 10472 | J97: Non Academic | K97: National | L97: UPP Only | M97: Work RVU
A98: Hospice/Palliative CareUPP Only | B98: Hospice/Palliative Care | C98: UPP Only | D98: 41 | E98: 24 | F98: 1545 | G98: 2044 | H98: 2478 | I98: 3178 | J98: Non Academic | K98: National | L98: UPP Only | M98: Work RVU
A99: Hospitalist: OB/GYNUPP Only | B99: Hospitalist: OB/GYN | C99: UPP Only | D99: 14 | E99: 4 | F99: 1448 | G99: 2068 | H99: 3141 | I99: 3688 | J99: Non Academic | K99: National | L99: UPP Only | M99: Work RVU
A100: Hyperbaric Medicine/Wound CareUPP Only | B100: Hyperbaric Medicine/Wound Care | C100: UPP Only | D100: 26 | E100: 16 | F100: 3535 | G100: 4474 | H100: 5931 | I100: 7510 | J100: Non Academic | K100: National | L100: UPP Only | M100: Work RVU
A101: OB/GYN: Gynecological OncologyUPP Only | B101: OB/GYN: Gynecological Oncology | C101: UPP Only | D101: 76 | E101: 31 | F101: 5502 | G101: 6513 | H101: 8047 | I101: 12856 | J101: Non Academic | K101: National | L101: UPP Only | M101: Work RVU
A102: OB/GYN: Reproductive EndocrinologyUPP Only | B102: OB/GYN: Reproductive Endocrinology | C102: UPP Only | D102: 22 | E102: 10 | F102: 3584 | G102: 4151 | H102: 5283 | I102: 7313 | J102: Non Academic | K102: National | L102: UPP Only | M102: Work RVU
A103: OB/GYN: UrogynecologyUPP Only | B103: OB/GYN: Urogynecology | C103: UPP Only | D103: 25 | E103: 22 | F103: 4911 | G103: 5839 | H103: 7739 | I103: 9153 | J103: Non Academic | K103: National | L103: UPP Only | M103: Work RVU
A104: Occupational MedicineUPP Only | B104: Occupational Medicine | C104: UPP Only | D104: 53 | E104: 28 | F104: 2414 | G104: 3149 | H104: 4611 | I104: 5509 | J104: Non Academic | K104: National | L104: UPP Only | M104: Work RVU
A105: Ophthalmology: RetinaUPP Only | B105: Ophthalmology: Retina | C105: UPP Only | D105: 10 | E105: 7 | F105: 10038 | G105: 10469 | H105: 14202 | I105: 22174 | J105: Non Academic | K105: National | L105: UPP Only | M105: Work RVU
A106: Orthopedic Surgery: Foot and AnkleUPP Only | B106: Orthopedic Surgery: Foot and Ankle | C106: UPP Only | D106: 38 | E106: 26 | F106: 6831 | G106: 8853 | H106: 11251 | I106: 12776 | J106: Non Academic | K106: National | L106: UPP Only | M106: Work RVU
A107: Pathology: AnatomicUPP Only | B107: Pathology: Anatomic | C107: UPP Only | D107: 12 | E107: 3 | F107: 4396 | G107: 6878 | H107: 8062 | I107: 8934 | J107: Non Academic | K107: National | L107: UPP Only | M107: Work RVU
A108: Pathology: ClinicalUPP Only | B108: Pathology: Clinical | C108: UPP Only | D108: 22 | E108: 9 | F108: 3154 | G108: 5652 | H108: 8140 | I108: 10173 | J108: Non Academic | K108: National | L108: UPP Only | M108: Work RVU
A109: AAAP: Critical Care/Intensive CareUPP Only | B109: AAAP: Critical Care/Intensive Care | C109: UPP Only | F109: 4913 | G109: 6696 | H109: 9183 | I109: 12040 | J109: AAAP Compensation 2014-2015 | K109: National | L109: All Ranks | M109: Work RVU
A110: AAAP: DermatologyUPP Only | B110: AAAP: Dermatology | C110: UPP Only | F110: 4703 | G110: 5141 | H110: 7158 | I110: 8609 | J110: AAAP Compensation 2014-2015 | K110: National | L110: All Ranks | M110: Work RVU
A111: AAAP: Emergency MedicineUPP Only | B111: AAAP: Emergency Medicine | C111: UPP Only | F111: 4170 | G111: 5875 | H111: 7825 | I111: 9432 | J111: AAAP Compensation 2014-2015 | K111: National | L111: All Ranks | M111: Work RVU
A112: AAAP: Endocrinology/MetabolismUPP Only | B112: AAAP: Endocrinology/Metabolism | C112: UPP Only | F112: 3001 | G112: 3764 | H112: 4907 | I112: 6381 | J112: AAAP Compensation 2014-2015 | K112: National | L112: All Ranks | M112: Work RVU
A113: AAAP: EpilepsyUPP Only | B113: AAAP: Epilepsy | C113: UPP Only | F113: 5496 | G113: 6942 | H113: 9756 | I113: 12028 | J113: AAAP Compensation 2014-2015 | K113: National | L113: All Ranks | M113: Work RVU
A114: AAAP: Gastroenterology/NutritionUPP Only | B114: AAAP: Gastroenterology/Nutrition | C114: UPP Only | F114: 3600 | G114: 4791 | H114: 5940 | I114: 7318 | J114: AAAP Compensation 2014-2015 | K114: National | L114: All Ranks | M114: Work RVU
A115: AAAP: General PediatricsUPP Only | B115: AAAP: General Pediatrics | C115: UPP Only | F115: 3201 | G115: 4399 | H115: 5955 | I115: 7601 | J115: AAAP Compensation 2014-2015 | K115: National | L115: All Ranks | M115: Work RVU
A116: AAAP: General Peds-in EDUPP Only | B116: AAAP: General Peds-in ED | C116: UPP Only | F116: 2966 | G116: 4329 | H116: 5526 | I116: 6430 | J116: AAAP Compensation 2014-2015 | K116: National | L116: All Ranks | M116: Work RVU
A117: AAAP: GeneticsUPP Only | B117: AAAP: Genetics | C117: UPP Only | F117: 1497 | G117: 2214 | H117: 3249 | I117: 4556 | J117: AAAP Compensation 2014-2015 | K117: National | L117: All Ranks | M117: Work RVU
A118: AAAP: Hematology/OncologyUPP Only | B118: AAAP: Hematology/Oncology | C118: UPP Only | F118: 2860 | G118: 3903 | H118: 5328 | I118: 7424 | J118: AAAP Compensation 2014-2015 | K118: National | L118: All Ranks | M118: Work RVU
A119: AAAP: HospitalistUPP Only | B119: AAAP: Hospitalist | C119: UPP Only | F119: 1760 | G119: 2652 | H119: 3648 | I119: 4935 | J119: AAAP Compensation 2014-2015 | K119: National | L119: All Ranks | M119: Work RVU
A120: AAAP: Infectious DeiseassedUPP Only | B120: AAAP: Infectious Deiseassed | C120: UPP Only | F120: 2047 | G120: 3055 | H120: 4457 | I120: 6329 | J120: AAAP Compensation 2014-2015 | K120: National | L120: All Ranks | M120: Work RVU
A121: AAAP: Med/PedsUPP Only | B121: AAAP: Med/Peds | C121: UPP Only | F121: 4300 | G121: 5681 | H121: 6859 | I121: 9023 | J121: AAAP Compensation 2014-2015 | K121: National | L121: All Ranks | M121: Work RVU
A122: AAAP: NeonatologyUPP Only | B122: AAAP: Neonatology | C122: UPP Only | F122: 7958 | G122: 11644 | H122: 16796 | I122: 24481 | J122: AAAP Compensation 2014-2015 | K122: National | L122: All Ranks | M122: Work RVU
A123: AAAP: NephrologyUPP Only | B123: AAAP: Nephrology | C123: UPP Only | F123: 2831 | G123: 3979 | H123: 5104 | I123: 7032 | J123: AAAP Compensation 2014-2015 | K123: National | L123: All Ranks | M123: Work RVU
A124: AAAP: NeurologyUPP Only | B124: AAAP: Neurology | C124: UPP Only | F124: 3510 | G124: 4782 | H124: 6081 | I124: 8557 | J124: AAAP Compensation 2014-2015 | K124: National | L124: All Ranks | M124: Work RVU
A125: AAAP: OtherUPP Only | B125: AAAP: Other | C125: UPP Only | F125: 3251 | G125: 4739 | H125: 6669 | I125: 8757 | J125: AAAP Compensation 2014-2015 | K125: National | L125: All Ranks | M125: Work RVU
A126: AAAP: Pediatric ForensicsUPP Only | B126: AAAP: Pediatric Forensics | C126: UPP Only | F126: 1129 | G126: 1541 | H126: 1926 | I126: 3357 | J126: AAAP Compensation 2014-2015 | K126: National | L126: All Ranks | M126: Work RVU
A127: AAAP: PsychologyUPP Only | B127: AAAP: Psychology | C127: UPP Only | F127: 1569 | G127: 2259 | H127: 3342 | I127: 4321 | J127: AAAP Compensation 2014-2015 | K127: National | L127: All Ranks | M127: Work RVU
A128: AAAP: PulmonaryUPP Only | B128: AAAP: Pulmonary | C128: UPP Only | F128: 3273 | G128: 4590 | H128: 5833 | I128: 7896 | J128: AAAP Compensation 2014-2015 | K128: National | L128: All Ranks | M128: Work RVU
A129: AAAP: RehabilitationUPP Only | B129: AAAP: Rehabilitation | C129: UPP Only | F129: 3014 | G129: 3787 | H129: 5255 | I129: 7199 | J129: AAAP Compensation 2014-2015 | K129: National | L129: All Ranks | M129: Work RVU
A130: AAAP: RheumatologyUPP Only | B130: AAAP: Rheumatology | C130: UPP Only | F130: 2378 | G130: 3161 | H130: 4313 | I130: 5897 | J130: AAAP Compensation 2014-2015 | K130: National | L130: All Ranks | M130: Work RVU
A131: =CONCATENATE(B131,C131) -> AAAP: Sleep MedicineUPP Only | B131: AAAP: Sleep Medicine | C131: UPP Only | F131: 3492 | G131: 4511 | H131: 5263 | I131: 6790 | J131: AAAP Compensation 2014-2015 | K131: National | L131: All Ranks | M131: Work RVU
A132: AAAP: Sports MedicineUPP Only | B132: AAAP: Sports Medicine | C132: UPP Only | F132: 3396 | G132: 4120 | H132: 4944 | I132: 5221 | J132: AAAP Compensation 2014-2015 | K132: National | L132: All Ranks | M132: Work RVU
A133: Radiology: NeurologicalUPP Only | B133: Radiology: Neurological | C133: UPP Only | D133: 35 | E133: 8 | F133: 11340 | G133: 13392 | H133: 16533 | I133: 19184 | J133: Non Academic | K133: National | L133: UPP Only | M133: Work RVU
A134: Radiology: Nuclear MedicineUPP Only | B134: Radiology: Nuclear Medicine | C134: UPP Only | D134: 15 | E134: 10 | F134: 5771 | G134: 7476 | H134: 9392 | I134: 10459 | J134: Non Academic | K134: National | L134: UPP Only | M134: Work RVU
A135: Sleep MedicineUPP Only | B135: Sleep Medicine | C135: UPP Only | D135: 52 | E135: 31 | F135: 4216 | G135: 5526 | H135: 6289 | I135: 8161 | J135: Non Academic | K135: National | L135: UPP Only | M135: Work RVU
A136: Surgery: OncologyUPP Only | B136: Surgery: Oncology | C136: UPP Only | D136: 22 | E136: 14 | F136: 5131 | G136: 6367 | H136: 7194 | I136: 9012 | J136: Non Academic | K136: National | L136: UPP Only | M136: Work RVU
A137: Surgery: Plastic and Reconstruction-HandUPP Only | B137: Surgery: Plastic and Reconstruction-Hand | C137: UPP Only | D137: 10 | E137: 4 | F137: 3683 | G137: 7611 | H137: 9253 | I137: 11173 | J137: Non Academic | K137: National | L137: UPP Only | M137: Work RVU
A138: Surgery: TransplantUPP Only | B138: Surgery: Transplant | C138: UPP Only | D138: 14 | E138: 7 | F138: 4401 | G138: 5165 | H138: 9017 | I138: 11281 | J138: Non Academic | K138: National | L138: UPP Only | M138: Work RVU
A139: ChiropractorUPP Only | B139: Chiropractor | C139: UPP Only | D139: 11 | E139: 5 | F139: 2467 | G139: 3149 | H139: 4387 | I139: 6272 | J139: Non Academic | K139: National | L139: UPP Only | M139: Work RVU
A140: NP: AdultUPP Only | B140: NP: Adult | C140: UPP Only | D140: 23 | E140: 16 | F140: 2335 | G140: 3416 | H140: 4444 | I140: 6101 | J140: Non Academic | K140: National | L140: UPP Only | M140: Work RVU
A141: NP: EndocrinologyUPP Only | B141: NP: Endocrinology | C141: UPP Only | D141: 32 | E141: 23 | F141: 2166 | G141: 2586 | H141: 3571 | I141: 5087 | J141: Non Academic | K141: National | L141: UPP Only | M141: Work RVU
A142: NP: Family Medicine (with OB)UPP Only | B142: NP: Family Medicine (with OB) | C142: UPP Only | D142: 26 | E142: 10 | F142: 1946 | G142: 2687 | H142: 4071 | I142: 4734 | J142: Non Academic | K142: National | L142: UPP Only | M142: Work RVU
A143: NP: GastroenterologyUPP Only | B143: NP: Gastroenterology | C143: UPP Only | D143: 29 | E143: 20 | F143: 1564 | G143: 1926 | H143: 2544 | I143: 3319 | J143: Non Academic | K143: National | L143: UPP Only | M143: Work RVU
A144: NP: Gerontology/Elder HealthUPP Only | B144: NP: Gerontology/Elder Health | C144: UPP Only | D144: 35 | E144: 14 | F144: 1485 | G144: 1747 | H144: 2471 | I144: 3168 | J144: Non Academic | K144: National | L144: UPP Only | M144: Work RVU
A145: NP: Hematology/OncologyUPP Only | B145: NP: Hematology/Oncology | C145: UPP Only | D145: 50 | E145: 24 | F145: 998 | G145: 1778 | H145: 2264 | I145: 2849 | J145: Non Academic | K145: National | L145: UPP Only | M145: Work RVU
A146: NP: Neonatal/PerinatalUPP Only | B146: NP: Neonatal/Perinatal | C146: UPP Only | D146: 13 | E146: 5 | F146: 125 | G146: 216 | H146: 291 | I146: 330 | J146: Non Academic | K146: National | L146: UPP Only | M146: Work RVU
A147: NP: NeurologyUPP Only | B147: NP: Neurology | C147: UPP Only | D147: 23 | E147: 16 | F147: 1140 | G147: 1827 | H147: 2383 | I147: 3106 | J147: Non Academic | K147: National | L147: UPP Only | M147: Work RVU
A148: NP: NeurosurgeryUPP Only | B148: NP: Neurosurgery | C148: UPP Only | D148: 11 | E148: 9 | F148: 1067 | G148: 2175 | H148: 3235 | I148: 5167 | J148: Non Academic | K148: National | L148: UPP Only | M148: Work RVU
A149: NP: PsychiatryUPP Only | B149: NP: Psychiatry | C149: UPP Only | D149: 19 | E149: 11 | F149: 1685 | G149: 2170 | H149: 2517 | I149: 2826 | J149: Non Academic | K149: National | L149: UPP Only | M149: Work RVU
A150: NP: Pulmonary MedicineUPP Only | B150: NP: Pulmonary Medicine | C150: UPP Only | D150: 22 | E150: 14 | F150: 808 | G150: 1213 | H150: 2243 | I150: 2564 | J150: Non Academic | K150: National | L150: UPP Only | M150: Work RVU
A151: NP: Urgent CareUPP Only | B151: NP: Urgent Care | C151: UPP Only | D151: 33 | E151: 15 | F151: 2993 | G151: 3744 | H151: 5803 | I151: 7341 | J151: Non Academic | K151: National | L151: UPP Only | M151: Work RVU
A152: Occupational TherapistUPP Only | B152: Occupational Therapist | C152: UPP Only | D152: 32 | E152: 8 | F152: 1414 | G152: 1727 | H152: 1986 | I152: 2557 | J152: Non Academic | K152: National | L152: UPP Only | M152: Work RVU
A153: Physical TherapistUPP Only | B153: Physical Therapist | C153: UPP Only | D153: 176 | E153: 19 | F153: 1802 | G153: 2260 | H153: 2728 | I153: 3264 | J153: Non Academic | K153: National | L153: UPP Only | M153: Work RVU
A154: PA: Surgery: GeneralUPP Only | B154: PA: Surgery: General | C154: UPP Only | D154: 38 | E154: 25 | F154: 582 | G154: 1164 | H154: 1636 | I154: 2620 | J154: Non Academic | K154: National | L154: UPP Only | M154: Work RVU
A155: PA: NeurosurgeryUPP Only | B155: PA: Neurosurgery | C155: UPP Only | D155: 18 | E155: 8 | F155: 1380 | G155: 2189 | H155: 5377 | I155: 5969 | J155: Non Academic | K155: National | L155: UPP Only | M155: Work RVU
A156: PA: Family Medicine (with OB)UPP Only | B156: PA: Family Medicine (with OB) | C156: UPP Only | D156: 12 | E156: 10 | F156: 2787 | G156: 4036 | H156: 5110 | I156: 5774 | J156: Non Academic | K156: National | L156: UPP Only | M156: Work RVU
A157: PA: PediatricUPP Only | B157: PA: Pediatric | C157: UPP Only | D157: 15 | E157: 10 | F157: 3313 | G157: 4085 | H157: 5259 | I157: 6270 | J157: Non Academic | K157: National | L157: UPP Only | M157: Work RVU
A158: PA: Urgent Care (Primary Care)UPP Only | B158: PA: Urgent Care (Primary Care) | C158: UPP Only | D158: 39 | E158: 13 | F158: 2860 | G158: 3645 | H158: 4882 | I158: 5947 | J158: Non Academic | K158: National | L158: UPP Only | M158: Work RVU
A159: PA: OB/GYN/Womens HealthUPP Only | B159: PA: OB/GYN/Womens Health | C159: UPP Only | D159: 10 | E159: 8 | F159: 1654 | G159: 2033 | H159: 2639 | I159: 3478 | J159: Non Academic | K159: National | L159: UPP Only | M159: Work RVU
A160: PA: DermatologyUPP Only | B160: PA: Dermatology | C160: UPP Only | D160: 26 | E160: 20 | F160: 3428 | G160: 4261 | H160: 5642 | I160: 8276 | J160: Non Academic | K160: National | L160: UPP Only | M160: Work RVU
A161: PA: EmergencyUPP Only | B161: PA: Emergency | C161: UPP Only | D161: 14 | E161: 5 | F161: 3744 | G161: 4075 | H161: 5022 | I161: 6156 | J161: Non Academic | K161: National | L161: UPP Only | M161: Work RVU
A162: PA: GastroenterologyUPP Only | B162: PA: Gastroenterology | C162: UPP Only | D162: 18 | E162: 10 | F162: 1427 | G162: 1730 | H162: 2498 | I162: 3236 | J162: Non Academic | K162: National | L162: UPP Only | M162: Work RVU
A163: PA: NeurologyUPP Only | B163: PA: Neurology | C163: UPP Only | D163: 21 | E163: 13 | F163: 1439 | G163: 1751 | H163: 2122 | I163: 3312 | J163: Non Academic | K163: National | L163: UPP Only | M163: Work RVU
A164: PA: Orthopedic (Nonsurgical, Nonprimary Care)UPP Only | B164: PA: Orthopedic (Nonsurgical, Nonprimary Care) | C164: UPP Only | D164: 23 | E164: 14 | F164: 1545 | G164: 2348 | H164: 3757 | I164: 5658 | J164: Non Academic | K164: National | L164: UPP Only | M164: Work RVU
A165: PA: Pulmonary MedicineUPP Only | B165: PA: Pulmonary Medicine | C165: UPP Only | D165: 18 | E165: 13 | F165: 1389 | G165: 2557 | H165: 3517 | I165: 3931 | J165: Non Academic | K165: National | L165: UPP Only | M165: Work RVU
A166: PA: Urgent Care (Nonsurgical, Nonprimary Care)UPP Only | B166: PA: Urgent Care (Nonsurgical, Nonprimary Care) | C166: UPP Only | D166: 15 | E166: 9 | F166: 4123 | G166: 4535 | H166: 5192 | I166: 7035 | J166: Non Academic | K166: National | L166: UPP Only | M166: Work RVU
A167: PsychologistUPP Only | B167: Psychologist | C167: UPP Only | D167: 143 | E167: 28 | F167: 2119 | G167: 2423 | H167: 2877 | I167: 3518 | J167: Non Academic | K167: National | L167: UPP Only | M167: Work RVU
A168: AnesthesiologyUPP Only | B168: Anesthesiology | C168: UPP Only | D168: 142 | E168: 11 | F168: 10227 | G168: 11449 | H168: 21810 | I168: 27073 | J168: Non Academic | K168: Eastern | L168: UPP Only | M168: ASA UNIT
A169: Allergy/ImmunologyInstructor | B169: Allergy/Immunology | C169: Instructor | D169: 17 | E169: 7 | F169: 2573 | G169: 4052 | H169: 4585 | I169: 5023 | J169: Academic | K169: National | L169: All Ranks | M169: Std Work RVU
A170: Allergy/ImmunologyAssistant Professor | B170: Allergy/Immunology | C170: Assistant Professor | D170: 17 | E170: 7 | F170: 2573 | G170: 4052 | H170: 4585 | I170: 5023 | J170: Academic | K170: National | L170: All Ranks | M170: Std Work RVU
A171: Allergy/ImmunologyAssociate Professor | B171: Allergy/Immunology | C171: Associate Professor | D171: 17 | E171: 7 | F171: 2573 | G171: 4052 | H171: 4585 | I171: 5023 | J171: Academic | K171: National | L171: All Ranks | M171: Std Work RVU
A172: Allergy/ImmunologyProfessor | B172: Allergy/Immunology | C172: Professor | D172: 17 | E172: 7 | F172: 2573 | G172: 4052 | H172: 4585 | I172: 5023 | J172: Academic | K172: National | L172: All Ranks | M172: Std Work RVU
A173: AnesthesiologyInstructor | B173: Anesthesiology | C173: Instructor | D173: 51 | E173: 4 | F173: 3706 | G173: 9714 | H173: 17325 | I173: 20931 | J173: Academic | K173: Eastern | L173: Instructor | M173: Std ASA Unit
A174: AnesthesiologyAssistant Professor | B174: Anesthesiology | C174: Assistant Professor | D174: 161 | E174: 7 | F174: 3131 | G174: 10450 | H174: 15702 | I174: 20623 | J174: Academic | K174: Eastern | L174: Assistant Professor | M174: Std ASA Unit
A175: AnesthesiologyAssociate Professor | B175: Anesthesiology | C175: Associate Professor | D175: 60 | E175: 7 | F175: 9022 | G175: 13436 | H175: 21894 | I175: 29486 | J175: Academic | K175: Eastern | L175: Associate Professor | M175: Std ASA Unit
A176: AnesthesiologyProfessor | B176: Anesthesiology | C176: Professor | D176: 29 | E176: 5 | F176: 6966 | G176: 11490 | H176: 16889 | I176: 22882 | J176: Academic | K176: Eastern | L176: Professor | M176: Std ASA Unit
A177: Anesthesiology: Pain ManagementInstructor | B177: Anesthesiology: Pain Management | C177: Instructor | D177: 25 | E177: 10 | F177: 3671 | G177: 5044 | H177: 6030 | I177: 10992 | J177: Academic | K177: National | L177: All Ranks | M177: Std Work RVU
A178: Anesthesiology: Pain ManagementAssistant Professor | B178: Anesthesiology: Pain Management | C178: Assistant Professor | D178: 12 | E178: 7 | F178: 4001 | G178: 5169 | H178: 5717 | I178: 8632 | J178: Academic | K178: National | L178: Assistant Professor | M178: Std Work RVU
A179: Anesthesiology: Pain ManagementAssociate Professor | B179: Anesthesiology: Pain Management | C179: Associate Professor | D179: 25 | E179: 10 | F179: 3671 | G179: 5044 | H179: 6030 | I179: 10992 | J179: Academic | K179: National | L179: All Ranks | M179: Std Work RVU
A180: Anesthesiology: Pain ManagementProfessor | B180: Anesthesiology: Pain Management | C180: Professor | D180: 25 | E180: 10 | F180: 3671 | G180: 5044 | H180: 6030 | I180: 10992 | J180: Academic | K180: National | L180: All Ranks | M180: Std Work RVU
A181: AudiologistInstructor | B181: Audiologist | C181: Instructor | D181: 18 | E181: 2 | F181: * | G181: * | H181: * | I181: * | J181: Academic | K181: None Available | L181: None Available | M181: Std Work RVU
A182: AudiologistAssistant Professor | B182: Audiologist | C182: Assistant Professor | D182: 18 | E182: 2 | F182: * | G182: * | H182: * | I182: * | J182: Academic | K182: None Available | L182: None Available | M182: Std Work RVU
A183: AudiologistAssociate Professor | B183: Audiologist | C183: Associate Professor | D183: 18 | E183: 2 | F183: * | G183: * | H183: * | I183: * | J183: Academic | K183: None Available | L183: None Available | M183: Std Work RVU
A184: AudiologistProfessor | B184: Audiologist | C184: Professor | D184: 18 | E184: 2 | F184: * | G184: * | H184: * | I184: * | J184: Academic | K184: None Available | L184: None Available | M184: Std Work RVU
A185: Cardiology: ElectrophysiologyInstructor | B185: Cardiology: Electrophysiology | C185: Instructor | D185: 14 | E185: 3 | F185: 6414 | G185: 9286 | H185: 12152 | I185: 16000 | J185: Academic | K185: Eastern | L185: All Ranks | M185: Std Work RVU
A186: Cardiology: ElectrophysiologyAssistant Professor | B186: Cardiology: Electrophysiology | C186: Assistant Professor | D186: 17 | E186: 7 | F186: 4476 | G186: 7442 | H186: 9124 | I186: 11085 | J186: Academic | K186: National | L186: Assistant Professor | M186: Std Work RVU
A187: Cardiology: ElectrophysiologyAssociate Professor | B187: Cardiology: Electrophysiology | C187: Associate Professor | D187: 12 | E187: 7 | F187: 7593 | G187: 9253 | H187: 10293 | I187: 17392 | J187: Academic | K187: National | L187: Associate Professor | M187: Std Work RVU
A188: Cardiology: ElectrophysiologyProfessor | B188: Cardiology: Electrophysiology | C188: Professor | D188: 14 | E188: 3 | F188: 6414 | G188: 9286 | H188: 12152 | I188: 16000 | J188: Academic | K188: Eastern | L188: All Ranks | M188: Std Work RVU
A189: Cardiology: InvasiveInstructor | B189: Cardiology: Invasive | C189: Instructor | D189: 16 | E189: 6 | F189: 7013 | G189: 8377 | H189: 9733 | I189: 10748 | J189: Academic | K189: National | L189: All Ranks | M189: Std Work RVU
A190: Cardiology: InvasiveAssistant Professor | B190: Cardiology: Invasive | C190: Assistant Professor | D190: 11 | E190: 5 | F190: 6806 | G190: 8113 | H190: 9568 | I190: 10224 | J190: Academic | K190: National | L190: Assistant Professor | M190: Std Work RVU
A191: Cardiology: InvasiveAssociate Professor | B191: Cardiology: Invasive | C191: Associate Professor | D191: 16 | E191: 6 | F191: 7013 | G191: 8377 | H191: 9733 | I191: 10748 | J191: Academic | K191: National | L191: All Ranks | M191: Std Work RVU
A192: Cardiology: InvasiveProfessor | B192: Cardiology: Invasive | C192: Professor | D192: 16 | E192: 6 | F192: 7013 | G192: 8377 | H192: 9733 | I192: 10748 | J192: Academic | K192: National | L192: All Ranks | M192: Std Work RVU
A193: Cardiology: Invasive-InterventionalInstructor | B193: Cardiology: Invasive-Interventional | C193: Instructor | D193: 26 | E193: 3 | F193: 7914 | G193: 9415 | H193: 11666 | I193: 14395 | J193: Academic | K193: Eastern | L193: All Ranks | M193: Std Work RVU
A194: Cardiology: Invasive-InterventionalAssistant Professor | B194: Cardiology: Invasive-Interventional | C194: Assistant Professor | D194: 16 | E194: 9 | F194: 4587 | G194: 6510 | H194: 9459 | I194: 10340 | J194: Academic | K194: National | L194: Assistant Professor | M194: Std Work RVU
A195: =CONCATENATE(B195,C195) -> Cardiology: Invasive-InterventionalAssociate Professor | B195: Cardiology: Invasive-Interventional | C195: Associate Professor | D195: 15 | E195: 8 | F195: 6788 | G195: 8177 | H195: 9598 | I195: 14273 | J195: Academic | K195: National | L195: Associate Professor | M195: Std Work RVU
A196: Cardiology: Invasive-InterventionalProfessor | B196: Cardiology: Invasive-Interventional | C196: Professor | D196: 26 | E196: 3 | F196: 7914 | G196: 9415 | H196: 11666 | I196: 14395 | J196: Academic | K196: Eastern | L196: All Ranks | M196: Std Work RVU
A197: Cardiology: NoninvasiveInstructor | B197: Cardiology: Noninvasive | C197: Instructor | D197: 20 | E197: 4 | F197: 4671 | G197: 5490 | H197: 6833 | I197: 8948 | J197: Academic | K197: National | L197: Instructor | M197: Std Work RVU
A198: Cardiology: NoninvasiveAssistant Professor | B198: Cardiology: Noninvasive | C198: Assistant Professor | D198: 29 | E198: 4 | F198: 4704 | G198: 7856 | H198: 9118 | I198: 11379 | J198: Academic | K198: Eastern | L198: Assistant Professor | M198: Std Work RVU
A199: Cardiology: NoninvasiveAssociate Professor | B199: Cardiology: Noninvasive | C199: Associate Professor | D199: 11 | E199: 4 | F199: 4020 | G199: 5403 | H199: 6947 | I199: 7674 | J199: Academic | K199: Eastern | L199: Associate Professor | M199: Std Work RVU
A200: Cardiology: NoninvasiveProfessor | B200: Cardiology: Noninvasive | C200: Professor | D200: 10 | E200: 3 | F200: 4624 | G200: 6869 | H200: 9271 | I200: 11920 | J200: Academic | K200: Eastern | L200: Professor | M200: Std Work RVU
... 671 more rows

Sheet MGMA Comp Prod Tables (hidden)
A1: Unique ID | B1: Specialty | D1: Provider Count | E1: Group Count | F1: 25th %tile | G1: Median | H1: 75th %tile | I1: 90th %tile | J1: Table | K1: Geography | L1: Rank | M1: Metric
A2: =CONCATENATE(B2,C2) -> Allergy/ImmunologyUPP Only | B2: Allergy/Immunology | C2: UPP Only | D2: 15 | E2: 6 | F2: 60.74 | G2: 68.54 | H2: 109.32 | I2: 139.2 | J2: Non Academic | K2: Eastern | L2: UPP Only | M2: Compensation to Work RVU | O2: =IF(I2=H2,"bad","") -> 
A3: =CONCATENATE(B3,C3) -> Anesthesiology: Pain ManagementUPP Only | B3: Anesthesiology: Pain Management | C3: UPP Only | D3: 15 | E3: 7 | F3: 53.28 | G3: 57.75 | H3: 65.23 | I3: 84.63 | J3: Non Academic | K3: Eastern | L3: UPP Only | M3: Compensation to Work RVU | O3: =IF(I3=H3,"bad","") -> 
A4: Cardiology: ElectrophysiologyUPP Only | B4: Cardiology: Electrophysiology | C4: UPP Only | D4: 45 | E4: 18 | F4: 44.19 | G4: 54.13 | H4: 62.23 | I4: 74.83 | J4: Non Academic | K4: Eastern | L4: UPP Only | M4: Compensation to Work RVU
A5: Cardiology: InvasiveUPP Only | B5: Cardiology: Invasive | C5: UPP Only | D5: 47 | E5: 19 | F5: 50.2 | G5: 56.11 | H5: 66.26 | I5: 72.93 | J5: Non Academic | K5: Eastern | L5: UPP Only | M5: Compensation to Work RVU
A6: Cardiology: Invasive-InterventionalUPP Only | B6: Cardiology: Invasive-Interventional | C6: UPP Only | D6: 117 | E6: 36 | F6: 48.11 | G6: 56.76 | H6: 68.08 | I6: 92.11 | J6: Non Academic | K6: Eastern | L6: UPP Only | M6: Compensation to Work RVU
A7: Cardiology: NoninvasiveUPP Only | B7: Cardiology: Noninvasive | C7: UPP Only | D7: 210 | E7: 37 | F7: 49.81 | G7: 58.76 | H7: 72.05 | I7: 83.59 | J7: Non Academic | K7: Eastern | L7: UPP Only | M7: Compensation to Work RVU
A8: Critical Care: IntensivistUPP Only | B8: Critical Care: Intensivist | C8: UPP Only | D8: 39 | E8: 7 | F8: 64.04 | G8: 75.96 | H8: 91.34 | I8: 107.05 | J8: Non Academic | K8: Eastern | L8: UPP Only | M8: Compensation to Work RVU
